Workbook

Sheet Metadata (hidden)
B2: Metadata
B3: ContextData | C3: ProcessActivity | D3: NAT_MTEC
C4: Province | D4: National
C5: Department | D5: =MyDept_Name -> National Treasury
C6: PublicEntity | D6: 0
C7: Fin Year | D7: =+Cover!MyYearP1 -> 2018/19
C8: VoteNo | D8: =MyDept_Code*1 -> 7
C9: Identifier | D9: Template
C10: ProgSectionCount
C11: SubprogSectionCount2
B12: SourceRef | C12: name
C13: email
C14: telephone
C15: mobile
B16: Platform | C16: file modified | D16: =NOW() -> 2017-06-07T12:14:44.720
C17: OS version | D17: =INFO("OSVERSION") -> Windows (32-bit) NT 6.01
C18: Excel version | D18: =INFO("RELEASE") -> 14.0
B19: SourceControl | C19: SourceIdentifier | D19: =CONCATENATE(D3,"_",D9,"_",D16) -> NAT_MTEC_Template_42893.5102398148
C20: Filename | D20: =MID(CELL("filename",A1),FIND("[",CELL("filename",A1))+1,FIND("]",CELL("filename",A1))-FIND("[",CELL("filename",A1))-1) -> 2018 MTEC Submission Workbook.xlsm
C21: FilePath | D21: =LEFT(CELL("filename",A1),FIND("[",CELL("filename",A1),1)-1) -> P:\1. Budget\2018\MTEC\Master Workbook file\Model\
C22: template_versionDate | D22: =DATE(2017,6,1) -> 2017-06-01
C23: LockDate1 | D23: =DATE(2017,11,1) -> 2017-11-01
C24: lockDate2 | D24: 2017-11-01
C25: LockStatus1 | D25: 1
C26: LockStatus2 | D26: 1
B60: Macros applied on the Template
B61: Macro # | C61: Reason/Description | D61: Date | E61: MacroFileName
B62: 1
B63: 2
B64: 3
B65: 4
B66: 5
B67: 6
B68: 7
B69: 8
B70: 9
B71: 10
B79: Macros for individual departments
B80: Macro # | C80: Reason/Description | D80: Date | E80: MacroFileName
B81: 1
B82: 2
B83: 3
B84: 4
B85: 5
B86: 6
B87: 7
B88: 8
B89: 9
B90: 10

Sheet Tables (hidden)
A1: 1 | D1: 2 | G1: 3 | J1: 4 | T1: 5 | W1: 6 | AB1: 7 | AO1: 8 | CG1: 9 | DR1: 10
AO4: Lookup table for Programme and subprogramme drop down lists
AS5: No. of Sprog | AU5: =20-COUNTIF(AU11:AU30,"") -> 9 | AV5: 6 | AW5: 5 | AX5: 6 | AY5: 7 | AZ5: 5 | BA5: 3 | BB5: 5 | BC5: 1 | BD5: 2 | BE5: 4 | BF5: 0 | BG5: 0 | BH5: 0 | BI5: 0 | BJ5: 0
AS6: Dept | AT6: =INDEX((T_Sprog[Vote No.]),MATCH(AU6,T_Sprog[Department],0)) -> 7 | AU6: =MyDept_Name -> National Treasury
AS7: Prog_ID | AU7: =IFERROR(INDEX(($AQ$11:$AQ$26),MATCH(AU9,$AP$11:$AP$26,0)),0) -> 007001 | AV7: 007002 | AW7: 007003 | AX7: 007004 | AY7: 007005 | AZ7: 007006 | BA7: 007007 | BB7: 007008 | BC7: 007009 | BD7: 007010 | BE7: 007016 | BF7: 0 | BG7: 0 | BH7: 0 | BI7: 0 | BJ7: 0
AS8: Prog No. | AU8: 1 | AV8: 2 | AW8: 3 | AX8: 4 | AY8: 5 | AZ8: 6 | BA8: 7 | BB8: 8 | BC8: 9 | BD8: 10 | BE8: 11 | BF8: 12 | BG8: 13 | BH8: 14 | BI8: 15 | BJ8: 16
AU9: =IFERROR(INDEX(($AP$11:$AP$26),MATCH(AU8,$AO$11:$AO$26,0)),0) -> 1 | AV9: 2 | AW9: 3 | AX9: 4 | AY9: 5 | AZ9: 6 | BA9: 7 | BB9: 8 | BC9: 9 | BD9: 10 | BE9: 16 | BF9: 0 | BG9: 0 | BH9: 0 | BI9: 0 | BJ9: 0
AB10: Structures | AC10: Updated | AO10: =MAX($AO$11:$AO$26) -> 11 | AS10: Prog Name | AU10: =IFERROR(INDEX((T_Sprog[Programme]),MATCH(AU$7,T_Sprog[ComboID_DP],0)),"") -> Administration | AV10: =IFERROR(INDEX((T_Sprog[Programme]),MATCH(AV$7,T_Sprog[ComboID_DP],0)),"") -> Economic Policy, Tax, Financial Regulation and Research | AW10: =IFERROR(INDEX((T_Sprog[Programme]),MATCH(AW$7,T_Sprog[ComboID_DP],0)),"") -> Public Finance and Budget Management | AX10: =IFERROR(INDEX((T_Sprog[Programme]),MATCH(AX$7,T_Sprog[ComboID_DP],0)),"") -> Asset and Liability Management | AY10: =IFERROR(INDEX((T_Sprog[Programme]),MATCH(AY$7,T_Sprog[ComboID_DP],0)),"") -> Financial Accounting and Supply Chain Management Systems | AZ10: =IFERROR(INDEX((T_Sprog[Programme]),MATCH(AZ$7,T_Sprog[ComboID_DP],0)),"") -> International Financial Relations | BA10: =IFERROR(INDEX((T_Sprog[Programme]),MATCH(BA$7,T_Sprog[ComboID_DP],0)),"") -> Civil and Military Pensions, Contributions to Funds and Other Benefits | BB10: =IFERROR(INDEX((T_Sprog[Programme]),MATCH(BB$7,T_Sprog[ComboID_DP],0)),"") -> Technical Support and Development Finance | BC10: =IFERROR(INDEX((T_Sprog[Programme]),MATCH(BC$7,T_Sprog[ComboID_DP],0)),"") -> Revenue Administration | BD10: =IFERROR(INDEX((T_Sprog[Programme]),MATCH(BD$7,T_Sprog[ComboID_DP],0)),"") -> Financial Intelligence and State Security | BE10: =IFERROR(INDEX((T_Sprog[Programme]),MATCH(BE$7,T_Sprog[ComboID_DP],0)),"") -> Direct charge against the National Revenue Fund | BF10: =IFERROR(INDEX((T_Sprog[Programme]),MATCH(BF$7,T_Sprog[ComboID_DP],0)),"") ->  | BG10: =IFERROR(INDEX((T_Sprog[Programme]),MATCH(BG$7,T_Sprog[ComboID_DP],0)),"") ->  | BH10: =IFERROR(INDEX((T_Sprog[Programme]),MATCH(BH$7,T_Sprog[ComboID_DP],0)),"") ->  | BI10: =IFERROR(INDEX((T_Sprog[Programme]),MATCH(BI$7,T_Sprog[ComboID_DP],0)),"") ->  | BJ10: =IFERROR(INDEX((T_Sprog[Programme]),MATCH(BJ$7,T_Sprog[ComboID_DP],0)),"") -> 
A11: Econ1_No | B11: Econ1 | D11: Econ2_No | E11: Econ2 | G11: Econ3_No | H11: Econ3 | J11: Econ1_Id | K11: Econ2_Id | L11: Econ3_Id | M11: Econ_Uid | N11: Econ1 | O11: Econ2 | P11: Econ3 | T11: Vote No. | U11: Department | W11: Vote No. | X11: Department | Y11: Programme No. | Z11: Programme | AB11: Vote No. | AC11: Department | AD11: Programme No. | AE11: Programme | AF11: Subprogramme No. | AG11: Subprogramme | AH11: DeptID | AI11: ProgID | AJ11: SProgID | AK11: ComboID_DP | AL11: ComboID_DPSP | AO11: 1 | AP11: 1 | AQ11: =REPT("0",3-LEN($AT$6))&$AT$6&REPT("0",3-LEN(AP11))&AP11 -> 007001 | AR11: =IFERROR(INDEX((T_Sprog[Programme]),MATCH(AQ11,T_Sprog[ComboID_DP],0)),"") -> Administration | AT11: 1 | AU11: =IFERROR(INDEX((T_Sprog[Subprogramme]),MATCH(AU35,T_Sprog[ComboID_DPSP],0)),"") -> Ministry | AV11: =IFERROR(INDEX((T_Sprog[Subprogramme]),MATCH(AV35,T_Sprog[ComboID_DPSP],0)),"") -> Programme Management for Economic Policy, Tax, Financial Regulation and Research | AW11: =IFERROR(INDEX((T_Sprog[Subprogramme]),MATCH(AW35,T_Sprog[ComboID_DPSP],0)),"") -> Programme Management for Public Finance and Budget Management | AX11: =IFERROR(INDEX((T_Sprog[Subprogramme]),MATCH(AX35,T_Sprog[ComboID_DPSP],0)),"") -> Programme Management for Asset and Liability Management | AY11: =IFERROR(INDEX((T_Sprog[Subprogramme]),MATCH(AY35,T_Sprog[ComboID_DPSP],0)),"") -> Programme Management for Financial Accounting and Supply Chain Management Systems | AZ11: =IFERROR(INDEX((T_Sprog[Subprogramme]),MATCH(AZ35,T_Sprog[ComboID_DPSP],0)),"") -> Programme Management for International Financial Relations | BA11: =IFERROR(INDEX((T_Sprog[Subprogramme]),MATCH(BA35,T_Sprog[ComboID_DPSP],0)),"") -> Government Pensions Administration Agency | BB11: =IFERROR(INDEX((T_Sprog[Subprogramme]),MATCH(BB35,T_Sprog[ComboID_DPSP],0)),"") ->  | BC11: =IFERROR(INDEX((T_Sprog[Subprogramme]),MATCH(BC35,T_Sprog[ComboID_DPSP],0)),"") -> South African Revenue Service | BD11: =IFERROR(INDEX((T_Sprog[Subprogramme]),MATCH(BD35,T_Sprog[ComboID_DPSP],0)),"") -> Financial Intelligence Centre | BE11: =IFERROR(INDEX((T_Sprog[Subprogramme]),MATCH(BE35,T_Sprog[ComboID_DPSP],0)),"") -> Provincial Equitable Share | BF11: =IFERROR(INDEX((T_Sprog[Subprogramme]),MATCH(BF35,T_Sprog[ComboID_DPSP],0)),"") ->  | BG11: =IFERROR(INDEX((T_Sprog[Subprogramme]),MATCH(BG35,T_Sprog[ComboID_DPSP],0)),"") ->  | BH11: =IFERROR(INDEX((T_Sprog[Subprogramme]),MATCH(BH35,T_Sprog[ComboID_DPSP],0)),"") ->  | BI11: =IFERROR(INDEX((T_Sprog[Subprogramme]),MATCH(BI35,T_Sprog[ComboID_DPSP],0)),"") ->  | BJ11: =IFERROR(INDEX((T_Sprog[Subprogramme]),MATCH(BJ35,T_Sprog[ComboID_DPSP],0)),"") -> 
A12: =INDEX(('Econ ENE'!$F$5:$F$71),MATCH(T_Econ1[[#This Row],[Econ1]],'Econ ENE'!$N$5:$N$71,0)) -> 1 | B12: Current payments | D12: =INDEX(('Econ ENE'!$G$5:$G$71),MATCH(T_Econ2[[#This Row],[Econ2]],'Econ ENE'!$O$5:$O$71,0)) -> 1 | E12: Compensation of employees | G12: =INDEX(($I$47:$I$79),MATCH(T_Econ3[[#This Row],[Econ3]],$H$47:$H$79,0)) -> 1 | H12: Compensation of employees | J12: =REPT("0",3-LEN(INDEX((T_Econ1[Econ1_No]),MATCH(T_Econ[[#This Row],[Econ1]],T_Econ1[Econ1],0))))&INDEX((T_Econ1[Econ1_No]),MATCH(T_Econ[[#This Row],[Econ1]],T_Econ1[Econ1],0)) -> 001 | K12: =REPT("0",3-LEN(INDEX((T_Econ2[Econ2_No]),MATCH(T_Econ[[#This Row],[Econ2]],T_Econ2[Econ2],0))))&INDEX((T_Econ2[Econ2_No]),MATCH(T_Econ[[#This Row],[Econ2]],T_Econ2[Econ2],0)) -> 001 | L12: =REPT("0",3-LEN(INDEX((T_Econ3[Econ3_No]),MATCH(T_Econ[[#This Row],[Econ3]],T_Econ3[Econ3],0))))&INDEX((T_Econ3[Econ3_No]),MATCH(T_Econ[[#This Row],[Econ3]],T_Econ3[Econ3],0)) -> 001 | M12: =T_Econ[[#This Row],[Econ1_Id]]&T_Econ[[#This Row],[Econ2_Id]]&T_Econ[[#This Row],[Econ3_Id]] -> 001001001 | N12: Current payments | O12: Compensation of employees | P12: Compensation of employees | T12: 24 | U12: Agriculture, Forestry and Fisheries | W12: 1 | X12: The Presidency | Y12: 1 | Z12: Administration | AB12: 1 | AC12: The Presidency | AD12: 1 | AE12: Administration | AF12: 1 | AG12: Management | AH12: =REPT(0,3-LEN(T_Sprog[[#This Row],[Vote No.]]))&T_Sprog[[#This Row],[Vote No.]] -> 001 | AI12: =REPT(0,3-LEN(T_Sprog[[#This Row],[Programme No.]]))&T_Sprog[[#This Row],[Programme No.]] -> 001 | AJ12: =REPT(0,3-LEN(T_Sprog[[#This Row],[Subprogramme No.]]))&T_Sprog[[#This Row],[Subprogramme No.]] -> 001 | AK12: =T_Sprog[[#This Row],[DeptID]]&T_Sprog[[#This Row],[ProgID]] -> 001001 | AL12: =T_Sprog[[#This Row],[ComboID_DP]]&T_Sprog[[#This Row],[SProgID]] -> 001001001 | AO12: =IF(AR12<>"",MAX($AO$11:AO11)+1,0) -> 2 | AP12: 2 | AQ12: 007002 | AR12: =IFERROR(INDEX((T_Sprog[Programme]),MATCH(AQ12,T_Sprog[ComboID_DP],0)),"") -> Economic Policy, Tax, Financial Regulation and Research | AT12: 2 | AU12: =IFERROR(INDEX((T_Sprog[Subprogramme]),MATCH(AU36,T_Sprog[ComboID_DPSP],0)),"") -> Departmental Management | AV12: =IFERROR(INDEX((T_Sprog[Subprogramme]),MATCH(AV36,T_Sprog[ComboID_DPSP],0)),"") -> Research | AW12: =IFERROR(INDEX((T_Sprog[Subprogramme]),MATCH(AW36,T_Sprog[ComboID_DPSP],0)),"") -> Public Finance | AX12: =IFERROR(INDEX((T_Sprog[Subprogramme]),MATCH(AX36,T_Sprog[ComboID_DPSP],0)),"") -> State Owned Entity Financial Management and Governance | AY12: =IFERROR(INDEX((T_Sprog[Subprogramme]),MATCH(AY36,T_Sprog[ComboID_DPSP],0)),"") -> Office of the Chief Procurement Officer | AZ12: =IFERROR(INDEX((T_Sprog[Subprogramme]),MATCH(AZ36,T_Sprog[ComboID_DPSP],0)),"") -> International Economic Cooperation | BA12: =IFERROR(INDEX((T_Sprog[Subprogramme]),MATCH(BA36,T_Sprog[ComboID_DPSP],0)),"") -> Civil Pensions and Contributions to Funds | BB12: =IFERROR(INDEX((T_Sprog[Subprogramme]),MATCH(BB36,T_Sprog[ComboID_DPSP],0)),"") -> Local Government Financial Management Support | BC12: =IFERROR(INDEX((T_Sprog[Subprogramme]),MATCH(BC36,T_Sprog[ComboID_DPSP],0)),"") ->  | BD12: =IFERROR(INDEX((T_Sprog[Subprogramme]),MATCH(BD36,T_Sprog[ComboID_DPSP],0)),"") -> Secret Services | BE12: =IFERROR(INDEX((T_Sprog[Subprogramme]),MATCH(BE36,T_Sprog[ComboID_DPSP],0)),"") -> Debt-service costs | BF12: =IFERROR(INDEX((T_Sprog[Subprogramme]),MATCH(BF36,T_Sprog[ComboID_DPSP],0)),"") ->  | BG12: =IFERROR(INDEX((T_Sprog[Subprogramme]),MATCH(BG36,T_Sprog[ComboID_DPSP],0)),"") ->  | BH12: =IFERROR(INDEX((T_Sprog[Subprogramme]),MATCH(BH36,T_Sprog[ComboID_DPSP],0)),"") ->  | BI12: =IFERROR(INDEX((T_Sprog[Subprogramme]),MATCH(BI36,T_Sprog[ComboID_DPSP],0)),"") ->  | BJ12: =IFERROR(INDEX((T_Sprog[Subprogramme]),MATCH(BJ36,T_Sprog[ComboID_DPSP],0)),"") -> 
A13: =INDEX(('Econ ENE'!$F$5:$F$71),MATCH(T_Econ1[[#This Row],[Econ1]],'Econ ENE'!$N$5:$N$71,0)) -> 2 | B13: Transfers and subsidies | D13: =INDEX(('Econ ENE'!$G$5:$G$71),MATCH(T_Econ2[[#This Row],[Econ2]],'Econ ENE'!$O$5:$O$71,0)) -> 2 | E13: Goods and services | G13: =INDEX(($I$47:$I$79),MATCH(T_Econ3[[#This Row],[Econ3]],$H$47:$H$79,0)) -> 2 | H13: Goods and services | J13: =REPT("0",3-LEN(INDEX((T_Econ1[Econ1_No]),MATCH(T_Econ[[#This Row],[Econ1]],T_Econ1[Econ1],0))))&INDEX((T_Econ1[Econ1_No]),MATCH(T_Econ[[#This Row],[Econ1]],T_Econ1[Econ1],0)) -> 001 | K13: =REPT("0",3-LEN(INDEX((T_Econ2[Econ2_No]),MATCH(T_Econ[[#This Row],[Econ2]],T_Econ2[Econ2],0))))&INDEX((T_Econ2[Econ2_No]),MATCH(T_Econ[[#This Row],[Econ2]],T_Econ2[Econ2],0)) -> 002 | L13: =REPT("0",3-LEN(INDEX((T_Econ3[Econ3_No]),MATCH(T_Econ[[#This Row],[Econ3]],T_Econ3[Econ3],0))))&INDEX((T_Econ3[Econ3_No]),MATCH(T_Econ[[#This Row],[Econ3]],T_Econ3[Econ3],0)) -> 002 | M13: =T_Econ[[#This Row],[Econ1_Id]]&T_Econ[[#This Row],[Econ2_Id]]&T_Econ[[#This Row],[Econ3_Id]] -> 001002002 | N13: Current payments | O13: Goods and services | P13: Goods and services | T13: 37 | U13: Arts and Culture | W13: 1 | X13: The Presidency | Y13: 2 | Z13: Executive Support | AB13: 1 | AC13: The Presidency | AD13: 1 | AE13: Administration | AF13: 2 | AG13: Support Service to President | AH13: 001 | AI13: 001 | AJ13: 002 | AK13: 001001 | AL13: 001001002 | AO13: =IF(AR13<>"",MAX($AO$11:AO12)+1,0) -> 3 | AP13: 3 | AQ13: 007003 | AR13: =IFERROR(INDEX((T_Sprog[Programme]),MATCH(AQ13,T_Sprog[ComboID_DP],0)),"") -> Public Finance and Budget Management | AT13: 3 | AU13: =IFERROR(INDEX((T_Sprog[Subprogramme]),MATCH(AU37,T_Sprog[ComboID_DPSP],0)),"") -> Corporate Services | AV13: =IFERROR(INDEX((T_Sprog[Subprogramme]),MATCH(AV37,T_Sprog[ComboID_DPSP],0)),"") -> Financial Sector Policy | AW13: =IFERROR(INDEX((T_Sprog[Subprogramme]),MATCH(AW37,T_Sprog[ComboID_DPSP],0)),"") -> Budget Office and Coordination | AX13: =IFERROR(INDEX((T_Sprog[Subprogramme]),MATCH(AX37,T_Sprog[ComboID_DPSP],0)),"") -> Government Debt Management | AY13: =IFERROR(INDEX((T_Sprog[Subprogramme]),MATCH(AY37,T_Sprog[ComboID_DPSP],0)),"") -> Financial Systems | AZ13: =IFERROR(INDEX((T_Sprog[Subprogramme]),MATCH(AZ37,T_Sprog[ComboID_DPSP],0)),"") -> African Integration and Support | BA13: =IFERROR(INDEX((T_Sprog[Subprogramme]),MATCH(BA37,T_Sprog[ComboID_DPSP],0)),"") -> Military Pensions and Other Benefits | BB13: =IFERROR(INDEX((T_Sprog[Subprogramme]),MATCH(BB37,T_Sprog[ComboID_DPSP],0)),"") -> Urban Development and Support | BC13: =IFERROR(INDEX((T_Sprog[Subprogramme]),MATCH(BC37,T_Sprog[ComboID_DPSP],0)),"") ->  | BD13: =IFERROR(INDEX((T_Sprog[Subprogramme]),MATCH(BD37,T_Sprog[ComboID_DPSP],0)),"") ->  | BE13: =IFERROR(INDEX((T_Sprog[Subprogramme]),MATCH(BE37,T_Sprog[ComboID_DPSP],0)),"") -> General Fuel Levy Sharing with Metropolitan Municipalities | BF13: =IFERROR(INDEX((T_Sprog[Subprogramme]),MATCH(BF37,T_Sprog[ComboID_DPSP],0)),"") ->  | BG13: =IFERROR(INDEX((T_Sprog[Subprogramme]),MATCH(BG37,T_Sprog[ComboID_DPSP],0)),"") ->  | BH13: =IFERROR(INDEX((T_Sprog[Subprogramme]),MATCH(BH37,T_Sprog[ComboID_DPSP],0)),"") ->  | BI13: =IFERROR(INDEX((T_Sprog[Subprogramme]),MATCH(BI37,T_Sprog[ComboID_DPSP],0)),"") ->  | BJ13: =IFERROR(INDEX((T_Sprog[Subprogramme]),MATCH(BJ37,T_Sprog[ComboID_DPSP],0)),"") -> 
A14: =INDEX(('Econ ENE'!$F$5:$F$71),MATCH(T_Econ1[[#This Row],[Econ1]],'Econ ENE'!$N$5:$N$71,0)) -> 3 | B14: Payments for capital assets | D14: =INDEX(('Econ ENE'!$G$5:$G$71),MATCH(T_Econ2[[#This Row],[Econ2]],'Econ ENE'!$O$5:$O$71,0)) -> 3 | E14: Interest and rent on land | G14: =INDEX(($I$47:$I$79),MATCH(T_Econ3[[#This Row],[Econ3]],$H$47:$H$79,0)) -> 3 | H14: Interest and rent on land | J14: =REPT("0",3-LEN(INDEX((T_Econ1[Econ1_No]),MATCH(T_Econ[[#This Row],[Econ1]],T_Econ1[Econ1],0))))&INDEX((T_Econ1[Econ1_No]),MATCH(T_Econ[[#This Row],[Econ1]],T_Econ1[Econ1],0)) -> 001 | K14: =REPT("0",3-LEN(INDEX((T_Econ2[Econ2_No]),MATCH(T_Econ[[#This Row],[Econ2]],T_Econ2[Econ2],0))))&INDEX((T_Econ2[Econ2_No]),MATCH(T_Econ[[#This Row],[Econ2]],T_Econ2[Econ2],0)) -> 003 | L14: =REPT("0",3-LEN(INDEX((T_Econ3[Econ3_No]),MATCH(T_Econ[[#This Row],[Econ3]],T_Econ3[Econ3],0))))&INDEX((T_Econ3[Econ3_No]),MATCH(T_Econ[[#This Row],[Econ3]],T_Econ3[Econ3],0)) -> 003 | M14: =T_Econ[[#This Row],[Econ1_Id]]&T_Econ[[#This Row],[Econ2_Id]]&T_Econ[[#This Row],[Econ3_Id]] -> 001003003 | N14: Current payments | O14: Interest and rent on land | P14: Interest and rent on land | T14: 14 | U14: Basic Education | W14: 1 | X14: The Presidency | Y14: 16 | Z14: Direct charge against the National Revenue Fund | AB14: 1 | AC14: The Presidency | AD14: 1 | AE14: Administration | AF14: 3 | AG14: Support Service to Deputy President | AH14: 001 | AI14: 001 | AJ14: 003 | AK14: 001001 | AL14: 001001003 | AO14: =IF(AR14<>"",MAX($AO$11:AO13)+1,0) -> 4 | AP14: 4 | AQ14: 007004 | AR14: =IFERROR(INDEX((T_Sprog[Programme]),MATCH(AQ14,T_Sprog[ComboID_DP],0)),"") -> Asset and Liability Management | AT14: 4 | AU14: =IFERROR(INDEX((T_Sprog[Subprogramme]),MATCH(AU38,T_Sprog[ComboID_DPSP],0)),"") -> Enterprise Wide Risk Management | AV14: =IFERROR(INDEX((T_Sprog[Subprogramme]),MATCH(AV38,T_Sprog[ComboID_DPSP],0)),"") -> Tax Policy | AW14: =IFERROR(INDEX((T_Sprog[Subprogramme]),MATCH(AW38,T_Sprog[ComboID_DPSP],0)),"") -> Intergovernmental Relations | AX14: =IFERROR(INDEX((T_Sprog[Subprogramme]),MATCH(AX38,T_Sprog[ComboID_DPSP],0)),"") -> Financial Operations | AY14: =IFERROR(INDEX((T_Sprog[Subprogramme]),MATCH(AY38,T_Sprog[ComboID_DPSP],0)),"") -> Financial Reporting for National Accounts | AZ14: =IFERROR(INDEX((T_Sprog[Subprogramme]),MATCH(AZ38,T_Sprog[ComboID_DPSP],0)),"") -> International Development Funding Institutions | BA14: =IFERROR(INDEX((T_Sprog[Subprogramme]),MATCH(BA38,T_Sprog[ComboID_DPSP],0)),"") ->  | BB14: =IFERROR(INDEX((T_Sprog[Subprogramme]),MATCH(BB38,T_Sprog[ComboID_DPSP],0)),"") -> Employment Creation Facilitation | BC14: =IFERROR(INDEX((T_Sprog[Subprogramme]),MATCH(BC38,T_Sprog[ComboID_DPSP],0)),"") ->  | BD14: =IFERROR(INDEX((T_Sprog[Subprogramme]),MATCH(BD38,T_Sprog[ComboID_DPSP],0)),"") ->  | BE14: =IFERROR(INDEX((T_Sprog[Subprogramme]),MATCH(BE38,T_Sprog[ComboID_DPSP],0)),"") -> National Revenue Fund payments | BF14: =IFERROR(INDEX((T_Sprog[Subprogramme]),MATCH(BF38,T_Sprog[ComboID_DPSP],0)),"") ->  | BG14: =IFERROR(INDEX((T_Sprog[Subprogramme]),MATCH(BG38,T_Sprog[ComboID_DPSP],0)),"") ->  | BH14: =IFERROR(INDEX((T_Sprog[Subprogramme]),MATCH(BH38,T_Sprog[ComboID_DPSP],0)),"") ->  | BI14: =IFERROR(INDEX((T_Sprog[Subprogramme]),MATCH(BI38,T_Sprog[ComboID_DPSP],0)),"") ->  | BJ14: =IFERROR(INDEX((T_Sprog[Subprogramme]),MATCH(BJ38,T_Sprog[ComboID_DPSP],0)),"") -> 
A15: =INDEX(('Econ ENE'!$F$5:$F$71),MATCH(T_Econ1[[#This Row],[Econ1]],'Econ ENE'!$N$5:$N$71,0)) -> 4 | B15: Payments for financial assets | D15: =INDEX(('Econ ENE'!$G$5:$G$71),MATCH(T_Econ2[[#This Row],[Econ2]],'Econ ENE'!$O$5:$O$71,0)) -> 4 | E15: Provinces and municipalities | G15: =INDEX(($I$47:$I$79),MATCH(T_Econ3[[#This Row],[Econ3]],$H$47:$H$79,0)) -> 43 | H15: Provinces | J15: =REPT("0",3-LEN(INDEX((T_Econ1[Econ1_No]),MATCH(T_Econ[[#This Row],[Econ1]],T_Econ1[Econ1],0))))&INDEX((T_Econ1[Econ1_No]),MATCH(T_Econ[[#This Row],[Econ1]],T_Econ1[Econ1],0)) -> 002 | K15: =REPT("0",3-LEN(INDEX((T_Econ2[Econ2_No]),MATCH(T_Econ[[#This Row],[Econ2]],T_Econ2[Econ2],0))))&INDEX((T_Econ2[Econ2_No]),MATCH(T_Econ[[#This Row],[Econ2]],T_Econ2[Econ2],0)) -> 004 | L15: =REPT("0",3-LEN(INDEX((T_Econ3[Econ3_No]),MATCH(T_Econ[[#This Row],[Econ3]],T_Econ3[Econ3],0))))&INDEX((T_Econ3[Econ3_No]),MATCH(T_Econ[[#This Row],[Econ3]],T_Econ3[Econ3],0)) -> 043 | M15: =T_Econ[[#This Row],[Econ1_Id]]&T_Econ[[#This Row],[Econ2_Id]]&T_Econ[[#This Row],[Econ3_Id]] -> 002004043 | N15: Transfers and subsidies | O15: Provinces and municipalities | P15: Provinces | T15: 47 | U15: Centre for Public Service Innovation | W15: 2 | X15: Parliament | Y15: 1 | Z15: Strategic Leadership and Governance | AB15: 1 | AC15: The Presidency | AD15: 2 | AE15: Executive Support | AF15: 1 | AG15: Cabinet Services | AH15: 001 | AI15: 002 | AJ15: 001 | AK15: 001002 | AL15: 001002001 | AO15: =IF(AR15<>"",MAX($AO$11:AO14)+1,0) -> 5 | AP15: 5 | AQ15: 007005 | AR15: =IFERROR(INDEX((T_Sprog[Programme]),MATCH(AQ15,T_Sprog[ComboID_DP],0)),"") -> Financial Accounting and Supply Chain Management Systems | AT15: 5 | AU15: =IFERROR(INDEX((T_Sprog[Subprogramme]),MATCH(AU39,T_Sprog[ComboID_DPSP],0)),"") -> Financial Administration | AV15: =IFERROR(INDEX((T_Sprog[Subprogramme]),MATCH(AV39,T_Sprog[ComboID_DPSP],0)),"") -> Economic Policy | AW15: =IFERROR(INDEX((T_Sprog[Subprogramme]),MATCH(AW39,T_Sprog[ComboID_DPSP],0)),"") -> Financial and Fiscal Commission | AX15: =IFERROR(INDEX((T_Sprog[Subprogramme]),MATCH(AX39,T_Sprog[ComboID_DPSP],0)),"") -> Strategy and Risk Management | AY15: =IFERROR(INDEX((T_Sprog[Subprogramme]),MATCH(AY39,T_Sprog[ComboID_DPSP],0)),"") -> Financial Management Policy and Compliance Improvement | AZ15: =IFERROR(INDEX((T_Sprog[Subprogramme]),MATCH(AZ39,T_Sprog[ComboID_DPSP],0)),"") -> International Projects | BA15: =IFERROR(INDEX((T_Sprog[Subprogramme]),MATCH(BA39,T_Sprog[ComboID_DPSP],0)),"") ->  | BB15: =IFERROR(INDEX((T_Sprog[Subprogramme]),MATCH(BB39,T_Sprog[ComboID_DPSP],0)),"") -> Government Technical Advisory Centre | BC15: =IFERROR(INDEX((T_Sprog[Subprogramme]),MATCH(BC39,T_Sprog[ComboID_DPSP],0)),"") ->  | BD15: =IFERROR(INDEX((T_Sprog[Subprogramme]),MATCH(BD39,T_Sprog[ComboID_DPSP],0)),"") ->  | BE15: =IFERROR(INDEX((T_Sprog[Subprogramme]),MATCH(BE39,T_Sprog[ComboID_DPSP],0)),"") ->  | BF15: =IFERROR(INDEX((T_Sprog[Subprogramme]),MATCH(BF39,T_Sprog[ComboID_DPSP],0)),"") ->  | BG15: =IFERROR(INDEX((T_Sprog[Subprogramme]),MATCH(BG39,T_Sprog[ComboID_DPSP],0)),"") ->  | BH15: =IFERROR(INDEX((T_Sprog[Subprogramme]),MATCH(BH39,T_Sprog[ComboID_DPSP],0)),"") ->  | BI15: =IFERROR(INDEX((T_Sprog[Subprogramme]),MATCH(BI39,T_Sprog[ComboID_DPSP],0)),"") ->  | BJ15: =IFERROR(INDEX((T_Sprog[Subprogramme]),MATCH(BJ39,T_Sprog[ComboID_DPSP],0)),"") -> 
D16: =INDEX(('Econ ENE'!$G$5:$G$71),MATCH(T_Econ2[[#This Row],[Econ2]],'Econ ENE'!$O$5:$O$71,0)) -> 5 | E16: Departmental agencies and accounts | G16: =INDEX(($I$47:$I$79),MATCH(T_Econ3[[#This Row],[Econ3]],$H$47:$H$79,0)) -> 44 | H16: Municipalities | J16: =REPT("0",3-LEN(INDEX((T_Econ1[Econ1_No]),MATCH(T_Econ[[#This Row],[Econ1]],T_Econ1[Econ1],0))))&INDEX((T_Econ1[Econ1_No]),MATCH(T_Econ[[#This Row],[Econ1]],T_Econ1[Econ1],0)) -> 002 | K16: =REPT("0",3-LEN(INDEX((T_Econ2[Econ2_No]),MATCH(T_Econ[[#This Row],[Econ2]],T_Econ2[Econ2],0))))&INDEX((T_Econ2[Econ2_No]),MATCH(T_Econ[[#This Row],[Econ2]],T_Econ2[Econ2],0)) -> 004 | L16: =REPT("0",3-LEN(INDEX((T_Econ3[Econ3_No]),MATCH(T_Econ[[#This Row],[Econ3]],T_Econ3[Econ3],0))))&INDEX((T_Econ3[Econ3_No]),MATCH(T_Econ[[#This Row],[Econ3]],T_Econ3[Econ3],0)) -> 044 | M16: =T_Econ[[#This Row],[Econ1_Id]]&T_Econ[[#This Row],[Econ2_Id]]&T_Econ[[#This Row],[Econ3_Id]] -> 002004044 | N16: Transfers and subsidies | O16: Provinces and municipalities | P16: Municipalities | T16: 41 | U16: Civilian Secretariat | W16: 2 | X16: Parliament | Y16: 2 | Z16: Administration | AB16: 1 | AC16: The Presidency | AD16: 16 | AE16: Direct charge against the National Revenue Fund | AF16: 1 | AG16: Salary of the President | AH16: 001 | AI16: 016 | AJ16: 001 | AK16: 001016 | AL16: 001016001 | AO16: =IF(AR16<>"",MAX($AO$11:AO15)+1,0) -> 6 | AP16: 6 | AQ16: 007006 | AR16: =IFERROR(INDEX((T_Sprog[Programme]),MATCH(AQ16,T_Sprog[ComboID_DP],0)),"") -> International Financial Relations | AT16: 6 | AU16: =IFERROR(INDEX((T_Sprog[Subprogramme]),MATCH(AU40,T_Sprog[ComboID_DPSP],0)),"") -> Legal Services | AV16: =IFERROR(INDEX((T_Sprog[Subprogramme]),MATCH(AV40,T_Sprog[ComboID_DPSP],0)),"") -> Cooperative Banks Development Agency | AW16: =IFERROR(INDEX((T_Sprog[Subprogramme]),MATCH(AW40,T_Sprog[ComboID_DPSP],0)),"") ->  | AX16: =IFERROR(INDEX((T_Sprog[Subprogramme]),MATCH(AX40,T_Sprog[ComboID_DPSP],0)),"") -> Financial Investments | AY16: =IFERROR(INDEX((T_Sprog[Subprogramme]),MATCH(AY40,T_Sprog[ComboID_DPSP],0)),"") -> Audit Statutory Bodies | AZ16: =IFERROR(INDEX((T_Sprog[Subprogramme]),MATCH(AZ40,T_Sprog[ComboID_DPSP],0)),"") ->  | BA16: =IFERROR(INDEX((T_Sprog[Subprogramme]),MATCH(BA40,T_Sprog[ComboID_DPSP],0)),"") ->  | BB16: =IFERROR(INDEX((T_Sprog[Subprogramme]),MATCH(BB40,T_Sprog[ComboID_DPSP],0)),"") -> Infrastructure Development Support | BC16: =IFERROR(INDEX((T_Sprog[Subprogramme]),MATCH(BC40,T_Sprog[ComboID_DPSP],0)),"") ->  | BD16: =IFERROR(INDEX((T_Sprog[Subprogramme]),MATCH(BD40,T_Sprog[ComboID_DPSP],0)),"") ->  | BE16: =IFERROR(INDEX((T_Sprog[Subprogramme]),MATCH(BE40,T_Sprog[ComboID_DPSP],0)),"") ->  | BF16: =IFERROR(INDEX((T_Sprog[Subprogramme]),MATCH(BF40,T_Sprog[ComboID_DPSP],0)),"") ->  | BG16: =IFERROR(INDEX((T_Sprog[Subprogramme]),MATCH(BG40,T_Sprog[ComboID_DPSP],0)),"") ->  | BH16: =IFERROR(INDEX((T_Sprog[Subprogramme]),MATCH(BH40,T_Sprog[ComboID_DPSP],0)),"") ->  | BI16: =IFERROR(INDEX((T_Sprog[Subprogramme]),MATCH(BI40,T_Sprog[ComboID_DPSP],0)),"") ->  | BJ16: =IFERROR(INDEX((T_Sprog[Subprogramme]),MATCH(BJ40,T_Sprog[ComboID_DPSP],0)),"") ->  | FP16: =COUNTA(FP18:FP25) -> 2 | FQ16: =COUNTA(FQ18:FQ25) -> 3
D17: =INDEX(('Econ ENE'!$G$5:$G$71),MATCH(T_Econ2[[#This Row],[Econ2]],'Econ ENE'!$O$5:$O$71,0)) -> 6 | E17: Higher education institutions | G17: =INDEX(($I$47:$I$79),MATCH(T_Econ3[[#This Row],[Econ3]],$H$47:$H$79,0)) -> 45 | H17: Social security funds | J17: =REPT("0",3-LEN(INDEX((T_Econ1[Econ1_No]),MATCH(T_Econ[[#This Row],[Econ1]],T_Econ1[Econ1],0))))&INDEX((T_Econ1[Econ1_No]),MATCH(T_Econ[[#This Row],[Econ1]],T_Econ1[Econ1],0)) -> 002 | K17: =REPT("0",3-LEN(INDEX((T_Econ2[Econ2_No]),MATCH(T_Econ[[#This Row],[Econ2]],T_Econ2[Econ2],0))))&INDEX((T_Econ2[Econ2_No]),MATCH(T_Econ[[#This Row],[Econ2]],T_Econ2[Econ2],0)) -> 005 | L17: =REPT("0",3-LEN(INDEX((T_Econ3[Econ3_No]),MATCH(T_Econ[[#This Row],[Econ3]],T_Econ3[Econ3],0))))&INDEX((T_Econ3[Econ3_No]),MATCH(T_Econ[[#This Row],[Econ3]],T_Econ3[Econ3],0)) -> 045 | M17: =T_Econ[[#This Row],[Econ1_Id]]&T_Econ[[#This Row],[Econ2_Id]]&T_Econ[[#This Row],[Econ3_Id]] -> 002005045 | N17: Transfers and subsidies | O17: Departmental agencies and accounts | P17: Social security funds | T17: 3 | U17: Communications | W17: 2 | X17: Parliament | Y17: 16 | Z17: Direct charge against the National Revenue Fund | AB17: 1 | AC17: The Presidency | AD17: 16 | AE17: Direct charge against the National Revenue Fund | AF17: 2 | AG17: Salary of the Deputy President | AH17: 001 | AI17: 016 | AJ17: 002 | AK17: 001016 | AL17: 001016002 | AO17: =IF(AR17<>"",MAX($AO$11:AO16)+1,0) -> 7 | AP17: 7 | AQ17: 007007 | AR17: =IFERROR(INDEX((T_Sprog[Programme]),MATCH(AQ17,T_Sprog[ComboID_DP],0)),"") -> Civil and Military Pensions, Contributions to Funds and Other Benefits | AT17: 7 | AU17: =IFERROR(INDEX((T_Sprog[Subprogramme]),MATCH(AU41,T_Sprog[ComboID_DPSP],0)),"") -> Internal Audit | AV17: =IFERROR(INDEX((T_Sprog[Subprogramme]),MATCH(AV41,T_Sprog[ComboID_DPSP],0)),"") ->  | AW17: =IFERROR(INDEX((T_Sprog[Subprogramme]),MATCH(AW41,T_Sprog[ComboID_DPSP],0)),"") ->  | AX17: =IFERROR(INDEX((T_Sprog[Subprogramme]),MATCH(AX41,T_Sprog[ComboID_DPSP],0)),"") ->  | AY17: =IFERROR(INDEX((T_Sprog[Subprogramme]),MATCH(AY41,T_Sprog[ComboID_DPSP],0)),"") -> Service Charges: Commercial Banks | AZ17: =IFERROR(INDEX((T_Sprog[Subprogramme]),MATCH(AZ41,T_Sprog[ComboID_DPSP],0)),"") ->  | BA17: =IFERROR(INDEX((T_Sprog[Subprogramme]),MATCH(BA41,T_Sprog[ComboID_DPSP],0)),"") ->  | BB17: =IFERROR(INDEX((T_Sprog[Subprogramme]),MATCH(BB41,T_Sprog[ComboID_DPSP],0)),"") ->  | BC17: =IFERROR(INDEX((T_Sprog[Subprogramme]),MATCH(BC41,T_Sprog[ComboID_DPSP],0)),"") ->  | BD17: =IFERROR(INDEX((T_Sprog[Subprogramme]),MATCH(BD41,T_Sprog[ComboID_DPSP],0)),"") ->  | BE17: =IFERROR(INDEX((T_Sprog[Subprogramme]),MATCH(BE41,T_Sprog[ComboID_DPSP],0)),"") ->  | BF17: =IFERROR(INDEX((T_Sprog[Subprogramme]),MATCH(BF41,T_Sprog[ComboID_DPSP],0)),"") ->  | BG17: =IFERROR(INDEX((T_Sprog[Subprogramme]),MATCH(BG41,T_Sprog[ComboID_DPSP],0)),"") ->  | BH17: =IFERROR(INDEX((T_Sprog[Subprogramme]),MATCH(BH41,T_Sprog[ComboID_DPSP],0)),"") ->  | BI17: =IFERROR(INDEX((T_Sprog[Subprogramme]),MATCH(BI41,T_Sprog[ComboID_DPSP],0)),"") ->  | BJ17: =IFERROR(INDEX((T_Sprog[Subprogramme]),MATCH(BJ41,T_Sprog[ComboID_DPSP],0)),"") ->  | FP17: Infrastructure category | FQ17: Project category
D18: =INDEX(('Econ ENE'!$G$5:$G$71),MATCH(T_Econ2[[#This Row],[Econ2]],'Econ ENE'!$O$5:$O$71,0)) -> 7 | E18: Foreign governments and international organisations | G18: =INDEX(($I$47:$I$79),MATCH(T_Econ3[[#This Row],[Econ3]],$H$47:$H$79,0)) -> 46 | H18: Departmental agencies (non-business entities) | J18: =REPT("0",3-LEN(INDEX((T_Econ1[Econ1_No]),MATCH(T_Econ[[#This Row],[Econ1]],T_Econ1[Econ1],0))))&INDEX((T_Econ1[Econ1_No]),MATCH(T_Econ[[#This Row],[Econ1]],T_Econ1[Econ1],0)) -> 002 | K18: =REPT("0",3-LEN(INDEX((T_Econ2[Econ2_No]),MATCH(T_Econ[[#This Row],[Econ2]],T_Econ2[Econ2],0))))&INDEX((T_Econ2[Econ2_No]),MATCH(T_Econ[[#This Row],[Econ2]],T_Econ2[Econ2],0)) -> 005 | L18: =REPT("0",3-LEN(INDEX((T_Econ3[Econ3_No]),MATCH(T_Econ[[#This Row],[Econ3]],T_Econ3[Econ3],0))))&INDEX((T_Econ3[Econ3_No]),MATCH(T_Econ[[#This Row],[Econ3]],T_Econ3[Econ3],0)) -> 046 | M18: =T_Econ[[#This Row],[Econ1_Id]]&T_Econ[[#This Row],[Econ2_Id]]&T_Econ[[#This Row],[Econ3_Id]] -> 002005046 | N18: Transfers and subsidies | O18: Departmental agencies and accounts | P18: Departmental agencies (non-business entities) | T18: 4 | U18: Cooperative Governance And Traditional Affairs | W18: 2 | X18: Parliament | Y18: 3 | Z18: Core Business | AB18: 2 | AC18: Parliament | AD18: 1 | AE18: Strategic Leadership and Governance | AF18: 1 | AG18: Office of the Speaker | AH18: 002 | AI18: 001 | AJ18: 001 | AK18: 002001 | AL18: 002001001 | AO18: =IF(AR18<>"",MAX($AO$11:AO17)+1,0) -> 8 | AP18: 8 | AQ18: 007008 | AR18: =IFERROR(INDEX((T_Sprog[Programme]),MATCH(AQ18,T_Sprog[ComboID_DP],0)),"") -> Technical Support and Development Finance | AT18: 8 | AU18: =IFERROR(INDEX((T_Sprog[Subprogramme]),MATCH(AU42,T_Sprog[ComboID_DPSP],0)),"") -> Communications | AV18: =IFERROR(INDEX((T_Sprog[Subprogramme]),MATCH(AV42,T_Sprog[ComboID_DPSP],0)),"") ->  | AW18: =IFERROR(INDEX((T_Sprog[Subprogramme]),MATCH(AW42,T_Sprog[ComboID_DPSP],0)),"") ->  | AX18: =IFERROR(INDEX((T_Sprog[Subprogramme]),MATCH(AX42,T_Sprog[ComboID_DPSP],0)),"") ->  | AY18: =IFERROR(INDEX((T_Sprog[Subprogramme]),MATCH(AY42,T_Sprog[ComboID_DPSP],0)),"") ->  | AZ18: =IFERROR(INDEX((T_Sprog[Subprogramme]),MATCH(AZ42,T_Sprog[ComboID_DPSP],0)),"") ->  | BA18: =IFERROR(INDEX((T_Sprog[Subprogramme]),MATCH(BA42,T_Sprog[ComboID_DPSP],0)),"") ->  | BB18: =IFERROR(INDEX((T_Sprog[Subprogramme]),MATCH(BB42,T_Sprog[ComboID_DPSP],0)),"") ->  | BC18: =IFERROR(INDEX((T_Sprog[Subprogramme]),MATCH(BC42,T_Sprog[ComboID_DPSP],0)),"") ->  | BD18: =IFERROR(INDEX((T_Sprog[Subprogramme]),MATCH(BD42,T_Sprog[ComboID_DPSP],0)),"") ->  | BE18: =IFERROR(INDEX((T_Sprog[Subprogramme]),MATCH(BE42,T_Sprog[ComboID_DPSP],0)),"") ->  | BF18: =IFERROR(INDEX((T_Sprog[Subprogramme]),MATCH(BF42,T_Sprog[ComboID_DPSP],0)),"") ->  | BG18: =IFERROR(INDEX((T_Sprog[Subprogramme]),MATCH(BG42,T_Sprog[ComboID_DPSP],0)),"") ->  | BH18: =IFERROR(INDEX((T_Sprog[Subprogramme]),MATCH(BH42,T_Sprog[ComboID_DPSP],0)),"") ->  | BI18: =IFERROR(INDEX((T_Sprog[Subprogramme]),MATCH(BI42,T_Sprog[ComboID_DPSP],0)),"") ->  | BJ18: =IFERROR(INDEX((T_Sprog[Subprogramme]),MATCH(BJ42,T_Sprog[ComboID_DPSP],0)),"") ->  | FO18: 1 | FP18: Departmental infrastructure | FQ18: Mega projects
D19: =INDEX(('Econ ENE'!$G$5:$G$71),MATCH(T_Econ2[[#This Row],[Econ2]],'Econ ENE'!$O$5:$O$71,0)) -> 8 | E19: Public corporations and private enterprises | G19: =INDEX(($I$47:$I$79),MATCH(T_Econ3[[#This Row],[Econ3]],$H$47:$H$79,0)) -> 47 | H19: Higher education institutions | J19: =REPT("0",3-LEN(INDEX((T_Econ1[Econ1_No]),MATCH(T_Econ[[#This Row],[Econ1]],T_Econ1[Econ1],0))))&INDEX((T_Econ1[Econ1_No]),MATCH(T_Econ[[#This Row],[Econ1]],T_Econ1[Econ1],0)) -> 002 | K19: =REPT("0",3-LEN(INDEX((T_Econ2[Econ2_No]),MATCH(T_Econ[[#This Row],[Econ2]],T_Econ2[Econ2],0))))&INDEX((T_Econ2[Econ2_No]),MATCH(T_Econ[[#This Row],[Econ2]],T_Econ2[Econ2],0)) -> 006 | L19: =REPT("0",3-LEN(INDEX((T_Econ3[Econ3_No]),MATCH(T_Econ[[#This Row],[Econ3]],T_Econ3[Econ3],0))))&INDEX((T_Econ3[Econ3_No]),MATCH(T_Econ[[#This Row],[Econ3]],T_Econ3[Econ3],0)) -> 047 | M19: =T_Econ[[#This Row],[Econ1_Id]]&T_Econ[[#This Row],[Econ2_Id]]&T_Econ[[#This Row],[Econ3_Id]] -> 002006047 | N19: Transfers and subsidies | O19: Higher education institutions | P19: Higher education institutions | T19: 18 | U19: Correctional Services | W19: 2 | X19: Parliament | Y19: 4 | Z19: Support Services | AB19: 2 | AC19: Parliament | AD19: 1 | AE19: Strategic Leadership and Governance | AF19: 2 | AG19: Office of the Chairperson | AH19: 002 | AI19: 001 | AJ19: 002 | AK19: 002001 | AL19: 002001002 | AO19: =IF(AR19<>"",MAX($AO$11:AO18)+1,0) -> 9 | AP19: 9 | AQ19: 007009 | AR19: =IFERROR(INDEX((T_Sprog[Programme]),MATCH(AQ19,T_Sprog[ComboID_DP],0)),"") -> Revenue Administration | AT19: 9 | AU19: =IFERROR(INDEX((T_Sprog[Subprogramme]),MATCH(AU43,T_Sprog[ComboID_DPSP],0)),"") -> Office Accommodation | AV19: =IFERROR(INDEX((T_Sprog[Subprogramme]),MATCH(AV43,T_Sprog[ComboID_DPSP],0)),"") ->  | AW19: =IFERROR(INDEX((T_Sprog[Subprogramme]),MATCH(AW43,T_Sprog[ComboID_DPSP],0)),"") ->  | AX19: =IFERROR(INDEX((T_Sprog[Subprogramme]),MATCH(AX43,T_Sprog[ComboID_DPSP],0)),"") ->  | AY19: =IFERROR(INDEX((T_Sprog[Subprogramme]),MATCH(AY43,T_Sprog[ComboID_DPSP],0)),"") ->  | AZ19: =IFERROR(INDEX((T_Sprog[Subprogramme]),MATCH(AZ43,T_Sprog[ComboID_DPSP],0)),"") ->  | BA19: =IFERROR(INDEX((T_Sprog[Subprogramme]),MATCH(BA43,T_Sprog[ComboID_DPSP],0)),"") ->  | BB19: =IFERROR(INDEX((T_Sprog[Subprogramme]),MATCH(BB43,T_Sprog[ComboID_DPSP],0)),"") ->  | BC19: =IFERROR(INDEX((T_Sprog[Subprogramme]),MATCH(BC43,T_Sprog[ComboID_DPSP],0)),"") ->  | BD19: =IFERROR(INDEX((T_Sprog[Subprogramme]),MATCH(BD43,T_Sprog[ComboID_DPSP],0)),"") ->  | BE19: =IFERROR(INDEX((T_Sprog[Subprogramme]),MATCH(BE43,T_Sprog[ComboID_DPSP],0)),"") ->  | BF19: =IFERROR(INDEX((T_Sprog[Subprogramme]),MATCH(BF43,T_Sprog[ComboID_DPSP],0)),"") ->  | BG19: =IFERROR(INDEX((T_Sprog[Subprogramme]),MATCH(BG43,T_Sprog[ComboID_DPSP],0)),"") ->  | BH19: =IFERROR(INDEX((T_Sprog[Subprogramme]),MATCH(BH43,T_Sprog[ComboID_DPSP],0)),"") ->  | BI19: =IFERROR(INDEX((T_Sprog[Subprogramme]),MATCH(BI43,T_Sprog[ComboID_DPSP],0)),"") ->  | BJ19: =IFERROR(INDEX((T_Sprog[Subprogramme]),MATCH(BJ43,T_Sprog[ComboID_DPSP],0)),"") ->  | FO19: 2 | FP19: Infrastructure transfers | FQ19: Large projects
A20: Id | B20: Key deliverables | D20: =INDEX(('Econ ENE'!$G$5:$G$71),MATCH(T_Econ2[[#This Row],[Econ2]],'Econ ENE'!$O$5:$O$71,0)) -> 9 | E20: Non-profit institutions | G20: =INDEX(($I$47:$I$79),MATCH(T_Econ3[[#This Row],[Econ3]],$H$47:$H$79,0)) -> 48 | H20: Foreign governments and international organisations | J20: =REPT("0",3-LEN(INDEX((T_Econ1[Econ1_No]),MATCH(T_Econ[[#This Row],[Econ1]],T_Econ1[Econ1],0))))&INDEX((T_Econ1[Econ1_No]),MATCH(T_Econ[[#This Row],[Econ1]],T_Econ1[Econ1],0)) -> 002 | K20: =REPT("0",3-LEN(INDEX((T_Econ2[Econ2_No]),MATCH(T_Econ[[#This Row],[Econ2]],T_Econ2[Econ2],0))))&INDEX((T_Econ2[Econ2_No]),MATCH(T_Econ[[#This Row],[Econ2]],T_Econ2[Econ2],0)) -> 007 | L20: =REPT("0",3-LEN(INDEX((T_Econ3[Econ3_No]),MATCH(T_Econ[[#This Row],[Econ3]],T_Econ3[Econ3],0))))&INDEX((T_Econ3[Econ3_No]),MATCH(T_Econ[[#This Row],[Econ3]],T_Econ3[Econ3],0)) -> 048 | M20: =T_Econ[[#This Row],[Econ1_Id]]&T_Econ[[#This Row],[Econ2_Id]]&T_Econ[[#This Row],[Econ3_Id]] -> 002007048 | N20: Transfers and subsidies | O20: Foreign governments and international organisations | P20: Foreign governments and international organisations | T20: 19 | U20: Defence And Military Veterans | W20: 2 | X20: Parliament | Y20: 5 | Z20: Associated Services | AB20: 2 | AC20: Parliament | AD20: 1 | AE20: Strategic Leadership and Governance | AF20: 3 | AG20: Treasury Advise Office | AH20: 002 | AI20: 001 | AJ20: 003 | AK20: 002001 | AL20: 002001003 | AO20: =IF(AR20<>"",MAX($AO$11:AO19)+1,0) -> 10 | AP20: 10 | AQ20: 007010 | AR20: =IFERROR(INDEX((T_Sprog[Programme]),MATCH(AQ20,T_Sprog[ComboID_DP],0)),"") -> Financial Intelligence and State Security | AT20: 10 | AU20: =IFERROR(INDEX((T_Sprog[Subprogramme]),MATCH(AU44,T_Sprog[ComboID_DPSP],0)),"") ->  | AV20: =IFERROR(INDEX((T_Sprog[Subprogramme]),MATCH(AV44,T_Sprog[ComboID_DPSP],0)),"") ->  | AW20: =IFERROR(INDEX((T_Sprog[Subprogramme]),MATCH(AW44,T_Sprog[ComboID_DPSP],0)),"") ->  | AX20: =IFERROR(INDEX((T_Sprog[Subprogramme]),MATCH(AX44,T_Sprog[ComboID_DPSP],0)),"") ->  | AY20: =IFERROR(INDEX((T_Sprog[Subprogramme]),MATCH(AY44,T_Sprog[ComboID_DPSP],0)),"") ->  | AZ20: =IFERROR(INDEX((T_Sprog[Subprogramme]),MATCH(AZ44,T_Sprog[ComboID_DPSP],0)),"") ->  | BA20: =IFERROR(INDEX((T_Sprog[Subprogramme]),MATCH(BA44,T_Sprog[ComboID_DPSP],0)),"") ->  | BB20: =IFERROR(INDEX((T_Sprog[Subprogramme]),MATCH(BB44,T_Sprog[ComboID_DPSP],0)),"") ->  | BC20: =IFERROR(INDEX((T_Sprog[Subprogramme]),MATCH(BC44,T_Sprog[ComboID_DPSP],0)),"") ->  | BD20: =IFERROR(INDEX((T_Sprog[Subprogramme]),MATCH(BD44,T_Sprog[ComboID_DPSP],0)),"") ->  | BE20: =IFERROR(INDEX((T_Sprog[Subprogramme]),MATCH(BE44,T_Sprog[ComboID_DPSP],0)),"") ->  | BF20: =IFERROR(INDEX((T_Sprog[Subprogramme]),MATCH(BF44,T_Sprog[ComboID_DPSP],0)),"") ->  | BG20: =IFERROR(INDEX((T_Sprog[Subprogramme]),MATCH(BG44,T_Sprog[ComboID_DPSP],0)),"") ->  | BH20: =IFERROR(INDEX((T_Sprog[Subprogramme]),MATCH(BH44,T_Sprog[ComboID_DPSP],0)),"") ->  | BI20: =IFERROR(INDEX((T_Sprog[Subprogramme]),MATCH(BI44,T_Sprog[ComboID_DPSP],0)),"") ->  | BJ20: =IFERROR(INDEX((T_Sprog[Subprogramme]),MATCH(BJ44,T_Sprog[ComboID_DPSP],0)),"") ->  | FO20: 3 | FQ20: Small projects
A21: =IF(T_KeyDeliverables[[#This Row],[Key deliverables]]<>"",1,"") -> 1 | B21: =IF('Main adjustment proposal'!I11="","Other",'Main adjustment proposal'!I11) -> Civil Pensions and Contributions to Funds | D21: =INDEX(('Econ ENE'!$G$5:$G$71),MATCH(T_Econ2[[#This Row],[Econ2]],'Econ ENE'!$O$5:$O$71,0)) -> 10 | E21: Households | G21: =INDEX(($I$47:$I$79),MATCH(T_Econ3[[#This Row],[Econ3]],$H$47:$H$79,0)) -> 49 | H21: Public corporations | J21: =REPT("0",3-LEN(INDEX((T_Econ1[Econ1_No]),MATCH(T_Econ[[#This Row],[Econ1]],T_Econ1[Econ1],0))))&INDEX((T_Econ1[Econ1_No]),MATCH(T_Econ[[#This Row],[Econ1]],T_Econ1[Econ1],0)) -> 002 | K21: =REPT("0",3-LEN(INDEX((T_Econ2[Econ2_No]),MATCH(T_Econ[[#This Row],[Econ2]],T_Econ2[Econ2],0))))&INDEX((T_Econ2[Econ2_No]),MATCH(T_Econ[[#This Row],[Econ2]],T_Econ2[Econ2],0)) -> 008 | L21: =REPT("0",3-LEN(INDEX((T_Econ3[Econ3_No]),MATCH(T_Econ[[#This Row],[Econ3]],T_Econ3[Econ3],0))))&INDEX((T_Econ3[Econ3_No]),MATCH(T_Econ[[#This Row],[Econ3]],T_Econ3[Econ3],0)) -> 049 | M21: =T_Econ[[#This Row],[Econ1_Id]]&T_Econ[[#This Row],[Econ2_Id]]&T_Econ[[#This Row],[Econ3_Id]] -> 002008049 | N21: Transfers and subsidies | O21: Public corporations and private enterprises | P21: Public corporations | T21: 25 | U21: Economic Development | W21: 3 | X21: Communications | Y21: 1 | Z21: Administration | AB21: 2 | AC21: Parliament | AD21: 1 | AE21: Strategic Leadership and Governance | AF21: 4 | AG21: Parliamentary Budget Office | AH21: 002 | AI21: 001 | AJ21: 004 | AK21: 002001 | AL21: 002001004 | AO21: =IF(AR21<>"",MAX($AO$11:AO20)+1,0) -> 0 | AP21: 11 | AQ21: 007011 | AR21: =IFERROR(INDEX((T_Sprog[Programme]),MATCH(AQ21,T_Sprog[ComboID_DP],0)),"") ->  | AT21: 11 | AU21: =IFERROR(INDEX((T_Sprog[Subprogramme]),MATCH(AU45,T_Sprog[ComboID_DPSP],0)),"") ->  | AV21: =IFERROR(INDEX((T_Sprog[Subprogramme]),MATCH(AV45,T_Sprog[ComboID_DPSP],0)),"") ->  | AW21: =IFERROR(INDEX((T_Sprog[Subprogramme]),MATCH(AW45,T_Sprog[ComboID_DPSP],0)),"") ->  | AX21: =IFERROR(INDEX((T_Sprog[Subprogramme]),MATCH(AX45,T_Sprog[ComboID_DPSP],0)),"") ->  | AY21: =IFERROR(INDEX((T_Sprog[Subprogramme]),MATCH(AY45,T_Sprog[ComboID_DPSP],0)),"") ->  | AZ21: =IFERROR(INDEX((T_Sprog[Subprogramme]),MATCH(AZ45,T_Sprog[ComboID_DPSP],0)),"") ->  | BA21: =IFERROR(INDEX((T_Sprog[Subprogramme]),MATCH(BA45,T_Sprog[ComboID_DPSP],0)),"") ->  | BB21: =IFERROR(INDEX((T_Sprog[Subprogramme]),MATCH(BB45,T_Sprog[ComboID_DPSP],0)),"") ->  | BC21: =IFERROR(INDEX((T_Sprog[Subprogramme]),MATCH(BC45,T_Sprog[ComboID_DPSP],0)),"") ->  | BD21: =IFERROR(INDEX((T_Sprog[Subprogramme]),MATCH(BD45,T_Sprog[ComboID_DPSP],0)),"") ->  | BE21: =IFERROR(INDEX((T_Sprog[Subprogramme]),MATCH(BE45,T_Sprog[ComboID_DPSP],0)),"") ->  | BF21: =IFERROR(INDEX((T_Sprog[Subprogramme]),MATCH(BF45,T_Sprog[ComboID_DPSP],0)),"") ->  | BG21: =IFERROR(INDEX((T_Sprog[Subprogramme]),MATCH(BG45,T_Sprog[ComboID_DPSP],0)),"") ->  | BH21: =IFERROR(INDEX((T_Sprog[Subprogramme]),MATCH(BH45,T_Sprog[ComboID_DPSP],0)),"") ->  | BI21: =IFERROR(INDEX((T_Sprog[Subprogramme]),MATCH(BI45,T_Sprog[ComboID_DPSP],0)),"") ->  | BJ21: =IFERROR(INDEX((T_Sprog[Subprogramme]),MATCH(BJ45,T_Sprog[ComboID_DPSP],0)),"") ->  | FO21: 4
A22: =IF(T_KeyDeliverables[[#This Row],[Key deliverables]]<>"",MAX(A$21:A21)+1,"") -> 2 | B22: =IF(COUNTIF(B$21:B21,"Other")>0,"",IF('Main adjustment proposal'!I12="","Other",'Main adjustment proposal'!I12)) -> South African Revenue Service | D22: =INDEX(('Econ ENE'!$G$5:$G$71),MATCH(T_Econ2[[#This Row],[Econ2]],'Econ ENE'!$O$5:$O$71,0)) -> 11 | E22: Buildings and other fixed structures | G22: =INDEX(($I$47:$I$79),MATCH(T_Econ3[[#This Row],[Econ3]],$H$47:$H$79,0)) -> 50 | H22: Private enterprises | J22: =REPT("0",3-LEN(INDEX((T_Econ1[Econ1_No]),MATCH(T_Econ[[#This Row],[Econ1]],T_Econ1[Econ1],0))))&INDEX((T_Econ1[Econ1_No]),MATCH(T_Econ[[#This Row],[Econ1]],T_Econ1[Econ1],0)) -> 002 | K22: =REPT("0",3-LEN(INDEX((T_Econ2[Econ2_No]),MATCH(T_Econ[[#This Row],[Econ2]],T_Econ2[Econ2],0))))&INDEX((T_Econ2[Econ2_No]),MATCH(T_Econ[[#This Row],[Econ2]],T_Econ2[Econ2],0)) -> 008 | L22: =REPT("0",3-LEN(INDEX((T_Econ3[Econ3_No]),MATCH(T_Econ[[#This Row],[Econ3]],T_Econ3[Econ3],0))))&INDEX((T_Econ3[Econ3_No]),MATCH(T_Econ[[#This Row],[Econ3]],T_Econ3[Econ3],0)) -> 050 | M22: =T_Econ[[#This Row],[Econ1_Id]]&T_Econ[[#This Row],[Econ2_Id]]&T_Econ[[#This Row],[Econ3_Id]] -> 002008050 | N22: Transfers and subsidies | O22: Public corporations and private enterprises | P22: Private enterprises | T22: 26 | U22: Energy | W22: 3 | X22: Communications | Y22: 2 | Z22: Communications Policy, Research and Development | AB22: 2 | AC22: Parliament | AD22: 1 | AE22: Strategic Leadership and Governance | AF22: 5 | AG22: Office of Institutions Supporting Democracy | AH22: 002 | AI22: 001 | AJ22: 005 | AK22: 002001 | AL22: 002001005 | AO22: =IF(AR22<>"",MAX($AO$11:AO21)+1,0) -> 0 | AP22: 12 | AQ22: 007012 | AR22: =IFERROR(INDEX((T_Sprog[Programme]),MATCH(AQ22,T_Sprog[ComboID_DP],0)),"") ->  | AT22: 12 | AU22: =IFERROR(INDEX((T_Sprog[Subprogramme]),MATCH(AU46,T_Sprog[ComboID_DPSP],0)),"") ->  | AV22: =IFERROR(INDEX((T_Sprog[Subprogramme]),MATCH(AV46,T_Sprog[ComboID_DPSP],0)),"") ->  | AW22: =IFERROR(INDEX((T_Sprog[Subprogramme]),MATCH(AW46,T_Sprog[ComboID_DPSP],0)),"") ->  | AX22: =IFERROR(INDEX((T_Sprog[Subprogramme]),MATCH(AX46,T_Sprog[ComboID_DPSP],0)),"") ->  | AY22: =IFERROR(INDEX((T_Sprog[Subprogramme]),MATCH(AY46,T_Sprog[ComboID_DPSP],0)),"") ->  | AZ22: =IFERROR(INDEX((T_Sprog[Subprogramme]),MATCH(AZ46,T_Sprog[ComboID_DPSP],0)),"") ->  | BA22: =IFERROR(INDEX((T_Sprog[Subprogramme]),MATCH(BA46,T_Sprog[ComboID_DPSP],0)),"") ->  | BB22: =IFERROR(INDEX((T_Sprog[Subprogramme]),MATCH(BB46,T_Sprog[ComboID_DPSP],0)),"") ->  | BC22: =IFERROR(INDEX((T_Sprog[Subprogramme]),MATCH(BC46,T_Sprog[ComboID_DPSP],0)),"") ->  | BD22: =IFERROR(INDEX((T_Sprog[Subprogramme]),MATCH(BD46,T_Sprog[ComboID_DPSP],0)),"") ->  | BE22: =IFERROR(INDEX((T_Sprog[Subprogramme]),MATCH(BE46,T_Sprog[ComboID_DPSP],0)),"") ->  | BF22: =IFERROR(INDEX((T_Sprog[Subprogramme]),MATCH(BF46,T_Sprog[ComboID_DPSP],0)),"") ->  | BG22: =IFERROR(INDEX((T_Sprog[Subprogramme]),MATCH(BG46,T_Sprog[ComboID_DPSP],0)),"") ->  | BH22: =IFERROR(INDEX((T_Sprog[Subprogramme]),MATCH(BH46,T_Sprog[ComboID_DPSP],0)),"") ->  | BI22: =IFERROR(INDEX((T_Sprog[Subprogramme]),MATCH(BI46,T_Sprog[ComboID_DPSP],0)),"") ->  | BJ22: =IFERROR(INDEX((T_Sprog[Subprogramme]),MATCH(BJ46,T_Sprog[ComboID_DPSP],0)),"") ->  | FO22: 5
A23: =IF(T_KeyDeliverables[[#This Row],[Key deliverables]]<>"",MAX(A$21:A22)+1,"") -> 3 | B23: =IF(COUNTIF(B$21:B22,"Other")>0,"",IF('Main adjustment proposal'!I13="","Other",'Main adjustment proposal'!I13)) -> Post-Retirement medical scheme | D23: =INDEX(('Econ ENE'!$G$5:$G$71),MATCH(T_Econ2[[#This Row],[Econ2]],'Econ ENE'!$O$5:$O$71,0)) -> 12 | E23: Machinery and equipment | G23: =INDEX(($I$47:$I$79),MATCH(T_Econ3[[#This Row],[Econ3]],$H$47:$H$79,0)) -> 51 | H23: Non-profit institutions | J23: =REPT("0",3-LEN(INDEX((T_Econ1[Econ1_No]),MATCH(T_Econ[[#This Row],[Econ1]],T_Econ1[Econ1],0))))&INDEX((T_Econ1[Econ1_No]),MATCH(T_Econ[[#This Row],[Econ1]],T_Econ1[Econ1],0)) -> 002 | K23: =REPT("0",3-LEN(INDEX((T_Econ2[Econ2_No]),MATCH(T_Econ[[#This Row],[Econ2]],T_Econ2[Econ2],0))))&INDEX((T_Econ2[Econ2_No]),MATCH(T_Econ[[#This Row],[Econ2]],T_Econ2[Econ2],0)) -> 009 | L23: =REPT("0",3-LEN(INDEX((T_Econ3[Econ3_No]),MATCH(T_Econ[[#This Row],[Econ3]],T_Econ3[Econ3],0))))&INDEX((T_Econ3[Econ3_No]),MATCH(T_Econ[[#This Row],[Econ3]],T_Econ3[Econ3],0)) -> 051 | M23: =T_Econ[[#This Row],[Econ1_Id]]&T_Econ[[#This Row],[Econ2_Id]]&T_Econ[[#This Row],[Econ3_Id]] -> 002009051 | N23: Transfers and subsidies | O23: Non-profit institutions | P23: Non-profit institutions | T23: 27 | U23: Environmental Affairs | W23: 3 | X23: Communications | Y23: 3 | Z23: Industry and Capacity Development | AB23: 2 | AC23: Parliament | AD23: 2 | AE23: Administration | AF23: 1 | AG23: Secretary's Office | AH23: 002 | AI23: 002 | AJ23: 001 | AK23: 002002 | AL23: 002002001 | AO23: =IF(AR23<>"",MAX($AO$11:AO22)+1,0) -> 0 | AP23: 13 | AQ23: 007013 | AR23: =IFERROR(INDEX((T_Sprog[Programme]),MATCH(AQ23,T_Sprog[ComboID_DP],0)),"") ->  | AT23: 13 | AU23: =IFERROR(INDEX((T_Sprog[Subprogramme]),MATCH(AU47,T_Sprog[ComboID_DPSP],0)),"") ->  | AV23: =IFERROR(INDEX((T_Sprog[Subprogramme]),MATCH(AV47,T_Sprog[ComboID_DPSP],0)),"") ->  | AW23: =IFERROR(INDEX((T_Sprog[Subprogramme]),MATCH(AW47,T_Sprog[ComboID_DPSP],0)),"") ->  | AX23: =IFERROR(INDEX((T_Sprog[Subprogramme]),MATCH(AX47,T_Sprog[ComboID_DPSP],0)),"") ->  | AY23: =IFERROR(INDEX((T_Sprog[Subprogramme]),MATCH(AY47,T_Sprog[ComboID_DPSP],0)),"") ->  | AZ23: =IFERROR(INDEX((T_Sprog[Subprogramme]),MATCH(AZ47,T_Sprog[ComboID_DPSP],0)),"") ->  | BA23: =IFERROR(INDEX((T_Sprog[Subprogramme]),MATCH(BA47,T_Sprog[ComboID_DPSP],0)),"") ->  | BB23: =IFERROR(INDEX((T_Sprog[Subprogramme]),MATCH(BB47,T_Sprog[ComboID_DPSP],0)),"") ->  | BC23: =IFERROR(INDEX((T_Sprog[Subprogramme]),MATCH(BC47,T_Sprog[ComboID_DPSP],0)),"") ->  | BD23: =IFERROR(INDEX((T_Sprog[Subprogramme]),MATCH(BD47,T_Sprog[ComboID_DPSP],0)),"") ->  | BE23: =IFERROR(INDEX((T_Sprog[Subprogramme]),MATCH(BE47,T_Sprog[ComboID_DPSP],0)),"") ->  | BF23: =IFERROR(INDEX((T_Sprog[Subprogramme]),MATCH(BF47,T_Sprog[ComboID_DPSP],0)),"") ->  | BG23: =IFERROR(INDEX((T_Sprog[Subprogramme]),MATCH(BG47,T_Sprog[ComboID_DPSP],0)),"") ->  | BH23: =IFERROR(INDEX((T_Sprog[Subprogramme]),MATCH(BH47,T_Sprog[ComboID_DPSP],0)),"") ->  | BI23: =IFERROR(INDEX((T_Sprog[Subprogramme]),MATCH(BI47,T_Sprog[ComboID_DPSP],0)),"") ->  | BJ23: =IFERROR(INDEX((T_Sprog[Subprogramme]),MATCH(BJ47,T_Sprog[ComboID_DPSP],0)),"") ->  | FO23: 6
A24: =IF(T_KeyDeliverables[[#This Row],[Key deliverables]]<>"",MAX(A$21:A23)+1,"") -> 4 | B24: =IF(COUNTIF(B$21:B23,"Other")>0,"",IF('Main adjustment proposal'!I14="","Other",'Main adjustment proposal'!I14)) -> Secret Services | D24: =INDEX(('Econ ENE'!$G$5:$G$71),MATCH(T_Econ2[[#This Row],[Econ2]],'Econ ENE'!$O$5:$O$71,0)) -> 13 | E24: Heritage assets | G24: =INDEX(($I$47:$I$79),MATCH(T_Econ3[[#This Row],[Econ3]],$H$47:$H$79,0)) -> 52 | H24: Social benefits | J24: =REPT("0",3-LEN(INDEX((T_Econ1[Econ1_No]),MATCH(T_Econ[[#This Row],[Econ1]],T_Econ1[Econ1],0))))&INDEX((T_Econ1[Econ1_No]),MATCH(T_Econ[[#This Row],[Econ1]],T_Econ1[Econ1],0)) -> 002 | K24: =REPT("0",3-LEN(INDEX((T_Econ2[Econ2_No]),MATCH(T_Econ[[#This Row],[Econ2]],T_Econ2[Econ2],0))))&INDEX((T_Econ2[Econ2_No]),MATCH(T_Econ[[#This Row],[Econ2]],T_Econ2[Econ2],0)) -> 010 | L24: =REPT("0",3-LEN(INDEX((T_Econ3[Econ3_No]),MATCH(T_Econ[[#This Row],[Econ3]],T_Econ3[Econ3],0))))&INDEX((T_Econ3[Econ3_No]),MATCH(T_Econ[[#This Row],[Econ3]],T_Econ3[Econ3],0)) -> 052 | M24: =T_Econ[[#This Row],[Econ1_Id]]&T_Econ[[#This Row],[Econ2_Id]]&T_Econ[[#This Row],[Econ3_Id]] -> 002010052 | N24: Transfers and subsidies | O24: Households | P24: Social benefits | T24: 46 | U24: Government Communication and Information System | W24: 3 | X24: Communications | Y24: 4 | Z24: Entity Oversight | AB24: 2 | AC24: Parliament | AD24: 2 | AE24: Administration | AF24: 2 | AG24: Finance Management Office | AH24: 002 | AI24: 002 | AJ24: 002 | AK24: 002002 | AL24: 002002002 | AO24: =IF(AR24<>"",MAX($AO$11:AO23)+1,0) -> 0 | AP24: 14 | AQ24: 007014 | AR24: =IFERROR(INDEX((T_Sprog[Programme]),MATCH(AQ24,T_Sprog[ComboID_DP],0)),"") ->  | AT24: 14 | AU24: =IFERROR(INDEX((T_Sprog[Subprogramme]),MATCH(AU48,T_Sprog[ComboID_DPSP],0)),"") ->  | AV24: =IFERROR(INDEX((T_Sprog[Subprogramme]),MATCH(AV48,T_Sprog[ComboID_DPSP],0)),"") ->  | AW24: =IFERROR(INDEX((T_Sprog[Subprogramme]),MATCH(AW48,T_Sprog[ComboID_DPSP],0)),"") ->  | AX24: =IFERROR(INDEX((T_Sprog[Subprogramme]),MATCH(AX48,T_Sprog[ComboID_DPSP],0)),"") ->  | AY24: =IFERROR(INDEX((T_Sprog[Subprogramme]),MATCH(AY48,T_Sprog[ComboID_DPSP],0)),"") ->  | AZ24: =IFERROR(INDEX((T_Sprog[Subprogramme]),MATCH(AZ48,T_Sprog[ComboID_DPSP],0)),"") ->  | BA24: =IFERROR(INDEX((T_Sprog[Subprogramme]),MATCH(BA48,T_Sprog[ComboID_DPSP],0)),"") ->  | BB24: =IFERROR(INDEX((T_Sprog[Subprogramme]),MATCH(BB48,T_Sprog[ComboID_DPSP],0)),"") ->  | BC24: =IFERROR(INDEX((T_Sprog[Subprogramme]),MATCH(BC48,T_Sprog[ComboID_DPSP],0)),"") ->  | BD24: =IFERROR(INDEX((T_Sprog[Subprogramme]),MATCH(BD48,T_Sprog[ComboID_DPSP],0)),"") ->  | BE24: =IFERROR(INDEX((T_Sprog[Subprogramme]),MATCH(BE48,T_Sprog[ComboID_DPSP],0)),"") ->  | BF24: =IFERROR(INDEX((T_Sprog[Subprogramme]),MATCH(BF48,T_Sprog[ComboID_DPSP],0)),"") ->  | BG24: =IFERROR(INDEX((T_Sprog[Subprogramme]),MATCH(BG48,T_Sprog[ComboID_DPSP],0)),"") ->  | BH24: =IFERROR(INDEX((T_Sprog[Subprogramme]),MATCH(BH48,T_Sprog[ComboID_DPSP],0)),"") ->  | BI24: =IFERROR(INDEX((T_Sprog[Subprogramme]),MATCH(BI48,T_Sprog[ComboID_DPSP],0)),"") ->  | BJ24: =IFERROR(INDEX((T_Sprog[Subprogramme]),MATCH(BJ48,T_Sprog[ComboID_DPSP],0)),"") ->  | FO24: 7
A25: =IF(T_KeyDeliverables[[#This Row],[Key deliverables]]<>"",MAX(A$21:A24)+1,"") -> 5 | B25: =IF(COUNTIF(B$21:B24,"Other")>0,"",IF('Main adjustment proposal'!I15="","Other",'Main adjustment proposal'!I15)) -> Government Technical Advisory Centre | D25: =INDEX(('Econ ENE'!$G$5:$G$71),MATCH(T_Econ2[[#This Row],[Econ2]],'Econ ENE'!$O$5:$O$71,0)) -> 14 | E25: Specialised military assets | G25: =INDEX(($I$47:$I$79),MATCH(T_Econ3[[#This Row],[Econ3]],$H$47:$H$79,0)) -> 53 | H25: Other transfers to households | J25: =REPT("0",3-LEN(INDEX((T_Econ1[Econ1_No]),MATCH(T_Econ[[#This Row],[Econ1]],T_Econ1[Econ1],0))))&INDEX((T_Econ1[Econ1_No]),MATCH(T_Econ[[#This Row],[Econ1]],T_Econ1[Econ1],0)) -> 002 | K25: =REPT("0",3-LEN(INDEX((T_Econ2[Econ2_No]),MATCH(T_Econ[[#This Row],[Econ2]],T_Econ2[Econ2],0))))&INDEX((T_Econ2[Econ2_No]),MATCH(T_Econ[[#This Row],[Econ2]],T_Econ2[Econ2],0)) -> 010 | L25: =REPT("0",3-LEN(INDEX((T_Econ3[Econ3_No]),MATCH(T_Econ[[#This Row],[Econ3]],T_Econ3[Econ3],0))))&INDEX((T_Econ3[Econ3_No]),MATCH(T_Econ[[#This Row],[Econ3]],T_Econ3[Econ3],0)) -> 053 | M25: =T_Econ[[#This Row],[Econ1_Id]]&T_Econ[[#This Row],[Econ2_Id]]&T_Econ[[#This Row],[Econ3_Id]] -> 002010053 | N25: Transfers and subsidies | O25: Households | P25: Other transfers to households | T25: 16 | U25: Health | W25: 4 | X25: Cooperative Governance And Traditional Affairs | Y25: 1 | Z25: Administration | AB25: 2 | AC25: Parliament | AD25: 2 | AE25: Administration | AF25: 3 | AG25: Internal Audit | AH25: 002 | AI25: 002 | AJ25: 003 | AK25: 002002 | AL25: 002002003 | AO25: =IF(AR25<>"",MAX($AO$11:AO24)+1,0) -> 0 | AP25: 15 | AQ25: 007015 | AR25: =IFERROR(INDEX((T_Sprog[Programme]),MATCH(AQ25,T_Sprog[ComboID_DP],0)),"") ->  | AT25: 15 | AU25: =IFERROR(INDEX((T_Sprog[Subprogramme]),MATCH(AU49,T_Sprog[ComboID_DPSP],0)),"") ->  | AV25: =IFERROR(INDEX((T_Sprog[Subprogramme]),MATCH(AV49,T_Sprog[ComboID_DPSP],0)),"") ->  | AW25: =IFERROR(INDEX((T_Sprog[Subprogramme]),MATCH(AW49,T_Sprog[ComboID_DPSP],0)),"") ->  | AX25: =IFERROR(INDEX((T_Sprog[Subprogramme]),MATCH(AX49,T_Sprog[ComboID_DPSP],0)),"") ->  | AY25: =IFERROR(INDEX((T_Sprog[Subprogramme]),MATCH(AY49,T_Sprog[ComboID_DPSP],0)),"") ->  | AZ25: =IFERROR(INDEX((T_Sprog[Subprogramme]),MATCH(AZ49,T_Sprog[ComboID_DPSP],0)),"") ->  | BA25: =IFERROR(INDEX((T_Sprog[Subprogramme]),MATCH(BA49,T_Sprog[ComboID_DPSP],0)),"") ->  | BB25: =IFERROR(INDEX((T_Sprog[Subprogramme]),MATCH(BB49,T_Sprog[ComboID_DPSP],0)),"") ->  | BC25: =IFERROR(INDEX((T_Sprog[Subprogramme]),MATCH(BC49,T_Sprog[ComboID_DPSP],0)),"") ->  | BD25: =IFERROR(INDEX((T_Sprog[Subprogramme]),MATCH(BD49,T_Sprog[ComboID_DPSP],0)),"") ->  | BE25: =IFERROR(INDEX((T_Sprog[Subprogramme]),MATCH(BE49,T_Sprog[ComboID_DPSP],0)),"") ->  | BF25: =IFERROR(INDEX((T_Sprog[Subprogramme]),MATCH(BF49,T_Sprog[ComboID_DPSP],0)),"") ->  | BG25: =IFERROR(INDEX((T_Sprog[Subprogramme]),MATCH(BG49,T_Sprog[ComboID_DPSP],0)),"") ->  | BH25: =IFERROR(INDEX((T_Sprog[Subprogramme]),MATCH(BH49,T_Sprog[ComboID_DPSP],0)),"") ->  | BI25: =IFERROR(INDEX((T_Sprog[Subprogramme]),MATCH(BI49,T_Sprog[ComboID_DPSP],0)),"") ->  | BJ25: =IFERROR(INDEX((T_Sprog[Subprogramme]),MATCH(BJ49,T_Sprog[ComboID_DPSP],0)),"") ->  | FO25: 8
A26: =IF(T_KeyDeliverables[[#This Row],[Key deliverables]]<>"",MAX(A$21:A25)+1,"") -> 6 | B26: =IF(COUNTIF(B$21:B25,"Other")>0,"",IF('Main adjustment proposal'!I16="","Other",'Main adjustment proposal'!I16)) -> BRICS | D26: =INDEX(('Econ ENE'!$G$5:$G$71),MATCH(T_Econ2[[#This Row],[Econ2]],'Econ ENE'!$O$5:$O$71,0)) -> 15 | E26: Biological assets | G26: =INDEX(($I$47:$I$79),MATCH(T_Econ3[[#This Row],[Econ3]],$H$47:$H$79,0)) -> 54 | H26: Buildings | J26: =REPT("0",3-LEN(INDEX((T_Econ1[Econ1_No]),MATCH(T_Econ[[#This Row],[Econ1]],T_Econ1[Econ1],0))))&INDEX((T_Econ1[Econ1_No]),MATCH(T_Econ[[#This Row],[Econ1]],T_Econ1[Econ1],0)) -> 003 | K26: =REPT("0",3-LEN(INDEX((T_Econ2[Econ2_No]),MATCH(T_Econ[[#This Row],[Econ2]],T_Econ2[Econ2],0))))&INDEX((T_Econ2[Econ2_No]),MATCH(T_Econ[[#This Row],[Econ2]],T_Econ2[Econ2],0)) -> 011 | L26: =REPT("0",3-LEN(INDEX((T_Econ3[Econ3_No]),MATCH(T_Econ[[#This Row],[Econ3]],T_Econ3[Econ3],0))))&INDEX((T_Econ3[Econ3_No]),MATCH(T_Econ[[#This Row],[Econ3]],T_Econ3[Econ3],0)) -> 054 | M26: =T_Econ[[#This Row],[Econ1_Id]]&T_Econ[[#This Row],[Econ2_Id]]&T_Econ[[#This Row],[Econ3_Id]] -> 003011054 | N26: Payments for capital assets | O26: Buildings and other fixed structures | P26: Buildings | T26: 15 | U26: Higher Education and Training | W26: 4 | X26: Cooperative Governance And Traditional Affairs | Y26: 2 | Z26: Regional and Urban Development and Legislative Support | AB26: 2 | AC26: Parliament | AD26: 2 | AE26: Administration | AF26: 4 | AG26: Strategic Management and Governance | AH26: 002 | AI26: 002 | AJ26: 004 | AK26: 002002 | AL26: 002002004 | AO26: =IF(AR26<>"",MAX($AO$11:AO25)+1,0) -> 11 | AP26: 16 | AQ26: 007016 | AR26: =IFERROR(INDEX((T_Sprog[Programme]),MATCH(AQ26,T_Sprog[ComboID_DP],0)),"") -> Direct charge against the National Revenue Fund | AT26: 16 | AU26: =IFERROR(INDEX((T_Sprog[Subprogramme]),MATCH(AU50,T_Sprog[ComboID_DPSP],0)),"") ->  | AV26: =IFERROR(INDEX((T_Sprog[Subprogramme]),MATCH(AV50,T_Sprog[ComboID_DPSP],0)),"") ->  | AW26: =IFERROR(INDEX((T_Sprog[Subprogramme]),MATCH(AW50,T_Sprog[ComboID_DPSP],0)),"") ->  | AX26: =IFERROR(INDEX((T_Sprog[Subprogramme]),MATCH(AX50,T_Sprog[ComboID_DPSP],0)),"") ->  | AY26: =IFERROR(INDEX((T_Sprog[Subprogramme]),MATCH(AY50,T_Sprog[ComboID_DPSP],0)),"") ->  | AZ26: =IFERROR(INDEX((T_Sprog[Subprogramme]),MATCH(AZ50,T_Sprog[ComboID_DPSP],0)),"") ->  | BA26: =IFERROR(INDEX((T_Sprog[Subprogramme]),MATCH(BA50,T_Sprog[ComboID_DPSP],0)),"") ->  | BB26: =IFERROR(INDEX((T_Sprog[Subprogramme]),MATCH(BB50,T_Sprog[ComboID_DPSP],0)),"") ->  | BC26: =IFERROR(INDEX((T_Sprog[Subprogramme]),MATCH(BC50,T_Sprog[ComboID_DPSP],0)),"") ->  | BD26: =IFERROR(INDEX((T_Sprog[Subprogramme]),MATCH(BD50,T_Sprog[ComboID_DPSP],0)),"") ->  | BE26: =IFERROR(INDEX((T_Sprog[Subprogramme]),MATCH(BE50,T_Sprog[ComboID_DPSP],0)),"") ->  | BF26: =IFERROR(INDEX((T_Sprog[Subprogramme]),MATCH(BF50,T_Sprog[ComboID_DPSP],0)),"") ->  | BG26: =IFERROR(INDEX((T_Sprog[Subprogramme]),MATCH(BG50,T_Sprog[ComboID_DPSP],0)),"") ->  | BH26: =IFERROR(INDEX((T_Sprog[Subprogramme]),MATCH(BH50,T_Sprog[ComboID_DPSP],0)),"") ->  | BI26: =IFERROR(INDEX((T_Sprog[Subprogramme]),MATCH(BI50,T_Sprog[ComboID_DPSP],0)),"") ->  | BJ26: =IFERROR(INDEX((T_Sprog[Subprogramme]),MATCH(BJ50,T_Sprog[ComboID_DPSP],0)),"") ->  | FO26: 9
A27: =IF(T_KeyDeliverables[[#This Row],[Key deliverables]]<>"",MAX(A$21:A26)+1,"") -> 7 | B27: =IF(COUNTIF(B$21:B26,"Other")>0,"",IF('Main adjustment proposal'!I17="","Other",'Main adjustment proposal'!I17)) -> Other | D27: =INDEX(('Econ ENE'!$G$5:$G$71),MATCH(T_Econ2[[#This Row],[Econ2]],'Econ ENE'!$O$5:$O$71,0)) -> 16 | E27: Land and sub-soil assets | G27: =INDEX(($I$47:$I$79),MATCH(T_Econ3[[#This Row],[Econ3]],$H$47:$H$79,0)) -> 55 | H27: Other fixed structures | J27: =REPT("0",3-LEN(INDEX((T_Econ1[Econ1_No]),MATCH(T_Econ[[#This Row],[Econ1]],T_Econ1[Econ1],0))))&INDEX((T_Econ1[Econ1_No]),MATCH(T_Econ[[#This Row],[Econ1]],T_Econ1[Econ1],0)) -> 003 | K27: =REPT("0",3-LEN(INDEX((T_Econ2[Econ2_No]),MATCH(T_Econ[[#This Row],[Econ2]],T_Econ2[Econ2],0))))&INDEX((T_Econ2[Econ2_No]),MATCH(T_Econ[[#This Row],[Econ2]],T_Econ2[Econ2],0)) -> 011 | L27: =REPT("0",3-LEN(INDEX((T_Econ3[Econ3_No]),MATCH(T_Econ[[#This Row],[Econ3]],T_Econ3[Econ3],0))))&INDEX((T_Econ3[Econ3_No]),MATCH(T_Econ[[#This Row],[Econ3]],T_Econ3[Econ3],0)) -> 055 | M27: =T_Econ[[#This Row],[Econ1_Id]]&T_Econ[[#This Row],[Econ2_Id]]&T_Econ[[#This Row],[Econ3_Id]] -> 003011055 | N27: Payments for capital assets | O27: Buildings and other fixed structures | P27: Other fixed structures | T27: 5 | U27: Home Affairs | W27: 4 | X27: Cooperative Governance And Traditional Affairs | Y27: 3 | Z27: Institutional Development | AB27: 2 | AC27: Parliament | AD27: 2 | AE27: Administration | AF27: 5 | AG27: Legislative Sector Support | AH27: 002 | AI27: 002 | AJ27: 005 | AK27: 002002 | AL27: 002002005 | AT27: 17 | AU27: =IFERROR(INDEX((T_Sprog[Subprogramme]),MATCH(AU51,T_Sprog[ComboID_DPSP],0)),"") ->  | AV27: =IFERROR(INDEX((T_Sprog[Subprogramme]),MATCH(AV51,T_Sprog[ComboID_DPSP],0)),"") ->  | AW27: =IFERROR(INDEX((T_Sprog[Subprogramme]),MATCH(AW51,T_Sprog[ComboID_DPSP],0)),"") ->  | AX27: =IFERROR(INDEX((T_Sprog[Subprogramme]),MATCH(AX51,T_Sprog[ComboID_DPSP],0)),"") ->  | AY27: =IFERROR(INDEX((T_Sprog[Subprogramme]),MATCH(AY51,T_Sprog[ComboID_DPSP],0)),"") ->  | AZ27: =IFERROR(INDEX((T_Sprog[Subprogramme]),MATCH(AZ51,T_Sprog[ComboID_DPSP],0)),"") ->  | BA27: =IFERROR(INDEX((T_Sprog[Subprogramme]),MATCH(BA51,T_Sprog[ComboID_DPSP],0)),"") ->  | BB27: =IFERROR(INDEX((T_Sprog[Subprogramme]),MATCH(BB51,T_Sprog[ComboID_DPSP],0)),"") ->  | BC27: =IFERROR(INDEX((T_Sprog[Subprogramme]),MATCH(BC51,T_Sprog[ComboID_DPSP],0)),"") ->  | BD27: =IFERROR(INDEX((T_Sprog[Subprogramme]),MATCH(BD51,T_Sprog[ComboID_DPSP],0)),"") ->  | BE27: =IFERROR(INDEX((T_Sprog[Subprogramme]),MATCH(BE51,T_Sprog[ComboID_DPSP],0)),"") ->  | BF27: =IFERROR(INDEX((T_Sprog[Subprogramme]),MATCH(BF51,T_Sprog[ComboID_DPSP],0)),"") ->  | BG27: =IFERROR(INDEX((T_Sprog[Subprogramme]),MATCH(BG51,T_Sprog[ComboID_DPSP],0)),"") ->  | BH27: =IFERROR(INDEX((T_Sprog[Subprogramme]),MATCH(BH51,T_Sprog[ComboID_DPSP],0)),"") ->  | BI27: =IFERROR(INDEX((T_Sprog[Subprogramme]),MATCH(BI51,T_Sprog[ComboID_DPSP],0)),"") ->  | BJ27: =IFERROR(INDEX((T_Sprog[Subprogramme]),MATCH(BJ51,T_Sprog[ComboID_DPSP],0)),"") ->  | FO27: 10 | GO27: =IFERROR(INDEX($FQ$36:$FQ$872,MATCH(0,COUNTIF($GO$26:GO26,$FQ$36:$FQ$872),0)),"") -> Infrastructure transfers | GP27: =IFERROR(INDEX(T_InfraS[Infrastructure category],MATCH(0,INDEX(COUNTIF(GP$26:GP26,T_InfraS[Infrastructure category]),0),0)),"") -> Infrastructure transfers | GQ27: =IFERROR(INDEX(T_InfraS[Project category],MATCH(0,INDEX(COUNTIF(GQ$26:GQ26,T_InfraS[Project category]),0),0)),"") -> Mega projects | GR27: =IFERROR(INDEX(T_InfraS[Programme/Project name],MATCH(0,INDEX(COUNTIF(GR$26:GR26,T_InfraS[Programme/Project name]),0),0)),"") -> Municipal infrastructure grant transfer | GS27: =IFERROR(INDEX(T_InfraS[Type of infrastructure],MATCH(0,INDEX(COUNTIF(GS$26:GS26,T_InfraS[Type of infrastructure]),0),0)),"") -> Roads, water, sanitation and community lights
A28: =IF(T_KeyDeliverables[[#This Row],[Key deliverables]]<>"",MAX(A$21:A27)+1,"") ->  | B28: =IF(COUNTIF(B$21:B27,"Other")>0,"",IF('Main adjustment proposal'!I18="","Other",'Main adjustment proposal'!I18)) ->  | D28: =INDEX(('Econ ENE'!$G$5:$G$71),MATCH(T_Econ2[[#This Row],[Econ2]],'Econ ENE'!$O$5:$O$71,0)) -> 17 | E28: Software and other intangible assets | G28: =INDEX(($I$47:$I$79),MATCH(T_Econ3[[#This Row],[Econ3]],$H$47:$H$79,0)) -> 56 | H28: Transport equipment | J28: =REPT("0",3-LEN(INDEX((T_Econ1[Econ1_No]),MATCH(T_Econ[[#This Row],[Econ1]],T_Econ1[Econ1],0))))&INDEX((T_Econ1[Econ1_No]),MATCH(T_Econ[[#This Row],[Econ1]],T_Econ1[Econ1],0)) -> 003 | K28: =REPT("0",3-LEN(INDEX((T_Econ2[Econ2_No]),MATCH(T_Econ[[#This Row],[Econ2]],T_Econ2[Econ2],0))))&INDEX((T_Econ2[Econ2_No]),MATCH(T_Econ[[#This Row],[Econ2]],T_Econ2[Econ2],0)) -> 012 | L28: =REPT("0",3-LEN(INDEX((T_Econ3[Econ3_No]),MATCH(T_Econ[[#This Row],[Econ3]],T_Econ3[Econ3],0))))&INDEX((T_Econ3[Econ3_No]),MATCH(T_Econ[[#This Row],[Econ3]],T_Econ3[Econ3],0)) -> 056 | M28: =T_Econ[[#This Row],[Econ1_Id]]&T_Econ[[#This Row],[Econ2_Id]]&T_Econ[[#This Row],[Econ3_Id]] -> 003012056 | N28: Payments for capital assets | O28: Machinery and equipment | P28: Transport equipment | T28: 38 | U28: Human Settlements | W28: 4 | X28: Cooperative Governance And Traditional Affairs | Y28: 4 | Z28: National Disaster Management Centre | AB28: 2 | AC28: Parliament | AD28: 2 | AE28: Administration | AF28: 6 | AG28: Registrar of Member's Interest | AH28: 002 | AI28: 002 | AJ28: 006 | AK28: 002002 | AL28: 002002006 | AT28: 18 | AU28: =IFERROR(INDEX((T_Sprog[Subprogramme]),MATCH(AU52,T_Sprog[ComboID_DPSP],0)),"") ->  | AV28: =IFERROR(INDEX((T_Sprog[Subprogramme]),MATCH(AV52,T_Sprog[ComboID_DPSP],0)),"") ->  | AW28: =IFERROR(INDEX((T_Sprog[Subprogramme]),MATCH(AW52,T_Sprog[ComboID_DPSP],0)),"") ->  | AX28: =IFERROR(INDEX((T_Sprog[Subprogramme]),MATCH(AX52,T_Sprog[ComboID_DPSP],0)),"") ->  | AY28: =IFERROR(INDEX((T_Sprog[Subprogramme]),MATCH(AY52,T_Sprog[ComboID_DPSP],0)),"") ->  | AZ28: =IFERROR(INDEX((T_Sprog[Subprogramme]),MATCH(AZ52,T_Sprog[ComboID_DPSP],0)),"") ->  | BA28: =IFERROR(INDEX((T_Sprog[Subprogramme]),MATCH(BA52,T_Sprog[ComboID_DPSP],0)),"") ->  | BB28: =IFERROR(INDEX((T_Sprog[Subprogramme]),MATCH(BB52,T_Sprog[ComboID_DPSP],0)),"") ->  | BC28: =IFERROR(INDEX((T_Sprog[Subprogramme]),MATCH(BC52,T_Sprog[ComboID_DPSP],0)),"") ->  | BD28: =IFERROR(INDEX((T_Sprog[Subprogramme]),MATCH(BD52,T_Sprog[ComboID_DPSP],0)),"") ->  | BE28: =IFERROR(INDEX((T_Sprog[Subprogramme]),MATCH(BE52,T_Sprog[ComboID_DPSP],0)),"") ->  | BF28: =IFERROR(INDEX((T_Sprog[Subprogramme]),MATCH(BF52,T_Sprog[ComboID_DPSP],0)),"") ->  | BG28: =IFERROR(INDEX((T_Sprog[Subprogramme]),MATCH(BG52,T_Sprog[ComboID_DPSP],0)),"") ->  | BH28: =IFERROR(INDEX((T_Sprog[Subprogramme]),MATCH(BH52,T_Sprog[ComboID_DPSP],0)),"") ->  | BI28: =IFERROR(INDEX((T_Sprog[Subprogramme]),MATCH(BI52,T_Sprog[ComboID_DPSP],0)),"") ->  | BJ28: =IFERROR(INDEX((T_Sprog[Subprogramme]),MATCH(BJ52,T_Sprog[ComboID_DPSP],0)),"") ->  | FO28: 11 | GO28: =IFERROR(INDEX($FQ$36:$FQ$872,MATCH(0,COUNTIF($GO$26:GO27,$FQ$36:$FQ$872),0)),"") -> Departmental infrastructure | GP28: =IFERROR(INDEX(T_InfraS[Infrastructure category],MATCH(0,INDEX(COUNTIF(GP$26:GP27,T_InfraS[Infrastructure category]),0),0)),"") -> Departmental infrastructure | GQ28: =IFERROR(INDEX(T_InfraS[Project category],MATCH(0,INDEX(COUNTIF(GQ$26:GQ27,T_InfraS[Project category]),0),0)),"") -> Small projects | GR28: =IFERROR(INDEX(T_InfraS[Programme/Project name],MATCH(0,INDEX(COUNTIF(GR$26:GR27,T_InfraS[Programme/Project name]),0),0)),"") -> Sebokeng
A29: =IF(T_KeyDeliverables[[#This Row],[Key deliverables]]<>"",MAX(A$21:A28)+1,"") ->  | B29: =IF(COUNTIF(B$21:B28,"Other")>0,"",IF('Main adjustment proposal'!I19="","Other",'Main adjustment proposal'!I19)) ->  | D29: =INDEX(('Econ ENE'!$G$5:$G$71),MATCH(T_Econ2[[#This Row],[Econ2]],'Econ ENE'!$O$5:$O$71,0)) -> 18 | E29: Payments for financial assets | G29: =INDEX(($I$47:$I$79),MATCH(T_Econ3[[#This Row],[Econ3]],$H$47:$H$79,0)) -> 57 | H29: Other machinery and equipment | J29: =REPT("0",3-LEN(INDEX((T_Econ1[Econ1_No]),MATCH(T_Econ[[#This Row],[Econ1]],T_Econ1[Econ1],0))))&INDEX((T_Econ1[Econ1_No]),MATCH(T_Econ[[#This Row],[Econ1]],T_Econ1[Econ1],0)) -> 003 | K29: =REPT("0",3-LEN(INDEX((T_Econ2[Econ2_No]),MATCH(T_Econ[[#This Row],[Econ2]],T_Econ2[Econ2],0))))&INDEX((T_Econ2[Econ2_No]),MATCH(T_Econ[[#This Row],[Econ2]],T_Econ2[Econ2],0)) -> 012 | L29: =REPT("0",3-LEN(INDEX((T_Econ3[Econ3_No]),MATCH(T_Econ[[#This Row],[Econ3]],T_Econ3[Econ3],0))))&INDEX((T_Econ3[Econ3_No]),MATCH(T_Econ[[#This Row],[Econ3]],T_Econ3[Econ3],0)) -> 057 | M29: =T_Econ[[#This Row],[Econ1_Id]]&T_Econ[[#This Row],[Econ2_Id]]&T_Econ[[#This Row],[Econ3_Id]] -> 003012057 | N29: Payments for capital assets | O29: Machinery and equipment | P29: Other machinery and equipment | T29: 20 | U29: Independent Police Investigative Directorate | W29: 4 | X29: Cooperative Governance And Traditional Affairs | Y29: 5 | Z29: Local Government Support and Intervention Management | AB29: 2 | AC29: Parliament | AD29: 2 | AE29: Administration | AF29: 7 | AG29: Projects | AH29: 002 | AI29: 002 | AJ29: 007 | AK29: 002002 | AL29: 002002007 | AT29: 19 | AU29: =IFERROR(INDEX((T_Sprog[Subprogramme]),MATCH(AU53,T_Sprog[ComboID_DPSP],0)),"") ->  | AV29: =IFERROR(INDEX((T_Sprog[Subprogramme]),MATCH(AV53,T_Sprog[ComboID_DPSP],0)),"") ->  | AW29: =IFERROR(INDEX((T_Sprog[Subprogramme]),MATCH(AW53,T_Sprog[ComboID_DPSP],0)),"") ->  | AX29: =IFERROR(INDEX((T_Sprog[Subprogramme]),MATCH(AX53,T_Sprog[ComboID_DPSP],0)),"") ->  | AY29: =IFERROR(INDEX((T_Sprog[Subprogramme]),MATCH(AY53,T_Sprog[ComboID_DPSP],0)),"") ->  | AZ29: =IFERROR(INDEX((T_Sprog[Subprogramme]),MATCH(AZ53,T_Sprog[ComboID_DPSP],0)),"") ->  | BA29: =IFERROR(INDEX((T_Sprog[Subprogramme]),MATCH(BA53,T_Sprog[ComboID_DPSP],0)),"") ->  | BB29: =IFERROR(INDEX((T_Sprog[Subprogramme]),MATCH(BB53,T_Sprog[ComboID_DPSP],0)),"") ->  | BC29: =IFERROR(INDEX((T_Sprog[Subprogramme]),MATCH(BC53,T_Sprog[ComboID_DPSP],0)),"") ->  | BD29: =IFERROR(INDEX((T_Sprog[Subprogramme]),MATCH(BD53,T_Sprog[ComboID_DPSP],0)),"") ->  | BE29: =IFERROR(INDEX((T_Sprog[Subprogramme]),MATCH(BE53,T_Sprog[ComboID_DPSP],0)),"") ->  | BF29: =IFERROR(INDEX((T_Sprog[Subprogramme]),MATCH(BF53,T_Sprog[ComboID_DPSP],0)),"") ->  | BG29: =IFERROR(INDEX((T_Sprog[Subprogramme]),MATCH(BG53,T_Sprog[ComboID_DPSP],0)),"") ->  | BH29: =IFERROR(INDEX((T_Sprog[Subprogramme]),MATCH(BH53,T_Sprog[ComboID_DPSP],0)),"") ->  | BI29: =IFERROR(INDEX((T_Sprog[Subprogramme]),MATCH(BI53,T_Sprog[ComboID_DPSP],0)),"") ->  | BJ29: =IFERROR(INDEX((T_Sprog[Subprogramme]),MATCH(BJ53,T_Sprog[ComboID_DPSP],0)),"") ->  | FO29: 12 | GP29: =IFERROR(INDEX(T_InfraS[Infrastructure category],MATCH(0,INDEX(COUNTIF(GP$26:GP28,T_InfraS[Infrastructure category]),0),0)),"") ->  | GQ29: =IFERROR(INDEX(T_InfraS[Project category],MATCH(0,INDEX(COUNTIF(GQ$26:GQ28,T_InfraS[Project category]),0),0)),"") -> Large projects
G30: =INDEX(($I$47:$I$79),MATCH(T_Econ3[[#This Row],[Econ3]],$H$47:$H$79,0)) -> 58 | H30: Heritage assets | J30: =REPT("0",3-LEN(INDEX((T_Econ1[Econ1_No]),MATCH(T_Econ[[#This Row],[Econ1]],T_Econ1[Econ1],0))))&INDEX((T_Econ1[Econ1_No]),MATCH(T_Econ[[#This Row],[Econ1]],T_Econ1[Econ1],0)) -> 003 | K30: =REPT("0",3-LEN(INDEX((T_Econ2[Econ2_No]),MATCH(T_Econ[[#This Row],[Econ2]],T_Econ2[Econ2],0))))&INDEX((T_Econ2[Econ2_No]),MATCH(T_Econ[[#This Row],[Econ2]],T_Econ2[Econ2],0)) -> 013 | L30: =REPT("0",3-LEN(INDEX((T_Econ3[Econ3_No]),MATCH(T_Econ[[#This Row],[Econ3]],T_Econ3[Econ3],0))))&INDEX((T_Econ3[Econ3_No]),MATCH(T_Econ[[#This Row],[Econ3]],T_Econ3[Econ3],0)) -> 058 | M30: =T_Econ[[#This Row],[Econ1_Id]]&T_Econ[[#This Row],[Econ2_Id]]&T_Econ[[#This Row],[Econ3_Id]] -> 003013058 | N30: Payments for capital assets | O30: Heritage assets | P30: Heritage assets | T30: 6 | U30: International Relations and Cooperation | W30: 4 | X30: Cooperative Governance And Traditional Affairs | Y30: 6 | Z30: Community Work Programme | AB30: 2 | AC30: Parliament | AD30: 2 | AE30: Administration | AF30: 8 | AG30: State of the Nation Address | AH30: 002 | AI30: 002 | AJ30: 008 | AK30: 002002 | AL30: 002002008 | AT30: 20 | AU30: =IFERROR(INDEX((T_Sprog[Subprogramme]),MATCH(AU54,T_Sprog[ComboID_DPSP],0)),"") ->  | AV30: =IFERROR(INDEX((T_Sprog[Subprogramme]),MATCH(AV54,T_Sprog[ComboID_DPSP],0)),"") ->  | AW30: =IFERROR(INDEX((T_Sprog[Subprogramme]),MATCH(AW54,T_Sprog[ComboID_DPSP],0)),"") ->  | AX30: =IFERROR(INDEX((T_Sprog[Subprogramme]),MATCH(AX54,T_Sprog[ComboID_DPSP],0)),"") ->  | AY30: =IFERROR(INDEX((T_Sprog[Subprogramme]),MATCH(AY54,T_Sprog[ComboID_DPSP],0)),"") ->  | AZ30: =IFERROR(INDEX((T_Sprog[Subprogramme]),MATCH(AZ54,T_Sprog[ComboID_DPSP],0)),"") ->  | BA30: =IFERROR(INDEX((T_Sprog[Subprogramme]),MATCH(BA54,T_Sprog[ComboID_DPSP],0)),"") ->  | BB30: =IFERROR(INDEX((T_Sprog[Subprogramme]),MATCH(BB54,T_Sprog[ComboID_DPSP],0)),"") ->  | BC30: =IFERROR(INDEX((T_Sprog[Subprogramme]),MATCH(BC54,T_Sprog[ComboID_DPSP],0)),"") ->  | BD30: =IFERROR(INDEX((T_Sprog[Subprogramme]),MATCH(BD54,T_Sprog[ComboID_DPSP],0)),"") ->  | BE30: =IFERROR(INDEX((T_Sprog[Subprogramme]),MATCH(BE54,T_Sprog[ComboID_DPSP],0)),"") ->  | BF30: =IFERROR(INDEX((T_Sprog[Subprogramme]),MATCH(BF54,T_Sprog[ComboID_DPSP],0)),"") ->  | BG30: =IFERROR(INDEX((T_Sprog[Subprogramme]),MATCH(BG54,T_Sprog[ComboID_DPSP],0)),"") ->  | BH30: =IFERROR(INDEX((T_Sprog[Subprogramme]),MATCH(BH54,T_Sprog[ComboID_DPSP],0)),"") ->  | BI30: =IFERROR(INDEX((T_Sprog[Subprogramme]),MATCH(BI54,T_Sprog[ComboID_DPSP],0)),"") ->  | BJ30: =IFERROR(INDEX((T_Sprog[Subprogramme]),MATCH(BJ54,T_Sprog[ComboID_DPSP],0)),"") ->  | FO30: 13 | GP30: =IFERROR(INDEX(T_InfraS[Infrastructure category],MATCH(0,INDEX(COUNTIF(GP$26:GP29,T_InfraS[Infrastructure category]),0),0)),"") ->  | GQ30: =IFERROR(INDEX(T_InfraS[Project category],MATCH(0,INDEX(COUNTIF(GQ$26:GQ29,T_InfraS[Project category]),0),0)),"") -> 
G31: =INDEX(($I$47:$I$79),MATCH(T_Econ3[[#This Row],[Econ3]],$H$47:$H$79,0)) -> 59 | H31: Specialised military assets | J31: =REPT("0",3-LEN(INDEX((T_Econ1[Econ1_No]),MATCH(T_Econ[[#This Row],[Econ1]],T_Econ1[Econ1],0))))&INDEX((T_Econ1[Econ1_No]),MATCH(T_Econ[[#This Row],[Econ1]],T_Econ1[Econ1],0)) -> 003 | K31: =REPT("0",3-LEN(INDEX((T_Econ2[Econ2_No]),MATCH(T_Econ[[#This Row],[Econ2]],T_Econ2[Econ2],0))))&INDEX((T_Econ2[Econ2_No]),MATCH(T_Econ[[#This Row],[Econ2]],T_Econ2[Econ2],0)) -> 014 | L31: =REPT("0",3-LEN(INDEX((T_Econ3[Econ3_No]),MATCH(T_Econ[[#This Row],[Econ3]],T_Econ3[Econ3],0))))&INDEX((T_Econ3[Econ3_No]),MATCH(T_Econ[[#This Row],[Econ3]],T_Econ3[Econ3],0)) -> 059 | M31: =T_Econ[[#This Row],[Econ1_Id]]&T_Econ[[#This Row],[Econ2_Id]]&T_Econ[[#This Row],[Econ3_Id]] -> 003014059 | N31: Payments for capital assets | O31: Specialised military assets | P31: Specialised military assets | T31: 21 | U31: Justice and Constitutional Development | W31: 5 | X31: Home Affairs | Y31: 1 | Z31: Administration | AB31: 2 | AC31: Parliament | AD31: 16 | AE31: Direct charge against the National Revenue Fund | AF31: 1 | AG31: Members Remuneration | AH31: 002 | AI31: 016 | AJ31: 001 | AK31: 002016 | AL31: 002016001 | FO31: 14 | GP31: =IFERROR(INDEX(T_InfraS[Infrastructure category],MATCH(0,INDEX(COUNTIF(GP$26:GP30,T_InfraS[Infrastructure category]),0),0)),"") ->  | GQ31: =IFERROR(INDEX(T_InfraS[Project category],MATCH(0,INDEX(COUNTIF(GQ$26:GQ30,T_InfraS[Project category]),0),0)),"") -> 
G32: =INDEX(($I$47:$I$79),MATCH(T_Econ3[[#This Row],[Econ3]],$H$47:$H$79,0)) -> 60 | H32: Biological assets | J32: =REPT("0",3-LEN(INDEX((T_Econ1[Econ1_No]),MATCH(T_Econ[[#This Row],[Econ1]],T_Econ1[Econ1],0))))&INDEX((T_Econ1[Econ1_No]),MATCH(T_Econ[[#This Row],[Econ1]],T_Econ1[Econ1],0)) -> 003 | K32: =REPT("0",3-LEN(INDEX((T_Econ2[Econ2_No]),MATCH(T_Econ[[#This Row],[Econ2]],T_Econ2[Econ2],0))))&INDEX((T_Econ2[Econ2_No]),MATCH(T_Econ[[#This Row],[Econ2]],T_Econ2[Econ2],0)) -> 015 | L32: =REPT("0",3-LEN(INDEX((T_Econ3[Econ3_No]),MATCH(T_Econ[[#This Row],[Econ3]],T_Econ3[Econ3],0))))&INDEX((T_Econ3[Econ3_No]),MATCH(T_Econ[[#This Row],[Econ3]],T_Econ3[Econ3],0)) -> 060 | M32: =T_Econ[[#This Row],[Econ1_Id]]&T_Econ[[#This Row],[Econ2_Id]]&T_Econ[[#This Row],[Econ3_Id]] -> 003015060 | N32: Payments for capital assets | O32: Biological assets | P32: Biological assets | T32: 28 | U32: Labour | W32: 5 | X32: Home Affairs | Y32: 2 | Z32: Citizen Affairs | AB32: 2 | AC32: Parliament | AD32: 3 | AE32: Core Business | AF32: 1 | AG32: Office of the Deputy Secretary | AH32: 002 | AI32: 003 | AJ32: 001 | AK32: 002003 | AL32: 002003001 | FO32: 15 | GQ32: =IFERROR(INDEX(T_InfraS[Project category],MATCH(0,INDEX(COUNTIF(GQ$26:GQ31,T_InfraS[Project category]),0),0)),"") ->  | JA32: =MyDept_Code -> 007
G33: =INDEX(($I$47:$I$79),MATCH(T_Econ3[[#This Row],[Econ3]],$H$47:$H$79,0)) -> 61 | H33: Land and sub-soil assets | J33: =REPT("0",3-LEN(INDEX((T_Econ1[Econ1_No]),MATCH(T_Econ[[#This Row],[Econ1]],T_Econ1[Econ1],0))))&INDEX((T_Econ1[Econ1_No]),MATCH(T_Econ[[#This Row],[Econ1]],T_Econ1[Econ1],0)) -> 003 | K33: =REPT("0",3-LEN(INDEX((T_Econ2[Econ2_No]),MATCH(T_Econ[[#This Row],[Econ2]],T_Econ2[Econ2],0))))&INDEX((T_Econ2[Econ2_No]),MATCH(T_Econ[[#This Row],[Econ2]],T_Econ2[Econ2],0)) -> 016 | L33: =REPT("0",3-LEN(INDEX((T_Econ3[Econ3_No]),MATCH(T_Econ[[#This Row],[Econ3]],T_Econ3[Econ3],0))))&INDEX((T_Econ3[Econ3_No]),MATCH(T_Econ[[#This Row],[Econ3]],T_Econ3[Econ3],0)) -> 061 | M33: =T_Econ[[#This Row],[Econ1_Id]]&T_Econ[[#This Row],[Econ2_Id]]&T_Econ[[#This Row],[Econ3_Id]] -> 003016061 | N33: Payments for capital assets | O33: Land and sub-soil assets | P33: Land and sub-soil assets | T33: 42 | U33: Military Veterans | W33: 5 | X33: Home Affairs | Y33: 3 | Z33: Immigration Affairs | AB33: 2 | AC33: Parliament | AD33: 3 | AE33: Core Business | AF33: 2 | AG33: National Assembly | AH33: 002 | AI33: 003 | AJ33: 002 | AK33: 002003 | AL33: 002003002 | GQ33: =IFERROR(INDEX(T_InfraS[Project category],MATCH(0,INDEX(COUNTIF(GQ$26:GQ32,T_InfraS[Project category]),0),0)),"") -> 
G34: =INDEX(($I$47:$I$79),MATCH(T_Econ3[[#This Row],[Econ3]],$H$47:$H$79,0)) -> 62 | H34: Software and other intangible assets | J34: =REPT("0",3-LEN(INDEX((T_Econ1[Econ1_No]),MATCH(T_Econ[[#This Row],[Econ1]],T_Econ1[Econ1],0))))&INDEX((T_Econ1[Econ1_No]),MATCH(T_Econ[[#This Row],[Econ1]],T_Econ1[Econ1],0)) -> 003 | K34: =REPT("0",3-LEN(INDEX((T_Econ2[Econ2_No]),MATCH(T_Econ[[#This Row],[Econ2]],T_Econ2[Econ2],0))))&INDEX((T_Econ2[Econ2_No]),MATCH(T_Econ[[#This Row],[Econ2]],T_Econ2[Econ2],0)) -> 017 | L34: =REPT("0",3-LEN(INDEX((T_Econ3[Econ3_No]),MATCH(T_Econ[[#This Row],[Econ3]],T_Econ3[Econ3],0))))&INDEX((T_Econ3[Econ3_No]),MATCH(T_Econ[[#This Row],[Econ3]],T_Econ3[Econ3],0)) -> 062 | M34: =T_Econ[[#This Row],[Econ1_Id]]&T_Econ[[#This Row],[Econ2_Id]]&T_Econ[[#This Row],[Econ3_Id]] -> 003017062 | N34: Payments for capital assets | O34: Software and other intangible assets | P34: Software and other intangible assets | T34: 29 | U34: Mineral Resources | W34: 6 | X34: International Relations and Cooperation | Y34: 1 | Z34: Administration | AB34: 2 | AC34: Parliament | AD34: 3 | AE34: Core Business | AF34: 3 | AG34: National Council of Provinces | AH34: 002 | AI34: 003 | AJ34: 003 | AK34: 002003 | AL34: 002003003 | BV34: 201617 expenditure from BAS | CH34: Budgets - ENE 2017 | DS34: =COUNTIF($EC34:EC$36,EC34) -> 0 | DT34: Transfers | DU34: Updated | EP34: Personnel | FN34: Infrastructure | FP34: Updated 25052017 | GQ34: =IFERROR(INDEX(T_InfraS[Project category],MATCH(0,INDEX(COUNTIF(GQ$26:GQ33,T_InfraS[Project category]),0),0)),"") ->  | GU34: Names | HI34: Equitable share and Grants | HK34: Updated | IN34: Non-recurring items | IP34: updated 30052017 | JA34: =MyDept_Name -> National Treasury | JC34: =250-COUNTIF(JD36:JD285,"") -> 1 | JM34: Key deliverables / cost drivers
G35: =INDEX(($I$47:$I$79),MATCH(T_Econ3[[#This Row],[Econ3]],$H$47:$H$79,0)) -> 63 | H35: Payments for financial assets | J35: =REPT("0",3-LEN(INDEX((T_Econ1[Econ1_No]),MATCH(T_Econ[[#This Row],[Econ1]],T_Econ1[Econ1],0))))&INDEX((T_Econ1[Econ1_No]),MATCH(T_Econ[[#This Row],[Econ1]],T_Econ1[Econ1],0)) -> 004 | K35: =REPT("0",3-LEN(INDEX((T_Econ2[Econ2_No]),MATCH(T_Econ[[#This Row],[Econ2]],T_Econ2[Econ2],0))))&INDEX((T_Econ2[Econ2_No]),MATCH(T_Econ[[#This Row],[Econ2]],T_Econ2[Econ2],0)) -> 018 | L35: =REPT("0",3-LEN(INDEX((T_Econ3[Econ3_No]),MATCH(T_Econ[[#This Row],[Econ3]],T_Econ3[Econ3],0))))&INDEX((T_Econ3[Econ3_No]),MATCH(T_Econ[[#This Row],[Econ3]],T_Econ3[Econ3],0)) -> 063 | M35: =T_Econ[[#This Row],[Econ1_Id]]&T_Econ[[#This Row],[Econ2_Id]]&T_Econ[[#This Row],[Econ3_Id]] -> 004018063 | N35: Payments for financial assets | O35: Payments for financial assets | P35: Payments for financial assets | T35: 44 | U35: National School of Government | W35: 6 | X35: International Relations and Cooperation | Y35: 2 | Z35: International Relations | AB35: 2 | AC35: Parliament | AD35: 3 | AE35: Core Business | AF35: 4 | AG35: Core Business Support | AH35: 002 | AI35: 003 | AJ35: 004 | AK35: 002003 | AL35: 002003004 | AU35: =REPT("0",3-LEN($AT$6))&$AT$6&REPT("0",3-LEN(AU$9))&AU$9&REPT("0",3-LEN($AT11))&$AT11 -> 007001001 | AV35: 007002001 | AW35: 007003001 | AX35: 007004001 | AY35: 007005001 | AZ35: 007006001 | BA35: 007007001 | BB35: 007008001 | BC35: 007009001 | BD35: 007010001 | BE35: 007016001 | BF35: 007000001 | BG35: 007000001 | BH35: 007000001 | BI35: 007000001 | BJ35: 007000001 | BN35: FY_ID | BO35: FY_ID_name | BP35: Financial_Year | BV35: Vote No# | BW35: Department | BX35: Programme No# | BY35: Programme | BZ35: Subprogramme No# | CA35: Subprogramme | CB35: 201617 Total Expenditure | CC35: DeptCode | CD35: ProgCode | CE35: DeptProg_Combo_Code | CH35: Lookup_Lvl_No | CI35: Vote No. | CJ35: Department | CK35: Programme No. | CL35: Programme | CM35: Subprogramme No. | CN35: Subprogramme | CO35: Econ2 | CP35: Econ3 | CQ35: Econ4 | CR35: 2014_15 | CS35: 2015_16 | CT35: 2016_17_MA | CU35: 2016_17_AA | CV35: 2016_17_RE | CW35: 2017_18 | CX35: 2018_19 | CY35: 2019_20 | CZ35: 2016_17_Pre-Audited | DA35: 2018_19 NR | DB35: 2019_20 NR | DC35: 2018_19 IB | DD35: 2019_20 IB | DE35: 2020_21 IB | DF35: Combo_DeptProg | DG35: DeptCode | DH35: ProgCode | DI35: SProgCode | DJ35: ItemCode | DK35: DeptProg_Combo_Code | DL35: DeptEcon_Combo_Code | DM35: Econ3/4 ID | DN35: DPSP_Econ_Combo | DO35: Econ_Id | DP35: DeptProgEcon_Combo_Code | DS35: Uid | DT35: T_Counter | DU35: Vote No. | DV35: Department | DW35: Programme No. | DX35: Programme | DY35: Subprogramme No. | DZ35: Transfers and subsidies / Payments for financial assets detail | EA35: 2017/18 Revised baseline | EB35: 2018/19 Revised baseline | EC35: 2019/20 Revised baseline | ED35: SPId | EE35: Subprog | EF35: Subprogramme No.2 | EG35: Subprogramme | EH35: Econ2 | EI35: Econ3 | EJ35: Econ4 | EK35: Econ1 | EL35: CostPressure_Code | EM35: TCounterProgLvl | EP35: Department | EQ35: Programme | ER35: Salary Level | ES35: 2015/16 - Number of posts on approved establishment as at 30 June 2015 | ET35: 2015/16 - Number of posts on funded establishment as at 30 June 2015 | EU35: 2015/16 - Number of posts additional to the establishment as at 30 June 2015 | EV35: 2014/15 - Number of posts filled | EW35: 2014/15 - Expenditure on posts filled | EX35: 2015/16 - Number of all posts to be filled | EY35: 2015/16 - Expenditure on all posts to be filled | EZ35: 2016/17 - Number of all posts to be filled | FA35: 2016/17 - Expenditure on all posts to be filled | FB35: 2017/18 - Number of all posts to be filled | FC35: 2017/18 - Expenditure on all posts to be filled | FD35: 2018/19 - Number of all posts to be filled | FE35: 2018/19 - Expenditure on all posts to be filled | FF35: Combo_DeptProg | FG35: DeptCode | FH35: ProgCode | FI35: DeptProg_Combo_Code | FO35: Vote No. | FP35: Department | FQ35: Infrastructure category | FR35: Project category | FS35: Programme/Project name | FT35: Type of infrastructure | FU35: Current project stage | FV35: Nature of investment / Current/Capital transfer | FW35: Project description | FX35: 2014/15 Audited outcome | FY35: 2015/16 Preliminary outcome | FZ35: 2016/17 Revised baseline | GA35: 2017/18 Revised Baseline | GB35: 2018/19 Revised Baseline | GC35: 2019/20 Revised Baseline | GD35: 2020/21 | GE35: Dept_Id | GF35: Infra_Category_Id | GG35: Project_Cat_ID | GH35: Combo_1 | GI35: Dept_code | GJ35: Order_No | GK35: Order_ID | GL35: Combo_Lookup | GR35: =IFERROR(INDEX(T_InfraS[Project category],MATCH(0,INDEX(COUNTIF(GQ$26:GQ34,T_InfraS[Project category]),0),0)),"") ->  | GV35: ID | GW35: Area | GX35: Name | GY35: Range | HJ35: Vote No. | HK35: Department | HL35: Programme No. | HM35: Programme | HN35: Subprogramme No. | HO35: Subprogramme | HP35: Transfers and subsidies / Payments for financial assets detail | HQ35: Econ1 | HR35: Econ2 | HS35: Econ3 | HT35: Econ4 | HU35: DOR | HV35: 2013/14 Audited outcome | HW35: 2014/15 Audited outcome | HX35: 2015/16 Preliminary outcome | HY35: 2016/17 Voted (Main appropriation) | HZ35: 2016/17 Adjusted appropriation | IA35: 2016/17 Revised estimate | IB35: 2017/18 Revised baseline | IC35: 2018/19 Revised baseline | ID35: 2019/20 Revised baseline | IE35: 2018/19_NR | IF35: 2019_20 IB | IG35: Order)ID | IH35: ComBo_ID2 | II35: CostPressure Code | IJ35: OrderIDP_lvl | IO35: Vote number | IP35: Vote Name | IQ35: Programme name | IR35: Subprogramme name | IS35: Non-recurrent item description | IT35: Econ Class 4 | IU35: Transfer name | IV35: Total | JB35: Re_ID | JC35: Trimmed list | JD35: Trimmed list | JF35: Current project stage | JH35: Nature of investment / Current/Capital transfer | JM35: CoEIndi | JN35: ID | JO35: VoteNo | JP35: ID_Combo | JQ35: Department | JR35: Key deliverable / cost driver | JS35: 2013/14 | JT35: 2014/15 | JU35: 2015/16 | JV35: 2016/17 | JW35: 2017/18 | JX35: 2018/19 | JY35: 2019/20 | JZ35: 2020/21
T36: 7 | U36: National Treasury | W36: 6 | X36: International Relations and Cooperation | Y36: 3 | Z36: International Cooperation | AB36: 2 | AC36: Parliament | AD36: 3 | AE36: Core Business | AF36: 5 | AG36: Knowledge and Information Services | AH36: 002 | AI36: 003 | AJ36: 005 | AK36: 002003 | AL36: 002003005 | AU36: 007001002 | AV36: 007002002 | AW36: 007003002 | AX36: 007004002 | AY36: 007005002 | AZ36: 007006002 | BA36: 007007002 | BB36: 007008002 | BC36: 007009002 | BD36: 007010002 | BE36: 007016002 | BF36: 007000002 | BG36: 007000002 | BH36: 007000002 | BI36: 007000002 | BJ36: 007000002 | BN36: 1 | BO36: ="MyYear"&BN36 -> MyYear1 | BP36: =BT36 -> 2014/15 | BR36: 2014 | BS36: =RIGHT(BR37,2) -> 15 | BT36: =BR36&"/"&BS36 -> 2014/15 | BV36: 1 | BW36: The Presidency | BX36: 1 | BY36: Administration | BZ36: 1 | CA36: Management | CB36: 336752.0045 | CC36: =REPT("0",3-LEN(Table27[[#This Row],[Vote No'#]]))&Table27[[#This Row],[Vote No'#]] -> 001 | CD36: =REPT("0",3-LEN(Table27[[#This Row],[Programme No'#]]))&Table27[[#This Row],[Programme No'#]] -> 001 | CE36: =+Table27[[#This Row],[DeptCode]]&Table27[[#This Row],[ProgCode]] -> 001001 | CG36: =T_ENE_2016[[#This Row],[Vote No.]]&T_ENE_2016[[#This Row],[Programme No.]]&T_ENE_2016[[#This Row],[Subprogramme No.]] -> 111 | CH36: =INDEX((T_Econ3[Econ3_No]),MATCH(T_ENE_2016[[#This Row],[Econ4]],T_Econ3[Econ3],0)) -> 1 | CI36: 1 | CJ36: The Presidency | CK36: 1 | CL36: Administration | CM36: 1 | CN36: Management | CO36: Current payments | CP36: Compensation of employees | CQ36: Compensation of employees | CR36: 161442 | CS36: 173316 | CT36: 197148 | CU36: 188147 | CV36: 188147 | CW36: 196661 | CX36: 199253 | CY36: 214395 | DC36: =T_ENE_2016[[#This Row],[2018_19]] -> 199253 | DD36: =T_ENE_2016[[#This Row],[2019_20]] -> 214395 | DE36: =IF(T_ENE_2016[[#This Row],[Econ3]]="Compensation of employees",T_ENE_2016[[#This Row],[2019_20 IB]]*(1+MyCola3),(T_ENE_2016[[#This Row],[2019_20 IB]]+T_ENE_2016[[#This Row],[2019_20 NR]])*(1+MyCPI3)) -> 230474.625 | DF36: =T_ENE_2016[[#This Row],[Department]]&"|"&T_ENE_2016[[#This Row],[Programme]] -> The Presidency|Administration | DG36: =REPT("0",3-LEN(T_ENE_2016[[#This Row],[Vote No.]]))&T_ENE_2016[[#This Row],[Vote No.]] -> 001 | DH36: =REPT("0",3-LEN(T_ENE_2016[[#This Row],[Programme No.]]))&T_ENE_2016[[#This Row],[Programme No.]] -> 001 | DI36: =REPT("0",3-LEN(T_ENE_2016[[#This Row],[Subprogramme No.]]))&T_ENE_2016[[#This Row],[Subprogramme No.]] -> 001 | DJ36: =REPT("0",3-LEN(T_ENE_2016[[#This Row],[Lookup_Lvl_No]]))&T_ENE_2016[[#This Row],[Lookup_Lvl_No]] -> 001 | DK36: =T_ENE_2016[[#This Row],[DeptCode]]&T_ENE_2016[[#This Row],[ProgCode]] -> 001001 | DL36: =T_ENE_2016[[#This Row],[DeptCode]]&T_ENE_2016[[#This Row],[ItemCode]] -> 001001 | DM36: =T_ENE_2016[[#This Row],[ItemCode]]*1 -> 1 | DN36: =T_ENE_2016[[#This Row],[DeptProg_Combo_Code]]&T_ENE_2016[[#This Row],[SProgCode]]&REPT("0",3-LEN(T_ENE_2016[[#This Row],[Econ3/4 ID]]))&T_ENE_2016[[#This Row],[Econ3/4 ID]] -> 001001001001 | DP36: =LEFT(T_ENE_2016[[#This Row],[DPSP_Econ_Combo]],6)&T_ENE_2016[[#This Row],[ItemCode]] -> 001001001 | DS36: =T_Transfers_NAT[[#This Row],[SPId]]&DT36 -> 001111 | DT36: 1 | DU36: 1 | DV36: The Presidency | DW36: 1 | DX36: Administration | DY36: 1 | DZ36: Communication | EA36: 36 | EB36: 38 | EC36: 40 | ED36: =REPT("0",3-LEN(T_Transfers_NAT[[#This Row],[Vote No.]]))&T_Transfers_NAT[[#This Row],[Vote No.]]&T_Transfers_NAT[[#This Row],[Programme No.]]&T_Transfers_NAT[[#This Row],[Subprogramme No.]] -> 00111 | EE36: Management | EH36: Transfers and subsidies | EI36: Departmental agencies and accounts | EJ36: Departmental agencies (non-business entities) | EK36: Current | EL36: =LEFT(T_Transfers_NAT[[#This Row],[Uid]],4)&T_Transfers_NAT[[#This Row],[TCounterProgLvl]] -> 00111 | EM36: 1 | EP36: The Presidency | EQ36: Administration | ER36: 1 | ET36: 36 | EU36: 36 | EV36: 37 | EW36: 2446.94052 | EX36: 37 | EY36: 2146 | EZ36: 37 | FA36: 2331 | FB36: 37 | FC36: 2529 | FD36: 37 | FE36: 2739 | FF36: =T_Personnel[[#This Row],[Department]]&"|"&T_Personnel[[#This Row],[Programme]] -> The Presidency|Administration | FG36: =INDEX((T_ENE_2016[DeptCode]),MATCH(T_Personnel[[#This Row],[Department]],T_ENE_2016[Department],0)) -> 001 | FH36: =INDEX((T_ENE_2016[ProgCode]),MATCH(T_Personnel[[#This Row],[Combo_DeptProg]],T_ENE_2016[Combo_DeptProg],0)) -> 001 | FI36: =T_Personnel[[#This Row],[DeptCode]]&T_Personnel[[#This Row],[ProgCode]] -> 001001 | FL36: =COUNTIF($FM$36:$FM$481,FM36) -> 1 | FM36: =T_InfraS[[#This Row],[Programme/Project name]]&"|"&T_InfraS[[#This Row],[Type of infrastructure]] -> Municipal infrastructure grant transfer|Roads, water, sanitation and community lights | FN36: =COUNTIF(T_InfraS[Programme/Project name],T_InfraS[[#This Row],[Programme/Project name]]) -> 1 | FO36: 4 | FP36: Cooperative Governance And Traditional Affairs | FQ36: Infrastructure transfers | FR36: Mega projects | FS36: Municipal infrastructure grant transfer | FT36: Roads, water, sanitation and community lights | FU36: On-going | FV36: Capital | FW36: Eradication of the backlog in municipal infrastructure, provision of basic services to poor households | FX36: 14745445 | FY36: 14955762 | FZ36: 14914028 | GA36: 15891252 | GB36: 16787685 | GC36: 17733731 | GD36: =+T_InfraS[[#This Row],[2019/20 Revised Baseline]] -> 17733731 | GE36: =INDEX((Table7[Vote No.]),MATCH(T_InfraS[[#This Row],[Department]],Table7[Department],0)) -> 4 | GF36: =MATCH(T_InfraS[[#This Row],[Infrastructure category]],$FP$18:$FP$32,0) -> 2 | GG36: =MATCH(T_InfraS[[#This Row],[Project category]],$FQ$18:$FQ$32,0) -> 1 | GH36: =CONCATENATE(T_InfraS[[#This Row],[Dept_Id]],T_InfraS[[#This Row],[Infra_Category_Id]],T_InfraS[[#This Row],[Project_Cat_ID]]) -> 421 | GI36: =REPT("0",3-LEN(T_InfraS[[#This Row],[Vote No.]]))&T_InfraS[[#This Row],[Vote No.]] -> 004 | GJ36: 1 | GK36: =REPT("0",3-LEN(T_InfraS[[#This Row],[Order_No]]))&T_InfraS[[#This Row],[Order_No]] -> 001 | GL36: =T_InfraS[[#This Row],[Dept_code]]&T_InfraS[[#This Row],[Order_ID]] -> 004001 | GR36: =IFERROR(INDEX(T_InfraS[Project category],MATCH(0,INDEX(COUNTIF(GQ$26:GQ35,T_InfraS[Project category]),0),0)),"") ->  | GU36: =MAX(GV36:GV135) -> 62 | GV36: 1 | GX36: My_Proposal_ID | GY36: $G$9 | HC36: 1 | HD36: Proposal ID | HJ36: 4 | HK36: Cooperative Governance And Traditional Affairs | HL36: 2 | HM36: Regional and Urban Development and Legislative Support | HN36: 6 | HO36: Municipal Demarcation Transition Grant | HP36: Municipal demarcation transition grant | HQ36: Current | HR36: Transfers and subsidies | HS36: Provinces and municipalities | HT36: Municipalities | HU36: LCG | HV36: 0 | HW36: 0 | HX36: 3714 | HY36: 297422 | HZ36: 297422 | IA36: 297422 | IB36: 111856 | IC36: 0 | ID36: 0 | IF36: =T_SharesGrants[[#This Row],[ 2019/20 Revised baseline]]+T_SharesGrants[[#This Row],[2018/19_NR]] -> 0 | IG36: 1 | IH36: =CONCATENATE(T_SharesGrants[[#This Row],[Vote No.]],T_SharesGrants[[#This Row],[Programme No.]],T_SharesGrants[[#This Row],[Subprogramme No.]],T_SharesGrants[[#This Row],[Order)ID]]) -> 4261 | II36: =REPT("0",3-LEN(T_SharesGrants[[#This Row],[Vote No.]]))&T_SharesGrants[[#This Row],[Vote No.]]&T_SharesGrants[[#This Row],[Programme No.]]&T_SharesGrants[[#This Row],[OrderIDP_lvl]] -> 00421 | IJ36: =IF(T_SharesGrants[[#This Row],[Vote No.]]<>HJ35,1,IF(T_SharesGrants[[#This Row],[Programme No.]]<>HL35,1,IJ35+1)) -> 1 | IO36: 24 | IP36: Agriculture, Forestry and Fisheries | IQ36: 1. Administration | IR36: Sub-programme 7: Policy, Planning, Monitoring and Evaluation | IS36: Developing an agriculture census: Agricultural and rural statistics | IT36: Agency and support/outsourced services | IU36: (blank) | IV36: -51000 | JB36: =MyDept_Code&REPT("0",3-LEN(JC36))&JC36 -> 007001 | JC36: 1 | JD36: =IFERROR(INDEX(T_InfraS[Programme/Project name],MATCH(JB36,T_InfraS[Combo_Lookup],0)),"") -> Neighbourhood development partnership grant | JF36: Various | JH36: New infrastructure assets | JM36: 0 | JN36: =IF(JN35="ID",1,IF(T_KeyDeliverablesValues[[#This Row],[Department]]<>JQ35,1,JN35+1)) -> 1 | JO36: =INDEX((Table7[Vote No.]),MATCH(T_KeyDeliverablesValues[[#This Row],[Department]],Table7[Department],0)) -> 37 | JP36: =REPT("0",3-LEN(T_KeyDeliverablesValues[[#This Row],[VoteNo]]))&T_KeyDeliverablesValues[[#This Row],[VoteNo]]&REPT("0",3-LEN(T_KeyDeliverablesValues[[#This Row],[ID]]))&T_KeyDeliverablesValues[[#This Row],[ID]] -> 037001 | JQ36: Arts and Culture | JR36: Social Cohesion | JS36: 35349 | JT36: 38732 | JU36: 33386 | JV36: 44894 | JW36: 62259 | JX36: 53514 | JY36: 56737 | JZ36: =IF(T_KeyDeliverablesValues[[#This Row],[CoEIndi]]=1,T_KeyDeliverablesValues[[#This Row],[2019/20]]*(1+$BQ$62),T_KeyDeliverablesValues[[#This Row],[2019/20]]*(1+$BQ$61)) -> 59857.535
T37: 22 | U37: Office of the Chief Justice and Judicial Administration | W37: 6 | X37: International Relations and Cooperation | Y37: 4 | Z37: Public Diplomacy and Protocol Services | AB37: 2 | AC37: Parliament | AD37: 3 | AE37: Core Business | AF37: 6 | AG37: International Relations and Protocol | AH37: 002 | AI37: 003 | AJ37: 006 | AK37: 002003 | AL37: 002003006 | AU37: 007001003 | AV37: 007002003 | AW37: 007003003 | AX37: 007004003 | AY37: 007005003 | AZ37: 007006003 | BA37: 007007003 | BB37: 007008003 | BC37: 007009003 | BD37: 007010003 | BE37: 007016003 | BF37: 007000003 | BG37: 007000003 | BH37: 007000003 | BI37: 007000003 | BJ37: 007000003 | BN37: 2 | BO37: ="MyYear"&BN37 -> MyYear2 | BP37: =BT37 -> 2015/16 | BR37: =BR36+1 -> 2015 | BS37: =BS36+1 -> 16 | BT37: =BR37&"/"&BS37 -> 2015/16 | BV37: 1 | BW37: The Presidency | BX37: 1 | BY37: Administration | BZ37: 2 | CA37: Support Service to President | CB37: 62985.84458 | CC37: =REPT("0",3-LEN(Table27[[#This Row],[Vote No'#]]))&Table27[[#This Row],[Vote No'#]] -> 001 | CD37: =REPT("0",3-LEN(Table27[[#This Row],[Programme No'#]]))&Table27[[#This Row],[Programme No'#]] -> 001 | CE37: =+Table27[[#This Row],[DeptCode]]&Table27[[#This Row],[ProgCode]] -> 001001 | CG37: =T_ENE_2016[[#This Row],[Vote No.]]&T_ENE_2016[[#This Row],[Programme No.]]&T_ENE_2016[[#This Row],[Subprogramme No.]] -> 111 | CH37: =INDEX((T_Econ3[Econ3_No]),MATCH(T_ENE_2016[[#This Row],[Econ4]],T_Econ3[Econ3],0)) -> 1 | CI37: 1 | CJ37: The Presidency | CK37: 1 | CL37: Administration | CM37: 1 | CN37: Management | CO37: Current payments | CP37: Compensation of employees | CQ37: Compensation of employees | CR37: 21167 | CS37: 24044 | CT37: 26477 | CU37: 26257 | CV37: 26257 | CW37: 23632 | CX37: 25870 | CY37: 28039 | DC37: =T_ENE_2016[[#This Row],[2018_19]] -> 25870 | DD37: =T_ENE_2016[[#This Row],[2019_20]] -> 28039 | DE37: =IF(T_ENE_2016[[#This Row],[Econ3]]="Compensation of employees",T_ENE_2016[[#This Row],[2019_20 IB]]*(1+MyCola3),(T_ENE_2016[[#This Row],[2019_20 IB]]+T_ENE_2016[[#This Row],[2019_20 NR]])*(1+MyCPI3)) -> 30141.925 | DF37: The Presidency|Administration | DG37: 001 | DH37: 001 | DI37: 001 | DJ37: 001 | DK37: 001001 | DL37: 001001 | DM37: 1 | DN37: 001001001001 | DP37: 001001001 | DS37: =T_Transfers_NAT[[#This Row],[SPId]]&DT37 -> 002521 | DT37: =IF(T_Transfers_NAT[[#This Row],[Vote No.]]<>DU36,1,IF(T_Transfers_NAT[[#This Row],[Programme No.]]<>DW36,1,IF(T_Transfers_NAT[[#This Row],[Subprogramme No.]]<>DY36,1,DT36+1))) -> 1 | DU37: 2 | DV37: Parliament | DW37: 5 | DX37: Associated Services | DY37: 2 | DZ37: Political Party Support | EA37: 96630 | EB37: 102235 | EC37: 107960 | ED37: =REPT("0",3-LEN(T_Transfers_NAT[[#This Row],[Vote No.]]))&T_Transfers_NAT[[#This Row],[Vote No.]]&T_Transfers_NAT[[#This Row],[Programme No.]]&T_Transfers_NAT[[#This Row],[Subprogramme No.]] -> 00252 | EE37: Political Party Support | EH37: Transfers and subsidies | EI37: Non-profit institutions | EJ37: Non-profit institutions | EK37: Current | EL37: =LEFT(T_Transfers_NAT[[#This Row],[Uid]],4)&T_Transfers_NAT[[#This Row],[TCounterProgLvl]] -> 00251 | EM37: =IF(T_Transfers_NAT[[#This Row],[Vote No.]]<>DU36,1,IF(T_Transfers_NAT[[#This Row],[Programme No.]]<>DW36,1,EM36+1)) -> 1 | EP37: The Presidency | EQ37: Administration | ER37: 2 | ET37: 50 | EU37: 0 | EV37: 43 | EW37: 6316.12403 | EX37: 43 | EY37: 6622 | EZ37: 42 | FA37: 6888 | FB37: 42 | FC37: 7457 | FD37: 42 | FE37: 8058 | FF37: The Presidency|Administration | FG37: 001 | FH37: 001 | FI37: 001001 | FL37: =COUNTIF($FM$36:$FM$481,FM37) -> 1 | FM37: =T_InfraS[[#This Row],[Programme/Project name]]&"|"&T_InfraS[[#This Row],[Type of infrastructure]] -> Sebokeng|Building | FN37: =COUNTIF(T_InfraS[Programme/Project name],T_InfraS[[#This Row],[Programme/Project name]]) -> 1 | FO37: 5 | FP37: Home Affairs | FQ37: Departmental infrastructure | FR37: Small projects | FS37: Sebokeng | FT37: Building | FU37: Handed over | FV37: New infrastructure assets | FW37: Construction of new office building | FX37: 0 | FY37: 0 | FZ37: 0 | GA37: 0 | GB37: 0 | GC37: 0 | GD37: =+T_InfraS[[#This Row],[2019/20 Revised Baseline]] -> 0 | GE37: 5 | GF37: 1 | GG37: 3 | GH37: 513 | GI37: 005 | GJ37: =IF(T_InfraS[[#This Row],[Department]]<>FP36,1,GJ36+1) -> 1 | GK37: 001 | GL37: 005001 | GR37: =IFERROR(INDEX(T_InfraS[Project category],MATCH(0,INDEX(COUNTIF(GQ$26:GQ36,T_InfraS[Project category]),0),0)),"") ->  | GV37: 2 | GX37: My_Proposal_Name | GY37: $G$12 | HC37: 2 | HD37: Proposal name | HJ37: 4 | HK37: Cooperative Governance And Traditional Affairs | HL37: 3 | HM37: Institutional Development | HN37: 7 | HO37: Local Government Equitable Share | HP37: Local government equitable share | HQ37: Current | HR37: Transfers and subsidies | HS37: Provinces and municipalities | HT37: Municipalities | HU37: LES | HV37: 38964252 | HW37: 41592070 | HX37: 49366507 | HY37: 52568706 | HZ37: 52568706 | IA37: 51168706 | IB37: 57012141 | IC37: 62731845 | ID37: 67473465 | IF37: 67473465 | IG37: =IF(T_SharesGrants[[#This Row],[Vote No.]]<>HJ36,1,IF(T_SharesGrants[[#This Row],[Programme No.]]<>HL36,1,IF(T_SharesGrants[[#This Row],[Subprogramme No.]]<>HN36,1,IG36+1))) -> 1 | IH37: =CONCATENATE(T_SharesGrants[[#This Row],[Vote No.]],T_SharesGrants[[#This Row],[Programme No.]],T_SharesGrants[[#This Row],[Subprogramme No.]],T_SharesGrants[[#This Row],[Order)ID]]) -> 4371 | II37: =REPT("0",3-LEN(T_SharesGrants[[#This Row],[Vote No.]]))&T_SharesGrants[[#This Row],[Vote No.]]&T_SharesGrants[[#This Row],[Programme No.]]&T_SharesGrants[[#This Row],[OrderIDP_lvl]] -> 00431 | IJ37: =IF(T_SharesGrants[[#This Row],[Vote No.]]<>HJ36,1,IF(T_SharesGrants[[#This Row],[Programme No.]]<>HL36,1,IJ36+1)) -> 1 | IO37: 24 | IP37: Agriculture, Forestry and Fisheries | IQ37: 3. Food Security and Agrarian Reform | IR37: Sub-programme 2: Food Security | IS37: Land Bank: To boost the agriculture sector by supporting small emerging farmers | IT37: Public corporations | IU37: Land and Agricultural Development Bank of South Africa | IV37: -150000 | JB37: 007002 | JC37: 2 | JD37: =IFERROR(INDEX(T_InfraS[Programme/Project name],MATCH(JB37,T_InfraS[Combo_Lookup],0)),"") ->  | JF37: Construction | JH37: Upgrading and additions | JM37: 0 | JN37: =IF(JN36="ID",1,IF(T_KeyDeliverablesValues[[#This Row],[Department]]<>JQ36,1,JN36+1)) -> 2 | JO37: =INDEX((Table7[Vote No.]),MATCH(T_KeyDeliverablesValues[[#This Row],[Department]],Table7[Department],0)) -> 37 | JP37: =REPT("0",3-LEN(T_KeyDeliverablesValues[[#This Row],[VoteNo]]))&T_KeyDeliverablesValues[[#This Row],[VoteNo]]&REPT("0",3-LEN(T_KeyDeliverablesValues[[#This Row],[ID]]))&T_KeyDeliverablesValues[[#This Row],[ID]] -> 037002 | JQ37: Arts and Culture | JR37: Mzansi Golden Economy | JS37: 108313 | JT37: 245473 | JU37: 281640 | JV37: 283580 | JW37: 288728 | JX37: 306122 | JY37: 323264 | JZ37: =IF(T_KeyDeliverablesValues[[#This Row],[CoEIndi]]=1,T_KeyDeliverablesValues[[#This Row],[2019/20]]*(1+$BQ$62),T_KeyDeliverablesValues[[#This Row],[2019/20]]*(1+$BQ$61)) -> 341043.52
T38: 2 | U38: Parliament | W38: 6 | X38: International Relations and Cooperation | Y38: 5 | Z38: International Transfers | AB38: 2 | AC38: Parliament | AD38: 4 | AE38: Support Services | AF38: 1 | AG38: Office of the Deputy Secretary | AH38: 002 | AI38: 004 | AJ38: 001 | AK38: 002004 | AL38: 002004001 | AU38: 007001004 | AV38: 007002004 | AW38: 007003004 | AX38: 007004004 | AY38: 007005004 | AZ38: 007006004 | BA38: 007007004 | BB38: 007008004 | BC38: 007009004 | BD38: 007010004 | BE38: 007016004 | BF38: 007000004 | BG38: 007000004 | BH38: 007000004 | BI38: 007000004 | BJ38: 007000004 | BN38: 3 | BO38: MyYear3 | BP38: 2016/17 | BR38: 2016 | BS38: 17 | BT38: 2016/17 | BV38: 1 | BW38: The Presidency | BX38: 1 | BY38: Administration | BZ38: 3 | CA38: Support Service to Deputy President | CB38: 47971.32252 | CC38: =REPT("0",3-LEN(Table27[[#This Row],[Vote No'#]]))&Table27[[#This Row],[Vote No'#]] -> 001 | CD38: =REPT("0",3-LEN(Table27[[#This Row],[Programme No'#]]))&Table27[[#This Row],[Programme No'#]] -> 001 | CE38: =+Table27[[#This Row],[DeptCode]]&Table27[[#This Row],[ProgCode]] -> 001001 | CG38: =T_ENE_2016[[#This Row],[Vote No.]]&T_ENE_2016[[#This Row],[Programme No.]]&T_ENE_2016[[#This Row],[Subprogramme No.]] -> 111 | CH38: =INDEX((T_Econ3[Econ3_No]),MATCH(T_ENE_2016[[#This Row],[Econ4]],T_Econ3[Econ3],0)) -> 2 | CI38: 1 | CJ38: The Presidency | CK38: 1 | CL38: Administration | CM38: 1 | CN38: Management | CO38: Current payments | CP38: Goods and services | CQ38: Goods and services | CR38: 969 | CS38: 1550 | CT38: 330 | CU38: 330 | CV38: 330 | CW38: 366 | CX38: 403 | CY38: 426 | DC38: =T_ENE_2016[[#This Row],[2018_19]] -> 403 | DD38: =T_ENE_2016[[#This Row],[2019_20]] -> 426 | DE38: =IF(T_ENE_2016[[#This Row],[Econ3]]="Compensation of employees",T_ENE_2016[[#This Row],[2019_20 IB]]*(1+MyCola3),(T_ENE_2016[[#This Row],[2019_20 IB]]+T_ENE_2016[[#This Row],[2019_20 NR]])*(1+MyCPI3)) -> 449.43 | DF38: The Presidency|Administration | DG38: 001 | DH38: 001 | DI38: 001 | DJ38: 002 | DK38: 001001 | DL38: 001002 | DM38: 2 | DN38: 001001001002 | DP38: 001001002 | DS38: =T_Transfers_NAT[[#This Row],[SPId]]&DT38 -> 002531 | DT38: =IF(T_Transfers_NAT[[#This Row],[Vote No.]]<>DU37,1,IF(T_Transfers_NAT[[#This Row],[Programme No.]]<>DW37,1,IF(T_Transfers_NAT[[#This Row],[Subprogramme No.]]<>DY37,1,DT37+1))) -> 1 | DU38: 2 | DV38: Parliament | DW38: 5 | DX38: Associated Services | DY38: 3 | DZ38: Constituency Support | EA38: 309360 | EB38: 327303 | EC38: 345632 | ED38: =REPT("0",3-LEN(T_Transfers_NAT[[#This Row],[Vote No.]]))&T_Transfers_NAT[[#This Row],[Vote No.]]&T_Transfers_NAT[[#This Row],[Programme No.]]&T_Transfers_NAT[[#This Row],[Subprogramme No.]] -> 00253 | EE38: Constituency Support | EH38: Transfers and subsidies | EI38: Non-profit institutions | EJ38: Non-profit institutions | EK38: Current | EL38: 00252 | EM38: 2 | EP38: The Presidency | EQ38: Administration | ER38: 3 | ET38: 10 | EU38: 0 | EV38: 11 | EW38: 1577.94982 | EX38: 9 | EY38: 1485 | EZ38: 9 | FA38: 1575 | FB38: 9 | FC38: 1706 | FD38: 9 | FE38: 1844 | FF38: The Presidency|Administration | FG38: 001 | FH38: 001 | FI38: 001001 | FL38: 1 | FM38: =T_InfraS[[#This Row],[Programme/Project name]]&"|"&T_InfraS[[#This Row],[Type of infrastructure]] -> Phutaditjaba|Building | FN38: =COUNTIF(T_InfraS[Programme/Project name],T_InfraS[[#This Row],[Programme/Project name]]) -> 1 | FO38: 5 | FP38: Home Affairs | FQ38: Departmental infrastructure | FR38: Small projects | FS38: Phutaditjaba | FT38: Building | FU38: Construction | FV38: New infrastructure assets | FW38: Construction of new office building | FX38: 0 | FY38: 11368 | FZ38: 2666 | GA38: 0 | GB38: 0 | GC38: 0 | GD38: =+T_InfraS[[#This Row],[2019/20 Revised Baseline]] -> 0 | GE38: 5 | GF38: 1 | GG38: 3 | GH38: 513 | GI38: 005 | GJ38: =IF(T_InfraS[[#This Row],[Department]]<>FP37,1,GJ37+1) -> 2 | GK38: 002 | GL38: 005002 | GR38: =IFERROR(INDEX(T_InfraS[Project category],MATCH(0,INDEX(COUNTIF(GQ$26:GQ37,T_InfraS[Project category]),0),0)),"") ->  | GV38: 3 | GX38: My_Motivation_for_change | GY38: $G$15 | HC38: 3 | HD38: Motivation for change proposal | HJ38: 4 | HK38: Cooperative Governance And Traditional Affairs | HL38: 4 | HM38: National Disaster Management Centre | HN38: 7 | HO38: Disaster Relief Grant | HP38: Municipal disaster grant | HQ38: Current | HR38: Transfers and subsidies | HS38: Provinces and municipalities | HT38: Municipalities | HU38: LCG | HV38: 170714 | HW38: 35532 | HX38: 0 | HY38: 269922 | HZ38: 269922 | IA38: 0 | IB38: 300281 | IC38: 370597 | ID38: 335488 | IF38: 335488 | IG38: 1 | IH38: 4471 | II38: 00441 | IJ38: 1 | JB38: 007003 | JC38: 3 | JD38: =IFERROR(INDEX(T_InfraS[Programme/Project name],MATCH(JB38,T_InfraS[Combo_Lookup],0)),"") ->  | JF38: Design | JH38: Rehabilitation and refurbishment | JM38: 0 | JN38: =IF(JN37="ID",1,IF(T_KeyDeliverablesValues[[#This Row],[Department]]<>JQ37,1,JN37+1)) -> 3 | JO38: =INDEX((Table7[Vote No.]),MATCH(T_KeyDeliverablesValues[[#This Row],[Department]],Table7[Department],0)) -> 37 | JP38: =REPT("0",3-LEN(T_KeyDeliverablesValues[[#This Row],[VoteNo]]))&T_KeyDeliverablesValues[[#This Row],[VoteNo]]&REPT("0",3-LEN(T_KeyDeliverablesValues[[#This Row],[ID]]))&T_KeyDeliverablesValues[[#This Row],[ID]] -> 037003 | JQ38: Arts and Culture | JR38: Library Services Conditional Grant | JS38: 594786 | JT38: 1016210 | JU38: 1274314 | JV38: 1357133 | JW38: 1419960 | JX38: 1498615 | JY38: 1580210 | JZ38: =IF(T_KeyDeliverablesValues[[#This Row],[CoEIndi]]=1,T_KeyDeliverablesValues[[#This Row],[2019/20]]*(1+$BQ$62),T_KeyDeliverablesValues[[#This Row],[2019/20]]*(1+$BQ$61)) -> 1667121.55
B39: Scenario_names | T39: 8 | U39: Planning, Monitoring and Evaluation | W39: 7 | X39: National Treasury | Y39: 1 | Z39: Administration | AB39: 2 | AC39: Parliament | AD39: 4 | AE39: Support Services | AF39: 2 | AG39: Parliamentary Communication Services | AH39: 002 | AI39: 004 | AJ39: 002 | AK39: 002004 | AL39: 002004002 | AU39: 007001005 | AV39: 007002005 | AW39: 007003005 | AX39: 007004005 | AY39: 007005005 | AZ39: 007006005 | BA39: 007007005 | BB39: 007008005 | BC39: 007009005 | BD39: 007010005 | BE39: 007016005 | BF39: 007000005 | BG39: 007000005 | BH39: 007000005 | BI39: 007000005 | BJ39: 007000005 | BN39: 4 | BO39: MyYear4 | BP39: 2017/18 | BR39: 2017 | BS39: 18 | BT39: 2017/18 | BV39: 1 | BW39: The Presidency | BX39: 2 | BY39: Executive Support | BZ39: 1 | CA39: Cabinet Services | CB39: 27623.55585 | CC39: =REPT("0",3-LEN(Table27[[#This Row],[Vote No'#]]))&Table27[[#This Row],[Vote No'#]] -> 001 | CD39: =REPT("0",3-LEN(Table27[[#This Row],[Programme No'#]]))&Table27[[#This Row],[Programme No'#]] -> 002 | CE39: =+Table27[[#This Row],[DeptCode]]&Table27[[#This Row],[ProgCode]] -> 001002 | CG39: =T_ENE_2016[[#This Row],[Vote No.]]&T_ENE_2016[[#This Row],[Programme No.]]&T_ENE_2016[[#This Row],[Subprogramme No.]] -> 111 | CH39: =INDEX((T_Econ3[Econ3_No]),MATCH(T_ENE_2016[[#This Row],[Econ4]],T_Econ3[Econ3],0)) -> 2 | CI39: 1 | CJ39: The Presidency | CK39: 1 | CL39: Administration | CM39: 1 | CN39: Management | CO39: Current payments | CP39: Goods and services | CQ39: Goods and services | CR39: 891 | CS39: 1002 | CT39: 1092 | CU39: 1092 | CV39: 1092 | CW39: 1133 | CX39: 1175 | CY39: 1241 | DC39: =T_ENE_2016[[#This Row],[2018_19]] -> 1175 | DD39: =T_ENE_2016[[#This Row],[2019_20]] -> 1241 | DE39: =IF(T_ENE_2016[[#This Row],[Econ3]]="Compensation of employees",T_ENE_2016[[#This Row],[2019_20 IB]]*(1+MyCola3),(T_ENE_2016[[#This Row],[2019_20 IB]]+T_ENE_2016[[#This Row],[2019_20 NR]])*(1+MyCPI3)) -> 1309.255 | DF39: The Presidency|Administration | DG39: 001 | DH39: 001 | DI39: 001 | DJ39: 002 | DK39: 001001 | DL39: 001002 | DM39: 2 | DN39: 001001001002 | DP39: 001001002 | DS39: =T_Transfers_NAT[[#This Row],[SPId]]&DT39 -> 002541 | DT39: =IF(T_Transfers_NAT[[#This Row],[Vote No.]]<>DU38,1,IF(T_Transfers_NAT[[#This Row],[Programme No.]]<>DW38,1,IF(T_Transfers_NAT[[#This Row],[Subprogramme No.]]<>DY38,1,DT38+1))) -> 1 | DU39: 2 | DV39: Parliament | DW39: 5 | DX39: Associated Services | DY39: 4 | DZ39: Party Leadership Support | EA39: 8700 | EB39: 9205 | EC39: 9720 | ED39: =REPT("0",3-LEN(T_Transfers_NAT[[#This Row],[Vote No.]]))&T_Transfers_NAT[[#This Row],[Vote No.]]&T_Transfers_NAT[[#This Row],[Programme No.]]&T_Transfers_NAT[[#This Row],[Subprogramme No.]] -> 00254 | EE39: Party Leadership Support | EH39: Transfers and subsidies | EI39: Non-profit institutions | EJ39: Non-profit institutions | EK39: Current | EL39: 00253 | EM39: 3 | EP39: The Presidency | EQ39: Administration | ER39: 4 | ET39: 92 | EU39: 5 | EV39: 89 | EW39: 19882.22442 | EX39: 89 | EY39: 23051 | EZ39: 87 | FA39: 23008 | FB39: 87 | FC39: 24326 | FD39: 87 | FE39: 26441 | FF39: The Presidency|Administration | FG39: 001 | FH39: 001 | FI39: 001001 | FL39: 1 | FM39: =T_InfraS[[#This Row],[Programme/Project name]]&"|"&T_InfraS[[#This Row],[Type of infrastructure]] -> Taung|Building | FN39: =COUNTIF(T_InfraS[Programme/Project name],T_InfraS[[#This Row],[Programme/Project name]]) -> 1 | FO39: 5 | FP39: Home Affairs | FQ39: Departmental infrastructure | FR39: Small projects | FS39: Taung | FT39: Building | FU39: Design | FV39: New infrastructure assets | FW39: Construction of new office building | FX39: 0 | FY39: 0 | FZ39: 9372 | GA39: 5342 | GB39: 0 | GC39: 0 | GD39: =+T_InfraS[[#This Row],[2019/20 Revised Baseline]] -> 0 | GE39: 5 | GF39: 1 | GG39: 3 | GH39: 513 | GI39: 005 | GJ39: =IF(T_InfraS[[#This Row],[Department]]<>FP38,1,GJ38+1) -> 3 | GK39: 003 | GL39: 005003 | GR39: =IFERROR(INDEX(T_InfraS[Project category],MATCH(0,INDEX(COUNTIF(GQ$26:GQ38,T_InfraS[Project category]),0),0)),"") ->  | GV39: 4 | GX39: My_Performance_Area1 | GY39: $G$22:$G$36 | HC39: 4 | HD39: Performance indicator | HJ39: 4 | HK39: Cooperative Governance And Traditional Affairs | HL39: 4 | HM39: National Disaster Management Centre | HN39: 7 | HO39: Disaster Relief Grant | HP39: Provincial disaster grant | HQ39: Current | HR39: Transfers and subsidies | HS39: Provinces and municipalities | HT39: Provinces | HU39: PCG | HV39: 93630 | HW39: 85951 | HX39: 35588 | HY39: 111545 | HZ39: 111545 | IA39: 0 | IB39: 123432 | IC39: 130591 | ID39: 137904 | IF39: 137904 | IG39: 2 | IH39: 4472 | II39: 00442 | IJ39: 2 | JB39: 007004 | JC39: 4 | JD39: =IFERROR(INDEX(T_InfraS[Programme/Project name],MATCH(JB39,T_InfraS[Combo_Lookup],0)),"") ->  | JF39: Feasibility | JH39: Maintenance and repair | JM39: 0 | JN39: =IF(JN38="ID",1,IF(T_KeyDeliverablesValues[[#This Row],[Department]]<>JQ38,1,JN38+1)) -> 4 | JO39: =INDEX((Table7[Vote No.]),MATCH(T_KeyDeliverablesValues[[#This Row],[Department]],Table7[Department],0)) -> 37 | JP39: =REPT("0",3-LEN(T_KeyDeliverablesValues[[#This Row],[VoteNo]]))&T_KeyDeliverablesValues[[#This Row],[VoteNo]]&REPT("0",3-LEN(T_KeyDeliverablesValues[[#This Row],[ID]]))&T_KeyDeliverablesValues[[#This Row],[ID]] -> 037004 | JQ39: Arts and Culture | JR39: Legacy infrastructure construction and upgrades | JS39: 213865 | JT39: 201560 | JU39: 153235 | JV39: 104879 | JW39: 248335 | JX39: 353660 | JY39: 284483 | JZ39: =IF(T_KeyDeliverablesValues[[#This Row],[CoEIndi]]=1,T_KeyDeliverablesValues[[#This Row],[2019/20]]*(1+$BQ$62),T_KeyDeliverablesValues[[#This Row],[2019/20]]*(1+$BQ$61)) -> 300129.565
A40: 1 | B40: Main adjustment proposal | T40: 23 | U40: Police | W40: 7 | X40: National Treasury | Y40: 2 | Z40: Economic Policy, Tax, Financial Regulation and Research | AB40: 2 | AC40: Parliament | AD40: 4 | AE40: Support Services | AF40: 3 | AG40: Human Resources Management | AH40: 002 | AI40: 004 | AJ40: 003 | AK40: 002004 | AL40: 002004003 | AU40: 007001006 | AV40: 007002006 | AW40: 007003006 | AX40: 007004006 | AY40: 007005006 | AZ40: 007006006 | BA40: 007007006 | BB40: 007008006 | BC40: 007009006 | BD40: 007010006 | BE40: 007016006 | BF40: 007000006 | BG40: 007000006 | BH40: 007000006 | BI40: 007000006 | BJ40: 007000006 | BN40: 5 | BO40: MyYear5 | BP40: 2018/19 | BR40: 2018 | BS40: 19 | BT40: 2018/19 | BV40: 1 | BW40: The Presidency | BX40: 16 | BY40: Direct charge against the National Revenue Fund | BZ40: 1 | CA40: Salary of the President | CB40: 2996.01288 | CC40: =REPT("0",3-LEN(Table27[[#This Row],[Vote No'#]]))&Table27[[#This Row],[Vote No'#]] -> 001 | CD40: =REPT("0",3-LEN(Table27[[#This Row],[Programme No'#]]))&Table27[[#This Row],[Programme No'#]] -> 016 | CE40: =+Table27[[#This Row],[DeptCode]]&Table27[[#This Row],[ProgCode]] -> 001016 | CG40: =T_ENE_2016[[#This Row],[Vote No.]]&T_ENE_2016[[#This Row],[Programme No.]]&T_ENE_2016[[#This Row],[Subprogramme No.]] -> 111 | CH40: =INDEX((T_Econ3[Econ3_No]),MATCH(T_ENE_2016[[#This Row],[Econ4]],T_Econ3[Econ3],0)) -> 2 | CI40: 1 | CJ40: The Presidency | CK40: 1 | CL40: Administration | CM40: 1 | CN40: Management | CO40: Current payments | CP40: Goods and services | CQ40: Goods and services | CR40: 5569 | CS40: 2517 | CT40: 6268 | CU40: 6268 | CV40: 6268 | CW40: 6517 | CX40: 6856 | CY40: 7240 | DC40: =T_ENE_2016[[#This Row],[2018_19]] -> 6856 | DD40: =T_ENE_2016[[#This Row],[2019_20]] -> 7240 | DE40: =IF(T_ENE_2016[[#This Row],[Econ3]]="Compensation of employees",T_ENE_2016[[#This Row],[2019_20 IB]]*(1+MyCola3),(T_ENE_2016[[#This Row],[2019_20 IB]]+T_ENE_2016[[#This Row],[2019_20 NR]])*(1+MyCPI3)) -> 7638.2 | DF40: The Presidency|Administration | DG40: 001 | DH40: 001 | DI40: 001 | DJ40: 002 | DK40: 001001 | DL40: 001002 | DM40: 2 | DN40: 001001001002 | DP40: 001001002 | DS40: =T_Transfers_NAT[[#This Row],[SPId]]&DT40 -> 003421 | DT40: =IF(T_Transfers_NAT[[#This Row],[Vote No.]]<>DU39,1,IF(T_Transfers_NAT[[#This Row],[Programme No.]]<>DW39,1,IF(T_Transfers_NAT[[#This Row],[Subprogramme No.]]<>DY39,1,DT39+1))) -> 1 | DU40: 3 | DV40: Communications | DW40: 4 | DX40: Entity Oversight | DY40: 2 | DZ40: Media Development and Diversity Agency | EA40: 30005 | EB40: 31455 | EC40: 32836 | ED40: =REPT("0",3-LEN(T_Transfers_NAT[[#This Row],[Vote No.]]))&T_Transfers_NAT[[#This Row],[Vote No.]]&T_Transfers_NAT[[#This Row],[Programme No.]]&T_Transfers_NAT[[#This Row],[Subprogramme No.]] -> 00342 | EE40: Broadcasting and Community Media | EH40: Transfers and subsidies | EI40: Departmental agencies and accounts | EJ40: Departmental agencies (non-business entities) | EK40: Current | EL40: 00341 | EM40: 1 | EP40: The Presidency | EQ40: Administration | ER40: 5 | ET40: 18 | EU40: 0 | EV40: 18 | EW40: 4265 | EX40: 18 | EY40: 4917 | EZ40: 13 | FA40: 3257 | FB40: 13 | FC40: 3529 | FD40: 13 | FE40: 3817 | FF40: The Presidency|Administration | FG40: 001 | FH40: 001 | FI40: 001001 | FL40: 1 | FM40: =T_InfraS[[#This Row],[Programme/Project name]]&"|"&T_InfraS[[#This Row],[Type of infrastructure]] -> Hluhluwe|Building | FN40: =COUNTIF(T_InfraS[Programme/Project name],T_InfraS[[#This Row],[Programme/Project name]]) -> 1 | FO40: 5 | FP40: Home Affairs | FQ40: Departmental infrastructure | FR40: Small projects | FS40: Hluhluwe | FT40: Building | FU40: Feasibility | FV40: New infrastructure assets | FW40: Construction of new office building | FX40: 0 | FY40: 10320 | FZ40: 21 | GA40: 9880 | GB40: 0 | GC40: 0 | GD40: =+T_InfraS[[#This Row],[2019/20 Revised Baseline]] -> 0 | GE40: 5 | GF40: 1 | GG40: 3 | GH40: 513 | GI40: 005 | GJ40: =IF(T_InfraS[[#This Row],[Department]]<>FP39,1,GJ39+1) -> 4 | GK40: 004 | GL40: 005004 | GP40: =IFERROR(INDEX($FQ$36:$FQ$481,MATCH(0,COUNTIF($GO$26:GO30,$FQ$36:$FQ$481),0)),"") ->  | GQ40: =IFERROR(INDEX(T_InfraS[Infrastructure category],MATCH(0,INDEX(COUNTIF($GP$26:GP30,T_InfraS[Infrastructure category]),0),0)),"") ->  | GR40: =IFERROR(INDEX(T_InfraS[Project category],MATCH(0,INDEX(COUNTIF(GQ$26:GQ39,T_InfraS[Project category]),0),0)),"") ->  | GV40: 5 | GX40: My_Performance_Area2 | GY40: $H$22:$H$36 | HC40: 5 | HD40: 2017/18 | HJ40: 4 | HK40: Cooperative Governance And Traditional Affairs | HL40: 4 | HM40: National Disaster Management Centre | HN40: 8 | HO40: Municipal Disaster Recovery Grant | HP40: Municipal disaster recovery grant | HQ40: Capital | HR40: Transfers and subsidies | HS40: Provinces and municipalities | HT40: Municipalities | HU40: LCG | HV40: 118340 | HW40: 190102 | HX40: 186121 | HY40: 140000 | HZ40: 140000 | IA40: 140000 | IB40: 0 | IC40: 0 | ID40: 0 | IF40: 0 | IG40: 1 | IH40: 4481 | II40: 00443 | IJ40: 3 | JB40: 007005 | JC40: 5 | JD40: =IFERROR(INDEX(T_InfraS[Programme/Project name],MATCH(JB40,T_InfraS[Combo_Lookup],0)),"") ->  | JF40: Identification | JH40: Current transfers | JM40: 0 | JN40: =IF(JN39="ID",1,IF(T_KeyDeliverablesValues[[#This Row],[Department]]<>JQ39,1,JN39+1)) -> 5 | JO40: =INDEX((Table7[Vote No.]),MATCH(T_KeyDeliverablesValues[[#This Row],[Department]],Table7[Department],0)) -> 37 | JP40: =REPT("0",3-LEN(T_KeyDeliverablesValues[[#This Row],[VoteNo]]))&T_KeyDeliverablesValues[[#This Row],[VoteNo]]&REPT("0",3-LEN(T_KeyDeliverablesValues[[#This Row],[ID]]))&T_KeyDeliverablesValues[[#This Row],[ID]] -> 037005 | JQ40: Arts and Culture | JR40: Performing Arts infrastructure construction & upgrades | JS40: 0 | JT40: 1000 | JU40: 23490 | JV40: 4635 | JW40: 46906 | JX40: 72282 | JY40: 26609 | JZ40: =IF(T_KeyDeliverablesValues[[#This Row],[CoEIndi]]=1,T_KeyDeliverablesValues[[#This Row],[2019/20]]*(1+$BQ$62),T_KeyDeliverablesValues[[#This Row],[2019/20]]*(1+$BQ$61)) -> 28072.495
A41: 2 | B41: Alternative scenario 1 | T41: 9 | U41: Public Enterprises | W41: 7 | X41: National Treasury | Y41: 16 | Z41: Direct charge against the National Revenue Fund | AB41: 2 | AC41: Parliament | AD41: 4 | AE41: Support Services | AF41: 4 | AG41: Information Communication and Technology | AH41: 002 | AI41: 004 | AJ41: 004 | AK41: 002004 | AL41: 002004004 | AU41: 007001007 | AV41: 007002007 | AW41: 007003007 | AX41: 007004007 | AY41: 007005007 | AZ41: 007006007 | BA41: 007007007 | BB41: 007008007 | BC41: 007009007 | BD41: 007010007 | BE41: 007016007 | BF41: 007000007 | BG41: 007000007 | BH41: 007000007 | BI41: 007000007 | BJ41: 007000007 | BN41: 6 | BO41: MyYear6 | BP41: 2019/20 | BR41: 2019 | BS41: 20 | BT41: 2019/20 | BV41: 1 | BW41: The Presidency | BX41: 16 | BY41: Direct charge against the National Revenue Fund | BZ41: 2 | CA41: Salary of the Deputy President | CB41: 2716.79784 | CC41: =REPT("0",3-LEN(Table27[[#This Row],[Vote No'#]]))&Table27[[#This Row],[Vote No'#]] -> 001 | CD41: =REPT("0",3-LEN(Table27[[#This Row],[Programme No'#]]))&Table27[[#This Row],[Programme No'#]] -> 016 | CE41: =+Table27[[#This Row],[DeptCode]]&Table27[[#This Row],[ProgCode]] -> 001016 | CG41: =T_ENE_2016[[#This Row],[Vote No.]]&T_ENE_2016[[#This Row],[Programme No.]]&T_ENE_2016[[#This Row],[Subprogramme No.]] -> 111 | CH41: =INDEX((T_Econ3[Econ3_No]),MATCH(T_ENE_2016[[#This Row],[Econ4]],T_Econ3[Econ3],0)) -> 2 | CI41: 1 | CJ41: The Presidency | CK41: 1 | CL41: Administration | CM41: 1 | CN41: Management | CO41: Current payments | CP41: Goods and services | CQ41: Goods and services | CR41: 5371 | CS41: 4432 | CT41: 5482 | CU41: 5482 | CV41: 5482 | CW41: 6013 | CX41: 6458 | CY41: 6820 | DC41: =T_ENE_2016[[#This Row],[2018_19]] -> 6458 | DD41: =T_ENE_2016[[#This Row],[2019_20]] -> 6820 | DE41: =IF(T_ENE_2016[[#This Row],[Econ3]]="Compensation of employees",T_ENE_2016[[#This Row],[2019_20 IB]]*(1+MyCola3),(T_ENE_2016[[#This Row],[2019_20 IB]]+T_ENE_2016[[#This Row],[2019_20 NR]])*(1+MyCPI3)) -> 7195.1 | DF41: The Presidency|Administration | DG41: 001 | DH41: 001 | DI41: 001 | DJ41: 002 | DK41: 001001 | DL41: 001002 | DM41: 2 | DN41: 001001001002 | DP41: 001001002 | DS41: =T_Transfers_NAT[[#This Row],[SPId]]&DT41 -> 003422 | DT41: =IF(T_Transfers_NAT[[#This Row],[Vote No.]]<>DU40,1,IF(T_Transfers_NAT[[#This Row],[Programme No.]]<>DW40,1,IF(T_Transfers_NAT[[#This Row],[Subprogramme No.]]<>DY40,1,DT40+1))) -> 2 | DU41: 3 | DV41: Communications | DW41: 4 | DX41: Entity Oversight | DY41: 2 | DZ41: South African Broadcasting Corporation: Channel Africa | EA41: 54885 | EB41: 58068 | EC41: 61320 | ED41: =REPT("0",3-LEN(T_Transfers_NAT[[#This Row],[Vote No.]]))&T_Transfers_NAT[[#This Row],[Vote No.]]&T_Transfers_NAT[[#This Row],[Programme No.]]&T_Transfers_NAT[[#This Row],[Subprogramme No.]] -> 00342 | EE41: Broadcasting and Community Media | EH41: Transfers and subsidies | EI41: Public corporations and private enterprises | EJ41: Public corporations | EK41: Current | EL41: 00342 | EM41: 2 | EP41: The Presidency | EQ41: Administration | ER41: 6 | ET41: 84 | EU41: 10 | EV41: 82 | EW41: 21343.60661 | EX41: 81 | EY41: 22437 | EZ41: 81 | FA41: 23814 | FB41: 81 | FC41: 25814 | FD41: 81 | FE41: 27930 | FF41: The Presidency|Administration | FG41: 001 | FH41: 001 | FI41: 001001 | FL41: 1 | FM41: =T_InfraS[[#This Row],[Programme/Project name]]&"|"&T_InfraS[[#This Row],[Type of infrastructure]] -> Stanger|Building | FN41: =COUNTIF(T_InfraS[Programme/Project name],T_InfraS[[#This Row],[Programme/Project name]]) -> 1 | FO41: 5 | FP41: Home Affairs | FQ41: Departmental infrastructure | FR41: Small projects | FS41: Stanger | FT41: Building | FU41: Feasibility | FV41: New infrastructure assets | FW41: Construction of new office building | FX41: 0 | FY41: 0 | FZ41: 2260 | GA41: 12000 | GB41: 0 | GC41: 0 | GD41: =+T_InfraS[[#This Row],[2019/20 Revised Baseline]] -> 0 | GE41: 5 | GF41: 1 | GG41: 3 | GH41: 513 | GI41: 005 | GJ41: =IF(T_InfraS[[#This Row],[Department]]<>FP40,1,GJ40+1) -> 5 | GK41: 005 | GL41: 005005 | GP41: =IFERROR(INDEX($FQ$36:$FQ$481,MATCH(0,COUNTIF($GO$26:GO40,$FQ$36:$FQ$481),0)),"") ->  | GQ41: =IFERROR(INDEX(T_InfraS[Infrastructure category],MATCH(0,INDEX(COUNTIF($GP$26:GP40,T_InfraS[Infrastructure category]),0),0)),"") ->  | GR41: =IFERROR(INDEX(T_InfraS[Project category],MATCH(0,INDEX(COUNTIF(GQ$26:GQ40,T_InfraS[Project category]),0),0)),"") ->  | GV41: 6 | GX41: My_Performance_Area3 | GY41: $I$22:$I$36 | HC41: 6 | HD41: 2018/19 | HJ41: 4 | HK41: Cooperative Governance And Traditional Affairs | HL41: 5 | HM41: Local Government Support and Intervention Management | HN41: 6 | HO41: Municipal Infrastructure Grant | HP41: Municipal infrastructure grant | HQ41: Capital | HR41: Transfers and subsidies | HS41: Provinces and municipalities | HT41: Municipalities | HU41: LCG | HV41: 14224447 | HW41: 14745445 | HX41: 14955762 | HY41: 14914028 | HZ41: 14914028 | IA41: 14914028 | IB41: 15891252 | IC41: 16787685 | ID41: 17733731 | IF41: 17733731 | IG41: 1 | IH41: 4561 | II41: 00451 | IJ41: 1 | JB41: 007006 | JC41: 6 | JD41: =IFERROR(INDEX(T_InfraS[Programme/Project name],MATCH(JB41,T_InfraS[Combo_Lookup],0)),"") ->  | JF41: Pre-feasibility | JH41: Capital transfers | JM41: 0 | JN41: =IF(JN40="ID",1,IF(T_KeyDeliverablesValues[[#This Row],[Department]]<>JQ40,1,JN40+1)) -> 6 | JO41: =INDEX((Table7[Vote No.]),MATCH(T_KeyDeliverablesValues[[#This Row],[Department]],Table7[Department],0)) -> 37 | JP41: =REPT("0",3-LEN(T_KeyDeliverablesValues[[#This Row],[VoteNo]]))&T_KeyDeliverablesValues[[#This Row],[VoteNo]]&REPT("0",3-LEN(T_KeyDeliverablesValues[[#This Row],[ID]]))&T_KeyDeliverablesValues[[#This Row],[ID]] -> 037006 | JQ41: Arts and Culture | JR41: Heritage infrastructure construction and upgrades | JS41: 136460 | JT41: 211649 | JU41: 148681 | JV41: 486636 | JW41: 211444 | JX41: 108701 | JY41: 138695 | JZ41: =IF(T_KeyDeliverablesValues[[#This Row],[CoEIndi]]=1,T_KeyDeliverablesValues[[#This Row],[2019/20]]*(1+$BQ$62),T_KeyDeliverablesValues[[#This Row],[2019/20]]*(1+$BQ$61)) -> 146323.225
A42: 3 | B42: Alternative scenario 2 | T42: 10 | U42: Public Service and Administration | W42: 7 | X42: National Treasury | Y42: 3 | Z42: Public Finance and Budget Management | AB42: 2 | AC42: Parliament | AD42: 4 | AE42: Support Services | AF42: 5 | AG42: Institutional Support Services | AH42: 002 | AI42: 004 | AJ42: 005 | AK42: 002004 | AL42: 002004005 | AU42: 007001008 | AV42: 007002008 | AW42: 007003008 | AX42: 007004008 | AY42: 007005008 | AZ42: 007006008 | BA42: 007007008 | BB42: 007008008 | BC42: 007009008 | BD42: 007010008 | BE42: 007016008 | BF42: 007000008 | BG42: 007000008 | BH42: 007000008 | BI42: 007000008 | BJ42: 007000008 | BN42: 7 | BO42: MyYear7 | BP42: 2020/21 | BR42: 2020 | BS42: 21 | BT42: 2020/21 | BV42: 3 | BW42: Communications | BX42: 1 | BY42: Administration | BZ42: 1 | CA42: Ministry | CB42: 8376.12148 | CC42: =REPT("0",3-LEN(Table27[[#This Row],[Vote No'#]]))&Table27[[#This Row],[Vote No'#]] -> 003 | CD42: =REPT("0",3-LEN(Table27[[#This Row],[Programme No'#]]))&Table27[[#This Row],[Programme No'#]] -> 001 | CE42: =+Table27[[#This Row],[DeptCode]]&Table27[[#This Row],[ProgCode]] -> 003001 | CG42: =T_ENE_2016[[#This Row],[Vote No.]]&T_ENE_2016[[#This Row],[Programme No.]]&T_ENE_2016[[#This Row],[Subprogramme No.]] -> 111 | CH42: =INDEX((T_Econ3[Econ3_No]),MATCH(T_ENE_2016[[#This Row],[Econ4]],T_Econ3[Econ3],0)) -> 2 | CI42: 1 | CJ42: The Presidency | CK42: 1 | CL42: Administration | CM42: 1 | CN42: Management | CO42: Current payments | CP42: Goods and services | CQ42: Goods and services | CR42: 1075 | CS42: 1094 | CT42: 1724 | CU42: 1724 | CV42: 1724 | CW42: 1446 | CX42: 1520 | CY42: 1604 | DC42: =T_ENE_2016[[#This Row],[2018_19]] -> 1520 | DD42: =T_ENE_2016[[#This Row],[2019_20]] -> 1604 | DE42: =IF(T_ENE_2016[[#This Row],[Econ3]]="Compensation of employees",T_ENE_2016[[#This Row],[2019_20 IB]]*(1+MyCola3),(T_ENE_2016[[#This Row],[2019_20 IB]]+T_ENE_2016[[#This Row],[2019_20 NR]])*(1+MyCPI3)) -> 1692.22 | DF42: The Presidency|Administration | DG42: 001 | DH42: 001 | DI42: 001 | DJ42: 002 | DK42: 001001 | DL42: 001002 | DM42: 2 | DN42: 001001001002 | DP42: 001001002 | DS42: =T_Transfers_NAT[[#This Row],[SPId]]&DT42 -> 003423 | DT42: =IF(T_Transfers_NAT[[#This Row],[Vote No.]]<>DU41,1,IF(T_Transfers_NAT[[#This Row],[Programme No.]]<>DW41,1,IF(T_Transfers_NAT[[#This Row],[Subprogramme No.]]<>DY41,1,DT41+1))) -> 3 | DU42: 3 | DV42: Communications | DW42: 4 | DX42: Entity Oversight | DY42: 2 | DZ42: South African Broadcasting Corporation: Public broadcaster | EA42: 105947 | EB42: 115669 | EC42: 123246 | ED42: =REPT("0",3-LEN(T_Transfers_NAT[[#This Row],[Vote No.]]))&T_Transfers_NAT[[#This Row],[Vote No.]]&T_Transfers_NAT[[#This Row],[Programme No.]]&T_Transfers_NAT[[#This Row],[Subprogramme No.]] -> 00342 | EE42: Broadcasting and Community Media | EH42: Transfers and subsidies | EI42: Public corporations and private enterprises | EJ42: Public corporations | EK42: Current | EL42: 00343 | EM42: 3 | EP42: The Presidency | EQ42: Administration | ER42: 7 | ET42: 79 | EU42: 4 | EV42: 68 | EW42: 21662 | EX42: 68 | EY42: 22576 | EZ42: 67 | FA42: 23584 | FB42: 65 | FC42: 24802 | FD42: 65 | FE42: 26836 | FF42: The Presidency|Administration | FG42: 001 | FH42: 001 | FI42: 001001 | FL42: 1 | FM42: =T_InfraS[[#This Row],[Programme/Project name]]&"|"&T_InfraS[[#This Row],[Type of infrastructure]] -> Lusikisiki|Building | FN42: =COUNTIF(T_InfraS[Programme/Project name],T_InfraS[[#This Row],[Programme/Project name]]) -> 1 | FO42: 5 | FP42: Home Affairs | FQ42: Departmental infrastructure | FR42: Small projects | FS42: Lusikisiki | FT42: Building | FU42: Various | FV42: New infrastructure assets | FW42: Demolition of old prison and construction of new office building | FX42: 0 | FY42: 250 | FZ42: 4511 | GA42: 30807 | GB42: 43762 | GC42: 3726 | GD42: =+T_InfraS[[#This Row],[2019/20 Revised Baseline]] -> 3726 | GE42: 5 | GF42: 1 | GG42: 3 | GH42: 513 | GI42: 005 | GJ42: =IF(T_InfraS[[#This Row],[Department]]<>FP41,1,GJ41+1) -> 6 | GK42: 006 | GL42: 005006 | GP42: =IFERROR(INDEX($FQ$36:$FQ$481,MATCH(0,COUNTIF($GO$26:GO41,$FQ$36:$FQ$481),0)),"") ->  | GQ42: =IFERROR(INDEX(T_InfraS[Infrastructure category],MATCH(0,INDEX(COUNTIF($GP$26:GP41,T_InfraS[Infrastructure category]),0),0)),"") ->  | GR42: =IFERROR(INDEX(T_InfraS[Project category],MATCH(0,INDEX(COUNTIF(GQ$26:GQ41,T_InfraS[Project category]),0),0)),"") ->  | GV42: 7 | GX42: My_Performance_Area4 | GY42: $J$22:$J$36 | HC42: 7 | HD42: 2019/20 | HJ42: 7 | HK42: National Treasury | HL42: 16 | HM42: Direct charge against the National Revenue Fund | HN42: 1 | HO42: Provincial Equitable Share | HP42: Provincial equitable share | HQ42: Current | HR42: Transfers and subsidies | HS42: Provinces and municipalities | HT42: Provinces | HU42: PES | HV42: 336495345 | HW42: 359921783 | HX42: 386500009 | HY42: 410698585 | HZ42: 410698585 | IA42: 410698585 | IB42: 441331122 | IC42: 471522489 | ID42: 506103653 | IF42: 506103653 | IG42: 1 | IH42: 71611 | II42: 007161 | IJ42: 1 | JB42: 007007 | JC42: 7 | JD42: =IFERROR(INDEX(T_InfraS[Programme/Project name],MATCH(JB42,T_InfraS[Combo_Lookup],0)),"") ->  | JF42: Handed over | JM42: 0 | JN42: =IF(JN41="ID",1,IF(T_KeyDeliverablesValues[[#This Row],[Department]]<>JQ41,1,JN41+1)) -> 1 | JO42: =INDEX((Table7[Vote No.]),MATCH(T_KeyDeliverablesValues[[#This Row],[Department]],Table7[Department],0)) -> 14 | JP42: =REPT("0",3-LEN(T_KeyDeliverablesValues[[#This Row],[VoteNo]]))&T_KeyDeliverablesValues[[#This Row],[VoteNo]]&REPT("0",3-LEN(T_KeyDeliverablesValues[[#This Row],[ID]]))&T_KeyDeliverablesValues[[#This Row],[ID]] -> 014001 | JQ42: Basic Education | JR42: National school nutrition programme | JS42: 5173081 | JT42: 5461915 | JU42: 5685381 | JV42: 6059655 | JW42: 6426313 | JX42: 6802079 | JY42: 7185715 | JZ42: =IF(T_KeyDeliverablesValues[[#This Row],[CoEIndi]]=1,T_KeyDeliverablesValues[[#This Row],[2019/20]]*(1+$BQ$62),T_KeyDeliverablesValues[[#This Row],[2019/20]]*(1+$BQ$61)) -> 7580929.325
T43: 45 | U43: Public Service Commission | W43: 7 | X43: National Treasury | Y43: 4 | Z43: Asset and Liability Management | AB43: 2 | AC43: Parliament | AD43: 5 | AE43: Associated Services | AF43: 1 | AG43: Members Support Services | AH43: 002 | AI43: 005 | AJ43: 001 | AK43: 002005 | AL43: 002005001 | AU43: 007001009 | AV43: 007002009 | AW43: 007003009 | AX43: 007004009 | AY43: 007005009 | AZ43: 007006009 | BA43: 007007009 | BB43: 007008009 | BC43: 007009009 | BD43: 007010009 | BE43: 007016009 | BF43: 007000009 | BG43: 007000009 | BH43: 007000009 | BI43: 007000009 | BJ43: 007000009 | BN43: 8 | BO43: MyYear8 | BP43: 2021/22 | BR43: 2021 | BS43: 22 | BT43: 2021/22 | BV43: 3 | BW43: Communications | BX43: 1 | BY43: Administration | BZ43: 2 | CA43: Departmental Management | CB43: 31611.78713 | CC43: =REPT("0",3-LEN(Table27[[#This Row],[Vote No'#]]))&Table27[[#This Row],[Vote No'#]] -> 003 | CD43: =REPT("0",3-LEN(Table27[[#This Row],[Programme No'#]]))&Table27[[#This Row],[Programme No'#]] -> 001 | CE43: =+Table27[[#This Row],[DeptCode]]&Table27[[#This Row],[ProgCode]] -> 003001 | CG43: =T_ENE_2016[[#This Row],[Vote No.]]&T_ENE_2016[[#This Row],[Programme No.]]&T_ENE_2016[[#This Row],[Subprogramme No.]] -> 111 | CH43: =INDEX((T_Econ3[Econ3_No]),MATCH(T_ENE_2016[[#This Row],[Econ4]],T_Econ3[Econ3],0)) -> 2 | CI43: 1 | CJ43: The Presidency | CK43: 1 | CL43: Administration | CM43: 1 | CN43: Management | CO43: Current payments | CP43: Goods and services | CQ43: Goods and services | CR43: 1384 | CS43: 586 | CT43: 1542 | CU43: 1542 | CV43: 1542 | CW43: 1599 | CX43: 1662 | CY43: 1755 | DC43: =T_ENE_2016[[#This Row],[2018_19]] -> 1662 | DD43: =T_ENE_2016[[#This Row],[2019_20]] -> 1755 | DE43: =IF(T_ENE_2016[[#This Row],[Econ3]]="Compensation of employees",T_ENE_2016[[#This Row],[2019_20 IB]]*(1+MyCola3),(T_ENE_2016[[#This Row],[2019_20 IB]]+T_ENE_2016[[#This Row],[2019_20 NR]])*(1+MyCPI3)) -> 1851.525 | DF43: The Presidency|Administration | DG43: 001 | DH43: 001 | DI43: 001 | DJ43: 002 | DK43: 001001 | DL43: 001002 | DM43: 2 | DN43: 001001001002 | DP43: 001001002 | DS43: =T_Transfers_NAT[[#This Row],[SPId]]&DT43 -> 003424 | DT43: =IF(T_Transfers_NAT[[#This Row],[Vote No.]]<>DU42,1,IF(T_Transfers_NAT[[#This Row],[Programme No.]]<>DW42,1,IF(T_Transfers_NAT[[#This Row],[Subprogramme No.]]<>DY42,1,DT42+1))) -> 4 | DU43: 3 | DV43: Communications | DW43: 4 | DX43: Entity Oversight | DY43: 2 | DZ43: South African Broadcasting Corporation: Programme productions | EA43: 12934 | EB43: 13684 | EC43: 14450 | ED43: =REPT("0",3-LEN(T_Transfers_NAT[[#This Row],[Vote No.]]))&T_Transfers_NAT[[#This Row],[Vote No.]]&T_Transfers_NAT[[#This Row],[Programme No.]]&T_Transfers_NAT[[#This Row],[Subprogramme No.]] -> 00342 | EE43: Broadcasting and Community Media | EH43: Transfers and subsidies | EI43: Public corporations and private enterprises | EJ43: Public corporations | EK43: Current | EL43: 00344 | EM43: 4 | EP43: The Presidency | EQ43: Administration | ER43: 8 | ET43: 54 | EU43: 2 | EV43: 52 | EW43: 19125.67262 | EX43: 51 | EY43: 21981 | EZ43: 51 | FA43: 23358 | FB43: 51 | FC43: 25324 | FD43: 51 | FE43: 26904 | FF43: The Presidency|Administration | FG43: 001 | FH43: 001 | FI43: 001001 | FL43: 1 | FM43: =T_InfraS[[#This Row],[Programme/Project name]]&"|"&T_InfraS[[#This Row],[Type of infrastructure]] -> Randfontein|Building | FN43: =COUNTIF(T_InfraS[Programme/Project name],T_InfraS[[#This Row],[Programme/Project name]]) -> 1 | FO43: 5 | FP43: Home Affairs | FQ43: Departmental infrastructure | FR43: Small projects | FS43: Randfontein | FT43: Building | FU43: Various | FV43: New infrastructure assets | FW43: Demolition of old commando and construction of new office building | FX43: 0 | FY43: 741 | FZ43: 9546 | GA43: 3814 | GB43: 0 | GC43: 0 | GD43: =+T_InfraS[[#This Row],[2019/20 Revised Baseline]] -> 0 | GE43: 5 | GF43: 1 | GG43: 3 | GH43: 513 | GI43: 005 | GJ43: =IF(T_InfraS[[#This Row],[Department]]<>FP42,1,GJ42+1) -> 7 | GK43: 007 | GL43: 005007 | GP43: =IFERROR(INDEX($FQ$36:$FQ$481,MATCH(0,COUNTIF($GO$26:GO42,$FQ$36:$FQ$481),0)),"") ->  | GQ43: =IFERROR(INDEX(T_InfraS[Infrastructure category],MATCH(0,INDEX(COUNTIF($GP$26:GP42,T_InfraS[Infrastructure category]),0),0)),"") ->  | GR43: =IFERROR(INDEX(T_InfraS[Project category],MATCH(0,INDEX(COUNTIF(GQ$26:GQ42,T_InfraS[Project category]),0),0)),"") ->  | GV43: 8 | GX43: My_Performance_Area5 | GY43: $K$22:$K$36 | HC43: 8 | HD43: Comment | HJ43: 7 | HK43: National Treasury | HL43: 16 | HM43: Direct charge against the National Revenue Fund | HN43: 3 | HO43: General Fuel Levy Sharing with Metropolitan Municipalities | HP43: General fuel levy sharing with metropolitan municipalities | HQ43: Current | HR43: Transfers and subsidies | HS43: Provinces and municipalities | HT43: Municipalities | HU43: GFL | HV43: 9613360 | HW43: 10190162 | HX43: 10658909 | HY43: 11223831 | HZ43: 11223831 | IA43: 11223831 | IB43: 11785023 | IC43: 12468554 | ID43: 13166793 | IF43: 13166793 | IG43: 1 | IH43: 71631 | II43: 007162 | IJ43: 2 | JB43: 007008 | JC43: 8 | JD43: =IFERROR(INDEX(T_InfraS[Programme/Project name],MATCH(JB43,T_InfraS[Combo_Lookup],0)),"") ->  | JF43: Tender | JM43: 0 | JN43: =IF(JN42="ID",1,IF(T_KeyDeliverablesValues[[#This Row],[Department]]<>JQ42,1,JN42+1)) -> 2 | JO43: =INDEX((Table7[Vote No.]),MATCH(T_KeyDeliverablesValues[[#This Row],[Department]],Table7[Department],0)) -> 14 | JP43: =REPT("0",3-LEN(T_KeyDeliverablesValues[[#This Row],[VoteNo]]))&T_KeyDeliverablesValues[[#This Row],[VoteNo]]&REPT("0",3-LEN(T_KeyDeliverablesValues[[#This Row],[ID]]))&T_KeyDeliverablesValues[[#This Row],[ID]] -> 014002 | JQ43: Basic Education | JR43: Education infrastructure grant | JS43: 6643267 | JT43: 7326584 | JU43: 9354443 | JV43: 9933282 | JW43: 10045562 | JX43: 13389560 | JY43: 14141207 | JZ43: =IF(T_KeyDeliverablesValues[[#This Row],[CoEIndi]]=1,T_KeyDeliverablesValues[[#This Row],[2019/20]]*(1+$BQ$62),T_KeyDeliverablesValues[[#This Row],[2019/20]]*(1+$BQ$61)) -> 14918973.38
T44: 11 | U44: Public Works | W44: 7 | X44: National Treasury | Y44: 5 | Z44: Financial Accounting and Supply Chain Management Systems | AB44: 2 | AC44: Parliament | AD44: 5 | AE44: Associated Services | AF44: 2 | AG44: Political Party Support | AH44: 002 | AI44: 005 | AJ44: 002 | AK44: 002005 | AL44: 002005002 | AU44: 007001010 | AV44: 007002010 | AW44: 007003010 | AX44: 007004010 | AY44: 007005010 | AZ44: 007006010 | BA44: 007007010 | BB44: 007008010 | BC44: 007009010 | BD44: 007010010 | BE44: 007016010 | BF44: 007000010 | BG44: 007000010 | BH44: 007000010 | BI44: 007000010 | BJ44: 007000010 | BN44: 9 | BO44: MyYear9 | BP44: 2022/23 | BR44: 2022 | BS44: 23 | BT44: 2022/23 | BV44: 3 | BW44: Communications | BX44: 1 | BY44: Administration | BZ44: 3 | CA44: Internal Audit | CB44: 854.04148 | CC44: =REPT("0",3-LEN(Table27[[#This Row],[Vote No'#]]))&Table27[[#This Row],[Vote No'#]] -> 003 | CD44: =REPT("0",3-LEN(Table27[[#This Row],[Programme No'#]]))&Table27[[#This Row],[Programme No'#]] -> 001 | CE44: =+Table27[[#This Row],[DeptCode]]&Table27[[#This Row],[ProgCode]] -> 003001 | CG44: =T_ENE_2016[[#This Row],[Vote No.]]&T_ENE_2016[[#This Row],[Programme No.]]&T_ENE_2016[[#This Row],[Subprogramme No.]] -> 111 | CH44: =INDEX((T_Econ3[Econ3_No]),MATCH(T_ENE_2016[[#This Row],[Econ4]],T_Econ3[Econ3],0)) -> 2 | CI44: 1 | CJ44: The Presidency | CK44: 1 | CL44: Administration | CM44: 1 | CN44: Management | CO44: Current payments | CP44: Goods and services | CQ44: Goods and services | CR44: 12122 | CS44: 13940 | CT44: 12195 | CU44: 12195 | CV44: 12195 | CW44: 12930 | CX44: 12608 | CY44: 13314 | DC44: =T_ENE_2016[[#This Row],[2018_19]] -> 12608 | DD44: =T_ENE_2016[[#This Row],[2019_20]] -> 13314 | DE44: =IF(T_ENE_2016[[#This Row],[Econ3]]="Compensation of employees",T_ENE_2016[[#This Row],[2019_20 IB]]*(1+MyCola3),(T_ENE_2016[[#This Row],[2019_20 IB]]+T_ENE_2016[[#This Row],[2019_20 NR]])*(1+MyCPI3)) -> 14046.27 | DF44: The Presidency|Administration | DG44: 001 | DH44: 001 | DI44: 001 | DJ44: 002 | DK44: 001001 | DL44: 001002 | DM44: 2 | DN44: 001001001002 | DP44: 001001002 | DS44: =T_Transfers_NAT[[#This Row],[SPId]]&DT44 -> 003431 | DT44: =IF(T_Transfers_NAT[[#This Row],[Vote No.]]<>DU43,1,IF(T_Transfers_NAT[[#This Row],[Programme No.]]<>DW43,1,IF(T_Transfers_NAT[[#This Row],[Subprogramme No.]]<>DY43,1,DT43+1))) -> 1 | DU44: 3 | DV44: Communications | DW44: 4 | DX44: Entity Oversight | DY44: 3 | DZ44: Brand South Africa | EA44: 194300 | EB44: 205569 | EC44: 217081 | ED44: =REPT("0",3-LEN(T_Transfers_NAT[[#This Row],[Vote No.]]))&T_Transfers_NAT[[#This Row],[Vote No.]]&T_Transfers_NAT[[#This Row],[Programme No.]]&T_Transfers_NAT[[#This Row],[Subprogramme No.]] -> 00343 | EE44: Communication and Branding | EH44: Transfers and subsidies | EI44: Departmental agencies and accounts | EJ44: Departmental agencies (non-business entities) | EK44: Current | EL44: 00345 | EM44: 5 | EP44: The Presidency | EQ44: Administration | ER44: 9 | ET44: 45 | EU44: 4 | EV44: 45 | EW44: 20251.0069 | EX44: 44 | EY44: 20284 | EZ44: 44 | FA44: 21516 | FB44: 44 | FC44: 23128 | FD44: 44 | FE44: 25255 | FF44: The Presidency|Administration | FG44: 001 | FH44: 001 | FI44: 001001 | FL44: 1 | FM44: =T_InfraS[[#This Row],[Programme/Project name]]&"|"&T_InfraS[[#This Row],[Type of infrastructure]] -> Marabastad|Building | FN44: =COUNTIF(T_InfraS[Programme/Project name],T_InfraS[[#This Row],[Programme/Project name]]) -> 1 | FO44: 5 | FP44: Home Affairs | FQ44: Departmental infrastructure | FR44: Small projects | FS44: Marabastad | FT44: Building | FU44: Various | FV44: Upgrading and additions | FW44: Construction of ablution block and shelter | FX44: 0 | FY44: 157 | FZ44: 0 | GA44: 0 | GB44: 0 | GC44: 0 | GD44: =+T_InfraS[[#This Row],[2019/20 Revised Baseline]] -> 0 | GE44: 5 | GF44: 1 | GG44: 3 | GH44: 513 | GI44: 005 | GJ44: =IF(T_InfraS[[#This Row],[Department]]<>FP43,1,GJ43+1) -> 8 | GK44: 008 | GL44: 005008 | GP44: =IFERROR(INDEX($FQ$36:$FQ$481,MATCH(0,COUNTIF($GO$26:GO43,$FQ$36:$FQ$481),0)),"") ->  | GQ44: =IFERROR(INDEX(T_InfraS[Infrastructure category],MATCH(0,INDEX(COUNTIF($GP$26:GP43,T_InfraS[Infrastructure category]),0),0)),"") ->  | GR44: =IFERROR(INDEX(T_InfraS[Project category],MATCH(0,INDEX(COUNTIF(GQ$26:GQ43,T_InfraS[Project category]),0),0)),"") ->  | GV44: 9 | GX44: My_Component_ID | GY44: $G$41 | HC44: 9 | HD44: Proposal component ID | HJ44: 7 | HK44: National Treasury | HL44: 8 | HM44: Technical Support and Development Finance | HN44: 2 | HO44: Local Government Financial Management Support | HP44: Local government financial management grant | HQ44: Current | HR44: Transfers and subsidies | HS44: Provinces and municipalities | HT44: Municipalities | HU44: LCG | HV44: 424798 | HW44: 449138 | HX44: 452491 | HY44: 465264 | HZ44: 465264 | IA44: 465264 | IB44: 502006 | IC44: 531122 | ID44: 560865 | IF44: 560865 | IG44: 1 | IH44: 7821 | II44: 00781 | IJ44: 1 | JB44: 007009 | JC44: 9 | JD44: =IFERROR(INDEX(T_InfraS[Programme/Project name],MATCH(JB44,T_InfraS[Combo_Lookup],0)),"") ->  | JF44: On-going | JM44: 0 | JN44: =IF(JN43="ID",1,IF(T_KeyDeliverablesValues[[#This Row],[Department]]<>JQ43,1,JN43+1)) -> 3 | JO44: =INDEX((Table7[Vote No.]),MATCH(T_KeyDeliverablesValues[[#This Row],[Department]],Table7[Department],0)) -> 14 | JP44: =REPT("0",3-LEN(T_KeyDeliverablesValues[[#This Row],[VoteNo]]))&T_KeyDeliverablesValues[[#This Row],[VoteNo]]&REPT("0",3-LEN(T_KeyDeliverablesValues[[#This Row],[ID]]))&T_KeyDeliverablesValues[[#This Row],[ID]] -> 014003 | JQ44: Basic Education | JR44: Workbooks | JS44: 814972 | JT44: 865411 | JU44: 977621 | JV44: 994032 | JW44: 1048274.685 | JX44: 1109074.617 | JY44: 1171183 | JZ44: =IF(T_KeyDeliverablesValues[[#This Row],[CoEIndi]]=1,T_KeyDeliverablesValues[[#This Row],[2019/20]]*(1+$BQ$62),T_KeyDeliverablesValues[[#This Row],[2019/20]]*(1+$BQ$61)) -> 1235598.065
T45: 39 | U45: Rural Development and Land Reform | W45: 7 | X45: National Treasury | Y45: 6 | Z45: International Financial Relations | AB45: 2 | AC45: Parliament | AD45: 5 | AE45: Associated Services | AF45: 3 | AG45: Constituency Support | AH45: 002 | AI45: 005 | AJ45: 003 | AK45: 002005 | AL45: 002005003 | AU45: 007001011 | AV45: 007002011 | AW45: 007003011 | AX45: 007004011 | AY45: 007005011 | AZ45: 007006011 | BA45: 007007011 | BB45: 007008011 | BC45: 007009011 | BD45: 007010011 | BE45: 007016011 | BF45: 007000011 | BG45: 007000011 | BH45: 007000011 | BI45: 007000011 | BJ45: 007000011 | BN45: 10 | BO45: MyYear10 | BP45: 2023/24 | BR45: 2023 | BS45: 24 | BT45: 2023/24 | BV45: 3 | BW45: Communications | BX45: 1 | BY45: Administration | BZ45: 4 | CA45: Corporate Services | CB45: 9902.49135 | CC45: =REPT("0",3-LEN(Table27[[#This Row],[Vote No'#]]))&Table27[[#This Row],[Vote No'#]] -> 003 | CD45: =REPT("0",3-LEN(Table27[[#This Row],[Programme No'#]]))&Table27[[#This Row],[Programme No'#]] -> 001 | CE45: =+Table27[[#This Row],[DeptCode]]&Table27[[#This Row],[ProgCode]] -> 003001 | CG45: =T_ENE_2016[[#This Row],[Vote No.]]&T_ENE_2016[[#This Row],[Programme No.]]&T_ENE_2016[[#This Row],[Subprogramme No.]] -> 111 | CH45: =INDEX((T_Econ3[Econ3_No]),MATCH(T_ENE_2016[[#This Row],[Econ4]],T_Econ3[Econ3],0)) -> 2 | CI45: 1 | CJ45: The Presidency | CK45: 1 | CL45: Administration | CM45: 1 | CN45: Management | CO45: Current payments | CP45: Goods and services | CQ45: Goods and services | CR45: 16141 | CS45: 5890 | CT45: 13520 | CU45: 22239 | CV45: 22239 | CW45: 14300 | CX45: 14129 | CY45: 14920 | DC45: =T_ENE_2016[[#This Row],[2018_19]] -> 14129 | DD45: =T_ENE_2016[[#This Row],[2019_20]] -> 14920 | DE45: =IF(T_ENE_2016[[#This Row],[Econ3]]="Compensation of employees",T_ENE_2016[[#This Row],[2019_20 IB]]*(1+MyCola3),(T_ENE_2016[[#This Row],[2019_20 IB]]+T_ENE_2016[[#This Row],[2019_20 NR]])*(1+MyCPI3)) -> 15740.6 | DF45: The Presidency|Administration | DG45: 001 | DH45: 001 | DI45: 001 | DJ45: 002 | DK45: 001001 | DL45: 001002 | DM45: 2 | DN45: 001001001002 | DP45: 001001002 | DS45: =T_Transfers_NAT[[#This Row],[SPId]]&DT45 -> 003432 | DT45: =IF(T_Transfers_NAT[[#This Row],[Vote No.]]<>DU44,1,IF(T_Transfers_NAT[[#This Row],[Programme No.]]<>DW44,1,IF(T_Transfers_NAT[[#This Row],[Subprogramme No.]]<>DY44,1,DT44+1))) -> 2 | DU45: 3 | DV45: Communications | DW45: 4 | DX45: Entity Oversight | DY45: 3 | DZ45: Government Communication and Information System | EA45: 404750 | EB45: 431267 | EC45: 460456 | ED45: =REPT("0",3-LEN(T_Transfers_NAT[[#This Row],[Vote No.]]))&T_Transfers_NAT[[#This Row],[Vote No.]]&T_Transfers_NAT[[#This Row],[Programme No.]]&T_Transfers_NAT[[#This Row],[Subprogramme No.]] -> 00343 | EE45: Communication and Branding | EH45: Transfers and subsidies | EI45: Departmental agencies and accounts | EJ45: Departmental agencies (non-business entities) | EK45: Current | EL45: 00346 | EM45: 6 | EP45: The Presidency | EQ45: Administration | ER45: 10 | ET45: 15 | EU45: 0 | EV45: 15 | EW45: 9677.50741 | EX45: 15 | EY45: 8730 | EZ45: 15 | FA45: 9255 | FB45: 15 | FC45: 10036 | FD45: 15 | FE45: 10263 | FF45: The Presidency|Administration | FG45: 001 | FH45: 001 | FI45: 001001 | FL45: 1 | FM45: =T_InfraS[[#This Row],[Programme/Project name]]&"|"&T_InfraS[[#This Row],[Type of infrastructure]] -> Ongeluksnek|Building | FN45: =COUNTIF(T_InfraS[Programme/Project name],T_InfraS[[#This Row],[Programme/Project name]]) -> 1 | FO45: 5 | FP45: Home Affairs | FQ45: Departmental infrastructure | FR45: Small projects | FS45: Ongeluksnek | FT45: Building | FU45: Construction | FV45: Maintenance and repair | FW45: Renovations, repairs and maintenance of buildings to make them habitable | FX45: 0 | FY45: 0 | FZ45: 150 | GA45: 0 | GB45: 0 | GC45: 0 | GD45: =+T_InfraS[[#This Row],[2019/20 Revised Baseline]] -> 0 | GE45: 5 | GF45: 1 | GG45: 3 | GH45: 513 | GI45: 005 | GJ45: =IF(T_InfraS[[#This Row],[Department]]<>FP44,1,GJ44+1) -> 9 | GK45: 009 | GL45: 005009 | GP45: =IFERROR(INDEX($FQ$36:$FQ$481,MATCH(0,COUNTIF($GO$26:GO44,$FQ$36:$FQ$481),0)),"") ->  | GQ45: =IFERROR(INDEX(T_InfraS[Infrastructure category],MATCH(0,INDEX(COUNTIF($GP$26:GP44,T_InfraS[Infrastructure category]),0),0)),"") ->  | GR45: =IFERROR(INDEX(T_InfraS[Project category],MATCH(0,INDEX(COUNTIF(GQ$26:GQ44,T_InfraS[Project category]),0),0)),"") ->  | GV45: 10 | GX45: My_Flow | GY45: $G$44 | HC45: 10 | HD45: Increase/Decrease | HJ45: 7 | HK45: National Treasury | HL45: 8 | HM45: Technical Support and Development Finance | HN45: 3 | HO45: Urban Development and Support | HP45: Integrated city development grant | HQ45: Capital | HR45: Transfers and subsidies | HS45: Provinces and municipalities | HT45: Municipalities | HU45: LCG | HV45: 40000 | HW45: 255000 | HX45: 251300 | HY45: 266805 | HZ45: 266805 | IA45: 266805 | IB45: 292119 | IC45: 309062 | ID45: 326369 | IF45: 326369 | IG45: 1 | IH45: 7831 | II45: 00782 | IJ45: 2 | JB45: 007010 | JC45: 10 | JD45: =IFERROR(INDEX(T_InfraS[Programme/Project name],MATCH(JB45,T_InfraS[Combo_Lookup],0)),"") ->  | JF45: Hand over | JM45: 0 | JN45: =IF(JN44="ID",1,IF(T_KeyDeliverablesValues[[#This Row],[Department]]<>JQ44,1,JN44+1)) -> 4 | JO45: =INDEX((Table7[Vote No.]),MATCH(T_KeyDeliverablesValues[[#This Row],[Department]],Table7[Department],0)) -> 14 | JP45: =REPT("0",3-LEN(T_KeyDeliverablesValues[[#This Row],[VoteNo]]))&T_KeyDeliverablesValues[[#This Row],[VoteNo]]&REPT("0",3-LEN(T_KeyDeliverablesValues[[#This Row],[ID]]))&T_KeyDeliverablesValues[[#This Row],[ID]] -> 014004 | JQ45: Basic Education | JR45: School Infrastructure Backlogs grant | JS45: 1403062 | JT45: 2542864 | JU45: 1622417 | JV45: 1099888 | JW45: 2594698 | JX45: 0 | JY45: 0 | JZ45: =IF(T_KeyDeliverablesValues[[#This Row],[CoEIndi]]=1,T_KeyDeliverablesValues[[#This Row],[2019/20]]*(1+$BQ$62),T_KeyDeliverablesValues[[#This Row],[2019/20]]*(1+$BQ$61)) -> 0
T46: 30 | U46: Science and Technology | W46: 7 | X46: National Treasury | Y46: 7 | Z46: Civil and Military Pensions, Contributions to Funds and Other Benefits | AB46: 2 | AC46: Parliament | AD46: 5 | AE46: Associated Services | AF46: 4 | AG46: Party Leadership Support | AH46: 002 | AI46: 005 | AJ46: 004 | AK46: 002005 | AL46: 002005004 | AU46: 007001012 | AV46: 007002012 | AW46: 007003012 | AX46: 007004012 | AY46: 007005012 | AZ46: 007006012 | BA46: 007007012 | BB46: 007008012 | BC46: 007009012 | BD46: 007010012 | BE46: 007016012 | BF46: 007000012 | BG46: 007000012 | BH46: 007000012 | BI46: 007000012 | BJ46: 007000012 | BN46: 11 | BO46: MyYear11 | BP46: 2024/25 | BR46: 2024 | BS46: 25 | BT46: 2024/25 | BV46: 3 | BW46: Communications | BX46: 1 | BY46: Administration | BZ46: 5 | CA46: Financial Management | CB46: 6512.00698 | CC46: =REPT("0",3-LEN(Table27[[#This Row],[Vote No'#]]))&Table27[[#This Row],[Vote No'#]] -> 003 | CD46: =REPT("0",3-LEN(Table27[[#This Row],[Programme No'#]]))&Table27[[#This Row],[Programme No'#]] -> 001 | CE46: =+Table27[[#This Row],[DeptCode]]&Table27[[#This Row],[ProgCode]] -> 003001 | CG46: =T_ENE_2016[[#This Row],[Vote No.]]&T_ENE_2016[[#This Row],[Programme No.]]&T_ENE_2016[[#This Row],[Subprogramme No.]] -> 111 | CH46: =INDEX((T_Econ3[Econ3_No]),MATCH(T_ENE_2016[[#This Row],[Econ4]],T_Econ3[Econ3],0)) -> 2 | CI46: 1 | CJ46: The Presidency | CK46: 1 | CL46: Administration | CM46: 1 | CN46: Management | CO46: Current payments | CP46: Goods and services | CQ46: Goods and services | CR46: 3232 | CS46: 3646 | CT46: 7397 | CU46: 7397 | CV46: 7397 | CW46: 9342 | CX46: 10451 | CY46: 11092 | DC46: =T_ENE_2016[[#This Row],[2018_19]] -> 10451 | DD46: =T_ENE_2016[[#This Row],[2019_20]] -> 11092 | DE46: =IF(T_ENE_2016[[#This Row],[Econ3]]="Compensation of employees",T_ENE_2016[[#This Row],[2019_20 IB]]*(1+MyCola3),(T_ENE_2016[[#This Row],[2019_20 IB]]+T_ENE_2016[[#This Row],[2019_20 NR]])*(1+MyCPI3)) -> 11702.06 | DF46: The Presidency|Administration | DG46: 001 | DH46: 001 | DI46: 001 | DJ46: 002 | DK46: 001001 | DL46: 001002 | DM46: 2 | DN46: 001001001002 | DP46: 001001002 | DS46: =T_Transfers_NAT[[#This Row],[SPId]]&DT46 -> 003441 | DT46: =IF(T_Transfers_NAT[[#This Row],[Vote No.]]<>DU45,1,IF(T_Transfers_NAT[[#This Row],[Programme No.]]<>DW45,1,IF(T_Transfers_NAT[[#This Row],[Subprogramme No.]]<>DY45,1,DT45+1))) -> 1 | DU46: 3 | DV46: Communications | DW46: 4 | DX46: Entity Oversight | DY46: 4 | DZ46: Independent Communications Authority of South Africa | EA46: 430383 | EB46: 455345 | EC46: 480845 | ED46: =REPT("0",3-LEN(T_Transfers_NAT[[#This Row],[Vote No.]]))&T_Transfers_NAT[[#This Row],[Vote No.]]&T_Transfers_NAT[[#This Row],[Programme No.]]&T_Transfers_NAT[[#This Row],[Subprogramme No.]] -> 00344 | EE46: Regulatory Institutions | EH46: Transfers and subsidies | EI46: Departmental agencies and accounts | EJ46: Departmental agencies (non-business entities) | EK46: Current | EL46: 00347 | EM46: 7 | EP46: The Presidency | EQ46: Administration | ER46: 11 | ET46: 66 | EU46: 4 | EV46: 56 | EW46: 37296.78355 | EX46: 55 | EY46: 37735 | EZ46: 54 | FA46: 39695 | FB46: 54 | FC46: 43060 | FD46: 54 | FE46: 45724 | FF46: The Presidency|Administration | FG46: 001 | FH46: 001 | FI46: 001001 | FL46: 1 | FM46: =T_InfraS[[#This Row],[Programme/Project name]]&"|"&T_InfraS[[#This Row],[Type of infrastructure]] -> Repair and upgrade|Major upgrade of 14 Home Affairs offices | FN46: =COUNTIF(T_InfraS[Programme/Project name],T_InfraS[[#This Row],[Programme/Project name]]) -> 2 | FO46: 5 | FP46: Home Affairs | FQ46: Departmental infrastructure | FR46: Small projects | FS46: Repair and upgrade | FT46: Major upgrade of 14 Home Affairs offices | FU46: Handed over | FV46: Maintenance and repair | FW46: Renovations, repairs and maintenance of buildings to make them habitable | FX46: 0 | FY46: 0 | FZ46: 520 | GA46: 0 | GB46: 0 | GC46: 0 | GD46: =+T_InfraS[[#This Row],[2019/20 Revised Baseline]] -> 0 | GE46: 5 | GF46: 1 | GG46: 3 | GH46: 513 | GI46: 005 | GJ46: =IF(T_InfraS[[#This Row],[Department]]<>FP45,1,GJ45+1) -> 10 | GK46: 010 | GL46: 005010 | GP46: =IFERROR(INDEX($FQ$36:$FQ$481,MATCH(0,COUNTIF($GO$26:GO45,$FQ$36:$FQ$481),0)),"") ->  | GQ46: =IFERROR(INDEX(T_InfraS[Infrastructure category],MATCH(0,INDEX(COUNTIF($GP$26:GP45,T_InfraS[Infrastructure category]),0),0)),"") ->  | GV46: 11 | GX46: My_Type_of_change_item | GY46: $G$47 | HC46: 11 | HD46: Type of change | HJ46: 7 | HK46: National Treasury | HL46: 8 | HM46: Technical Support and Development Finance | HN46: 3 | HO46: Urban Development and Support | HP46: Neighbourhood development partnership grant | HQ46: Capital | HR46: Transfers and subsidies | HS46: Provinces and municipalities | HT46: Municipalities | HU46: LCG | HV46: 585935 | HW46: 590390 | HX46: 583575 | HY46: 624000 | HZ46: 624000 | IA46: 624000 | IB46: 663390 | IC46: 701867 | ID46: 741172 | IF46: 741172 | IG46: 2 | IH46: 7832 | II46: 00783 | IJ46: 3 | JB46: 007011 | JC46: 11 | JD46: =IFERROR(INDEX(T_InfraS[Programme/Project name],MATCH(JB46,T_InfraS[Combo_Lookup],0)),"") ->  | JF46: Complete | JM46: 0 | JN46: =IF(JN45="ID",1,IF(T_KeyDeliverablesValues[[#This Row],[Department]]<>JQ45,1,JN45+1)) -> 5 | JO46: =INDEX((Table7[Vote No.]),MATCH(T_KeyDeliverablesValues[[#This Row],[Department]],Table7[Department],0)) -> 14 | JP46: =REPT("0",3-LEN(T_KeyDeliverablesValues[[#This Row],[VoteNo]]))&T_KeyDeliverablesValues[[#This Row],[VoteNo]]&REPT("0",3-LEN(T_KeyDeliverablesValues[[#This Row],[ID]]))&T_KeyDeliverablesValues[[#This Row],[ID]] -> 014005 | JQ46: Basic Education | JR46: National Student Financial Aid Scheme | JS46: 893867 | JT46: 947499 | JU46: 991084 | JV46: 1043611 | JW46: 1095792 | JX46: 1159348 | JY46: 1224271 | JZ46: =IF(T_KeyDeliverablesValues[[#This Row],[CoEIndi]]=1,T_KeyDeliverablesValues[[#This Row],[2019/20]]*(1+$BQ$62),T_KeyDeliverablesValues[[#This Row],[2019/20]]*(1+$BQ$61)) -> 1291605.905
G47: 1 | H47: Current payments | I47: =INDEX(('Econ ENE'!$M$5:$M$71),MATCH(Tables!H47,OFFSET('Econ ENE'!$Q$5:$Q$71,0,Tables!G47),0)) -> 1 | L47: Id | M47: Type_of_change | O47: Increase | P47: Decrease | T47: 31 | U47: Small Business Development | W47: 7 | X47: National Treasury | Y47: 8 | Z47: Technical Support and Development Finance | AB47: 2 | AC47: Parliament | AD47: 5 | AE47: Associated Services | AF47: 5 | AG47: National Assembly Members’ Facilities | AH47: 002 | AI47: 005 | AJ47: 005 | AK47: 002005 | AL47: 002005005 | AU47: 007001013 | AV47: 007002013 | AW47: 007003013 | AX47: 007004013 | AY47: 007005013 | AZ47: 007006013 | BA47: 007007013 | BB47: 007008013 | BC47: 007009013 | BD47: 007010013 | BE47: 007016013 | BF47: 007000013 | BG47: 007000013 | BH47: 007000013 | BI47: 007000013 | BJ47: 007000013 | BN47: 12 | BO47: MyYear12 | BP47: 2025/26 | BR47: 2025 | BS47: 26 | BT47: 2025/26 | BV47: 3 | BW47: Communications | BX47: 2 | BY47: Communications Policy, Research and Development | BZ47: 1 | CA47: Broadcasting Policy | CB47: 6323.52174 | CC47: =REPT("0",3-LEN(Table27[[#This Row],[Vote No'#]]))&Table27[[#This Row],[Vote No'#]] -> 003 | CD47: =REPT("0",3-LEN(Table27[[#This Row],[Programme No'#]]))&Table27[[#This Row],[Programme No'#]] -> 002 | CE47: =+Table27[[#This Row],[DeptCode]]&Table27[[#This Row],[ProgCode]] -> 003002 | CG47: =T_ENE_2016[[#This Row],[Vote No.]]&T_ENE_2016[[#This Row],[Programme No.]]&T_ENE_2016[[#This Row],[Subprogramme No.]] -> 111 | CH47: =INDEX((T_Econ3[Econ3_No]),MATCH(T_ENE_2016[[#This Row],[Econ4]],T_Econ3[Econ3],0)) -> 2 | CI47: 1 | CJ47: The Presidency | CK47: 1 | CL47: Administration | CM47: 1 | CN47: Management | CO47: Current payments | CP47: Goods and services | CQ47: Goods and services | CR47: 4969 | CS47: 3374 | CT47: 4961 | CU47: 4961 | CV47: 4961 | CW47: 4167 | CX47: 4417 | CY47: 4721 | DC47: =T_ENE_2016[[#This Row],[2018_19]] -> 4417 | DD47: =T_ENE_2016[[#This Row],[2019_20]] -> 4721 | DE47: =IF(T_ENE_2016[[#This Row],[Econ3]]="Compensation of employees",T_ENE_2016[[#This Row],[2019_20 IB]]*(1+MyCola3),(T_ENE_2016[[#This Row],[2019_20 IB]]+T_ENE_2016[[#This Row],[2019_20 NR]])*(1+MyCPI3)) -> 4980.655 | DF47: The Presidency|Administration | DG47: 001 | DH47: 001 | DI47: 001 | DJ47: 002 | DK47: 001001 | DL47: 001002 | DM47: 2 | DN47: 001001001002 | DP47: 001001002 | DS47: =T_Transfers_NAT[[#This Row],[SPId]]&DT47 -> 003442 | DT47: =IF(T_Transfers_NAT[[#This Row],[Vote No.]]<>DU46,1,IF(T_Transfers_NAT[[#This Row],[Programme No.]]<>DW46,1,IF(T_Transfers_NAT[[#This Row],[Subprogramme No.]]<>DY46,1,DT46+1))) -> 2 | DU47: 3 | DV47: Communications | DW47: 4 | DX47: Entity Oversight | DY47: 4 | DZ47: Film and Publication Board | EA47: 91684 | EB47: 97002 | EC47: 102434 | ED47: =REPT("0",3-LEN(T_Transfers_NAT[[#This Row],[Vote No.]]))&T_Transfers_NAT[[#This Row],[Vote No.]]&T_Transfers_NAT[[#This Row],[Programme No.]]&T_Transfers_NAT[[#This Row],[Subprogramme No.]] -> 00344 | EE47: Regulatory Institutions | EH47: Transfers and subsidies | EI47: Departmental agencies and accounts | EJ47: Departmental agencies (non-business entities) | EK47: Current | EL47: 00348 | EM47: 8 | EP47: The Presidency | EQ47: Administration | ER47: 12 | ET47: 40 | EU47: 0 | EV47: 41 | EW47: 26438 | EX47: 41 | EY47: 37064 | EZ47: 35 | FA47: 34357 | FB47: 35 | FC47: 35473 | FD47: 35 | FE47: 39109 | FF47: The Presidency|Administration | FG47: 001 | FH47: 001 | FI47: 001001 | FL47: 1 | FM47: =T_InfraS[[#This Row],[Programme/Project name]]&"|"&T_InfraS[[#This Row],[Type of infrastructure]] -> Repair and upgrade|Major upgrade of Home Affairs offices | FN47: =COUNTIF(T_InfraS[Programme/Project name],T_InfraS[[#This Row],[Programme/Project name]]) -> 2 | FO47: 5 | FP47: Home Affairs | FQ47: Departmental infrastructure | FR47: Small projects | FS47: Repair and upgrade | FT47: Major upgrade of Home Affairs offices | FU47: Identification | FV47: New infrastructure assets | FW47: Renovations, repairs and maintenance of buildings to make them habitable | FX47: 0 | FY47: 0 | FZ47: 0 | GA47: 0 | GB47: 0 | GC47: 0 | GD47: =+T_InfraS[[#This Row],[2019/20 Revised Baseline]] -> 0 | GE47: 5 | GF47: 1 | GG47: 3 | GH47: 513 | GI47: 005 | GJ47: =IF(T_InfraS[[#This Row],[Department]]<>FP46,1,GJ46+1) -> 11 | GK47: 011 | GL47: 005011 | GP47: =IFERROR(INDEX($FQ$36:$FQ$481,MATCH(0,COUNTIF($GO$26:GO46,$FQ$36:$FQ$481),0)),"") ->  | GQ47: =IFERROR(INDEX(T_InfraS[Infrastructure category],MATCH(0,INDEX(COUNTIF($GP$26:GP46,T_InfraS[Infrastructure category]),0),0)),"") ->  | GV47: 12 | GX47: My_Type_of_change_description | GY47: $G$50 | HC47: 12 | HD47: Programme | HJ47: 7 | HK47: National Treasury | HL47: 8 | HM47: Technical Support and Development Finance | HN47: 6 | HO47: Infrastructure Development Support | HP47: Infrastructure skills development grant | HQ47: Current | HR47: Transfers and subsidies | HS47: Provinces and municipalities | HT47: Municipalities | HU47: LCG | HV47: 98500 | HW47: 104425 | HX47: 124465 | HY47: 130471 | HZ47: 130471 | IA47: 130471 | IB47: 140774 | IC47: 148939 | ID47: 157280 | IF47: 157280 | IG47: 1 | IH47: 7861 | II47: 00784 | IJ47: 4 | JB47: 007012 | JC47: 12 | JD47: =IFERROR(INDEX(T_InfraS[Programme/Project name],MATCH(JB47,T_InfraS[Combo_Lookup],0)),"") ->  | JF47: On hold | JM47: 1 | JN47: =IF(JN46="ID",1,IF(T_KeyDeliverablesValues[[#This Row],[Department]]<>JQ46,1,JN46+1)) -> 1 | JO47: =INDEX((Table7[Vote No.]),MATCH(T_KeyDeliverablesValues[[#This Row],[Department]],Table7[Department],0)) -> 47 | JP47: =REPT("0",3-LEN(T_KeyDeliverablesValues[[#This Row],[VoteNo]]))&T_KeyDeliverablesValues[[#This Row],[VoteNo]]&REPT("0",3-LEN(T_KeyDeliverablesValues[[#This Row],[ID]]))&T_KeyDeliverablesValues[[#This Row],[ID]] -> 047001 | JQ47: Centre for Public Service Innovation | JR47: Compensation of employees | JS47: 10784 | JT47: 11588 | JU47: 14169 | JV47: 16792 | JW47: 18360 | JX47: 19425 | JY47: 20902 | JZ47: =IF(T_KeyDeliverablesValues[[#This Row],[CoEIndi]]=1,T_KeyDeliverablesValues[[#This Row],[2019/20]]*(1+$BQ$62),T_KeyDeliverablesValues[[#This Row],[2019/20]]*(1+$BQ$61)) -> 22469.65
G48: 2 | H48: Compensation of employees | I48: =INDEX(('Econ ENE'!$M$5:$M$71),MATCH(Tables!H48,OFFSET('Econ ENE'!$Q$5:$Q$71,0,Tables!G48),0)) -> 1 | L48: 1 | M48: Increase | O48: =M56 -> Input cost / Cost pressure | P48: =M59 -> Cost containment / efficiency | T48: 17 | U48: Social Development | W48: 7 | X48: National Treasury | Y48: 9 | Z48: Revenue Administration | AB48: 2 | AC48: Parliament | AD48: 5 | AE48: Associated Services | AF48: 6 | AG48: National Council of Provinces Members’ Facilities | AH48: 002 | AI48: 005 | AJ48: 006 | AK48: 002005 | AL48: 002005006 | AU48: 007001014 | AV48: 007002014 | AW48: 007003014 | AX48: 007004014 | AY48: 007005014 | AZ48: 007006014 | BA48: 007007014 | BB48: 007008014 | BC48: 007009014 | BD48: 007010014 | BE48: 007016014 | BF48: 007000014 | BG48: 007000014 | BH48: 007000014 | BI48: 007000014 | BJ48: 007000014 | BN48: 13 | BO48: MyYear13 | BP48: 2026/27 | BR48: 2026 | BS48: 27 | BT48: 2026/27 | BV48: 3 | BW48: Communications | BX48: 3 | BY48: Industry and Capacity Development | BZ48: 1 | CA48: Enterprise Development | CB48: 207.1583 | CC48: =REPT("0",3-LEN(Table27[[#This Row],[Vote No'#]]))&Table27[[#This Row],[Vote No'#]] -> 003 | CD48: =REPT("0",3-LEN(Table27[[#This Row],[Programme No'#]]))&Table27[[#This Row],[Programme No'#]] -> 003 | CE48: =+Table27[[#This Row],[DeptCode]]&Table27[[#This Row],[ProgCode]] -> 003003 | CG48: =T_ENE_2016[[#This Row],[Vote No.]]&T_ENE_2016[[#This Row],[Programme No.]]&T_ENE_2016[[#This Row],[Subprogramme No.]] -> 111 | CH48: =INDEX((T_Econ3[Econ3_No]),MATCH(T_ENE_2016[[#This Row],[Econ4]],T_Econ3[Econ3],0)) -> 2 | CI48: 1 | CJ48: The Presidency | CK48: 1 | CL48: Administration | CM48: 1 | CN48: Management | CO48: Current payments | CP48: Goods and services | CQ48: Goods and services | CR48: 3671 | CS48: 3802 | CT48: 3028 | CU48: 3028 | CV48: 3028 | CW48: 3222 | CX48: 3426 | CY48: 3618 | DC48: =T_ENE_2016[[#This Row],[2018_19]] -> 3426 | DD48: =T_ENE_2016[[#This Row],[2019_20]] -> 3618 | DE48: =IF(T_ENE_2016[[#This Row],[Econ3]]="Compensation of employees",T_ENE_2016[[#This Row],[2019_20 IB]]*(1+MyCola3),(T_ENE_2016[[#This Row],[2019_20 IB]]+T_ENE_2016[[#This Row],[2019_20 NR]])*(1+MyCPI3)) -> 3816.99 | DF48: The Presidency|Administration | DG48: 001 | DH48: 001 | DI48: 001 | DJ48: 002 | DK48: 001001 | DL48: 001002 | DM48: 2 | DN48: 001001001002 | DP48: 001001002 | DS48: =T_Transfers_NAT[[#This Row],[SPId]]&DT48 -> 004131 | DT48: =IF(T_Transfers_NAT[[#This Row],[Vote No.]]<>DU47,1,IF(T_Transfers_NAT[[#This Row],[Programme No.]]<>DW47,1,IF(T_Transfers_NAT[[#This Row],[Subprogramme No.]]<>DY47,1,DT47+1))) -> 1 | DU48: 4 | DV48: Cooperative Governance And Traditional Affairs | DW48: 1 | DX48: Administration | DY48: 3 | DZ48: Vehicle licences | EA48: 103 | EB48: 106 | EC48: 112 | ED48: =REPT("0",3-LEN(T_Transfers_NAT[[#This Row],[Vote No.]]))&T_Transfers_NAT[[#This Row],[Vote No.]]&T_Transfers_NAT[[#This Row],[Programme No.]]&T_Transfers_NAT[[#This Row],[Subprogramme No.]] -> 00413 | EE48: Corporate Services | EH48: Transfers and subsidies | EI48: Provinces and municipalities | EJ48: Municipalities | EK48: Current | EL48: 00411 | EM48: 1 | EP48: The Presidency | EQ48: Administration | ER48: 13 | ET48: 39 | EU48: 2 | EV48: 37 | EW48: 38039.04925 | EX48: 37 | EY48: 38221 | EZ48: 35 | FA48: 37940 | FB48: 35 | FC48: 40765 | FD48: 35 | FE48: 43718 | FF48: The Presidency|Administration | FG48: 001 | FH48: 001 | FI48: 001001 | FL48: 1 | FM48: =T_InfraS[[#This Row],[Programme/Project name]]&"|"&T_InfraS[[#This Row],[Type of infrastructure]] -> Feasibility study: Redevelopment of the 6 Ports of Entry (Beit Bridge, Lembobo, Maseru, Kopfontein, Oshoek and Ficksburg)|Major upgrade of Home Affairs offices | FN48: =COUNTIF(T_InfraS[Programme/Project name],T_InfraS[[#This Row],[Programme/Project name]]) -> 1 | FO48: 5 | FP48: Home Affairs | FQ48: Departmental infrastructure | FR48: Small projects | FS48: Feasibility study: Redevelopment of the 6 Ports of Entry (Beit Bridge, Lembobo, Maseru, Kopfontein, Oshoek and Ficksburg) | FT48: Major upgrade of Home Affairs offices | FU48: Feasibility | FV48: Rehabilitation and refurbishment | FW48: Renovations, repairs and maintenance of buildings to make them habitable | FX48: 0 | FY48: 0 | FZ48: 10124 | GA48: 0 | GB48: 0 | GC48: 0 | GD48: =+T_InfraS[[#This Row],[2019/20 Revised Baseline]] -> 0 | GE48: 5 | GF48: 1 | GG48: 3 | GH48: 513 | GI48: 005 | GJ48: =IF(T_InfraS[[#This Row],[Department]]<>FP47,1,GJ47+1) -> 12 | GK48: 012 | GL48: 005012 | GQ48: =IFERROR(INDEX(T_InfraS[Infrastructure category],MATCH(0,INDEX(COUNTIF($GP$26:GP47,T_InfraS[Infrastructure category]),0),0)),"") ->  | GV48: 13 | GX48: My_Prog | GY48: $G$53 | HC48: 13 | HD48: Subprogramme | HJ48: 11 | HK48: Public Works | HL48: 3 | HM48: Expanded Public Works Programme | HN48: 2 | HO48: Expanded Public Works Programme: Infrastructure | HP48: Expanded public works programme integrated grant for provinces | HQ48: Current | HR48: Transfers and subsidies | HS48: Provinces and municipalities | HT48: Provinces | HU48: PCG | HV48: 354214 | HW48: 347704 | HX48: 325607 | HY48: 402009 | HZ48: 402009 | IA48: 402009 | IB48: 395579 | IC48: 416036 | ID48: 451505 | IF48: 451505 | IG48: 1 | IH48: 11321 | II48: 01131 | IJ48: 1 | JB48: 007013 | JC48: 13 | JD48: =IFERROR(INDEX(T_InfraS[Programme/Project name],MATCH(JB48,T_InfraS[Combo_Lookup],0)),"") ->  | JF48: Master plan | JM48: 0 | JN48: =IF(JN47="ID",1,IF(T_KeyDeliverablesValues[[#This Row],[Department]]<>JQ47,1,JN47+1)) -> 2 | JO48: =INDEX((Table7[Vote No.]),MATCH(T_KeyDeliverablesValues[[#This Row],[Department]],Table7[Department],0)) -> 47 | JP48: =REPT("0",3-LEN(T_KeyDeliverablesValues[[#This Row],[VoteNo]]))&T_KeyDeliverablesValues[[#This Row],[VoteNo]]&REPT("0",3-LEN(T_KeyDeliverablesValues[[#This Row],[ID]]))&T_KeyDeliverablesValues[[#This Row],[ID]] -> 047002 | JQ48: Centre for Public Service Innovation | JR48: Audit costs: External | JS48: 0 | JT48: 0 | JU48: 740 | JV48: 2137 | JW48: 2162 | JX48: 2262 | JY48: 2367 | JZ48: =IF(T_KeyDeliverablesValues[[#This Row],[CoEIndi]]=1,T_KeyDeliverablesValues[[#This Row],[2019/20]]*(1+$BQ$62),T_KeyDeliverablesValues[[#This Row],[2019/20]]*(1+$BQ$61)) -> 2497.185
B49: Group_Id | D49: Sub-group_Id | G49: 2 | H49: Goods and services | I49: =INDEX(('Econ ENE'!$M$5:$M$71),MATCH(Tables!H49,OFFSET('Econ ENE'!$Q$5:$Q$71,0,Tables!G49),0)) -> 2 | L49: 2 | M49: Decrease | O49: =M57 -> Higher priority | T49: 40 | U49: Sport and Recreation South Africa | W49: 7 | X49: National Treasury | Y49: 10 | Z49: Financial Intelligence and State Security | AB49: 3 | AC49: Communications | AD49: 1 | AE49: Administration | AF49: 1 | AG49: Ministry | AH49: 003 | AI49: 001 | AJ49: 001 | AK49: 003001 | AL49: 003001001 | AU49: 007001015 | AV49: 007002015 | AW49: 007003015 | AX49: 007004015 | AY49: 007005015 | AZ49: 007006015 | BA49: 007007015 | BB49: 007008015 | BC49: 007009015 | BD49: 007010015 | BE49: 007016015 | BF49: 007000015 | BG49: 007000015 | BH49: 007000015 | BI49: 007000015 | BJ49: 007000015 | BN49: 14 | BO49: MyYear14 | BP49: 2027/28 | BR49: 2027 | BS49: 28 | BT49: 2027/28 | BV49: 3 | BW49: Communications | BX49: 3 | BY49: Industry and Capacity Development | BZ49: 2 | CA49: Broadcasting Digital Migration | CB49: 27867.99507 | CC49: =REPT("0",3-LEN(Table27[[#This Row],[Vote No'#]]))&Table27[[#This Row],[Vote No'#]] -> 003 | CD49: =REPT("0",3-LEN(Table27[[#This Row],[Programme No'#]]))&Table27[[#This Row],[Programme No'#]] -> 003 | CE49: =+Table27[[#This Row],[DeptCode]]&Table27[[#This Row],[ProgCode]] -> 003003 | CG49: =T_ENE_2016[[#This Row],[Vote No.]]&T_ENE_2016[[#This Row],[Programme No.]]&T_ENE_2016[[#This Row],[Subprogramme No.]] -> 111 | CH49: =INDEX((T_Econ3[Econ3_No]),MATCH(T_ENE_2016[[#This Row],[Econ4]],T_Econ3[Econ3],0)) -> 2 | CI49: 1 | CJ49: The Presidency | CK49: 1 | CL49: Administration | CM49: 1 | CN49: Management | CO49: Current payments | CP49: Goods and services | CQ49: Goods and services | CR49: 3927 | CS49: 1173 | CT49: 4493 | CU49: 4493 | CV49: 4493 | CW49: 4620 | CX49: 4960 | CY49: 5238 | DC49: =T_ENE_2016[[#This Row],[2018_19]] -> 4960 | DD49: =T_ENE_2016[[#This Row],[2019_20]] -> 5238 | DE49: =IF(T_ENE_2016[[#This Row],[Econ3]]="Compensation of employees",T_ENE_2016[[#This Row],[2019_20 IB]]*(1+MyCola3),(T_ENE_2016[[#This Row],[2019_20 IB]]+T_ENE_2016[[#This Row],[2019_20 NR]])*(1+MyCPI3)) -> 5526.09 | DF49: The Presidency|Administration | DG49: 001 | DH49: 001 | DI49: 001 | DJ49: 002 | DK49: 001001 | DL49: 001002 | DM49: 2 | DN49: 001001001002 | DP49: 001001002 | DS49: =T_Transfers_NAT[[#This Row],[SPId]]&DT49 -> 004261 | DT49: =IF(T_Transfers_NAT[[#This Row],[Vote No.]]<>DU48,1,IF(T_Transfers_NAT[[#This Row],[Programme No.]]<>DW48,1,IF(T_Transfers_NAT[[#This Row],[Subprogramme No.]]<>DY48,1,DT48+1))) -> 1 | DU49: 4 | DV49: Cooperative Governance And Traditional Affairs | DW49: 2 | DX49: Regional and Urban Development and Legislative Support | DY49: 6 | DZ49: Municipal demarcation transition grant | EA49: 111856 | EB49: 0 | EC49: 0 | ED49: =REPT("0",3-LEN(T_Transfers_NAT[[#This Row],[Vote No.]]))&T_Transfers_NAT[[#This Row],[Vote No.]]&T_Transfers_NAT[[#This Row],[Programme No.]]&T_Transfers_NAT[[#This Row],[Subprogramme No.]] -> 00426 | EE49: Municipal Demarcation Transition Grant | EH49: Transfers and subsidies | EI49: Provinces and municipalities | EJ49: Municipalities | EK49: Current | EL49: 00421 | EM49: 1 | EP49: The Presidency | EQ49: Administration | ER49: 14 | ET49: 16 | EU49: 1 | EV49: 18 | EW49: 20611.71642 | EX49: 17 | EY49: 20961 | EZ49: 17 | FA49: 21546 | FB49: 17 | FC49: 24229 | FD49: 17 | FE49: 25988 | FF49: The Presidency|Administration | FG49: 001 | FH49: 001 | FI49: 001001 | FL49: 2 | FM49: =T_InfraS[[#This Row],[Programme/Project name]]&"|"&T_InfraS[[#This Row],[Type of infrastructure]] -> New head office|Building | FN49: =COUNTIF(T_InfraS[Programme/Project name],T_InfraS[[#This Row],[Programme/Project name]]) -> 2 | FO49: 5 | FP49: Home Affairs | FQ49: Departmental infrastructure | FR49: Small projects | FS49: New head office | FT49: Building | FU49: Design | FV49: Rehabilitation and refurbishment | FW49: Refurbishment of 13th floor | FX49: 0 | FY49: 500 | FZ49: 0 | GA49: 1500 | GB49: 30000 | GC49: 5000 | GD49: =+T_InfraS[[#This Row],[2019/20 Revised Baseline]] -> 5000 | GE49: 5 | GF49: 1 | GG49: 3 | GH49: 513 | GI49: 005 | GJ49: =IF(T_InfraS[[#This Row],[Department]]<>FP48,1,GJ48+1) -> 13 | GK49: 013 | GL49: 005013 | GQ49: =IFERROR(INDEX(T_InfraS[Infrastructure category],MATCH(0,INDEX(COUNTIF($GP$26:GP48,T_InfraS[Infrastructure category]),0),0)),"") ->  | GV49: 14 | GX49: My_Sprog | GY49: $G$55 | HC49: 14 | HD49: Econ | HJ49: 11 | HK49: Public Works | HL49: 3 | HM49: Expanded Public Works Programme | HN49: 2 | HO49: Expanded Public Works Programme: Infrastructure | HP49: Expanded public works programme integrated grant for municipalities | HQ49: Current | HR49: Transfers and subsidies | HS49: Provinces and municipalities | HT49: Municipalities | HU49: LCG | HV49: 611274 | HW49: 594575 | HX49: 587685 | HY49: 663991 | HZ49: 663991 | IA49: 663991 | IB49: 691447 | IC49: 729345 | ID49: 780965 | IF49: 780965 | IG49: 2 | IH49: 11322 | II49: 01132 | IJ49: 2 | JB49: 007014 | JC49: 14 | JD49: =IFERROR(INDEX(T_InfraS[Programme/Project name],MATCH(JB49,T_InfraS[Combo_Lookup],0)),"") ->  | JF49: Finalization | JM49: 0 | JN49: =IF(JN48="ID",1,IF(T_KeyDeliverablesValues[[#This Row],[Department]]<>JQ48,1,JN48+1)) -> 3 | JO49: =INDEX((Table7[Vote No.]),MATCH(T_KeyDeliverablesValues[[#This Row],[Department]],Table7[Department],0)) -> 47 | JP49: =REPT("0",3-LEN(T_KeyDeliverablesValues[[#This Row],[VoteNo]]))&T_KeyDeliverablesValues[[#This Row],[VoteNo]]&REPT("0",3-LEN(T_KeyDeliverablesValues[[#This Row],[ID]]))&T_KeyDeliverablesValues[[#This Row],[ID]] -> 047003 | JQ49: Centre for Public Service Innovation | JR49: Operating leases | JS49: 1616 | JT49: 2366 | JU49: 2277 | JV49: 2948 | JW49: 3683 | JX49: 4000 | JY49: 4332 | JZ49: =IF(T_KeyDeliverablesValues[[#This Row],[CoEIndi]]=1,T_KeyDeliverablesValues[[#This Row],[2019/20]]*(1+$BQ$62),T_KeyDeliverablesValues[[#This Row],[2019/20]]*(1+$BQ$61)) -> 4570.26
B50: 1 | D50: 1 | G50: 2 | H50: Interest and rent on land | I50: =INDEX(('Econ ENE'!$M$5:$M$71),MATCH(Tables!H50,OFFSET('Econ ENE'!$Q$5:$Q$71,0,Tables!G50),0)) -> 3 | O50: =M58 -> Legal requirement | T50: 12 | U50: Statistics South Africa | W50: 8 | X50: Planning, Monitoring and Evaluation | Y50: 1 | Z50: Administration | AB50: 3 | AC50: Communications | AD50: 1 | AE50: Administration | AF50: 2 | AG50: Departmental Management | AH50: 003 | AI50: 001 | AJ50: 002 | AK50: 003001 | AL50: 003001002 | AU50: 007001016 | AV50: 007002016 | AW50: 007003016 | AX50: 007004016 | AY50: 007005016 | AZ50: 007006016 | BA50: 007007016 | BB50: 007008016 | BC50: 007009016 | BD50: 007010016 | BE50: 007016016 | BF50: =REPT("0",3-LEN($AT$6))&$AT$6&REPT("0",3-LEN(BF$9))&BF$9&REPT("0",3-LEN($AT26))&$AT26 -> 007000016 | BG50: 007000016 | BH50: 007000016 | BI50: 007000016 | BJ50: 007000016 | BN50: 15 | BO50: MyYear15 | BP50: 2028/29 | BR50: 2028 | BS50: 29 | BT50: 2028/29 | BV50: 3 | BW50: Communications | BX50: 3 | BY50: Industry and Capacity Development | BZ50: 3 | CA50: Industry Research and Analysis | CB50: 5392.9289 | CC50: =REPT("0",3-LEN(Table27[[#This Row],[Vote No'#]]))&Table27[[#This Row],[Vote No'#]] -> 003 | CD50: =REPT("0",3-LEN(Table27[[#This Row],[Programme No'#]]))&Table27[[#This Row],[Programme No'#]] -> 003 | CE50: =+Table27[[#This Row],[DeptCode]]&Table27[[#This Row],[ProgCode]] -> 003003 | CG50: =T_ENE_2016[[#This Row],[Vote No.]]&T_ENE_2016[[#This Row],[Programme No.]]&T_ENE_2016[[#This Row],[Subprogramme No.]] -> 111 | CH50: =INDEX((T_Econ3[Econ3_No]),MATCH(T_ENE_2016[[#This Row],[Econ4]],T_Econ3[Econ3],0)) -> 2 | CI50: 1 | CJ50: The Presidency | CK50: 1 | CL50: Administration | CM50: 1 | CN50: Management | CO50: Current payments | CP50: Goods and services | CQ50: Goods and services | CR50: 65 | CS50: 4 | CT50: 66 | CU50: 66 | CV50: 66 | CW50: 75 | CX50: 89 | CY50: 94 | DC50: =T_ENE_2016[[#This Row],[2018_19]] -> 89 | DD50: =T_ENE_2016[[#This Row],[2019_20]] -> 94 | DE50: =IF(T_ENE_2016[[#This Row],[Econ3]]="Compensation of employees",T_ENE_2016[[#This Row],[2019_20 IB]]*(1+MyCola3),(T_ENE_2016[[#This Row],[2019_20 IB]]+T_ENE_2016[[#This Row],[2019_20 NR]])*(1+MyCPI3)) -> 99.17 | DF50: The Presidency|Administration | DG50: 001 | DH50: 001 | DI50: 001 | DJ50: 002 | DK50: 001001 | DL50: 001002 | DM50: 2 | DN50: 001001001002 | DP50: 001001002 | DS50: =T_Transfers_NAT[[#This Row],[SPId]]&DT50 -> 004271 | DT50: =IF(T_Transfers_NAT[[#This Row],[Vote No.]]<>DU49,1,IF(T_Transfers_NAT[[#This Row],[Programme No.]]<>DW49,1,IF(T_Transfers_NAT[[#This Row],[Subprogramme No.]]<>DY49,1,DT49+1))) -> 1 | DU50: 4 | DV50: Cooperative Governance And Traditional Affairs | DW50: 2 | DX50: Regional and Urban Development and Legislative Support | DY50: 7 | DZ50: Municipal Demarcation Board | EA50: 50631 | EB50: 53568 | EC50: 56568 | ED50: =REPT("0",3-LEN(T_Transfers_NAT[[#This Row],[Vote No.]]))&T_Transfers_NAT[[#This Row],[Vote No.]]&T_Transfers_NAT[[#This Row],[Programme No.]]&T_Transfers_NAT[[#This Row],[Subprogramme No.]] -> 00427 | EE50: Municipal Demarcation Board | EH50: Transfers and subsidies | EI50: Departmental agencies and accounts | EJ50: Departmental agencies (non-business entities) | EK50: Current | EL50: 00422 | EM50: 2 | EP50: The Presidency | EQ50: Administration | ER50: 15 | ET50: 8 | EU50: 4 | EV50: 7 | EW50: 8809.41845 | EX50: 5 | EY50: 7100 | EZ50: 4 | FA50: 6044 | FB50: 4 | FC50: 6496 | FD50: 4 | FE50: 6968 | FF50: The Presidency|Administration | FG50: 001 | FH50: 001 | FI50: 001001 | FL50: 2 | FM50: =T_InfraS[[#This Row],[Programme/Project name]]&"|"&T_InfraS[[#This Row],[Type of infrastructure]] -> New head office|Building | FN50: =COUNTIF(T_InfraS[Programme/Project name],T_InfraS[[#This Row],[Programme/Project name]]) -> 2 | FO50: 5 | FP50: Home Affairs | FQ50: Departmental infrastructure | FR50: Small projects | FS50: New head office | FT50: Building | FU50: Feasibility | FV50: New infrastructure assets | FW50: Construction of new office building | FX50: 0 | FY50: 1500 | FZ50: 0 | GA50: 1500 | GB50: 5000 | GC50: 15000 | GD50: =+T_InfraS[[#This Row],[2019/20 Revised Baseline]] -> 15000 | GE50: 5 | GF50: 1 | GG50: 3 | GH50: 513 | GI50: 005 | GJ50: =IF(T_InfraS[[#This Row],[Department]]<>FP49,1,GJ49+1) -> 14 | GK50: 014 | GL50: 005014 | GV50: 15 | GX50: My_Econ_Area1 | GY50: $G$67:$G$98 | HC50: 15 | HD50: Transfer name | HJ50: 11 | HK50: Public Works | HL50: 3 | HM50: Expanded Public Works Programme | HN50: 3 | HO50: Expanded Public Works Programme: Operations | HP50: Social sector expanded public works programme incentive grant for provinces | HQ50: Current | HR50: Transfers and subsidies | HS50: Provinces and municipalities | HT50: Provinces | HU50: PCG | HV50: 255953 | HW50: 257972 | HX50: 226103 | HY50: 359662 | HZ50: 359662 | IA50: 359662 | IB50: 385583 | IC50: 407948 | ID50: 430793 | IF50: 430793 | IG50: 1 | IH50: 11331 | II50: 01133 | IJ50: 3 | IU50: =INDEX(Table7[Vote No.],MATCH(IV50,Table7[Department],0)) -> 24 | IV50: Agriculture, Forestry and Fisheries | JB50: 007015 | JC50: 15 | JD50: =IFERROR(INDEX(T_InfraS[Programme/Project name],MATCH(JB50,T_InfraS[Combo_Lookup],0)),"") ->  | JM50: 0 | JN50: =IF(JN49="ID",1,IF(T_KeyDeliverablesValues[[#This Row],[Department]]<>JQ49,1,JN49+1)) -> 4 | JO50: =INDEX((Table7[Vote No.]),MATCH(T_KeyDeliverablesValues[[#This Row],[Department]],Table7[Department],0)) -> 47 | JP50: =REPT("0",3-LEN(T_KeyDeliverablesValues[[#This Row],[VoteNo]]))&T_KeyDeliverablesValues[[#This Row],[VoteNo]]&REPT("0",3-LEN(T_KeyDeliverablesValues[[#This Row],[ID]]))&T_KeyDeliverablesValues[[#This Row],[ID]] -> 047004 | JQ50: Centre for Public Service Innovation | JR50: Travel and subsistence | JS50: 2887 | JT50: 2253 | JU50: 2516 | JV50: 2685 | JW50: 2704 | JX50: 2886 | JY50: 3037 | JZ50: =IF(T_KeyDeliverablesValues[[#This Row],[CoEIndi]]=1,T_KeyDeliverablesValues[[#This Row],[2019/20]]*(1+$BQ$62),T_KeyDeliverablesValues[[#This Row],[2019/20]]*(1+$BQ$61)) -> 3204.035
B51: 2 | D51: 2 | G51: 1 | H51: Transfers and subsidies | I51: =INDEX(('Econ ENE'!$M$5:$M$71),MATCH(Tables!H51,OFFSET('Econ ENE'!$Q$5:$Q$71,0,Tables!G51),0)) -> 43 | T51: 32 | U51: Telecommunications and Postal Services | W51: 8 | X51: Planning, Monitoring and Evaluation | Y51: 2 | Z51: National Planning Coordination | AB51: 3 | AC51: Communications | AD51: 1 | AE51: Administration | AF51: 3 | AG51: Internal Audit | AH51: 003 | AI51: 001 | AJ51: 003 | AK51: 003001 | AL51: 003001003 | AU51: 007001017 | AV51: 007002017 | AW51: 007003017 | AX51: 007004017 | AY51: 007005017 | AZ51: 007006017 | BA51: 007007017 | BB51: 007008017 | BC51: 007009017 | BD51: 007010017 | BE51: 007016017 | BF51: 007000017 | BG51: 007000017 | BH51: 007000017 | BI51: 007000017 | BJ51: 007000017 | BV51: 3 | BW51: Communications | BX51: 3 | BY51: Industry and Capacity Development | BZ51: 4 | CA51: Inter-governmental Relations and Stakeholder Management | CB51: 1696.82082 | CC51: =REPT("0",3-LEN(Table27[[#This Row],[Vote No'#]]))&Table27[[#This Row],[Vote No'#]] -> 003 | CD51: =REPT("0",3-LEN(Table27[[#This Row],[Programme No'#]]))&Table27[[#This Row],[Programme No'#]] -> 003 | CE51: =+Table27[[#This Row],[DeptCode]]&Table27[[#This Row],[ProgCode]] -> 003003 | CG51: =T_ENE_2016[[#This Row],[Vote No.]]&T_ENE_2016[[#This Row],[Programme No.]]&T_ENE_2016[[#This Row],[Subprogramme No.]] -> 111 | CH51: =INDEX((T_Econ3[Econ3_No]),MATCH(T_ENE_2016[[#This Row],[Econ4]],T_Econ3[Econ3],0)) -> 2 | CI51: 1 | CJ51: The Presidency | CK51: 1 | CL51: Administration | CM51: 1 | CN51: Management | CO51: Current payments | CP51: Goods and services | CQ51: Goods and services | CR51: 1330 | CS51: 2134 | CT51: 529 | CU51: 529 | CV51: 529 | CW51: 555 | CX51: 589 | CY51: 622 | DC51: =T_ENE_2016[[#This Row],[2018_19]] -> 589 | DD51: =T_ENE_2016[[#This Row],[2019_20]] -> 622 | DE51: =IF(T_ENE_2016[[#This Row],[Econ3]]="Compensation of employees",T_ENE_2016[[#This Row],[2019_20 IB]]*(1+MyCola3),(T_ENE_2016[[#This Row],[2019_20 IB]]+T_ENE_2016[[#This Row],[2019_20 NR]])*(1+MyCPI3)) -> 656.21 | DF51: The Presidency|Administration | DG51: 001 | DH51: 001 | DI51: 001 | DJ51: 002 | DK51: 001001 | DL51: 001002 | DM51: 2 | DN51: 001001001002 | DP51: 001001002 | DS51: =T_Transfers_NAT[[#This Row],[SPId]]&DT51 -> 004281 | DT51: =IF(T_Transfers_NAT[[#This Row],[Vote No.]]<>DU50,1,IF(T_Transfers_NAT[[#This Row],[Programme No.]]<>DW50,1,IF(T_Transfers_NAT[[#This Row],[Subprogramme No.]]<>DY50,1,DT50+1))) -> 1 | DU51: 4 | DV51: Cooperative Governance And Traditional Affairs | DW51: 2 | DX51: Regional and Urban Development and Legislative Support | DY51: 8 | DZ51: South African Cities Network | EA51: 6950 | EB51: 7353 | EC51: 7765 | ED51: =REPT("0",3-LEN(T_Transfers_NAT[[#This Row],[Vote No.]]))&T_Transfers_NAT[[#This Row],[Vote No.]]&T_Transfers_NAT[[#This Row],[Programme No.]]&T_Transfers_NAT[[#This Row],[Subprogramme No.]] -> 00428 | EE51: South African Cities Network | EH51: Transfers and subsidies | EI51: Non-profit institutions | EJ51: Non-profit institutions | EK51: Current | EL51: 00423 | EM51: 3 | EP51: The Presidency | EQ51: Administration | ER51: 16 | ET51: 8 | EU51: 6 | EV51: 9 | EW51: 16053 | EX51: 9 | EY51: 16650 | EZ51: 9 | FA51: 17550 | FB51: 3 | FC51: 6287 | FD51: 3 | FE51: 6743 | FF51: The Presidency|Administration | FG51: 001 | FH51: 001 | FI51: 001001 | FL51: 1 | FM51: =T_InfraS[[#This Row],[Programme/Project name]]&"|"&T_InfraS[[#This Row],[Type of infrastructure]] -> Ganyesa|Building | FN51: =COUNTIF(T_InfraS[Programme/Project name],T_InfraS[[#This Row],[Programme/Project name]]) -> 1 | FO51: 5 | FP51: Home Affairs | FQ51: Departmental infrastructure | FR51: Small projects | FS51: Ganyesa | FT51: Building | FU51: Pre-feasibility | FV51: New infrastructure assets | FW51: Construction of new office building | FX51: 0 | FY51: 0 | FZ51: 0 | GA51: 300 | GB51: 300 | GC51: 6277 | GD51: =+T_InfraS[[#This Row],[2019/20 Revised Baseline]] -> 6277 | GE51: 5 | GF51: 1 | GG51: 3 | GH51: 513 | GI51: 005 | GJ51: =IF(T_InfraS[[#This Row],[Department]]<>FP50,1,GJ50+1) -> 15 | GK51: 015 | GL51: 005015 | GV51: 16 | GX51: My_Econ_Area2 | GY51: $H$67:$H$98 | HC51: 16 | HD51: 2017/18 | HJ51: 14 | HK51: Basic Education | HL51: 2 | HM51: Curriculum Policy, Support and Monitoring | HN51: 2 | HO51: Curriculum Implementation and Monitoring | HP51: Learners with Profound Intellectual Disabilities Grant | HQ51: Current | HR51: Transfers and subsidies | HS51: Provinces and municipalities | HT51: Provinces | HU51: PCG | HV51: 0 | HW51: 0 | HX51: 0 | HY51: 0 | HZ51: 0 | IA51: 0 | IB51: 72000 | IC51: 185471 | ID51: 220785 | IF51: 220785 | IG51: 1 | IH51: 14221 | II51: 01421 | IJ51: 1 | IU51: =INDEX(Table7[Vote No.],MATCH(IV51,Table7[Department],0)) -> 37 | IV51: Arts and Culture | JB51: 007016 | JC51: 16 | JD51: =IFERROR(INDEX(T_InfraS[Programme/Project name],MATCH(JB51,T_InfraS[Combo_Lookup],0)),"") ->  | JM51: 1 | JN51: =IF(JN50="ID",1,IF(T_KeyDeliverablesValues[[#This Row],[Department]]<>JQ50,1,JN50+1)) -> 1 | JO51: =INDEX((Table7[Vote No.]),MATCH(T_KeyDeliverablesValues[[#This Row],[Department]],Table7[Department],0)) -> 41 | JP51: =REPT("0",3-LEN(T_KeyDeliverablesValues[[#This Row],[VoteNo]]))&T_KeyDeliverablesValues[[#This Row],[VoteNo]]&REPT("0",3-LEN(T_KeyDeliverablesValues[[#This Row],[ID]]))&T_KeyDeliverablesValues[[#This Row],[ID]] -> 041001 | JQ51: Civilian Secretariat | JR51: Compensation of employees | JS51: 42929 | JT51: 60920 | JU51: 65294 | JV51: 79444 | JW51: 88815 | JX51: 97452 | JY51: 104859 | JZ51: =IF(T_KeyDeliverablesValues[[#This Row],[CoEIndi]]=1,T_KeyDeliverablesValues[[#This Row],[2019/20]]*(1+$BQ$62),T_KeyDeliverablesValues[[#This Row],[2019/20]]*(1+$BQ$61)) -> 112723.425
B52: 3 | D52: 3 | G52: 2 | H52: Provinces and municipalities | I52: =INDEX(('Econ ENE'!$M$5:$M$71),MATCH(Tables!H52,OFFSET('Econ ENE'!$Q$5:$Q$71,0,Tables!G52),0)) -> 43 | T52: 1 | U52: The Presidency | W52: 8 | X52: Planning, Monitoring and Evaluation | Y52: 3 | Z52: Sector Planning and Monitoring | AB52: 3 | AC52: Communications | AD52: 1 | AE52: Administration | AF52: 4 | AG52: Corporate Services | AH52: 003 | AI52: 001 | AJ52: 004 | AK52: 003001 | AL52: 003001004 | AU52: 007001018 | AV52: 007002018 | AW52: 007003018 | AX52: 007004018 | AY52: 007005018 | AZ52: 007006018 | BA52: 007007018 | BB52: 007008018 | BC52: 007009018 | BD52: 007010018 | BE52: 007016018 | BF52: 007000018 | BG52: 007000018 | BH52: 007000018 | BI52: 007000018 | BJ52: 007000018 | BV52: 3 | BW52: Communications | BX52: 4 | BY52: Entity Oversight | BZ52: 1 | CA52: Programme Management for Entity Oversight | CB52: 4141.68052 | CC52: =REPT("0",3-LEN(Table27[[#This Row],[Vote No'#]]))&Table27[[#This Row],[Vote No'#]] -> 003 | CD52: =REPT("0",3-LEN(Table27[[#This Row],[Programme No'#]]))&Table27[[#This Row],[Programme No'#]] -> 004 | CE52: =+Table27[[#This Row],[DeptCode]]&Table27[[#This Row],[ProgCode]] -> 003004 | CG52: =T_ENE_2016[[#This Row],[Vote No.]]&T_ENE_2016[[#This Row],[Programme No.]]&T_ENE_2016[[#This Row],[Subprogramme No.]] -> 111 | CH52: =INDEX((T_Econ3[Econ3_No]),MATCH(T_ENE_2016[[#This Row],[Econ4]],T_Econ3[Econ3],0)) -> 2 | CI52: 1 | CJ52: The Presidency | CK52: 1 | CL52: Administration | CM52: 1 | CN52: Management | CO52: Current payments | CP52: Goods and services | CQ52: Goods and services | CR52: 6774 | CS52: 9110 | CT52: 1682 | CU52: 3782 | CV52: 3782 | CW52: 5277 | CX52: 5368 | CY52: 5473 | DC52: =T_ENE_2016[[#This Row],[2018_19]] -> 5368 | DD52: =T_ENE_2016[[#This Row],[2019_20]] -> 5473 | DE52: =IF(T_ENE_2016[[#This Row],[Econ3]]="Compensation of employees",T_ENE_2016[[#This Row],[2019_20 IB]]*(1+MyCola3),(T_ENE_2016[[#This Row],[2019_20 IB]]+T_ENE_2016[[#This Row],[2019_20 NR]])*(1+MyCPI3)) -> 5774.015 | DF52: The Presidency|Administration | DG52: 001 | DH52: 001 | DI52: 001 | DJ52: 002 | DK52: 001001 | DL52: 001002 | DM52: 2 | DN52: 001001001002 | DP52: 001001002 | DS52: =T_Transfers_NAT[[#This Row],[SPId]]&DT52 -> 004371 | DT52: =IF(T_Transfers_NAT[[#This Row],[Vote No.]]<>DU51,1,IF(T_Transfers_NAT[[#This Row],[Programme No.]]<>DW51,1,IF(T_Transfers_NAT[[#This Row],[Subprogramme No.]]<>DY51,1,DT51+1))) -> 1 | DU52: 4 | DV52: Cooperative Governance And Traditional Affairs | DW52: 3 | DX52: Institutional Development | DY52: 7 | DZ52: Local government equitable share | EA52: 57012141 | EB52: 62731845 | EC52: 67473465 | ED52: =REPT("0",3-LEN(T_Transfers_NAT[[#This Row],[Vote No.]]))&T_Transfers_NAT[[#This Row],[Vote No.]]&T_Transfers_NAT[[#This Row],[Programme No.]]&T_Transfers_NAT[[#This Row],[Subprogramme No.]] -> 00437 | EE52: Local Government Equitable Share | EH52: Transfers and subsidies | EI52: Provinces and municipalities | EJ52: Municipalities | EK52: Current | EL52: 00431 | EM52: 1 | EP52: The Presidency | EQ52: Direct charge against the National Revenue Fund | ER52: 16 | ET52: 2 | EU52: 0 | EV52: 2 | EW52: 5620 | EX52: 2 | EY52: 6120 | EZ52: 2 | FA52: 6641 | FB52: 2 | FC52: 7200 | FD52: 2 | FE52: 7792 | FF52: The Presidency|Direct charge against the National Revenue Fund | FG52: 001 | FH52: 016 | FI52: 001016 | FL52: 1 | FM52: =T_InfraS[[#This Row],[Programme/Project name]]&"|"&T_InfraS[[#This Row],[Type of infrastructure]] -> Bushbuckridge|Building | FN52: =COUNTIF(T_InfraS[Programme/Project name],T_InfraS[[#This Row],[Programme/Project name]]) -> 1 | FO52: 5 | FP52: Home Affairs | FQ52: Departmental infrastructure | FR52: Small projects | FS52: Bushbuckridge | FT52: Building | FU52: Pre-feasibility | FV52: New infrastructure assets | FW52: Construction of new office building | FX52: 0 | FY52: 0 | FZ52: 100000 | GA52: 0 | GB52: 7695 | GC52: 0 | GD52: =+T_InfraS[[#This Row],[2019/20 Revised Baseline]] -> 0 | GE52: 5 | GF52: 1 | GG52: 3 | GH52: 513 | GI52: 005 | GJ52: =IF(T_InfraS[[#This Row],[Department]]<>FP51,1,GJ51+1) -> 16 | GK52: 016 | GL52: 005016 | GV52: 17 | GX52: My_Econ_Area3 | GY52: $I$67:$I$98 | HC52: 17 | HD52: 2018/19 | HJ52: 14 | HK52: Basic Education | HL52: 2 | HM52: Curriculum Policy, Support and Monitoring | HN52: 4 | HO52: Curriculum and Quality Enhancement Programmes | HP52: Maths, science and technology grant | HQ52: Capital | HR52: Transfers and subsidies | HS52: Provinces and municipalities | HT52: Provinces | HU52: PCG | HV52: 306160 | HW52: 336159 | HX52: 316942 | HY52: 362444 | HZ52: 362444 | IA52: 362444 | IB52: 365145 | IC52: 386483 | ID52: 408302 | IF52: 408302 | IG52: 1 | IH52: 14241 | II52: 01422 | IJ52: 2 | IU52: =INDEX(Table7[Vote No.],MATCH(IV52,Table7[Department],0)) -> 14 | IV52: Basic Education | JB52: 007017 | JC52: 17 | JD52: =IFERROR(INDEX(T_InfraS[Programme/Project name],MATCH(JB52,T_InfraS[Combo_Lookup],0)),"") ->  | JM52: 0 | JN52: =IF(JN51="ID",1,IF(T_KeyDeliverablesValues[[#This Row],[Department]]<>JQ51,1,JN51+1)) -> 2 | JO52: =INDEX((Table7[Vote No.]),MATCH(T_KeyDeliverablesValues[[#This Row],[Department]],Table7[Department],0)) -> 41 | JP52: =REPT("0",3-LEN(T_KeyDeliverablesValues[[#This Row],[VoteNo]]))&T_KeyDeliverablesValues[[#This Row],[VoteNo]]&REPT("0",3-LEN(T_KeyDeliverablesValues[[#This Row],[ID]]))&T_KeyDeliverablesValues[[#This Row],[ID]] -> 041002 | JQ52: Civilian Secretariat | JR52: Computer services | JS52: 1219 | JT52: 0 | JU52: 9014 | JV52: 4513 | JW52: 6393 | JX52: 6206 | JY52: 6553 | JZ52: =IF(T_KeyDeliverablesValues[[#This Row],[CoEIndi]]=1,T_KeyDeliverablesValues[[#This Row],[2019/20]]*(1+$BQ$62),T_KeyDeliverablesValues[[#This Row],[2019/20]]*(1+$BQ$61)) -> 6913.415
B53: 4 | D53: 4 | G53: 3 | H53: Provinces | I53: =INDEX(('Econ ENE'!$M$5:$M$71),MATCH(Tables!H53,OFFSET('Econ ENE'!$Q$5:$Q$71,0,Tables!G53),0)) -> 43 | T53: 33 | U53: Tourism | W53: 8 | X53: Planning, Monitoring and Evaluation | Y53: 4 | Z53: Public Sector Monitoring and Capacity Development | AB53: 3 | AC53: Communications | AD53: 1 | AE53: Administration | AF53: 5 | AG53: Financial Management | AH53: 003 | AI53: 001 | AJ53: 005 | AK53: 003001 | AL53: 003001005 | AU53: 007001019 | AV53: 007002019 | AW53: 007003019 | AX53: 007004019 | AY53: 007005019 | AZ53: 007006019 | BA53: 007007019 | BB53: 007008019 | BC53: 007009019 | BD53: 007010019 | BE53: 007016019 | BF53: 007000019 | BG53: 007000019 | BH53: 007000019 | BI53: 007000019 | BJ53: 007000019 | BV53: 3 | BW53: Communications | BX53: 4 | BY53: Entity Oversight | BZ53: 2 | CA53: Broadcasting and Community Media | CB53: 206869.93 | CC53: =REPT("0",3-LEN(Table27[[#This Row],[Vote No'#]]))&Table27[[#This Row],[Vote No'#]] -> 003 | CD53: =REPT("0",3-LEN(Table27[[#This Row],[Programme No'#]]))&Table27[[#This Row],[Programme No'#]] -> 004 | CE53: =+Table27[[#This Row],[DeptCode]]&Table27[[#This Row],[ProgCode]] -> 003004 | CG53: =T_ENE_2016[[#This Row],[Vote No.]]&T_ENE_2016[[#This Row],[Programme No.]]&T_ENE_2016[[#This Row],[Subprogramme No.]] -> 111 | CH53: =INDEX((T_Econ3[Econ3_No]),MATCH(T_ENE_2016[[#This Row],[Econ4]],T_Econ3[Econ3],0)) -> 2 | CI53: 1 | CJ53: The Presidency | CK53: 1 | CL53: Administration | CM53: 1 | CN53: Management | CO53: Current payments | CP53: Goods and services | CQ53: Goods and services | CR53: 2354 | CS53: 772 | CT53: 4226 | CU53: 4226 | CV53: 4226 | CW53: 3462 | CX53: 3738 | CY53: 4003 | DC53: =T_ENE_2016[[#This Row],[2018_19]] -> 3738 | DD53: =T_ENE_2016[[#This Row],[2019_20]] -> 4003 | DE53: =IF(T_ENE_2016[[#This Row],[Econ3]]="Compensation of employees",T_ENE_2016[[#This Row],[2019_20 IB]]*(1+MyCola3),(T_ENE_2016[[#This Row],[2019_20 IB]]+T_ENE_2016[[#This Row],[2019_20 NR]])*(1+MyCPI3)) -> 4223.165 | DF53: The Presidency|Administration | DG53: 001 | DH53: 001 | DI53: 001 | DJ53: 002 | DK53: 001001 | DL53: 001002 | DM53: 2 | DN53: 001001001002 | DP53: 001001002 | DS53: =T_Transfers_NAT[[#This Row],[SPId]]&DT53 -> 004381 | DT53: =IF(T_Transfers_NAT[[#This Row],[Vote No.]]<>DU52,1,IF(T_Transfers_NAT[[#This Row],[Programme No.]]<>DW52,1,IF(T_Transfers_NAT[[#This Row],[Subprogramme No.]]<>DY52,1,DT52+1))) -> 1 | DU53: 4 | DV53: Cooperative Governance And Traditional Affairs | DW53: 3 | DX53: Institutional Development | DY53: 8 | DZ53: South African Local Government Association | EA53: 31300 | EB53: 33100 | EC53: 34954 | ED53: =REPT("0",3-LEN(T_Transfers_NAT[[#This Row],[Vote No.]]))&T_Transfers_NAT[[#This Row],[Vote No.]]&T_Transfers_NAT[[#This Row],[Programme No.]]&T_Transfers_NAT[[#This Row],[Subprogramme No.]] -> 00438 | EE53: South African Local Government Association | EH53: Transfers and subsidies | EI53: Departmental agencies and accounts | EJ53: Departmental agencies (non-business entities) | EK53: Current | EL53: 00432 | EM53: 2 | EP53: The Presidency | EQ53: Executive Support | ER53: 6 | ET53: 9 | EU53: 0 | EV53: 8 | EW53: 2150.58523 | EX53: 8 | EY53: 2666 | EZ53: 8 | FA53: 3505 | FB53: 8 | FC53: 3864 | FD53: 8 | FE53: 4048 | FF53: The Presidency|Executive Support | FG53: 001 | FH53: 002 | FI53: 001002 | FL53: 1 | FM53: =T_InfraS[[#This Row],[Programme/Project name]]&"|"&T_InfraS[[#This Row],[Type of infrastructure]] -> Modimolle|Building | FN53: =COUNTIF(T_InfraS[Programme/Project name],T_InfraS[[#This Row],[Programme/Project name]]) -> 1 | FO53: 5 | FP53: Home Affairs | FQ53: Departmental infrastructure | FR53: Small projects | FS53: Modimolle | FT53: Building | FU53: Pre-feasibility | FV53: New infrastructure assets | FW53: Construction of new office building | FX53: 0 | FY53: 129 | FZ53: 0 | GA53: 500 | GB53: 300 | GC53: 300 | GD53: =+T_InfraS[[#This Row],[2019/20 Revised Baseline]] -> 300 | GE53: 5 | GF53: 1 | GG53: 3 | GH53: 513 | GI53: 005 | GJ53: =IF(T_InfraS[[#This Row],[Department]]<>FP52,1,GJ52+1) -> 17 | GK53: 017 | GL53: 005017 | GV53: 18 | GX53: My_Econ_Area4 | GY53: $J$67:$J$98 | HC53: 18 | HD53: 2019/20 | HJ53: 14 | HK53: Basic Education | HL53: 3 | HM53: Teachers, Education Human Resources and Institutional Development | HN53: 2 | HO53: Education Human Resources Management | HP53: Occupational specific dispensation for education sector therapists grant | HQ53: Current | HR53: Transfers and subsidies | HS53: Provinces and municipalities | HT53: Provinces | HU53: PCG | HV53: 0 | HW53: 213000 | HX53: 66275 | HY53: 0 | HZ53: 0 | IA53: 0 | IB53: 0 | IC53: 0 | ID53: 0 | IF53: 0 | IG53: 1 | IH53: 14321 | II53: 01431 | IJ53: 1 | IU53: =INDEX(Table7[Vote No.],MATCH(IV53,Table7[Department],0)) ->  | IV53: Cooperative Governance | JB53: 007018 | JC53: 18 | JD53: =IFERROR(INDEX(T_InfraS[Programme/Project name],MATCH(JB53,T_InfraS[Combo_Lookup],0)),"") ->  | JM53: 0 | JN53: =IF(JN52="ID",1,IF(T_KeyDeliverablesValues[[#This Row],[Department]]<>JQ52,1,JN52+1)) -> 3 | JO53: =INDEX((Table7[Vote No.]),MATCH(T_KeyDeliverablesValues[[#This Row],[Department]],Table7[Department],0)) -> 41 | JP53: =REPT("0",3-LEN(T_KeyDeliverablesValues[[#This Row],[VoteNo]]))&T_KeyDeliverablesValues[[#This Row],[VoteNo]]&REPT("0",3-LEN(T_KeyDeliverablesValues[[#This Row],[ID]]))&T_KeyDeliverablesValues[[#This Row],[ID]] -> 041003 | JQ53: Civilian Secretariat | JR53: Travel and subsistence | JS53: 6114 | JT53: 8072 | JU53: 15651 | JV53: 10071 | JW53: 12158 | JX53: 12724 | JY53: 13428 | JZ53: =IF(T_KeyDeliverablesValues[[#This Row],[CoEIndi]]=1,T_KeyDeliverablesValues[[#This Row],[2019/20]]*(1+$BQ$62),T_KeyDeliverablesValues[[#This Row],[2019/20]]*(1+$BQ$61)) -> 14166.54
B54: 5 | D54: 5 | G54: 3 | H54: Municipalities | I54: =INDEX(('Econ ENE'!$M$5:$M$71),MATCH(Tables!H54,OFFSET('Econ ENE'!$Q$5:$Q$71,0,Tables!G54),0)) -> 44 | T54: 34 | U54: Trade and Industry | W54: 8 | X54: Planning, Monitoring and Evaluation | Y54: 5 | Z54: Frontline and Citizen-Based Service Delivery and Monitoring | AB54: 3 | AC54: Communications | AD54: 2 | AE54: Communications Policy, Research and Development | AF54: 2 | AG54: Broadcasting Policy | AH54: 003 | AI54: 002 | AJ54: 002 | AK54: 003002 | AL54: 003002002 | AU54: 007001020 | AV54: 007002020 | AW54: 007003020 | AX54: 007004020 | AY54: 007005020 | AZ54: 007006020 | BA54: 007007020 | BB54: 007008020 | BC54: 007009020 | BD54: 007010020 | BE54: 007016020 | BF54: 007000020 | BG54: 007000020 | BH54: 007000020 | BI54: 007000020 | BJ54: 007000020 | BN54: Names | BV54: 3 | BW54: Communications | BX54: 4 | BY54: Entity Oversight | BZ54: 3 | CA54: Communication and Branding | CB54: 566442 | CC54: =REPT("0",3-LEN(Table27[[#This Row],[Vote No'#]]))&Table27[[#This Row],[Vote No'#]] -> 003 | CD54: =REPT("0",3-LEN(Table27[[#This Row],[Programme No'#]]))&Table27[[#This Row],[Programme No'#]] -> 004 | CE54: =+Table27[[#This Row],[DeptCode]]&Table27[[#This Row],[ProgCode]] -> 003004 | CG54: =T_ENE_2016[[#This Row],[Vote No.]]&T_ENE_2016[[#This Row],[Programme No.]]&T_ENE_2016[[#This Row],[Subprogramme No.]] -> 111 | CH54: =INDEX((T_Econ3[Econ3_No]),MATCH(T_ENE_2016[[#This Row],[Econ4]],T_Econ3[Econ3],0)) -> 2 | CI54: 1 | CJ54: The Presidency | CK54: 1 | CL54: Administration | CM54: 1 | CN54: Management | CO54: Current payments | CP54: Goods and services | CQ54: Goods and services | CR54: 2971 | CS54: 4026 | CT54: 1490 | CU54: 1490 | CV54: 1490 | CW54: 1650 | CX54: 1778 | CY54: 1878 | DC54: =T_ENE_2016[[#This Row],[2018_19]] -> 1778 | DD54: =T_ENE_2016[[#This Row],[2019_20]] -> 1878 | DE54: =IF(T_ENE_2016[[#This Row],[Econ3]]="Compensation of employees",T_ENE_2016[[#This Row],[2019_20 IB]]*(1+MyCola3),(T_ENE_2016[[#This Row],[2019_20 IB]]+T_ENE_2016[[#This Row],[2019_20 NR]])*(1+MyCPI3)) -> 1981.29 | DF54: The Presidency|Administration | DG54: 001 | DH54: 001 | DI54: 001 | DJ54: 002 | DK54: 001001 | DL54: 001002 | DM54: 2 | DN54: 001001001002 | DP54: 001001002 | DS54: =T_Transfers_NAT[[#This Row],[SPId]]&DT54 -> 0043101 | DT54: =IF(T_Transfers_NAT[[#This Row],[Vote No.]]<>DU53,1,IF(T_Transfers_NAT[[#This Row],[Programme No.]]<>DW53,1,IF(T_Transfers_NAT[[#This Row],[Subprogramme No.]]<>DY53,1,DT53+1))) -> 1 | DU54: 4 | DV54: Cooperative Governance And Traditional Affairs | DW54: 3 | DX54: Institutional Development | DY54: 10 | DZ54: Department of Traditional Affairs | EA54: 145006 | EB54: 154216 | EC54: 164313 | ED54: =REPT("0",3-LEN(T_Transfers_NAT[[#This Row],[Vote No.]]))&T_Transfers_NAT[[#This Row],[Vote No.]]&T_Transfers_NAT[[#This Row],[Programme No.]]&T_Transfers_NAT[[#This Row],[Subprogramme No.]] -> 004310 | EE54: Department of Traditional Affairs | EH54: Transfers and subsidies | EI54: Departmental agencies and accounts | EJ54: Departmental agencies (non-business entities) | EK54: Current | EL54: 00433 | EM54: 3 | EP54: The Presidency | EQ54: Executive Support | ER54: 7 | ET54: 2 | EU54: 0 | EV54: 3 | EW54: 946.71956 | EX54: 3 | EY54: 1114 | EZ54: 3 | FA54: 1498 | FB54: 3 | FC54: 1599 | FD54: 3 | FE54: 1706 | FF54: The Presidency|Executive Support | FG54: 001 | FH54: 002 | FI54: 001002 | FL54: 1 | FM54: =T_InfraS[[#This Row],[Programme/Project name]]&"|"&T_InfraS[[#This Row],[Type of infrastructure]] -> Bochum|Building | FN54: =COUNTIF(T_InfraS[Programme/Project name],T_InfraS[[#This Row],[Programme/Project name]]) -> 1 | FO54: 5 | FP54: Home Affairs | FQ54: Departmental infrastructure | FR54: Small projects | FS54: Bochum | FT54: Building | FU54: Pre-feasibility | FV54: New infrastructure assets | FW54: Construction of new office building | FX54: 0 | FY54: 300 | FZ54: 0 | GA54: 300 | GB54: 0 | GC54: 47 | GD54: =+T_InfraS[[#This Row],[2019/20 Revised Baseline]] -> 47 | GE54: 5 | GF54: 1 | GG54: 3 | GH54: 513 | GI54: 005 | GJ54: =IF(T_InfraS[[#This Row],[Department]]<>FP53,1,GJ53+1) -> 18 | GK54: 018 | GL54: 005018 | GV54: 19 | GX54: My_Transfers_Existing_Area1 | GY54: $G$108:$G$157 | HC54: 19 | HD54: 2017/18 | HJ54: 14 | HK54: Basic Education | HL54: 4 | HM54: Planning, Information and Assessment | HN54: 3 | HO54: School Infrastructure | HP54: Education infrastructure grant | HQ54: Capital | HR54: Transfers and subsidies | HS54: Provinces and municipalities | HT54: Provinces | HU54: PCG | HV54: 6643267 | HW54: 7326584 | HX54: 9354443 | HY54: 9613692 | HZ54: 9933282 | IA54: 9933282 | IB54: 10045562 | IC54: 13389560 | ID54: 14141207 | IF54: 14141207 | IG54: 1 | IH54: 14431 | II54: 01441 | IJ54: 1 | IU54: =INDEX(Table7[Vote No.],MATCH(IV54,Table7[Department],0)) -> 18 | IV54: Correctional Services | JB54: 007019 | JC54: 19 | JD54: =IFERROR(INDEX(T_InfraS[Programme/Project name],MATCH(JB54,T_InfraS[Combo_Lookup],0)),"") ->  | JM54: 0 | JN54: =IF(JN53="ID",1,IF(T_KeyDeliverablesValues[[#This Row],[Department]]<>JQ53,1,JN53+1)) -> 1 | JO54: =INDEX((Table7[Vote No.]),MATCH(T_KeyDeliverablesValues[[#This Row],[Department]],Table7[Department],0)) -> 3 | JP54: =REPT("0",3-LEN(T_KeyDeliverablesValues[[#This Row],[VoteNo]]))&T_KeyDeliverablesValues[[#This Row],[VoteNo]]&REPT("0",3-LEN(T_KeyDeliverablesValues[[#This Row],[ID]]))&T_KeyDeliverablesValues[[#This Row],[ID]] -> 003001 | JQ54: Communications | JR54: Government Communication and Information System | JS54: 409171 | JT54: 371392 | JU54: 365476 | JV54: 385256 | JW54: 404750 | JX54: 431267 | JY54: 460456 | JZ54: =IF(T_KeyDeliverablesValues[[#This Row],[CoEIndi]]=1,T_KeyDeliverablesValues[[#This Row],[2019/20]]*(1+$BQ$62),T_KeyDeliverablesValues[[#This Row],[2019/20]]*(1+$BQ$61)) -> 485781.08
B55: 6 | D55: 6 | G55: 2 | H55: Departmental agencies and accounts | I55: =INDEX(('Econ ENE'!$M$5:$M$71),MATCH(Tables!H55,OFFSET('Econ ENE'!$Q$5:$Q$71,0,Tables!G55),0)) -> 45 | L55: Id | M55: Increase_Decrease | T55: 43 | U55: Traditional Affairs | W55: 8 | X55: Planning, Monitoring and Evaluation | Y55: 6 | Z55: Evidence and Knowledge Systems | AB55: 3 | AC55: Communications | AD55: 2 | AE55: Communications Policy, Research and Development | AF55: 3 | AG55: Media Policy | AH55: 003 | AI55: 002 | AJ55: 003 | AK55: 003002 | AL55: 003002003 | BN55: MTEF_Headings | BO55: =MyYear5 -> 2018/19 | BP55: =MyYear6 -> 2019/20 | BQ55: =MyYear7 -> 2020/21 | BV55: 3 | BW55: Communications | BX55: 4 | BY55: Entity Oversight | BZ55: 4 | CA55: Regulatory Institutions | CB55: 459543 | CC55: =REPT("0",3-LEN(Table27[[#This Row],[Vote No'#]]))&Table27[[#This Row],[Vote No'#]] -> 003 | CD55: =REPT("0",3-LEN(Table27[[#This Row],[Programme No'#]]))&Table27[[#This Row],[Programme No'#]] -> 004 | CE55: =+Table27[[#This Row],[DeptCode]]&Table27[[#This Row],[ProgCode]] -> 003004 | CG55: =T_ENE_2016[[#This Row],[Vote No.]]&T_ENE_2016[[#This Row],[Programme No.]]&T_ENE_2016[[#This Row],[Subprogramme No.]] -> 111 | CH55: =INDEX((T_Econ3[Econ3_No]),MATCH(T_ENE_2016[[#This Row],[Econ4]],T_Econ3[Econ3],0)) -> 2 | CI55: 1 | CJ55: The Presidency | CK55: 1 | CL55: Administration | CM55: 1 | CN55: Management | CO55: Current payments | CP55: Goods and services | CQ55: Goods and services | CR55: 2442 | CS55: 1671 | CT55: 2082 | CU55: 2082 | CV55: 2082 | CW55: 2204 | CX55: 2331 | CY55: 2462 | DC55: =T_ENE_2016[[#This Row],[2018_19]] -> 2331 | DD55: =T_ENE_2016[[#This Row],[2019_20]] -> 2462 | DE55: =IF(T_ENE_2016[[#This Row],[Econ3]]="Compensation of employees",T_ENE_2016[[#This Row],[2019_20 IB]]*(1+MyCola3),(T_ENE_2016[[#This Row],[2019_20 IB]]+T_ENE_2016[[#This Row],[2019_20 NR]])*(1+MyCPI3)) -> 2597.41 | DF55: The Presidency|Administration | DG55: 001 | DH55: 001 | DI55: 001 | DJ55: 002 | DK55: 001001 | DL55: 001002 | DM55: 2 | DN55: 001001001002 | DP55: 001001002 | DS55: =T_Transfers_NAT[[#This Row],[SPId]]&DT55 -> 0043111 | DT55: =IF(T_Transfers_NAT[[#This Row],[Vote No.]]<>DU54,1,IF(T_Transfers_NAT[[#This Row],[Programme No.]]<>DW54,1,IF(T_Transfers_NAT[[#This Row],[Subprogramme No.]]<>DY54,1,DT54+1))) -> 1 | DU55: 4 | DV55: Cooperative Governance And Traditional Affairs | DW55: 3 | DX55: Institutional Development | DY55: 11 | DZ55: United Cities and Local Governments of Africa - South African Regional Office | EA55: 5123 | EB55: 5426 | EC55: 5730 | ED55: =REPT("0",3-LEN(T_Transfers_NAT[[#This Row],[Vote No.]]))&T_Transfers_NAT[[#This Row],[Vote No.]]&T_Transfers_NAT[[#This Row],[Programme No.]]&T_Transfers_NAT[[#This Row],[Subprogramme No.]] -> 004311 | EE55: United Cities and Local Government of Africa | EH55: Transfers and subsidies | EI55: Non-profit institutions | EJ55: Non-profit institutions | EK55: Current | EL55: 00434 | EM55: 4 | EP55: The Presidency | EQ55: Executive Support | ER55: 9 | ET55: 2 | EU55: 0 | EV55: 2 | EW55: 693.35392 | EX55: 2 | EY55: 806 | EZ55: 2 | FA55: 1153 | FB55: 2 | FC55: 1225 | FD55: 2 | FE55: 1370 | FF55: The Presidency|Executive Support | FG55: 001 | FH55: 002 | FI55: 001002 | FL55: 1 | FM55: =T_InfraS[[#This Row],[Programme/Project name]]&"|"&T_InfraS[[#This Row],[Type of infrastructure]] -> Mokopane|Building | FN55: =COUNTIF(T_InfraS[Programme/Project name],T_InfraS[[#This Row],[Programme/Project name]]) -> 1 | FO55: 5 | FP55: Home Affairs | FQ55: Departmental infrastructure | FR55: Small projects | FS55: Mokopane | FT55: Building | FU55: Construction | FV55: New infrastructure assets | FW55: Construction of new office building | FX55: 0 | FY55: 0 | FZ55: 500 | GA55: 2642 | GB55: 4799 | GC55: 0 | GD55: =+T_InfraS[[#This Row],[2019/20 Revised Baseline]] -> 0 | GE55: 5 | GF55: 1 | GG55: 3 | GH55: 513 | GI55: 005 | GJ55: =IF(T_InfraS[[#This Row],[Department]]<>FP54,1,GJ54+1) -> 19 | GK55: 019 | GL55: 005019 | GV55: 20 | GX55: My_Transfers_Existing_Area2 | GY55: $H$108:$H$157 | HC55: 20 | HD55: 2018/19 | HJ55: 14 | HK55: Basic Education | HL55: 5 | HM55: Educational Enrichment Services | HN55: 3 | HO55: Care and Support in Schools | HP55: National school nutrition programme grant | HQ55: Current | HR55: Transfers and subsidies | HS55: Provinces and municipalities | HT55: Provinces | HU55: PCG | HV55: 5173081 | HW55: 5461915 | HX55: 5685381 | HY55: 6006012 | HZ55: 6059655 | IA55: 6059655 | IB55: 6426313 | IC55: 6802079 | ID55: 7185715 | IF55: 7185715 | IG55: 1 | IH55: 14531 | II55: 01451 | IJ55: 1 | IU55: =INDEX(Table7[Vote No.],MATCH(IV55,Table7[Department],0)) ->  | IV55: Defence | JB55: 007020 | JC55: 20 | JD55: =IFERROR(INDEX(T_InfraS[Programme/Project name],MATCH(JB55,T_InfraS[Combo_Lookup],0)),"") ->  | JM55: 0 | JN55: =IF(JN54="ID",1,IF(T_KeyDeliverablesValues[[#This Row],[Department]]<>JQ54,1,JN54+1)) -> 2 | JO55: =INDEX((Table7[Vote No.]),MATCH(T_KeyDeliverablesValues[[#This Row],[Department]],Table7[Department],0)) -> 3 | JP55: =REPT("0",3-LEN(T_KeyDeliverablesValues[[#This Row],[VoteNo]]))&T_KeyDeliverablesValues[[#This Row],[VoteNo]]&REPT("0",3-LEN(T_KeyDeliverablesValues[[#This Row],[ID]]))&T_KeyDeliverablesValues[[#This Row],[ID]] -> 003002 | JQ55: Communications | JR55: Independent Communications Authority of South Africa | JS55: 390661 | JT55: 376221 | JU55: 393619 | JV55: 373071 | JW55: 430383 | JX55: 455345 | JY55: 480845 | JZ55: =IF(T_KeyDeliverablesValues[[#This Row],[CoEIndi]]=1,T_KeyDeliverablesValues[[#This Row],[2019/20]]*(1+$BQ$62),T_KeyDeliverablesValues[[#This Row],[2019/20]]*(1+$BQ$61)) -> 507291.475
D56: 7 | G56: 3 | H56: Departmental agencies (non-business entities) | I56: =INDEX(('Econ ENE'!$M$5:$M$71),MATCH(Tables!H56,OFFSET('Econ ENE'!$Q$5:$Q$71,0,Tables!G56),0)) -> 46 | L56: 1 | M56: Input cost / Cost pressure | T56: 35 | U56: Transport | W56: 8 | X56: Planning, Monitoring and Evaluation | Y56: 7 | Z56: National Youth Development | AB56: 3 | AC56: Communications | AD56: 2 | AE56: Communications Policy, Research and Development | AF56: 4 | AG56: Technology and Engineering Services | AH56: 003 | AI56: 002 | AJ56: 004 | AK56: 003002 | AL56: 003002004 | BV56: 4 | BW56: Cooperative Governance And Traditional Affairs | BX56: 1 | BY56: Administration | BZ56: 1 | CA56: Ministry | CB56: 32084.74633 | CC56: =REPT("0",3-LEN(Table27[[#This Row],[Vote No'#]]))&Table27[[#This Row],[Vote No'#]] -> 004 | CD56: =REPT("0",3-LEN(Table27[[#This Row],[Programme No'#]]))&Table27[[#This Row],[Programme No'#]] -> 001 | CE56: =+Table27[[#This Row],[DeptCode]]&Table27[[#This Row],[ProgCode]] -> 004001 | CG56: =T_ENE_2016[[#This Row],[Vote No.]]&T_ENE_2016[[#This Row],[Programme No.]]&T_ENE_2016[[#This Row],[Subprogramme No.]] -> 111 | CH56: =INDEX((T_Econ3[Econ3_No]),MATCH(T_ENE_2016[[#This Row],[Econ4]],T_Econ3[Econ3],0)) -> 2 | CI56: 1 | CJ56: The Presidency | CK56: 1 | CL56: Administration | CM56: 1 | CN56: Management | CO56: Current payments | CP56: Goods and services | CQ56: Goods and services | CR56: 407 | CS56: 434 | CT56: 86 | CU56: 86 | CV56: 86 | CW56: 92 | CX56: 96 | CY56: 101 | DC56: =T_ENE_2016[[#This Row],[2018_19]] -> 96 | DD56: =T_ENE_2016[[#This Row],[2019_20]] -> 101 | DE56: =IF(T_ENE_2016[[#This Row],[Econ3]]="Compensation of employees",T_ENE_2016[[#This Row],[2019_20 IB]]*(1+MyCola3),(T_ENE_2016[[#This Row],[2019_20 IB]]+T_ENE_2016[[#This Row],[2019_20 NR]])*(1+MyCPI3)) -> 106.555 | DF56: The Presidency|Administration | DG56: 001 | DH56: 001 | DI56: 001 | DJ56: 002 | DK56: 001001 | DL56: 001002 | DM56: 2 | DN56: 001001001002 | DP56: 001001002 | DS56: =T_Transfers_NAT[[#This Row],[SPId]]&DT56 -> 0043112 | DT56: =IF(T_Transfers_NAT[[#This Row],[Vote No.]]<>DU55,1,IF(T_Transfers_NAT[[#This Row],[Programme No.]]<>DW55,1,IF(T_Transfers_NAT[[#This Row],[Subprogramme No.]]<>DY55,1,DT55+1))) -> 2 | DU56: 4 | DV56: Cooperative Governance And Traditional Affairs | DW56: 3 | DX56: Institutional Development | DY56: 11 | DZ56: United Cities and Local Governments of Africa - Morocco | EA56: 1281 | EB56: 1356 | EC56: 1432 | ED56: =REPT("0",3-LEN(T_Transfers_NAT[[#This Row],[Vote No.]]))&T_Transfers_NAT[[#This Row],[Vote No.]]&T_Transfers_NAT[[#This Row],[Programme No.]]&T_Transfers_NAT[[#This Row],[Subprogramme No.]] -> 004311 | EE56: United Cities and Local Government of Africa | EH56: Transfers and subsidies | EI56: Foreign governments and international organisations | EJ56: Foreign governments and international organisations | EK56: Current | EL56: 00435 | EM56: 5 | EP56: The Presidency | EQ56: Executive Support | ER56: 11 | ET56: 1 | EU56: 0 | EV56: 1 | EW56: 666.32962 | EX56: 1 | EY56: 790 | EZ56: 1 | FA56: 909 | FB56: 1 | FC56: 977 | FD56: 1 | FE56: 1120 | FF56: The Presidency|Executive Support | FG56: 001 | FH56: 002 | FI56: 001002 | FL56: 1 | FM56: =T_InfraS[[#This Row],[Programme/Project name]]&"|"&T_InfraS[[#This Row],[Type of infrastructure]] -> Supply and delivery: Park Homes|Building | FN56: =COUNTIF(T_InfraS[Programme/Project name],T_InfraS[[#This Row],[Programme/Project name]]) -> 1 | FO56: 5 | FP56: Home Affairs | FQ56: Departmental infrastructure | FR56: Small projects | FS56: Supply and delivery: Park Homes | FT56: Building | FU56: Construction | FV56: New infrastructure assets | FW56: Construction of residential accommodation for officials | FX56: 0 | FY56: 3000 | FZ56: 2477 | GA56: 0 | GB56: 0 | GC56: 0 | GD56: =+T_InfraS[[#This Row],[2019/20 Revised Baseline]] -> 0 | GE56: 5 | GF56: 1 | GG56: 3 | GH56: 513 | GI56: 005 | GJ56: =IF(T_InfraS[[#This Row],[Department]]<>FP55,1,GJ55+1) -> 20 | GK56: 020 | GL56: 005020 | GV56: 21 | GX56: My_Transfers_Existing_Area3 | GY56: $I$108:$I$157 | HC56: 21 | HD56: 2019/20 | HJ56: 14 | HK56: Basic Education | HL56: 5 | HM56: Educational Enrichment Services | HN56: 3 | HO56: Care and Support in Schools | HP56: HIV and AIDS (life skills education) grant | HQ56: Current | HR56: Transfers and subsidies | HS56: Provinces and municipalities | HT56: Provinces | HU56: PCG | HV56: 203780 | HW56: 212138 | HX56: 208730 | HY56: 230849 | HZ56: 230849 | IA56: 230849 | IB56: 245308 | IC56: 259536 | ID56: 274070 | IF56: 274070 | IG56: 2 | IH56: 14532 | II56: 01452 | IJ56: 2 | IU56: =INDEX(Table7[Vote No.],MATCH(IV56,Table7[Department],0)) -> 26 | IV56: Energy | JB56: 007021 | JC56: 21 | JD56: =IFERROR(INDEX(T_InfraS[Programme/Project name],MATCH(JB56,T_InfraS[Combo_Lookup],0)),"") ->  | JM56: 0 | JN56: =IF(JN55="ID",1,IF(T_KeyDeliverablesValues[[#This Row],[Department]]<>JQ55,1,JN55+1)) -> 3 | JO56: =INDEX((Table7[Vote No.]),MATCH(T_KeyDeliverablesValues[[#This Row],[Department]],Table7[Department],0)) -> 3 | JP56: =REPT("0",3-LEN(T_KeyDeliverablesValues[[#This Row],[VoteNo]]))&T_KeyDeliverablesValues[[#This Row],[VoteNo]]&REPT("0",3-LEN(T_KeyDeliverablesValues[[#This Row],[ID]]))&T_KeyDeliverablesValues[[#This Row],[ID]] -> 003003 | JQ56: Communications | JR56: Brand South Africa | JS56: 160434 | JT56: 167686 | JU56: 173160 | JV56: 181186 | JW56: 194300 | JX56: 205569 | JY56: 217081 | JZ56: =IF(T_KeyDeliverablesValues[[#This Row],[CoEIndi]]=1,T_KeyDeliverablesValues[[#This Row],[2019/20]]*(1+$BQ$62),T_KeyDeliverablesValues[[#This Row],[2019/20]]*(1+$BQ$61)) -> 229020.455
D57: 8 | G57: 3 | H57: Social security funds | I57: =INDEX(('Econ ENE'!$M$5:$M$71),MATCH(Tables!H57,OFFSET('Econ ENE'!$Q$5:$Q$71,0,Tables!G57),0)) -> 45 | L57: 2 | M57: Higher priority | T57: 36 | U57: Water and Sanitation | W57: 9 | X57: Public Enterprises | Y57: 1 | Z57: Administration | AB57: 3 | AC57: Communications | AD57: 3 | AE57: Industry and Capacity Development | AF57: 2 | AG57: Enterprise Development | AH57: 003 | AI57: 003 | AJ57: 002 | AK57: 003003 | AL57: 003003002 | BV57: 4 | BW57: Cooperative Governance And Traditional Affairs | BX57: 1 | BY57: Administration | BZ57: 2 | CA57: Management | CB57: 14399.23752 | CC57: =REPT("0",3-LEN(Table27[[#This Row],[Vote No'#]]))&Table27[[#This Row],[Vote No'#]] -> 004 | CD57: =REPT("0",3-LEN(Table27[[#This Row],[Programme No'#]]))&Table27[[#This Row],[Programme No'#]] -> 001 | CE57: =+Table27[[#This Row],[DeptCode]]&Table27[[#This Row],[ProgCode]] -> 004001 | CG57: =T_ENE_2016[[#This Row],[Vote No.]]&T_ENE_2016[[#This Row],[Programme No.]]&T_ENE_2016[[#This Row],[Subprogramme No.]] -> 111 | CH57: =INDEX((T_Econ3[Econ3_No]),MATCH(T_ENE_2016[[#This Row],[Econ4]],T_Econ3[Econ3],0)) -> 2 | CI57: 1 | CJ57: The Presidency | CK57: 1 | CL57: Administration | CM57: 1 | CN57: Management | CO57: Current payments | CP57: Goods and services | CQ57: Goods and services | CR57: 427 | CS57: 108 | CT57: 37 | CU57: 37 | CV57: 37 | CW57: 44 | CX57: 52 | CY57: 55 | DC57: =T_ENE_2016[[#This Row],[2018_19]] -> 52 | DD57: =T_ENE_2016[[#This Row],[2019_20]] -> 55 | DE57: =IF(T_ENE_2016[[#This Row],[Econ3]]="Compensation of employees",T_ENE_2016[[#This Row],[2019_20 IB]]*(1+MyCola3),(T_ENE_2016[[#This Row],[2019_20 IB]]+T_ENE_2016[[#This Row],[2019_20 NR]])*(1+MyCPI3)) -> 58.025 | DF57: The Presidency|Administration | DG57: 001 | DH57: 001 | DI57: 001 | DJ57: 002 | DK57: 001001 | DL57: 001002 | DM57: 2 | DN57: 001001001002 | DP57: 001001002 | DS57: =T_Transfers_NAT[[#This Row],[SPId]]&DT57 -> 004471 | DT57: =IF(T_Transfers_NAT[[#This Row],[Vote No.]]<>DU56,1,IF(T_Transfers_NAT[[#This Row],[Programme No.]]<>DW56,1,IF(T_Transfers_NAT[[#This Row],[Subprogramme No.]]<>DY56,1,DT56+1))) -> 1 | DU57: 4 | DV57: Cooperative Governance And Traditional Affairs | DW57: 4 | DX57: National Disaster Management Centre | DY57: 7 | DZ57: Municipal disaster grant | EA57: 300281 | EB57: 370597 | EC57: 335488 | ED57: =REPT("0",3-LEN(T_Transfers_NAT[[#This Row],[Vote No.]]))&T_Transfers_NAT[[#This Row],[Vote No.]]&T_Transfers_NAT[[#This Row],[Programme No.]]&T_Transfers_NAT[[#This Row],[Subprogramme No.]] -> 00447 | EE57: Disaster Relief Grant | EH57: Transfers and subsidies | EI57: Provinces and municipalities | EJ57: Municipalities | EK57: Current | EL57: 00441 | EM57: 1 | EP57: The Presidency | EQ57: Executive Support | ER57: 12 | ET57: 4 | EU57: 0 | EV57: 4 | EW57: 3125 | EX57: 3 | EY57: 2940 | EZ57: 3 | FA57: 3342 | FB57: 3 | FC57: 3613 | FD57: 3 | FE57: 3950 | FF57: The Presidency|Executive Support | FG57: 001 | FH57: 002 | FI57: 001002 | FL57: 1 | FM57: =T_InfraS[[#This Row],[Programme/Project name]]&"|"&T_InfraS[[#This Row],[Type of infrastructure]] -> Ministry|Building | FN57: =COUNTIF(T_InfraS[Programme/Project name],T_InfraS[[#This Row],[Programme/Project name]]) -> 1 | FO57: 5 | FP57: Home Affairs | FQ57: Departmental infrastructure | FR57: Small projects | FS57: Ministry | FT57: Building | FU57: Pre-feasibility | FV57: Maintenance and repair | FW57: Rezoning of office building | FX57: 0 | FY57: 159 | FZ57: 0 | GA57: 0 | GB57: 0 | GC57: 0 | GD57: =+T_InfraS[[#This Row],[2019/20 Revised Baseline]] -> 0 | GE57: 5 | GF57: 1 | GG57: 3 | GH57: 513 | GI57: 005 | GJ57: =IF(T_InfraS[[#This Row],[Department]]<>FP56,1,GJ56+1) -> 21 | GK57: 021 | GL57: 005021 | GV57: 22 | GX57: My_Transfers_Existing_Area4 | GY57: $J$108:$J$157 | HC57: 22 | HD57: 2017/18 | HJ57: 16 | HK57: Health | HL57: 2 | HM57: National Health Insurance, Health Planning and Systems Enablement | HN57: 5 | HO57: Health Financing and National Health Insurance | HP57: National health insurance grant | HQ57: Current | HR57: Transfers and subsidies | HS57: Provinces and municipalities | HT57: Provinces | HU57: PCG | HV57: 50953 | HW57: 76956 | HX57: 61077 | HY57: 85227 | HZ57: 94227 | IA57: 94227 | IB57: 0 | IC57: 0 | ID57: 0 | IF57: 0 | IG57: 1 | IH57: 16251 | II57: 01621 | IJ57: 1 | IU57: =INDEX(Table7[Vote No.],MATCH(IV57,Table7[Department],0)) -> 27 | IV57: Environmental Affairs | JB57: 007022 | JC57: 22 | JD57: =IFERROR(INDEX(T_InfraS[Programme/Project name],MATCH(JB57,T_InfraS[Combo_Lookup],0)),"") ->  | JM57: 0 | JN57: =IF(JN56="ID",1,IF(T_KeyDeliverablesValues[[#This Row],[Department]]<>JQ56,1,JN56+1)) -> 4 | JO57: =INDEX((Table7[Vote No.]),MATCH(T_KeyDeliverablesValues[[#This Row],[Department]],Table7[Department],0)) -> 3 | JP57: =REPT("0",3-LEN(T_KeyDeliverablesValues[[#This Row],[VoteNo]]))&T_KeyDeliverablesValues[[#This Row],[VoteNo]]&REPT("0",3-LEN(T_KeyDeliverablesValues[[#This Row],[ID]]))&T_KeyDeliverablesValues[[#This Row],[ID]] -> 003004 | JQ57: Communications | JR57: Film and Publication Board | JS57: 82675 | JT57: 78901 | JU57: 82359 | JV57: 86472 | JW57: 91684 | JX57: 97002 | JY57: 102434 | JZ57: =IF(T_KeyDeliverablesValues[[#This Row],[CoEIndi]]=1,T_KeyDeliverablesValues[[#This Row],[2019/20]]*(1+$BQ$62),T_KeyDeliverablesValues[[#This Row],[2019/20]]*(1+$BQ$61)) -> 108067.87
G58: 2 | H58: Higher education institutions | I58: =INDEX(('Econ ENE'!$M$5:$M$71),MATCH(Tables!H58,OFFSET('Econ ENE'!$Q$5:$Q$71,0,Tables!G58),0)) -> 47 | L58: 3 | M58: Legal requirement | T58: 13 | U58: Women | W58: 9 | X58: Public Enterprises | Y58: 2 | Z58: Legal and Governance | AB58: 3 | AC58: Communications | AD58: 3 | AE58: Industry and Capacity Development | AF58: 3 | AG58: Broadcasting Digital Migration | AH58: 003 | AI58: 003 | AJ58: 003 | AK58: 003003 | AL58: 003003003 | BV58: 4 | BW58: Cooperative Governance And Traditional Affairs | BX58: 1 | BY58: Administration | BZ58: 3 | CA58: Corporate Services | CB58: 139846.3021 | CC58: =REPT("0",3-LEN(Table27[[#This Row],[Vote No'#]]))&Table27[[#This Row],[Vote No'#]] -> 004 | CD58: =REPT("0",3-LEN(Table27[[#This Row],[Programme No'#]]))&Table27[[#This Row],[Programme No'#]] -> 001 | CE58: =+Table27[[#This Row],[DeptCode]]&Table27[[#This Row],[ProgCode]] -> 004001 | CG58: =T_ENE_2016[[#This Row],[Vote No.]]&T_ENE_2016[[#This Row],[Programme No.]]&T_ENE_2016[[#This Row],[Subprogramme No.]] -> 111 | CH58: =INDEX((T_Econ3[Econ3_No]),MATCH(T_ENE_2016[[#This Row],[Econ4]],T_Econ3[Econ3],0)) -> 2 | CI58: 1 | CJ58: The Presidency | CK58: 1 | CL58: Administration | CM58: 1 | CN58: Management | CO58: Current payments | CP58: Goods and services | CQ58: Goods and services | CR58: 2025 | CS58: 2453 | CT58: 2725 | CU58: 3041 | CV58: 3041 | CW58: 3156 | CX58: 3259 | CY58: 3442 | DC58: =T_ENE_2016[[#This Row],[2018_19]] -> 3259 | DD58: =T_ENE_2016[[#This Row],[2019_20]] -> 3442 | DE58: =IF(T_ENE_2016[[#This Row],[Econ3]]="Compensation of employees",T_ENE_2016[[#This Row],[2019_20 IB]]*(1+MyCola3),(T_ENE_2016[[#This Row],[2019_20 IB]]+T_ENE_2016[[#This Row],[2019_20 NR]])*(1+MyCPI3)) -> 3631.31 | DF58: The Presidency|Administration | DG58: 001 | DH58: 001 | DI58: 001 | DJ58: 002 | DK58: 001001 | DL58: 001002 | DM58: 2 | DN58: 001001001002 | DP58: 001001002 | DS58: =T_Transfers_NAT[[#This Row],[SPId]]&DT58 -> 004472 | DT58: =IF(T_Transfers_NAT[[#This Row],[Vote No.]]<>DU57,1,IF(T_Transfers_NAT[[#This Row],[Programme No.]]<>DW57,1,IF(T_Transfers_NAT[[#This Row],[Subprogramme No.]]<>DY57,1,DT57+1))) -> 2 | DU58: 4 | DV58: Cooperative Governance And Traditional Affairs | DW58: 4 | DX58: National Disaster Management Centre | DY58: 7 | DZ58: Provincial disaster grant | EA58: 123432 | EB58: 130591 | EC58: 137904 | ED58: =REPT("0",3-LEN(T_Transfers_NAT[[#This Row],[Vote No.]]))&T_Transfers_NAT[[#This Row],[Vote No.]]&T_Transfers_NAT[[#This Row],[Programme No.]]&T_Transfers_NAT[[#This Row],[Subprogramme No.]] -> 00447 | EE58: Disaster Relief Grant | EH58: Transfers and subsidies | EI58: Provinces and municipalities | EJ58: Provinces | EK58: Current | EL58: 00442 | EM58: 2 | EP58: The Presidency | EQ58: Executive Support | ER58: 13 | ET58: 3 | EU58: 2 | EV58: 2 | EW58: 1766.08538 | EX58: 2 | EY58: 2428 | EZ58: 1 | FA58: 1337 | FB58: 1 | FC58: 1384 | FD58: 1 | FE58: 1425 | FF58: The Presidency|Executive Support | FG58: 001 | FH58: 002 | FI58: 001002 | FL58: 1 | FM58: =T_InfraS[[#This Row],[Programme/Project name]]&"|"&T_InfraS[[#This Row],[Type of infrastructure]] -> Lebombo refugee reception centre |Building | FN58: =COUNTIF(T_InfraS[Programme/Project name],T_InfraS[[#This Row],[Programme/Project name]]) -> 1 | FO58: 5 | FP58: Home Affairs | FQ58: Departmental infrastructure | FR58: Small projects | FS58: Lebombo refugee reception centre | FT58: Building | FU58: Feasibility | FV58: New infrastructure assets | FW58: Construction of a refugee reception centre | FX58: 0 | FY58: 0 | FZ58: 11000 | GA58: 12000 | GB58: 10000 | GC58: 12000 | GD58: =+T_InfraS[[#This Row],[2019/20 Revised Baseline]] -> 12000 | GE58: 5 | GF58: 1 | GG58: 3 | GH58: 513 | GI58: 005 | GJ58: =IF(T_InfraS[[#This Row],[Department]]<>FP57,1,GJ57+1) -> 22 | GK58: 022 | GL58: 005022 | GV58: 23 | GX58: My_Transfers_Existing_Area5 | GY58: $K$108:$K$157 | HC58: 23 | HD58: 2018/19 | HJ58: 16 | HK58: Health | HL58: 3 | HM58: HIV and AIDS, Tuberculosis, and Maternal and Child Health | HN58: 2 | HO58: HIV and AIDS | HP58: Comprehensive HIV and AIDS grant | HQ58: Current | HR58: Transfers and subsidies | HS58: Provinces and municipalities | HT58: Provinces | HU58: PCG | HV58: 10334687 | HW58: 12102108 | HX58: 13670730 | HY58: 0 | HZ58: 0 | IA58: 0 | IB58: 0 | IC58: 0 | ID58: 0 | IF58: 0 | IG58: 1 | IH58: 16321 | II58: 01631 | IJ58: 1 | IU58: =INDEX(Table7[Vote No.],MATCH(IV58,Table7[Department],0)) -> 16 | IV58: Health | JB58: 007023 | JC58: 23 | JD58: =IFERROR(INDEX(T_InfraS[Programme/Project name],MATCH(JB58,T_InfraS[Combo_Lookup],0)),"") ->  | JM58: 0 | JN58: =IF(JN57="ID",1,IF(T_KeyDeliverablesValues[[#This Row],[Department]]<>JQ57,1,JN57+1)) -> 5 | JO58: =INDEX((Table7[Vote No.]),MATCH(T_KeyDeliverablesValues[[#This Row],[Department]],Table7[Department],0)) -> 3 | JP58: =REPT("0",3-LEN(T_KeyDeliverablesValues[[#This Row],[VoteNo]]))&T_KeyDeliverablesValues[[#This Row],[VoteNo]]&REPT("0",3-LEN(T_KeyDeliverablesValues[[#This Row],[ID]]))&T_KeyDeliverablesValues[[#This Row],[ID]] -> 003005 | JQ58: Communications | JR58: South African Broadcasting Corporation: Broadcasting digital migration | JS58: 256570 | JT58: 227168 | JU58: 172927 | JV58: 182093 | JW58: 173766 | JX58: 187421 | JY58: 199016 | JZ58: =IF(T_KeyDeliverablesValues[[#This Row],[CoEIndi]]=1,T_KeyDeliverablesValues[[#This Row],[2019/20]]*(1+$BQ$62),T_KeyDeliverablesValues[[#This Row],[2019/20]]*(1+$BQ$61)) -> 209961.88
G59: 2 | H59: Foreign governments and international organisations | I59: =INDEX(('Econ ENE'!$M$5:$M$71),MATCH(Tables!H59,OFFSET('Econ ENE'!$Q$5:$Q$71,0,Tables!G59),0)) -> 48 | L59: 4 | M59: Cost containment / efficiency | W59: 9 | X59: Public Enterprises | Y59: 3 | Z59: Portfolio Management and Strategic Partnerships | AB59: 3 | AC59: Communications | AD59: 3 | AE59: Industry and Capacity Development | AF59: 4 | AG59: Industry Research and Analysis | AH59: 003 | AI59: 003 | AJ59: 004 | AK59: 003003 | AL59: 003003004 | AS59: Dept | AT59: ProgNo | AU59: SPNo | AX59: DSP_ID | AY59: SPSP_ID | AZ59: Prog | BA59: Sprog | BN59: Costing assumptions | BV59: 4 | BW59: Cooperative Governance And Traditional Affairs | BX59: 1 | BY59: Administration | BZ59: 4 | CA59: Financial Services | CB59: 27151.69643 | CC59: =REPT("0",3-LEN(Table27[[#This Row],[Vote No'#]]))&Table27[[#This Row],[Vote No'#]] -> 004 | CD59: =REPT("0",3-LEN(Table27[[#This Row],[Programme No'#]]))&Table27[[#This Row],[Programme No'#]] -> 001 | CE59: =+Table27[[#This Row],[DeptCode]]&Table27[[#This Row],[ProgCode]] -> 004001 | CG59: =T_ENE_2016[[#This Row],[Vote No.]]&T_ENE_2016[[#This Row],[Programme No.]]&T_ENE_2016[[#This Row],[Subprogramme No.]] -> 111 | CH59: =INDEX((T_Econ3[Econ3_No]),MATCH(T_ENE_2016[[#This Row],[Econ4]],T_Econ3[Econ3],0)) -> 2 | CI59: 1 | CJ59: The Presidency | CK59: 1 | CL59: Administration | CM59: 1 | CN59: Management | CO59: Current payments | CP59: Goods and services | CQ59: Goods and services | CR59: 21497 | CS59: 31497 | CT59: 24484 | CU59: 24484 | CV59: 24484 | CW59: 19270 | CX59: 20574 | CY59: 21553 | DC59: =T_ENE_2016[[#This Row],[2018_19]] -> 20574 | DD59: =T_ENE_2016[[#This Row],[2019_20]] -> 21553 | DE59: =IF(T_ENE_2016[[#This Row],[Econ3]]="Compensation of employees",T_ENE_2016[[#This Row],[2019_20 IB]]*(1+MyCola3),(T_ENE_2016[[#This Row],[2019_20 IB]]+T_ENE_2016[[#This Row],[2019_20 NR]])*(1+MyCPI3)) -> 22738.415 | DF59: The Presidency|Administration | DG59: 001 | DH59: 001 | DI59: 001 | DJ59: 002 | DK59: 001001 | DL59: 001002 | DM59: 2 | DN59: 001001001002 | DP59: 001001002 | DS59: =T_Transfers_NAT[[#This Row],[SPId]]&DT59 -> 004561 | DT59: =IF(T_Transfers_NAT[[#This Row],[Vote No.]]<>DU58,1,IF(T_Transfers_NAT[[#This Row],[Programme No.]]<>DW58,1,IF(T_Transfers_NAT[[#This Row],[Subprogramme No.]]<>DY58,1,DT58+1))) -> 1 | DU59: 4 | DV59: Cooperative Governance And Traditional Affairs | DW59: 5 | DX59: Local Government Support and Intervention Management | DY59: 6 | DZ59: Municipal infrastructure grant | EA59: 15891252 | EB59: 16787685 | EC59: 17733731 | ED59: =REPT("0",3-LEN(T_Transfers_NAT[[#This Row],[Vote No.]]))&T_Transfers_NAT[[#This Row],[Vote No.]]&T_Transfers_NAT[[#This Row],[Programme No.]]&T_Transfers_NAT[[#This Row],[Subprogramme No.]] -> 00456 | EE59: Municipal Infrastructure Grant | EH59: Transfers and subsidies | EI59: Provinces and municipalities | EJ59: Municipalities | EK59: Capital | EL59: 00451 | EM59: 1 | EP59: The Presidency | EQ59: Executive Support | ER59: 14 | ET59: 3 | EU59: 0 | EV59: 4 | EW59: 4921 | EX59: 3 | EY59: 4365 | EZ59: 2 | FA59: 2970 | FB59: 2 | FC59: 2916 | FD59: 2 | FE59: 3020 | FF59: The Presidency|Executive Support | FG59: 001 | FH59: 002 | FI59: 001002 | FL59: 1 | FM59: =T_InfraS[[#This Row],[Programme/Project name]]&"|"&T_InfraS[[#This Row],[Type of infrastructure]] -> Sea port of entry: New offices |Building | FN59: =COUNTIF(T_InfraS[Programme/Project name],T_InfraS[[#This Row],[Programme/Project name]]) -> 1 | FO59: 5 | FP59: Home Affairs | FQ59: Departmental infrastructure | FR59: Small projects | FS59: Sea port of entry: New offices | FT59: Building | FU59: Feasibility | FV59: New infrastructure assets | FW59: Construction of new office building | FX59: 0 | FY59: 0 | FZ59: 10000 | GA59: 11000 | GB59: 11000 | GC59: 11000 | GD59: =+T_InfraS[[#This Row],[2019/20 Revised Baseline]] -> 11000 | GE59: 5 | GF59: 1 | GG59: 3 | GH59: 513 | GI59: 005 | GJ59: =IF(T_InfraS[[#This Row],[Department]]<>FP58,1,GJ58+1) -> 23 | GK59: 023 | GL59: 005023 | GV59: 24 | GX59: My_Transfers_Existing_Area6 | GY59: $L$108:$L$157 | HC59: 24 | HD59: 2019/20 | HJ59: 16 | HK59: Health | HL59: 3 | HM59: HIV and AIDS, Tuberculosis, and Maternal and Child Health | HN59: 2 | HO59: HIV and AIDS | HP59: Comprehensive HIV, AIDS and tuberculosis grant | HQ59: Current | HR59: Transfers and subsidies | HS59: Provinces and municipalities | HT59: Provinces | HU59: PCG | HV59: 0 | HW59: 0 | HX59: 0 | HY59: 15290603 | HZ59: 15290603 | IA59: 15290603 | IB59: 17557903 | IC59: 19921697 | ID59: 22038995 | IF59: 22038995 | IG59: 2 | IH59: 16322 | II59: 01632 | IJ59: 2 | IU59: =INDEX(Table7[Vote No.],MATCH(IV59,Table7[Department],0)) -> 15 | IV59: Higher Education and Training | JB59: 007024 | JC59: 24 | JD59: =IFERROR(INDEX(T_InfraS[Programme/Project name],MATCH(JB59,T_InfraS[Combo_Lookup],0)),"") ->  | JM59: 0 | JN59: =IF(JN58="ID",1,IF(T_KeyDeliverablesValues[[#This Row],[Department]]<>JQ58,1,JN58+1)) -> 1 | JO59: =INDEX((Table7[Vote No.]),MATCH(T_KeyDeliverablesValues[[#This Row],[Department]],Table7[Department],0)) -> 4 | JP59: =REPT("0",3-LEN(T_KeyDeliverablesValues[[#This Row],[VoteNo]]))&T_KeyDeliverablesValues[[#This Row],[VoteNo]]&REPT("0",3-LEN(T_KeyDeliverablesValues[[#This Row],[ID]]))&T_KeyDeliverablesValues[[#This Row],[ID]] -> 004001 | JQ59: Cooperative Governance And Traditional Affairs | JR59: Employment programmes | JS59: 1721707 | JT59: 1558729 | JU59: 2374230 | JV59: 3152653 | JW59: 3655499 | JX59: 3767290 | JY59: 3973359 | JZ59: =IF(T_KeyDeliverablesValues[[#This Row],[CoEIndi]]=1,T_KeyDeliverablesValues[[#This Row],[2019/20]]*(1+$BQ$62),T_KeyDeliverablesValues[[#This Row],[2019/20]]*(1+$BQ$61)) -> 4191893.745
G60: 2 | H60: Public corporations and private enterprises | I60: =INDEX(('Econ ENE'!$M$5:$M$71),MATCH(Tables!H60,OFFSET('Econ ENE'!$Q$5:$Q$71,0,Tables!G60),0)) -> 49 | W60: 10 | X60: Public Service and Administration | Y60: 1 | Z60: Administration | AB60: 3 | AC60: Communications | AD60: 3 | AE60: Industry and Capacity Development | AF60: 5 | AG60: Inter-governmental Relations and Stakeholder Management | AH60: 003 | AI60: 003 | AJ60: 005 | AK60: 003003 | AL60: 003003005 | AS60: =REPT("0",3-LEN($AT$6))&AT6 -> 007 | AT60: 1 | AU60: 1 | AV60: =REPT("0",3-LEN(AT60))&AT60 -> 001 | AW60: =REPT("0",3-LEN(AU60))&AU60 -> 001 | AX60: =AS60&AV60 -> 007001 | AY60: =AX60&AW60 -> 007001001 | AZ60: =IFERROR(INDEX((T_Sprog[Programme]),MATCH(AX60,T_Sprog[ComboID_DP],0)),"") -> Administration | BA60: =IFERROR(INDEX((T_Sprog[Subprogramme]),MATCH(AY60,T_Sprog[ComboID_DPSP],0)),"") -> Ministry | BN60: Item | BO60: 2018/19 | BP60: 2019/20 | BQ60: 2020/21 | BV60: 4 | BW60: Cooperative Governance And Traditional Affairs | BX60: 1 | BY60: Administration | BZ60: 5 | CA60: Internal Audit and Risk Management | CB60: 7435.55486 | CC60: =REPT("0",3-LEN(Table27[[#This Row],[Vote No'#]]))&Table27[[#This Row],[Vote No'#]] -> 004 | CD60: =REPT("0",3-LEN(Table27[[#This Row],[Programme No'#]]))&Table27[[#This Row],[Programme No'#]] -> 001 | CE60: =+Table27[[#This Row],[DeptCode]]&Table27[[#This Row],[ProgCode]] -> 004001 | CG60: =T_ENE_2016[[#This Row],[Vote No.]]&T_ENE_2016[[#This Row],[Programme No.]]&T_ENE_2016[[#This Row],[Subprogramme No.]] -> 111 | CH60: =INDEX((T_Econ3[Econ3_No]),MATCH(T_ENE_2016[[#This Row],[Econ4]],T_Econ3[Econ3],0)) -> 2 | CI60: 1 | CJ60: The Presidency | CK60: 1 | CL60: Administration | CM60: 1 | CN60: Management | CO60: Current payments | CP60: Goods and services | CQ60: Goods and services | CR60: 848 | CS60: 477 | CT60: 1022 | CU60: 1022 | CV60: 1022 | CW60: 542 | CX60: 589 | CY60: 650 | DC60: =T_ENE_2016[[#This Row],[2018_19]] -> 589 | DD60: =T_ENE_2016[[#This Row],[2019_20]] -> 650 | DE60: =IF(T_ENE_2016[[#This Row],[Econ3]]="Compensation of employees",T_ENE_2016[[#This Row],[2019_20 IB]]*(1+MyCola3),(T_ENE_2016[[#This Row],[2019_20 IB]]+T_ENE_2016[[#This Row],[2019_20 NR]])*(1+MyCPI3)) -> 685.75 | DF60: The Presidency|Administration | DG60: 001 | DH60: 001 | DI60: 001 | DJ60: 002 | DK60: 001001 | DL60: 001002 | DM60: 2 | DN60: 001001001002 | DP60: 001001002 | DS60: =T_Transfers_NAT[[#This Row],[SPId]]&DT60 -> 004571 | DT60: =IF(T_Transfers_NAT[[#This Row],[Vote No.]]<>DU59,1,IF(T_Transfers_NAT[[#This Row],[Programme No.]]<>DW59,1,IF(T_Transfers_NAT[[#This Row],[Subprogramme No.]]<>DY59,1,DT59+1))) -> 1 | DU60: 4 | DV60: Cooperative Governance And Traditional Affairs | DW60: 5 | DX60: Local Government Support and Intervention Management | DY60: 7 | DZ60: Municipal Infrastructure Support Agency | EA60: 381483 | EB60: 351237 | EC60: 370707 | ED60: =REPT("0",3-LEN(T_Transfers_NAT[[#This Row],[Vote No.]]))&T_Transfers_NAT[[#This Row],[Vote No.]]&T_Transfers_NAT[[#This Row],[Programme No.]]&T_Transfers_NAT[[#This Row],[Subprogramme No.]] -> 00457 | EE60: Municipal Infrastructure Support Agency | EH60: Transfers and subsidies | EI60: Departmental agencies and accounts | EJ60: Departmental agencies (non-business entities) | EK60: Current | EL60: 00452 | EM60: 2 | EP60: The Presidency | EQ60: Executive Support | ER60: 15 | ET60: 1 | EU60: 0 | EV60: 1 | EW60: 1412.92629 | EX60: 1 | EY60: 1530 | EZ60: 1 | FA60: 1579 | FB60: 1 | FC60: 1654 | FD60: 1 | FE60: 1774 | FF60: The Presidency|Executive Support | FG60: 001 | FH60: 002 | FI60: 001002 | FL60: 1 | FM60: =T_InfraS[[#This Row],[Programme/Project name]]&"|"&T_InfraS[[#This Row],[Type of infrastructure]] -> Lebombo official residential accommodation|Building | FN60: =COUNTIF(T_InfraS[Programme/Project name],T_InfraS[[#This Row],[Programme/Project name]]) -> 1 | FO60: 5 | FP60: Home Affairs | FQ60: Departmental infrastructure | FR60: Small projects | FS60: Lebombo official residential accommodation | FT60: Building | FU60: Feasibility | FV60: New infrastructure assets | FW60: Provision of residential accommodation for officials | FX60: 0 | FY60: 0 | FZ60: 10000 | GA60: 11000 | GB60: 11000 | GC60: 13500 | GD60: =+T_InfraS[[#This Row],[2019/20 Revised Baseline]] -> 13500 | GE60: 5 | GF60: 1 | GG60: 3 | GH60: 513 | GI60: 005 | GJ60: =IF(T_InfraS[[#This Row],[Department]]<>FP59,1,GJ59+1) -> 24 | GK60: 024 | GL60: 005024 | GV60: 25 | GX60: My_Transfers_New_Area1 | GY60: $G$162:$G$181 | HC60: 25 | HD60: Existing/New | HJ60: 16 | HK60: Health | HL60: 3 | HM60: HIV and AIDS, Tuberculosis, and Maternal and Child Health | HN60: 5 | HO60: Child, Youth and School Health | HP60: Human papillomavirus vaccine grant | HQ60: Current | HR60: Transfers and subsidies | HS60: Provinces and municipalities | HT60: Provinces | HU60: PCG | HV60: 0 | HW60: 0 | HX60: 0 | HY60: 0 | HZ60: 0 | IA60: 0 | IB60: 0 | IC60: 200000 | ID60: 211200 | IF60: 211200 | IG60: 1 | IH60: 16351 | II60: 01633 | IJ60: 3 | IU60: =INDEX(Table7[Vote No.],MATCH(IV60,Table7[Department],0)) -> 5 | IV60: Home Affairs | JB60: 007025 | JC60: 25 | JD60: =IFERROR(INDEX(T_InfraS[Programme/Project name],MATCH(JB60,T_InfraS[Combo_Lookup],0)),"") ->  | JM60: 0 | JN60: =IF(JN59="ID",1,IF(T_KeyDeliverablesValues[[#This Row],[Department]]<>JQ59,1,JN59+1)) -> 2 | JO60: =INDEX((Table7[Vote No.]),MATCH(T_KeyDeliverablesValues[[#This Row],[Department]],Table7[Department],0)) -> 4 | JP60: =REPT("0",3-LEN(T_KeyDeliverablesValues[[#This Row],[VoteNo]]))&T_KeyDeliverablesValues[[#This Row],[VoteNo]]&REPT("0",3-LEN(T_KeyDeliverablesValues[[#This Row],[ID]]))&T_KeyDeliverablesValues[[#This Row],[ID]] -> 004002 | JQ60: Cooperative Governance And Traditional Affairs | JR60: Municipal equitable share | JS60: 38964252 | JT60: 41592070 | JU60: 49366507 | JV60: 51168706 | JW60: 57012141 | JX60: 62731845 | JY60: 69273465 | JZ60: =IF(T_KeyDeliverablesValues[[#This Row],[CoEIndi]]=1,T_KeyDeliverablesValues[[#This Row],[2019/20]]*(1+$BQ$62),T_KeyDeliverablesValues[[#This Row],[2019/20]]*(1+$BQ$61)) -> 73083505.58
G61: 3 | H61: Public corporations | I61: =INDEX(('Econ ENE'!$M$5:$M$71),MATCH(Tables!H61,OFFSET('Econ ENE'!$Q$5:$Q$71,0,Tables!G61),0)) -> 49 | W61: 10 | X61: Public Service and Administration | Y61: 2 | Z61: Policy Development, Research and Analysis | AB61: 3 | AC61: Communications | AD61: 4 | AE61: Entity Oversight | AF61: 1 | AG61: Programme Management for Entity Oversight | AH61: 003 | AI61: 004 | AJ61: 001 | AK61: 003004 | AL61: 003004001 | AS61: =AS60 -> 007 | AT61: 1 | AU61: 2 | AV61: =REPT("0",3-LEN(AT61))&AT61 -> 001 | AW61: 002 | AX61: 007001 | AY61: 007001002 | AZ61: =IFERROR(INDEX((T_Sprog[Programme]),MATCH(AX61,T_Sprog[ComboID_DP],0)),"") -> Administration | BA61: =IFERROR(INDEX((T_Sprog[Subprogramme]),MATCH(AY61,T_Sprog[ComboID_DPSP],0)),"") -> Departmental Management | BN61: CPI | BO61: 0.057 | BP61: 0.056 | BQ61: 0.055 | BV61: 4 | BW61: Cooperative Governance And Traditional Affairs | BX61: 1 | BY61: Administration | BZ61: 6 | CA61: Office Accommodation | CB61: 46341.208 | CC61: =REPT("0",3-LEN(Table27[[#This Row],[Vote No'#]]))&Table27[[#This Row],[Vote No'#]] -> 004 | CD61: =REPT("0",3-LEN(Table27[[#This Row],[Programme No'#]]))&Table27[[#This Row],[Programme No'#]] -> 001 | CE61: =+Table27[[#This Row],[DeptCode]]&Table27[[#This Row],[ProgCode]] -> 004001 | CG61: =T_ENE_2016[[#This Row],[Vote No.]]&T_ENE_2016[[#This Row],[Programme No.]]&T_ENE_2016[[#This Row],[Subprogramme No.]] -> 111 | CH61: =INDEX((T_Econ3[Econ3_No]),MATCH(T_ENE_2016[[#This Row],[Econ4]],T_Econ3[Econ3],0)) -> 3 | CI61: 1 | CJ61: The Presidency | CK61: 1 | CL61: Administration | CM61: 1 | CN61: Management | CO61: Current payments | CP61: Interest and rent on land | CQ61: Interest and rent on land | CR61: 0 | CS61: 0 | CT61: 0 | CU61: 0 | CV61: 0 | CW61: 0 | CX61: 0 | CY61: 0 | DC61: =T_ENE_2016[[#This Row],[2018_19]] -> 0 | DD61: =T_ENE_2016[[#This Row],[2019_20]] -> 0 | DE61: =IF(T_ENE_2016[[#This Row],[Econ3]]="Compensation of employees",T_ENE_2016[[#This Row],[2019_20 IB]]*(1+MyCola3),(T_ENE_2016[[#This Row],[2019_20 IB]]+T_ENE_2016[[#This Row],[2019_20 NR]])*(1+MyCPI3)) -> 0 | DF61: The Presidency|Administration | DG61: 001 | DH61: 001 | DI61: 001 | DJ61: 003 | DK61: 001001 | DL61: 001003 | DM61: 3 | DN61: 001001001003 | DP61: 001001003 | DS61: =T_Transfers_NAT[[#This Row],[SPId]]&DT61 -> 005111 | DT61: =IF(T_Transfers_NAT[[#This Row],[Vote No.]]<>DU60,1,IF(T_Transfers_NAT[[#This Row],[Programme No.]]<>DW60,1,IF(T_Transfers_NAT[[#This Row],[Subprogramme No.]]<>DY60,1,DT60+1))) -> 1 | DU61: 5 | DV61: Home Affairs | DW61: 1 | DX61: Administration | DY61: 1 | DZ61: Communication | EA61: 4 | EB61: 4 | EC61: 4 | ED61: =REPT("0",3-LEN(T_Transfers_NAT[[#This Row],[Vote No.]]))&T_Transfers_NAT[[#This Row],[Vote No.]]&T_Transfers_NAT[[#This Row],[Programme No.]]&T_Transfers_NAT[[#This Row],[Subprogramme No.]] -> 00511 | EE61: Ministry | EH61: Transfers and subsidies | EI61: Departmental agencies and accounts | EJ61: Departmental agencies (non-business entities) | EK61: Current | EL61: 00511 | EM61: 1 | EP61: Parliament | EQ61: Administration | ER61: 8 | ET61: 3 | EU61: 0 | EV61: 1 | EW61: 348.9572227 | EX61: 1 | EY61: 307 | EZ61: 1 | FA61: 333 | FB61: 1 | FC61: 361 | FD61: 1 | FE61: 861 | FF61: Parliament|Administration | FG61: 002 | FH61: 002 | FI61: 002002 | FL61: 1 | FM61: =T_InfraS[[#This Row],[Programme/Project name]]&"|"&T_InfraS[[#This Row],[Type of infrastructure]] -> Oshoek |Building | FN61: =COUNTIF(T_InfraS[Programme/Project name],T_InfraS[[#This Row],[Programme/Project name]]) -> 1 | FO61: 5 | FP61: Home Affairs | FQ61: Departmental infrastructure | FR61: Small projects | FS61: Oshoek | FT61: Building | FU61: Feasibility | FV61: New infrastructure assets | FW61: Provision of residential accommodation for officials | FX61: 0 | FY61: 0 | FZ61: 10000 | GA61: 10000 | GB61: 15631 | GC61: 15486 | GD61: =+T_InfraS[[#This Row],[2019/20 Revised Baseline]] -> 15486 | GE61: 5 | GF61: 1 | GG61: 3 | GH61: 513 | GI61: 005 | GJ61: =IF(T_InfraS[[#This Row],[Department]]<>FP60,1,GJ60+1) -> 25 | GK61: 025 | GL61: 005025 | GV61: 26 | GX61: My_Transfers_New_Area2 | GY61: $H$162:$H$181 | HC61: 26 | HD61: Infrastructure category | HJ61: 16 | HK61: Health | HL61: 5 | HM61: Hospitals, Tertiary Health Services and Human Resource Development | HN61: 2 | HO61: Health Facilities Infrastructure Management | HP61: Health facility revitalisation grant | HQ61: Capital | HR61: Transfers and subsidies | HS61: Provinces and municipalities | HT61: Provinces | HU61: PCG | HV61: 5290816 | HW61: 5501981 | HX61: 5417045 | HY61: 5272680 | HZ61: 5272680 | IA61: 5272680 | IB61: 5654495 | IC61: 5915694 | ID61: 6246973 | IF61: 6246973 | IG61: 1 | IH61: 16521 | II61: 01651 | IJ61: 1 | IU61: =INDEX(Table7[Vote No.],MATCH(IV61,Table7[Department],0)) -> 38 | IV61: Human Settlements | JB61: 007026 | JC61: 26 | JD61: =IFERROR(INDEX(T_InfraS[Programme/Project name],MATCH(JB61,T_InfraS[Combo_Lookup],0)),"") ->  | JM61: 0 | JN61: =IF(JN60="ID",1,IF(T_KeyDeliverablesValues[[#This Row],[Department]]<>JQ60,1,JN60+1)) -> 3 | JO61: =INDEX((Table7[Vote No.]),MATCH(T_KeyDeliverablesValues[[#This Row],[Department]],Table7[Department],0)) -> 4 | JP61: =REPT("0",3-LEN(T_KeyDeliverablesValues[[#This Row],[VoteNo]]))&T_KeyDeliverablesValues[[#This Row],[VoteNo]]&REPT("0",3-LEN(T_KeyDeliverablesValues[[#This Row],[ID]]))&T_KeyDeliverablesValues[[#This Row],[ID]] -> 004003 | JQ61: Cooperative Governance And Traditional Affairs | JR61: Municipal infrastructure grant | JS61: 14224447 | JT61: 14745445 | JU61: 14955762 | JV61: 14914028 | JW61: 15891252 | JX61: 16787685 | JY61: 17733731 | JZ61: =IF(T_KeyDeliverablesValues[[#This Row],[CoEIndi]]=1,T_KeyDeliverablesValues[[#This Row],[2019/20]]*(1+$BQ$62),T_KeyDeliverablesValues[[#This Row],[2019/20]]*(1+$BQ$61)) -> 18709086.2
G62: 3 | H62: Private enterprises | I62: =INDEX(('Econ ENE'!$M$5:$M$71),MATCH(Tables!H62,OFFSET('Econ ENE'!$Q$5:$Q$71,0,Tables!G62),0)) -> 50 | W62: 10 | X62: Public Service and Administration | Y62: 3 | Z62: Labour Relations and Human Resource Management | AB62: 3 | AC62: Communications | AD62: 4 | AE62: Entity Oversight | AF62: 2 | AG62: Broadcasting and Community Media | AH62: 003 | AI62: 004 | AJ62: 002 | AK62: 003004 | AL62: 003004002 | AS62: 007 | AT62: 1 | AU62: 3 | AV62: 001 | AW62: 003 | AX62: 007001 | AY62: 007001003 | AZ62: =IFERROR(INDEX((T_Sprog[Programme]),MATCH(AX62,T_Sprog[ComboID_DP],0)),"") -> Administration | BA62: =IFERROR(INDEX((T_Sprog[Subprogramme]),MATCH(AY62,T_Sprog[ComboID_DPSP],0)),"") -> Corporate Services | BN62: CoLA | BO62: 0.067 | BP62: 0.066 | BQ62: 0.075 | BV62: 4 | BW62: Cooperative Governance And Traditional Affairs | BX62: 2 | BY62: Regional and Urban Development and Legislative Support | BZ62: 1 | CA62: Management Regional and Urban Development and Legislative Support | CB62: 414.01789 | CC62: =REPT("0",3-LEN(Table27[[#This Row],[Vote No'#]]))&Table27[[#This Row],[Vote No'#]] -> 004 | CD62: =REPT("0",3-LEN(Table27[[#This Row],[Programme No'#]]))&Table27[[#This Row],[Programme No'#]] -> 002 | CE62: =+Table27[[#This Row],[DeptCode]]&Table27[[#This Row],[ProgCode]] -> 004002 | CG62: =T_ENE_2016[[#This Row],[Vote No.]]&T_ENE_2016[[#This Row],[Programme No.]]&T_ENE_2016[[#This Row],[Subprogramme No.]] -> 111 | CH62: =INDEX((T_Econ3[Econ3_No]),MATCH(T_ENE_2016[[#This Row],[Econ4]],T_Econ3[Econ3],0)) -> 3 | CI62: 1 | CJ62: The Presidency | CK62: 1 | CL62: Administration | CM62: 1 | CN62: Management | CO62: Current payments | CP62: Interest and rent on land | CQ62: Interest and rent on land | CR62: 10 | CS62: 0 | CT62: 0 | CU62: 0 | CV62: 0 | CW62: 0 | CX62: 0 | CY62: 0 | DC62: =T_ENE_2016[[#This Row],[2018_19]] -> 0 | DD62: =T_ENE_2016[[#This Row],[2019_20]] -> 0 | DE62: =IF(T_ENE_2016[[#This Row],[Econ3]]="Compensation of employees",T_ENE_2016[[#This Row],[2019_20 IB]]*(1+MyCola3),(T_ENE_2016[[#This Row],[2019_20 IB]]+T_ENE_2016[[#This Row],[2019_20 NR]])*(1+MyCPI3)) -> 0 | DF62: The Presidency|Administration | DG62: 001 | DH62: 001 | DI62: 001 | DJ62: 003 | DK62: 001001 | DL62: 001003 | DM62: 3 | DN62: 001001001003 | DP62: 001001003 | DS62: =T_Transfers_NAT[[#This Row],[SPId]]&DT62 -> 005121 | DT62: =IF(T_Transfers_NAT[[#This Row],[Vote No.]]<>DU61,1,IF(T_Transfers_NAT[[#This Row],[Programme No.]]<>DW61,1,IF(T_Transfers_NAT[[#This Row],[Subprogramme No.]]<>DY61,1,DT61+1))) -> 1 | DU62: 5 | DV62: Home Affairs | DW62: 1 | DX62: Administration | DY62: 2 | DZ62: Vehicle licences | EA62: 119 | EB62: 252 | EC62: 266 | ED62: =REPT("0",3-LEN(T_Transfers_NAT[[#This Row],[Vote No.]]))&T_Transfers_NAT[[#This Row],[Vote No.]]&T_Transfers_NAT[[#This Row],[Programme No.]]&T_Transfers_NAT[[#This Row],[Subprogramme No.]] -> 00512 | EE62: Management Support Services | EH62: Transfers and subsidies | EI62: Provinces and municipalities | EJ62: Municipalities | EK62: Current | EL62: 00512 | EM62: 2 | EP62: Parliament | EQ62: Administration | ER62: 9 | ET62: 14 | EU62: 0 | EV62: 17 | EW62: 7282.708867 | EX62: 17 | EY62: 6822 | EZ62: 17 | FA62: 7415 | FB62: 17 | FC62: 7045 | FD62: 17 | FE62: 7945 | FF62: Parliament|Administration | FG62: 002 | FH62: 002 | FI62: 002002 | FL62: 1 | FM62: =T_InfraS[[#This Row],[Programme/Project name]]&"|"&T_InfraS[[#This Row],[Type of infrastructure]] -> Maseru |Building | FN62: =COUNTIF(T_InfraS[Programme/Project name],T_InfraS[[#This Row],[Programme/Project name]]) -> 1 | FO62: 5 | FP62: Home Affairs | FQ62: Departmental infrastructure | FR62: Small projects | FS62: Maseru | FT62: Building | FU62: Feasibility | FV62: New infrastructure assets | FW62: Provision of residential accommodation for officials | FX62: 0 | FY62: 0 | FZ62: 25000 | GA62: 24000 | GB62: 14500 | GC62: 14500 | GD62: =+T_InfraS[[#This Row],[2019/20 Revised Baseline]] -> 14500 | GE62: 5 | GF62: 1 | GG62: 3 | GH62: 513 | GI62: 005 | GJ62: =IF(T_InfraS[[#This Row],[Department]]<>FP61,1,GJ61+1) -> 26 | GK62: 026 | GL62: 005026 | GV62: 27 | GX62: My_Transfers_New_Area3 | GY62: $I$162:$I$181 | HC62: 27 | HD62: Project category | HJ62: 16 | HK62: Health | HL62: 5 | HM62: Hospitals, Tertiary Health Services and Human Resource Development | HN62: 3 | HO62: Tertiary Health Care Planning and Policy | HP62: National tertiary services grant | HQ62: Current | HR62: Transfers and subsidies | HS62: Provinces and municipalities | HT62: Provinces | HU62: PCG | HV62: 9620357 | HW62: 10168235 | HX62: 10381174 | HY62: 10846778 | HZ62: 10846778 | IA62: 10846778 | IB62: 11676145 | IC62: 12394661 | ID62: 13177562 | IF62: 13177562 | IG62: 1 | IH62: 16531 | II62: 01652 | IJ62: 2 | IU62: =INDEX(Table7[Vote No.],MATCH(IV62,Table7[Department],0)) -> 6 | IV62: International Relations and Cooperation | JB62: 007027 | JC62: 27 | JD62: =IFERROR(INDEX(T_InfraS[Programme/Project name],MATCH(JB62,T_InfraS[Combo_Lookup],0)),"") ->  | JM62: 0 | JN62: =IF(JN61="ID",1,IF(T_KeyDeliverablesValues[[#This Row],[Department]]<>JQ61,1,JN61+1)) -> 4 | JO62: =INDEX((Table7[Vote No.]),MATCH(T_KeyDeliverablesValues[[#This Row],[Department]],Table7[Department],0)) -> 4 | JP62: =REPT("0",3-LEN(T_KeyDeliverablesValues[[#This Row],[VoteNo]]))&T_KeyDeliverablesValues[[#This Row],[VoteNo]]&REPT("0",3-LEN(T_KeyDeliverablesValues[[#This Row],[ID]]))&T_KeyDeliverablesValues[[#This Row],[ID]] -> 004004 | JQ62: Cooperative Governance And Traditional Affairs | JR62: Municipal Demarcation Board | JS62: 42152 | JT62: 44230 | JU62: 45793 | JV62: 59220 | JW62: 50631 | JX62: 53568 | JY62: 56568 | JZ62: =IF(T_KeyDeliverablesValues[[#This Row],[CoEIndi]]=1,T_KeyDeliverablesValues[[#This Row],[2019/20]]*(1+$BQ$62),T_KeyDeliverablesValues[[#This Row],[2019/20]]*(1+$BQ$61)) -> 59679.24
G63: 2 | H63: Non-profit institutions | I63: =INDEX(('Econ ENE'!$M$5:$M$71),MATCH(Tables!H63,OFFSET('Econ ENE'!$Q$5:$Q$71,0,Tables!G63),0)) -> 51 | W63: 10 | X63: Public Service and Administration | Y63: 4 | Z63: Government Chief Information Officer | AB63: 3 | AC63: Communications | AD63: 4 | AE63: Entity Oversight | AF63: 3 | AG63: Communication and Branding | AH63: 003 | AI63: 004 | AJ63: 003 | AK63: 003004 | AL63: 003004003 | AS63: 007 | AT63: 1 | AU63: 4 | AV63: 001 | AW63: 004 | AX63: 007001 | AY63: 007001004 | AZ63: =IFERROR(INDEX((T_Sprog[Programme]),MATCH(AX63,T_Sprog[ComboID_DP],0)),"") -> Administration | BA63: =IFERROR(INDEX((T_Sprog[Subprogramme]),MATCH(AY63,T_Sprog[ComboID_DPSP],0)),"") -> Enterprise Wide Risk Management | BV63: 4 | BW63: Cooperative Governance And Traditional Affairs | BX63: 2 | BY63: Regional and Urban Development and Legislative Support | BZ63: 2 | CA63: Local Government Legislative Support and Institutional Establishment | CB63: 4033.83727 | CC63: =REPT("0",3-LEN(Table27[[#This Row],[Vote No'#]]))&Table27[[#This Row],[Vote No'#]] -> 004 | CD63: =REPT("0",3-LEN(Table27[[#This Row],[Programme No'#]]))&Table27[[#This Row],[Programme No'#]] -> 002 | CE63: =+Table27[[#This Row],[DeptCode]]&Table27[[#This Row],[ProgCode]] -> 004002 | CG63: =T_ENE_2016[[#This Row],[Vote No.]]&T_ENE_2016[[#This Row],[Programme No.]]&T_ENE_2016[[#This Row],[Subprogramme No.]] -> 111 | CH63: =INDEX((T_Econ3[Econ3_No]),MATCH(T_ENE_2016[[#This Row],[Econ4]],T_Econ3[Econ3],0)) -> 57 | CI63: 1 | CJ63: The Presidency | CK63: 1 | CL63: Administration | CM63: 1 | CN63: Management | CO63: Payments for capital assets | CP63: Machinery and equipment | CQ63: Other machinery and equipment | CR63: 10561 | CS63: 35675 | CT63: 10000 | CU63: 10000 | CV63: 10000 | CW63: 10331 | CX63: 11031 | CY63: 11629 | DC63: =T_ENE_2016[[#This Row],[2018_19]] -> 11031 | DD63: =T_ENE_2016[[#This Row],[2019_20]] -> 11629 | DE63: =IF(T_ENE_2016[[#This Row],[Econ3]]="Compensation of employees",T_ENE_2016[[#This Row],[2019_20 IB]]*(1+MyCola3),(T_ENE_2016[[#This Row],[2019_20 IB]]+T_ENE_2016[[#This Row],[2019_20 NR]])*(1+MyCPI3)) -> 12268.595 | DF63: The Presidency|Administration | DG63: 001 | DH63: 001 | DI63: 001 | DJ63: 057 | DK63: 001001 | DL63: 001057 | DM63: 57 | DN63: 001001001057 | DP63: 001001057 | DS63: =T_Transfers_NAT[[#This Row],[SPId]]&DT63 -> 005122 | DT63: =IF(T_Transfers_NAT[[#This Row],[Vote No.]]<>DU62,1,IF(T_Transfers_NAT[[#This Row],[Programme No.]]<>DW62,1,IF(T_Transfers_NAT[[#This Row],[Subprogramme No.]]<>DY62,1,DT62+1))) -> 2 | DU63: 5 | DV63: Home Affairs | DW63: 1 | DX63: Administration | DY63: 2 | DZ63: Employee social benefits | EA63: 768 | EB63: 813 | EC63: 859 | ED63: =REPT("0",3-LEN(T_Transfers_NAT[[#This Row],[Vote No.]]))&T_Transfers_NAT[[#This Row],[Vote No.]]&T_Transfers_NAT[[#This Row],[Programme No.]]&T_Transfers_NAT[[#This Row],[Subprogramme No.]] -> 00512 | EE63: Management Support Services | EH63: Transfers and subsidies | EI63: Households | EJ63: Social benefits | EK63: Current | EL63: 00513 | EM63: 3 | EP63: Parliament | EQ63: Administration | ER63: 10 | ET63: 41 | EU63: 0 | EV63: 41 | EW63: 19574.23055 | EX63: 41 | EY63: 16796 | EZ63: 41 | FA63: 12520 | FB63: 41 | FC63: 7290 | FD63: 41 | FE63: 8790 | FF63: Parliament|Administration | FG63: 002 | FH63: 002 | FI63: 002002 | FL63: 1 | FM63: =T_InfraS[[#This Row],[Programme/Project name]]&"|"&T_InfraS[[#This Row],[Type of infrastructure]] -> Beitbridge|Building | FN63: =COUNTIF(T_InfraS[Programme/Project name],T_InfraS[[#This Row],[Programme/Project name]]) -> 1 | FO63: 5 | FP63: Home Affairs | FQ63: Departmental infrastructure | FR63: Small projects | FS63: Beitbridge | FT63: Building | FU63: Feasibility | FV63: New infrastructure assets | FW63: Provision of residential accommodation for officials | FX63: 0 | FY63: 0 | FZ63: 4000 | GA63: 5500 | GB63: 15632 | GC63: 15632 | GD63: =+T_InfraS[[#This Row],[2019/20 Revised Baseline]] -> 15632 | GE63: 5 | GF63: 1 | GG63: 3 | GH63: 513 | GI63: 005 | GJ63: =IF(T_InfraS[[#This Row],[Department]]<>FP62,1,GJ62+1) -> 27 | GK63: 027 | GL63: 005027 | GV63: 28 | GX63: My_Transfers_New_Area4 | GY63: $J$162:$J$181 | HC63: 28 | HD63: Programme/Project name | HJ63: 16 | HK63: Health | HL63: 5 | HM63: Hospitals, Tertiary Health Services and Human Resource Development | HN63: 5 | HO63: Human Resources for Health | HP63: Health professions training and development grant | HQ63: Current | HR63: Transfers and subsidies | HS63: Provinces and municipalities | HT63: Provinces | HU63: PCG | HV63: 2190366 | HW63: 2321788 | HX63: 2374722 | HY63: 2476724 | HZ63: 2476724 | IA63: 2476724 | IB63: 2631849 | IC63: 2784496 | ID63: 2940428 | IF63: 2940428 | IG63: 1 | IH63: 16551 | II63: 01653 | IJ63: 3 | IU63: =INDEX(Table7[Vote No.],MATCH(IV63,Table7[Department],0)) -> 21 | IV63: Justice and Constitutional Development | JB63: 007028 | JC63: 28 | JD63: =IFERROR(INDEX(T_InfraS[Programme/Project name],MATCH(JB63,T_InfraS[Combo_Lookup],0)),"") ->  | JM63: 0 | JN63: =IF(JN62="ID",1,IF(T_KeyDeliverablesValues[[#This Row],[Department]]<>JQ62,1,JN62+1)) -> 5 | JO63: =INDEX((Table7[Vote No.]),MATCH(T_KeyDeliverablesValues[[#This Row],[Department]],Table7[Department],0)) -> 4 | JP63: =REPT("0",3-LEN(T_KeyDeliverablesValues[[#This Row],[VoteNo]]))&T_KeyDeliverablesValues[[#This Row],[VoteNo]]&REPT("0",3-LEN(T_KeyDeliverablesValues[[#This Row],[ID]]))&T_KeyDeliverablesValues[[#This Row],[ID]] -> 004005 | JQ63: Cooperative Governance And Traditional Affairs | JR63: Municipal Disaster Relief Grant | JS63: 170714 | JT63: 35532 | JU63: 0 | JV63: 269922 | JW63: 300281 | JX63: 370597 | JY63: 335488 | JZ63: =IF(T_KeyDeliverablesValues[[#This Row],[CoEIndi]]=1,T_KeyDeliverablesValues[[#This Row],[2019/20]]*(1+$BQ$62),T_KeyDeliverablesValues[[#This Row],[2019/20]]*(1+$BQ$61)) -> 353939.84
G64: 2 | H64: Households | I64: =INDEX(('Econ ENE'!$M$5:$M$71),MATCH(Tables!H64,OFFSET('Econ ENE'!$Q$5:$Q$71,0,Tables!G64),0)) -> 52 | W64: 10 | X64: Public Service and Administration | Y64: 5 | Z64: Service Delivery Support | AB64: 3 | AC64: Communications | AD64: 4 | AE64: Entity Oversight | AF64: 4 | AG64: Regulatory Institutions | AH64: 003 | AI64: 004 | AJ64: 004 | AK64: 003004 | AL64: 003004004 | AS64: 007 | AT64: 1 | AU64: 5 | AV64: 001 | AW64: 005 | AX64: 007001 | AY64: 007001005 | AZ64: =IFERROR(INDEX((T_Sprog[Programme]),MATCH(AX64,T_Sprog[ComboID_DP],0)),"") -> Administration | BA64: =IFERROR(INDEX((T_Sprog[Subprogramme]),MATCH(AY64,T_Sprog[ComboID_DPSP],0)),"") -> Financial Administration | BV64: 4 | BW64: Cooperative Governance And Traditional Affairs | BX64: 2 | BY64: Regional and Urban Development and Legislative Support | BZ64: 3 | CA64: Urban Development Planning | CB64: 4918.03149 | CC64: =REPT("0",3-LEN(Table27[[#This Row],[Vote No'#]]))&Table27[[#This Row],[Vote No'#]] -> 004 | CD64: =REPT("0",3-LEN(Table27[[#This Row],[Programme No'#]]))&Table27[[#This Row],[Programme No'#]] -> 002 | CE64: =+Table27[[#This Row],[DeptCode]]&Table27[[#This Row],[ProgCode]] -> 004002 | CG64: =T_ENE_2016[[#This Row],[Vote No.]]&T_ENE_2016[[#This Row],[Programme No.]]&T_ENE_2016[[#This Row],[Subprogramme No.]] -> 111 | CH64: =INDEX((T_Econ3[Econ3_No]),MATCH(T_ENE_2016[[#This Row],[Econ4]],T_Econ3[Econ3],0)) -> 56 | CI64: 1 | CJ64: The Presidency | CK64: 1 | CL64: Administration | CM64: 1 | CN64: Management | CO64: Payments for capital assets | CP64: Machinery and equipment | CQ64: Transport equipment | CR64: 869 | CS64: 696 | CT64: 1120 | CU64: 1120 | CV64: 1120 | CW64: 1185 | CX64: 1254 | CY64: 1324 | DC64: =T_ENE_2016[[#This Row],[2018_19]] -> 1254 | DD64: =T_ENE_2016[[#This Row],[2019_20]] -> 1324 | DE64: =IF(T_ENE_2016[[#This Row],[Econ3]]="Compensation of employees",T_ENE_2016[[#This Row],[2019_20 IB]]*(1+MyCola3),(T_ENE_2016[[#This Row],[2019_20 IB]]+T_ENE_2016[[#This Row],[2019_20 NR]])*(1+MyCPI3)) -> 1396.82 | DF64: The Presidency|Administration | DG64: 001 | DH64: 001 | DI64: 001 | DJ64: 056 | DK64: 001001 | DL64: 001056 | DM64: 56 | DN64: 001001001056 | DP64: 001001056 | DS64: =T_Transfers_NAT[[#This Row],[SPId]]&DT64 -> 005123 | DT64: =IF(T_Transfers_NAT[[#This Row],[Vote No.]]<>DU63,1,IF(T_Transfers_NAT[[#This Row],[Programme No.]]<>DW63,1,IF(T_Transfers_NAT[[#This Row],[Subprogramme No.]]<>DY63,1,DT63+1))) -> 3 | DU64: 5 | DV64: Home Affairs | DW64: 1 | DX64: Administration | DY64: 2 | DZ64: Communication | EA64: 4 | EB64: 4 | EC64: 4 | ED64: =REPT("0",3-LEN(T_Transfers_NAT[[#This Row],[Vote No.]]))&T_Transfers_NAT[[#This Row],[Vote No.]]&T_Transfers_NAT[[#This Row],[Programme No.]]&T_Transfers_NAT[[#This Row],[Subprogramme No.]] -> 00512 | EE64: Management Support Services | EH64: Transfers and subsidies | EI64: Departmental agencies and accounts | EJ64: Departmental agencies (non-business entities) | EK64: Current | EL64: 00514 | EM64: 4 | EP64: Parliament | EQ64: Administration | ER64: 11 | ET64: 19 | EU64: 0 | EV64: 8 | EW64: 4715.178082 | EX64: 8 | EY64: 4985 | EZ64: 8 | FA64: 5419 | FB64: 8 | FC64: 6854 | FD64: 8 | FE64: 6954 | FF64: Parliament|Administration | FG64: 002 | FH64: 002 | FI64: 002002 | FL64: 1 | FM64: =T_InfraS[[#This Row],[Programme/Project name]]&"|"&T_InfraS[[#This Row],[Type of infrastructure]] -> Project Management|Fasibility study | FN64: =COUNTIF(T_InfraS[Programme/Project name],T_InfraS[[#This Row],[Programme/Project name]]) -> 1 | FO64: 5 | FP64: Home Affairs | FQ64: Departmental infrastructure | FR64: Small projects | FS64: Project Management | FT64: Fasibility study | FU64: Feasibility | FV64: Maintenance and repair | FW64: Fasibility study | FX64: 0 | FY64: 0 | FZ64: 9259 | GA64: 0 | GB64: 0 | GC64: 0 | GD64: =+T_InfraS[[#This Row],[2019/20 Revised Baseline]] -> 0 | GE64: 5 | GF64: 1 | GG64: 3 | GH64: 513 | GI64: 005 | GJ64: =IF(T_InfraS[[#This Row],[Department]]<>FP63,1,GJ63+1) -> 28 | GK64: 028 | GL64: 005028 | GV64: 29 | GX64: My_Transfers_New_Area5 | GY64: $K$162:$K$181 | HC64: 29 | HD64: Type of infrastructure | HJ64: 17 | HK64: Social Development | HL64: 4 | HM64: Welfare Services Policy Development and Implementation Support | HN64: 2 | HO64: Substance Abuse | HP64: Substance abuse treatment grant | HQ64: Capital | HR64: Transfers and subsidies | HS64: Provinces and municipalities | HT64: Provinces | HU64: PCG | HV64: 0 | HW64: 27530 | HX64: 47500 | HY64: 85500 | HZ64: 85500 | IA64: 85500 | IB64: 56950 | IC64: 70833 | ID64: 74800 | IF64: 74800 | IG64: 1 | IH64: 17421 | II64: 01741 | IJ64: 1 | IU64: =INDEX(Table7[Vote No.],MATCH(IV64,Table7[Department],0)) -> 28 | IV64: Labour | JB64: 007029 | JC64: 29 | JD64: =IFERROR(INDEX(T_InfraS[Programme/Project name],MATCH(JB64,T_InfraS[Combo_Lookup],0)),"") ->  | JM64: 0 | JN64: =IF(JN63="ID",1,IF(T_KeyDeliverablesValues[[#This Row],[Department]]<>JQ63,1,JN63+1)) -> 6 | JO64: =INDEX((Table7[Vote No.]),MATCH(T_KeyDeliverablesValues[[#This Row],[Department]],Table7[Department],0)) -> 4 | JP64: =REPT("0",3-LEN(T_KeyDeliverablesValues[[#This Row],[VoteNo]]))&T_KeyDeliverablesValues[[#This Row],[VoteNo]]&REPT("0",3-LEN(T_KeyDeliverablesValues[[#This Row],[ID]]))&T_KeyDeliverablesValues[[#This Row],[ID]] -> 004006 | JQ64: Cooperative Governance And Traditional Affairs | JR64: Municipal Infrastructure Support Agency | JS64: 261795 | JT64: 294162 | JU64: 304013 | JV64: 34889 | JW64: 381483 | JX64: 351237 | JY64: 370707.272 | JZ64: =IF(T_KeyDeliverablesValues[[#This Row],[CoEIndi]]=1,T_KeyDeliverablesValues[[#This Row],[2019/20]]*(1+$BQ$62),T_KeyDeliverablesValues[[#This Row],[2019/20]]*(1+$BQ$61)) -> 391096.172
G65: 3 | H65: Social benefits | I65: =INDEX(('Econ ENE'!$M$5:$M$71),MATCH(Tables!H65,OFFSET('Econ ENE'!$Q$5:$Q$71,0,Tables!G65),0)) -> 52 | W65: 10 | X65: Public Service and Administration | Y65: 6 | Z65: Governance of Public Administration | AB65: 3 | AC65: Communications | AD65: 4 | AE65: Entity Oversight | AF65: 5 | AG65: Strategy and Policy Alignment | AH65: 003 | AI65: 004 | AJ65: 005 | AK65: 003004 | AL65: 003004005 | AS65: 007 | AT65: 1 | AU65: 6 | AV65: 001 | AW65: 006 | AX65: 007001 | AY65: 007001006 | AZ65: =IFERROR(INDEX((T_Sprog[Programme]),MATCH(AX65,T_Sprog[ComboID_DP],0)),"") -> Administration | BA65: =IFERROR(INDEX((T_Sprog[Subprogramme]),MATCH(AY65,T_Sprog[ComboID_DPSP],0)),"") -> Legal Services | BV65: 4 | BW65: Cooperative Governance And Traditional Affairs | BX65: 2 | BY65: Regional and Urban Development and Legislative Support | BZ65: 4 | CA65: Spatial Planning Districts and Regions | CB65: 9870.18373 | CC65: =REPT("0",3-LEN(Table27[[#This Row],[Vote No'#]]))&Table27[[#This Row],[Vote No'#]] -> 004 | CD65: =REPT("0",3-LEN(Table27[[#This Row],[Programme No'#]]))&Table27[[#This Row],[Programme No'#]] -> 002 | CE65: =+Table27[[#This Row],[DeptCode]]&Table27[[#This Row],[ProgCode]] -> 004002 | CG65: =T_ENE_2016[[#This Row],[Vote No.]]&T_ENE_2016[[#This Row],[Programme No.]]&T_ENE_2016[[#This Row],[Subprogramme No.]] -> 111 | CH65: =INDEX((T_Econ3[Econ3_No]),MATCH(T_ENE_2016[[#This Row],[Econ4]],T_Econ3[Econ3],0)) -> 62 | CI65: 1 | CJ65: The Presidency | CK65: 1 | CL65: Administration | CM65: 1 | CN65: Management | CO65: Payments for capital assets | CP65: Software and other intangible assets | CQ65: Software and other intangible assets | CR65: 0 | CS65: 0 | CT65: 0 | CU65: 0 | CV65: 0 | CW65: 0 | CX65: 0 | CY65: 0 | DC65: =T_ENE_2016[[#This Row],[2018_19]] -> 0 | DD65: =T_ENE_2016[[#This Row],[2019_20]] -> 0 | DE65: =IF(T_ENE_2016[[#This Row],[Econ3]]="Compensation of employees",T_ENE_2016[[#This Row],[2019_20 IB]]*(1+MyCola3),(T_ENE_2016[[#This Row],[2019_20 IB]]+T_ENE_2016[[#This Row],[2019_20 NR]])*(1+MyCPI3)) -> 0 | DF65: The Presidency|Administration | DG65: 001 | DH65: 001 | DI65: 001 | DJ65: 062 | DK65: 001001 | DL65: 001062 | DM65: 62 | DN65: 001001001062 | DP65: 001001062 | DS65: =T_Transfers_NAT[[#This Row],[SPId]]&DT65 -> 005131 | DT65: =IF(T_Transfers_NAT[[#This Row],[Vote No.]]<>DU64,1,IF(T_Transfers_NAT[[#This Row],[Programme No.]]<>DW64,1,IF(T_Transfers_NAT[[#This Row],[Subprogramme No.]]<>DY64,1,DT64+1))) -> 1 | DU65: 5 | DV65: Home Affairs | DW65: 1 | DX65: Administration | DY65: 3 | DZ65: Vehicle licences | EA65: 653 | EB65: 565 | EC65: 597 | ED65: =REPT("0",3-LEN(T_Transfers_NAT[[#This Row],[Vote No.]]))&T_Transfers_NAT[[#This Row],[Vote No.]]&T_Transfers_NAT[[#This Row],[Programme No.]]&T_Transfers_NAT[[#This Row],[Subprogramme No.]] -> 00513 | EE65: Corporate Services | EH65: Transfers and subsidies | EI65: Provinces and municipalities | EJ65: Municipalities | EK65: Current | EL65: 00515 | EM65: 5 | EP65: Parliament | EQ65: Administration | ER65: 12 | ET65: 12 | EU65: 0 | EV65: 17 | EW65: 15833.57935 | EX65: 17 | EY65: 13908 | EZ65: 17 | FA65: 15118 | FB65: 17 | FC65: 16503 | FD65: 17 | FE65: 17003 | FF65: Parliament|Administration | FG65: 002 | FH65: 002 | FI65: 002002 | FL65: 1 | FM65: =T_InfraS[[#This Row],[Programme/Project name]]&"|"&T_InfraS[[#This Row],[Type of infrastructure]] -> Lembobo Refugee Reception centre|Building | FN65: =COUNTIF(T_InfraS[Programme/Project name],T_InfraS[[#This Row],[Programme/Project name]]) -> 1 | FO65: 5 | FP65: Home Affairs | FQ65: Departmental infrastructure | FR65: Small projects | FS65: Lembobo Refugee Reception centre | FT65: Building | FU65: Feasibility | FV65: New infrastructure assets | FW65: Provision of residential accommodation for officials | FX65: 0 | FY65: 0 | FZ65: 8874 | GA65: 0 | GB65: 0 | GC65: 0 | GD65: =+T_InfraS[[#This Row],[2019/20 Revised Baseline]] -> 0 | GE65: 5 | GF65: 1 | GG65: 3 | GH65: 513 | GI65: 005 | GJ65: =IF(T_InfraS[[#This Row],[Department]]<>FP64,1,GJ64+1) -> 29 | GK65: 029 | GL65: 005029 | GV65: 30 | GX65: My_Transfers_New_Area6 | GY65: $L$162:$L$181 | HC65: 30 | HD65: Current project stage | HJ65: 17 | HK65: Social Development | HL65: 4 | HM65: Welfare Services Policy Development and Implementation Support | HN65: 5 | HO65: Children | HP65: Early childhood development grant | HQ65: Current | HR65: Transfers and subsidies | HS65: Provinces and municipalities | HT65: Provinces | HU65: PCG | HV65: 0 | HW65: 0 | HX65: 0 | HY65: 0 | HZ65: 0 | IA65: 0 | IB65: 317612 | IC65: 490800 | ID65: 518228 | IF65: 518228 | IG65: 1 | IH65: 17451 | II65: 01742 | IJ65: 2 | IU65: =INDEX(Table7[Vote No.],MATCH(IV65,Table7[Department],0)) -> 42 | IV65: Military Veterans | JB65: 007030 | JC65: 30 | JD65: =IFERROR(INDEX(T_InfraS[Programme/Project name],MATCH(JB65,T_InfraS[Combo_Lookup],0)),"") ->  | JM65: 0 | JN65: =IF(JN64="ID",1,IF(T_KeyDeliverablesValues[[#This Row],[Department]]<>JQ64,1,JN64+1)) -> 7 | JO65: =INDEX((Table7[Vote No.]),MATCH(T_KeyDeliverablesValues[[#This Row],[Department]],Table7[Department],0)) -> 4 | JP65: =REPT("0",3-LEN(T_KeyDeliverablesValues[[#This Row],[VoteNo]]))&T_KeyDeliverablesValues[[#This Row],[VoteNo]]&REPT("0",3-LEN(T_KeyDeliverablesValues[[#This Row],[ID]]))&T_KeyDeliverablesValues[[#This Row],[ID]] -> 004007 | JQ65: Cooperative Governance And Traditional Affairs | JR65: Provincial Disaster Relief Grant | JS65: 93630 | JT65: 85951 | JU65: 35588 | JV65: 111545 | JW65: 123432 | JX65: 130591 | JY65: 137904 | JZ65: =IF(T_KeyDeliverablesValues[[#This Row],[CoEIndi]]=1,T_KeyDeliverablesValues[[#This Row],[2019/20]]*(1+$BQ$62),T_KeyDeliverablesValues[[#This Row],[2019/20]]*(1+$BQ$61)) -> 145488.72
G66: 3 | H66: Other transfers to households | I66: =INDEX(('Econ ENE'!$M$5:$M$71),MATCH(Tables!H66,OFFSET('Econ ENE'!$Q$5:$Q$71,0,Tables!G66),0)) -> 53 | M66: Previous year sources | W66: 11 | X66: Public Works | Y66: 1 | Z66: Administration | AB66: 4 | AC66: Cooperative Governance And Traditional Affairs | AD66: 1 | AE66: Administration | AF66: 1 | AG66: Ministry | AH66: 004 | AI66: 001 | AJ66: 001 | AK66: 004001 | AL66: 004001001 | AS66: 007 | AT66: 1 | AU66: 7 | AV66: 001 | AW66: 007 | AX66: 007001 | AY66: 007001007 | AZ66: =IFERROR(INDEX((T_Sprog[Programme]),MATCH(AX66,T_Sprog[ComboID_DP],0)),"") -> Administration | BA66: =IFERROR(INDEX((T_Sprog[Subprogramme]),MATCH(AY66,T_Sprog[ComboID_DPSP],0)),"") -> Internal Audit | BV66: 4 | BW66: Cooperative Governance And Traditional Affairs | BX66: 2 | BY66: Regional and Urban Development and Legislative Support | BZ66: 5 | CA66: Intergovernmental Policy and Practice | CB66: 4311.04919 | CC66: =REPT("0",3-LEN(Table27[[#This Row],[Vote No'#]]))&Table27[[#This Row],[Vote No'#]] -> 004 | CD66: =REPT("0",3-LEN(Table27[[#This Row],[Programme No'#]]))&Table27[[#This Row],[Programme No'#]] -> 002 | CE66: =+Table27[[#This Row],[DeptCode]]&Table27[[#This Row],[ProgCode]] -> 004002 | CG66: =T_ENE_2016[[#This Row],[Vote No.]]&T_ENE_2016[[#This Row],[Programme No.]]&T_ENE_2016[[#This Row],[Subprogramme No.]] -> 111 | CH66: =INDEX((T_Econ3[Econ3_No]),MATCH(T_ENE_2016[[#This Row],[Econ4]],T_Econ3[Econ3],0)) -> 44 | CI66: 1 | CJ66: The Presidency | CK66: 1 | CL66: Administration | CM66: 1 | CN66: Management | CO66: Transfers and subsidies | CP66: Provinces and municipalities | CQ66: Municipalities | CR66: 9 | CS66: 4 | CT66: 0 | CU66: 0 | CV66: 0 | CW66: 0 | CX66: 0 | CY66: 0 | DC66: =T_ENE_2016[[#This Row],[2018_19]] -> 0 | DD66: =T_ENE_2016[[#This Row],[2019_20]] -> 0 | DE66: =IF(T_ENE_2016[[#This Row],[Econ3]]="Compensation of employees",T_ENE_2016[[#This Row],[2019_20 IB]]*(1+MyCola3),(T_ENE_2016[[#This Row],[2019_20 IB]]+T_ENE_2016[[#This Row],[2019_20 NR]])*(1+MyCPI3)) -> 0 | DF66: The Presidency|Administration | DG66: 001 | DH66: 001 | DI66: 001 | DJ66: 044 | DK66: 001001 | DL66: 001044 | DM66: 44 | DN66: 001001001044 | DP66: 001001044 | DS66: =T_Transfers_NAT[[#This Row],[SPId]]&DT66 -> 005132 | DT66: =IF(T_Transfers_NAT[[#This Row],[Vote No.]]<>DU65,1,IF(T_Transfers_NAT[[#This Row],[Programme No.]]<>DW65,1,IF(T_Transfers_NAT[[#This Row],[Subprogramme No.]]<>DY65,1,DT65+1))) -> 2 | DU66: 5 | DV66: Home Affairs | DW66: 1 | DX66: Administration | DY66: 3 | DZ66: Employee social benefits | EA66: 726 | EB66: 768 | EC66: 811 | ED66: =REPT("0",3-LEN(T_Transfers_NAT[[#This Row],[Vote No.]]))&T_Transfers_NAT[[#This Row],[Vote No.]]&T_Transfers_NAT[[#This Row],[Programme No.]]&T_Transfers_NAT[[#This Row],[Subprogramme No.]] -> 00513 | EE66: Corporate Services | EH66: Transfers and subsidies | EI66: Households | EJ66: Social benefits | EK66: Current | EL66: 00516 | EM66: 6 | EP66: Parliament | EQ66: Administration | ER66: 13 | ET66: 16 | EU66: 0 | EV66: 16 | EW66: 18327.34682 | EX66: 16 | EY66: 15983 | EZ66: 16 | FA66: 16389 | FB66: 16 | FC66: 18967 | FD66: 16 | FE66: 19867 | FF66: Parliament|Administration | FG66: 002 | FH66: 002 | FI66: 002002 | FL66: 1 | FM66: =T_InfraS[[#This Row],[Programme/Project name]]&"|"&T_InfraS[[#This Row],[Type of infrastructure]] -> Planned maintenance|Maintenance | FN66: =COUNTIF(T_InfraS[Programme/Project name],T_InfraS[[#This Row],[Programme/Project name]]) -> 1 | FO66: 5 | FP66: Home Affairs | FQ66: Departmental infrastructure | FR66: Small projects | FS66: Planned maintenance | FT66: Maintenance | FU66: Construction | FV66: Maintenance and repair | FW66: Upgrades and renovations of office buildings (such as painting and new flooring) | FX66: 0 | FY66: 3500 | FZ66: 3500 | GA66: 4000 | GB66: 4500 | GC66: 5000 | GD66: =+T_InfraS[[#This Row],[2019/20 Revised Baseline]] -> 5000 | GE66: 5 | GF66: 1 | GG66: 3 | GH66: 513 | GI66: 005 | GJ66: =IF(T_InfraS[[#This Row],[Department]]<>FP65,1,GJ65+1) -> 30 | GK66: 030 | GL66: 005030 | GV66: 31 | GX66: My_Transfers_New_Area7 | GY66: $M$162:$M$181 | HC66: 31 | HD66: 2017/18 | HJ66: 17 | HK66: Social Development | HL66: 4 | HM66: Welfare Services Policy Development and Implementation Support | HN66: 10 | HO66: Social Worker Scholarships | HP66: Social worker employment grant | HQ66: Current | HR66: Transfers and subsidies | HS66: Provinces and municipalities | HT66: Provinces | HU66: PCG | HV66: 0 | HW66: 0 | HX66: 0 | HY66: 0 | HZ66: 0 | IA66: 0 | IB66: 181830 | IC66: 196783 | ID66: 212656 | IF66: 212656 | IG66: 1 | IH66: 174101 | II66: 01743 | IJ66: 3 | IU66: =INDEX(Table7[Vote No.],MATCH(IV66,Table7[Department],0)) -> 7 | IV66: National Treasury | JB66: 007031 | JC66: 31 | JD66: =IFERROR(INDEX(T_InfraS[Programme/Project name],MATCH(JB66,T_InfraS[Combo_Lookup],0)),"") ->  | JM66: 1 | JN66: =IF(JN65="ID",1,IF(T_KeyDeliverablesValues[[#This Row],[Department]]<>JQ65,1,JN65+1)) -> 1 | JO66: =INDEX((Table7[Vote No.]),MATCH(T_KeyDeliverablesValues[[#This Row],[Department]],Table7[Department],0)) -> 18 | JP66: =REPT("0",3-LEN(T_KeyDeliverablesValues[[#This Row],[VoteNo]]))&T_KeyDeliverablesValues[[#This Row],[VoteNo]]&REPT("0",3-LEN(T_KeyDeliverablesValues[[#This Row],[ID]]))&T_KeyDeliverablesValues[[#This Row],[ID]] -> 018001 | JQ66: Correctional Services | JR66: Compensation of employees | JS66: 12190067 | JT66: 12611511 | JU66: 13189485 | JV66: 14821416 | JW66: 15776687 | JX66: 17034941 | JY66: 18333576 | JZ66: =IF(T_KeyDeliverablesValues[[#This Row],[CoEIndi]]=1,T_KeyDeliverablesValues[[#This Row],[2019/20]]*(1+$BQ$62),T_KeyDeliverablesValues[[#This Row],[2019/20]]*(1+$BQ$61)) -> 19708594.2
G67: 1 | H67: Payments for capital assets | I67: =INDEX(('Econ ENE'!$M$5:$M$71),MATCH(Tables!H67,OFFSET('Econ ENE'!$Q$5:$Q$71,0,Tables!G67),0)) -> 54 | M67: AFS | W67: 11 | X67: Public Works | Y67: 2 | Z67: Intergovernmental Coordination | AB67: 4 | AC67: Cooperative Governance And Traditional Affairs | AD67: 1 | AE67: Administration | AF67: 2 | AG67: Management | AH67: 004 | AI67: 001 | AJ67: 002 | AK67: 004001 | AL67: 004001002 | AS67: 007 | AT67: 1 | AU67: 8 | AV67: 001 | AW67: 008 | AX67: 007001 | AY67: 007001008 | AZ67: =IFERROR(INDEX((T_Sprog[Programme]),MATCH(AX67,T_Sprog[ComboID_DP],0)),"") -> Administration | BA67: =IFERROR(INDEX((T_Sprog[Subprogramme]),MATCH(AY67,T_Sprog[ComboID_DPSP],0)),"") -> Communications | BV67: 4 | BW67: Cooperative Governance And Traditional Affairs | BX67: 2 | BY67: Regional and Urban Development and Legislative Support | BZ67: 6 | CA67: Municipal Demarcation Transition Grant | CB67: 297422 | CC67: =REPT("0",3-LEN(Table27[[#This Row],[Vote No'#]]))&Table27[[#This Row],[Vote No'#]] -> 004 | CD67: =REPT("0",3-LEN(Table27[[#This Row],[Programme No'#]]))&Table27[[#This Row],[Programme No'#]] -> 002 | CE67: =+Table27[[#This Row],[DeptCode]]&Table27[[#This Row],[ProgCode]] -> 004002 | CG67: =T_ENE_2016[[#This Row],[Vote No.]]&T_ENE_2016[[#This Row],[Programme No.]]&T_ENE_2016[[#This Row],[Subprogramme No.]] -> 111 | CH67: =INDEX((T_Econ3[Econ3_No]),MATCH(T_ENE_2016[[#This Row],[Econ4]],T_Econ3[Econ3],0)) -> 52 | CI67: 1 | CJ67: The Presidency | CK67: 1 | CL67: Administration | CM67: 1 | CN67: Management | CO67: Transfers and subsidies | CP67: Households | CQ67: Social benefits | CR67: 556 | CS67: 503 | CT67: 0 | CU67: 1783 | CV67: 1783 | CW67: 0 | CX67: 0 | CY67: 0 | DC67: =T_ENE_2016[[#This Row],[2018_19]] -> 0 | DD67: =T_ENE_2016[[#This Row],[2019_20]] -> 0 | DE67: =IF(T_ENE_2016[[#This Row],[Econ3]]="Compensation of employees",T_ENE_2016[[#This Row],[2019_20 IB]]*(1+MyCola3),(T_ENE_2016[[#This Row],[2019_20 IB]]+T_ENE_2016[[#This Row],[2019_20 NR]])*(1+MyCPI3)) -> 0 | DF67: The Presidency|Administration | DG67: 001 | DH67: 001 | DI67: 001 | DJ67: 052 | DK67: 001001 | DL67: 001052 | DM67: 52 | DN67: 001001001052 | DP67: 001001052 | DS67: =T_Transfers_NAT[[#This Row],[SPId]]&DT67 -> 005141 | DT67: =IF(T_Transfers_NAT[[#This Row],[Vote No.]]<>DU66,1,IF(T_Transfers_NAT[[#This Row],[Programme No.]]<>DW66,1,IF(T_Transfers_NAT[[#This Row],[Subprogramme No.]]<>DY66,1,DT66+1))) -> 1 | DU67: 5 | DV67: Home Affairs | DW67: 1 | DX67: Administration | DY67: 4 | DZ67: Employee social benefits | EA67: 121 | EB67: 128 | EC67: 135 | ED67: =REPT("0",3-LEN(T_Transfers_NAT[[#This Row],[Vote No.]]))&T_Transfers_NAT[[#This Row],[Vote No.]]&T_Transfers_NAT[[#This Row],[Programme No.]]&T_Transfers_NAT[[#This Row],[Subprogramme No.]] -> 00514 | EE67: Transversal Information Technology Management | EH67: Transfers and subsidies | EI67: Households | EJ67: Social benefits | EK67: Current | EL67: 00517 | EM67: 7 | EP67: Parliament | EQ67: Administration | ER67: 14 | ET67: 14 | EU67: 0 | EV67: 6 | EW67: 7122.415509 | EX67: 6 | EY67: 6475 | EZ67: 6 | FA67: 7038 | FB67: 6 | FC67: 7736 | FD67: 6 | FE67: 8236 | FF67: Parliament|Administration | FG67: 002 | FH67: 002 | FI67: 002002 | FL67: 1 | FM67: =T_InfraS[[#This Row],[Programme/Project name]]&"|"&T_InfraS[[#This Row],[Type of infrastructure]] -> Maintenance|Installation of Genesets and UPS to 6 Home Affairs facilites | FN67: =COUNTIF(T_InfraS[Programme/Project name],T_InfraS[[#This Row],[Programme/Project name]]) -> 1 | FO67: 5 | FP67: Home Affairs | FQ67: Departmental infrastructure | FR67: Small projects | FS67: Maintenance | FT67: Installation of Genesets and UPS to 6 Home Affairs facilites | FU67: Handed over | FV67: Maintenance and repair | FW67: Installation of generators, earth wires and related services | FX67: 0 | FY67: 0 | FZ67: 0 | GA67: 0 | GB67: 0 | GC67: 0 | GD67: =+T_InfraS[[#This Row],[2019/20 Revised Baseline]] -> 0 | GE67: 5 | GF67: 1 | GG67: 3 | GH67: 513 | GI67: 005 | GJ67: =IF(T_InfraS[[#This Row],[Department]]<>FP66,1,GJ66+1) -> 31 | GK67: 031 | GL67: 005031 | GV67: 32 | GX67: My_Grants_Area1 | GY67: $G$190:$G$204 | HC67: 32 | HD67: 2018/19 | HJ67: 24 | HK67: Agriculture, Forestry and Fisheries | HL67: 2 | HM67: Agricultural Production, Health and Food Safety | HN67: 3 | HO67: Plant Production and Health | HP67: Ilima/Letsema projects grant | HQ67: Current | HR67: Transfers and subsidies | HS67: Provinces and municipalities | HT67: Provinces | HU67: PCG | HV67: 438456 | HW67: 460625 | HX67: 466713 | HY67: 491363 | HZ67: 491363 | IA67: 491363 | IB67: 522139 | IC67: 552423 | ID67: 583359 | IF67: 583359 | IG67: 1 | IH67: 24231 | II67: 02421 | IJ67: 1 | IU67: =INDEX(Table7[Vote No.],MATCH(IV67,Table7[Department],0)) -> 23 | IV67: Police | JB67: 007032 | JC67: 32 | JD67: =IFERROR(INDEX(T_InfraS[Programme/Project name],MATCH(JB67,T_InfraS[Combo_Lookup],0)),"") ->  | JM67: 0 | JN67: =IF(JN66="ID",1,IF(T_KeyDeliverablesValues[[#This Row],[Department]]<>JQ66,1,JN66+1)) -> 2 | JO67: =INDEX((Table7[Vote No.]),MATCH(T_KeyDeliverablesValues[[#This Row],[Department]],Table7[Department],0)) -> 18 | JP67: =REPT("0",3-LEN(T_KeyDeliverablesValues[[#This Row],[VoteNo]]))&T_KeyDeliverablesValues[[#This Row],[VoteNo]]&REPT("0",3-LEN(T_KeyDeliverablesValues[[#This Row],[ID]]))&T_KeyDeliverablesValues[[#This Row],[ID]] -> 018002 | JQ67: Correctional Services | JR67: Buildings and other fixed structures | JS67: 862354 | JT67: 846099 | JU67: 857815 | JV67: 770829 | JW67: 759944 | JX67: 746239 | JY67: 788028 | JZ67: =IF(T_KeyDeliverablesValues[[#This Row],[CoEIndi]]=1,T_KeyDeliverablesValues[[#This Row],[2019/20]]*(1+$BQ$62),T_KeyDeliverablesValues[[#This Row],[2019/20]]*(1+$BQ$61)) -> 831369.54
G68: 2 | H68: Buildings and other fixed structures | I68: =INDEX(('Econ ENE'!$M$5:$M$71),MATCH(Tables!H68,OFFSET('Econ ENE'!$Q$5:$Q$71,0,Tables!G68),0)) -> 54 | M68: ENE | W68: 11 | X68: Public Works | Y68: 3 | Z68: Expanded Public Works Programme | AB68: 4 | AC68: Cooperative Governance And Traditional Affairs | AD68: 1 | AE68: Administration | AF68: 3 | AG68: Corporate Services | AH68: 004 | AI68: 001 | AJ68: 003 | AK68: 004001 | AL68: 004001003 | AS68: 007 | AT68: 1 | AU68: 9 | AV68: 001 | AW68: 009 | AX68: 007001 | AY68: 007001009 | AZ68: =IFERROR(INDEX((T_Sprog[Programme]),MATCH(AX68,T_Sprog[ComboID_DP],0)),"") -> Administration | BA68: =IFERROR(INDEX((T_Sprog[Subprogramme]),MATCH(AY68,T_Sprog[ComboID_DPSP],0)),"") -> Office Accommodation | BV68: 4 | BW68: Cooperative Governance And Traditional Affairs | BX68: 3 | BY68: Institutional Development | BZ68: 1 | CA68: Management: Institutional Development | CB68: 5419.12149 | CC68: =REPT("0",3-LEN(Table27[[#This Row],[Vote No'#]]))&Table27[[#This Row],[Vote No'#]] -> 004 | CD68: =REPT("0",3-LEN(Table27[[#This Row],[Programme No'#]]))&Table27[[#This Row],[Programme No'#]] -> 003 | CE68: =+Table27[[#This Row],[DeptCode]]&Table27[[#This Row],[ProgCode]] -> 004003 | CG68: =T_ENE_2016[[#This Row],[Vote No.]]&T_ENE_2016[[#This Row],[Programme No.]]&T_ENE_2016[[#This Row],[Subprogramme No.]] -> 111 | CH68: =INDEX((T_Econ3[Econ3_No]),MATCH(T_ENE_2016[[#This Row],[Econ4]],T_Econ3[Econ3],0)) -> 53 | CI68: 1 | CJ68: The Presidency | CK68: 1 | CL68: Administration | CM68: 1 | CN68: Management | CO68: Transfers and subsidies | CP68: Households | CQ68: Other transfers to households | CR68: 1808 | CS68: 244 | CT68: 0 | CU68: 0 | CV68: 0 | CW68: 0 | CX68: 0 | CY68: 0 | DC68: =T_ENE_2016[[#This Row],[2018_19]] -> 0 | DD68: =T_ENE_2016[[#This Row],[2019_20]] -> 0 | DE68: =IF(T_ENE_2016[[#This Row],[Econ3]]="Compensation of employees",T_ENE_2016[[#This Row],[2019_20 IB]]*(1+MyCola3),(T_ENE_2016[[#This Row],[2019_20 IB]]+T_ENE_2016[[#This Row],[2019_20 NR]])*(1+MyCPI3)) -> 0 | DF68: The Presidency|Administration | DG68: 001 | DH68: 001 | DI68: 001 | DJ68: 053 | DK68: 001001 | DL68: 001053 | DM68: 53 | DN68: 001001001053 | DP68: 001001053 | DS68: =T_Transfers_NAT[[#This Row],[SPId]]&DT68 -> 005251 | DT68: =IF(T_Transfers_NAT[[#This Row],[Vote No.]]<>DU67,1,IF(T_Transfers_NAT[[#This Row],[Programme No.]]<>DW67,1,IF(T_Transfers_NAT[[#This Row],[Subprogramme No.]]<>DY67,1,DT67+1))) -> 1 | DU68: 5 | DV68: Home Affairs | DW68: 2 | DX68: Citizen Affairs | DY68: 5 | DZ68: Vehicle licences | EA68: 1008 | EB68: 1066 | EC68: 1126 | ED68: =REPT("0",3-LEN(T_Transfers_NAT[[#This Row],[Vote No.]]))&T_Transfers_NAT[[#This Row],[Vote No.]]&T_Transfers_NAT[[#This Row],[Programme No.]]&T_Transfers_NAT[[#This Row],[Subprogramme No.]] -> 00525 | EE68: Service Delivery to Provinces | EH68: Transfers and subsidies | EI68: Provinces and municipalities | EJ68: Municipalities | EK68: Current | EL68: 00521 | EM68: 1 | EP68: Parliament | EQ68: Administration | ER68: 15 | ET68: 9 | EU68: 0 | EV68: 7 | EW68: 9584.975422 | EX68: 7 | EY68: 8475 | EZ68: 7 | FA68: 9154 | FB68: 7 | FC68: 9833 | FD68: 7 | FE68: 10333 | FF68: Parliament|Administration | FG68: 002 | FH68: 002 | FI68: 002002 | FL68: 1 | FM68: =T_InfraS[[#This Row],[Programme/Project name]]&"|"&T_InfraS[[#This Row],[Type of infrastructure]] -> New corporation building|Replacement of lifts | FN68: =COUNTIF(T_InfraS[Programme/Project name],T_InfraS[[#This Row],[Programme/Project name]]) -> 2 | FO68: 5 | FP68: Home Affairs | FQ68: Departmental infrastructure | FR68: Small projects | FS68: New corporation building | FT68: Replacement of lifts | FU68: Handed over | FV68: Upgrading and additions | FW68: Construction of elevators | FX68: 0 | FY68: 0 | FZ68: 0 | GA68: 0 | GB68: 0 | GC68: 0 | GD68: =+T_InfraS[[#This Row],[2019/20 Revised Baseline]] -> 0 | GE68: 5 | GF68: 1 | GG68: 3 | GH68: 513 | GI68: 005 | GJ68: =IF(T_InfraS[[#This Row],[Department]]<>FP67,1,GJ67+1) -> 32 | GK68: 032 | GL68: 005032 | GV68: 33 | GX68: My_Grants_Area2 | GY68: $H$190:$H$204 | HC68: 33 | HD68: 2019/20 | HJ68: 24 | HK68: Agriculture, Forestry and Fisheries | HL68: 3 | HM68: Food Security and Agrarian Reform | HN68: 2 | HO68: Food Security | HP68: Comprehensive agricultural support programme grant: Infrastructure | HQ68: Current | HR68: Transfers and subsidies | HS68: Provinces and municipalities | HT68: Provinces | HU68: PCG | HV68: 905746 | HW68: 929529 | HX68: 1167779 | HY68: 1148115 | HZ68: 1148115 | IA68: 1148115 | IB68: 1112138 | IC68: 1164764 | ID68: 1350208 | IF68: 1350208 | IG68: 1 | IH68: 24321 | II68: 02431 | IJ68: 1 | IU68: =INDEX(Table7[Vote No.],MATCH(IV68,Table7[Department],0)) -> 11 | IV68: Public Works | JB68: 007033 | JC68: 33 | JD68: =IFERROR(INDEX(T_InfraS[Programme/Project name],MATCH(JB68,T_InfraS[Combo_Lookup],0)),"") ->  | JM68: 0 | JN68: =IF(JN67="ID",1,IF(T_KeyDeliverablesValues[[#This Row],[Department]]<>JQ67,1,JN67+1)) -> 3 | JO68: =INDEX((Table7[Vote No.]),MATCH(T_KeyDeliverablesValues[[#This Row],[Department]],Table7[Department],0)) -> 18 | JP68: =REPT("0",3-LEN(T_KeyDeliverablesValues[[#This Row],[VoteNo]]))&T_KeyDeliverablesValues[[#This Row],[VoteNo]]&REPT("0",3-LEN(T_KeyDeliverablesValues[[#This Row],[ID]]))&T_KeyDeliverablesValues[[#This Row],[ID]] -> 018003 | JQ68: Correctional Services | JR68: Operating leases | JS68: 1655005 | JT68: 1785307 | JU68: 1951564 | JV68: 2022222 | JW68: 1195849 | JX68: 1265251 | JY68: 1335891 | JZ68: =IF(T_KeyDeliverablesValues[[#This Row],[CoEIndi]]=1,T_KeyDeliverablesValues[[#This Row],[2019/20]]*(1+$BQ$62),T_KeyDeliverablesValues[[#This Row],[2019/20]]*(1+$BQ$61)) -> 1409365.005
G69: 3 | H69: Buildings | I69: =INDEX(('Econ ENE'!$M$5:$M$71),MATCH(Tables!H69,OFFSET('Econ ENE'!$Q$5:$Q$71,0,Tables!G69),0)) -> 54 | W69: 11 | X69: Public Works | Y69: 4 | Z69: Property and Construction Industry Policy and Research | AB69: 4 | AC69: Cooperative Governance And Traditional Affairs | AD69: 1 | AE69: Administration | AF69: 4 | AG69: Financial Services | AH69: 004 | AI69: 001 | AJ69: 004 | AK69: 004001 | AL69: 004001004 | AS69: 007 | AT69: 1 | AU69: 10 | AV69: 001 | AW69: 010 | AX69: 007001 | AY69: 007001010 | AZ69: =IFERROR(INDEX((T_Sprog[Programme]),MATCH(AX69,T_Sprog[ComboID_DP],0)),"") -> Administration | BA69: =IFERROR(INDEX((T_Sprog[Subprogramme]),MATCH(AY69,T_Sprog[ComboID_DPSP],0)),"") ->  | BV69: 4 | BW69: Cooperative Governance And Traditional Affairs | BX69: 3 | BY69: Institutional Development | BZ69: 2 | CA69: Municipal Human Resources Management Systems | CB69: 8904.06918 | CC69: =REPT("0",3-LEN(Table27[[#This Row],[Vote No'#]]))&Table27[[#This Row],[Vote No'#]] -> 004 | CD69: =REPT("0",3-LEN(Table27[[#This Row],[Programme No'#]]))&Table27[[#This Row],[Programme No'#]] -> 003 | CE69: =+Table27[[#This Row],[DeptCode]]&Table27[[#This Row],[ProgCode]] -> 004003 | CG69: =T_ENE_2016[[#This Row],[Vote No.]]&T_ENE_2016[[#This Row],[Programme No.]]&T_ENE_2016[[#This Row],[Subprogramme No.]] -> 111 | CH69: =INDEX((T_Econ3[Econ3_No]),MATCH(T_ENE_2016[[#This Row],[Econ4]],T_Econ3[Econ3],0)) -> 46 | CI69: 1 | CJ69: The Presidency | CK69: 1 | CL69: Administration | CM69: 1 | CN69: Management | CO69: Transfers and subsidies | CP69: Departmental agencies and accounts | CQ69: Departmental agencies (non-business entities) | CR69: 997 | CS69: 3 | CT69: 34 | CU69: 34 | CV69: 34 | CW69: 36 | CX69: 38 | CY69: 40 | DC69: =T_ENE_2016[[#This Row],[2018_19]] -> 38 | DD69: =T_ENE_2016[[#This Row],[2019_20]] -> 40 | DE69: =IF(T_ENE_2016[[#This Row],[Econ3]]="Compensation of employees",T_ENE_2016[[#This Row],[2019_20 IB]]*(1+MyCola3),(T_ENE_2016[[#This Row],[2019_20 IB]]+T_ENE_2016[[#This Row],[2019_20 NR]])*(1+MyCPI3)) -> 42.2 | DF69: The Presidency|Administration | DG69: 001 | DH69: 001 | DI69: 001 | DJ69: 046 | DK69: 001001 | DL69: 001046 | DM69: 46 | DN69: 001001001046 | DP69: 001001046 | DS69: =T_Transfers_NAT[[#This Row],[SPId]]&DT69 -> 005252 | DT69: =IF(T_Transfers_NAT[[#This Row],[Vote No.]]<>DU68,1,IF(T_Transfers_NAT[[#This Row],[Programme No.]]<>DW68,1,IF(T_Transfers_NAT[[#This Row],[Subprogramme No.]]<>DY68,1,DT68+1))) -> 2 | DU69: 5 | DV69: Home Affairs | DW69: 2 | DX69: Citizen Affairs | DY69: 5 | DZ69: Employee social benefits | EA69: 1301 | EB69: 1376 | EC69: 1453 | ED69: =REPT("0",3-LEN(T_Transfers_NAT[[#This Row],[Vote No.]]))&T_Transfers_NAT[[#This Row],[Vote No.]]&T_Transfers_NAT[[#This Row],[Programme No.]]&T_Transfers_NAT[[#This Row],[Subprogramme No.]] -> 00525 | EE69: Service Delivery to Provinces | EH69: Transfers and subsidies | EI69: Households | EJ69: Social benefits | EK69: Current | EL69: 00522 | EM69: 2 | EP69: Parliament | EQ69: Administration | ER69: 16 | ET69: 1 | EU69: 0 | EV69: 1 | EW69: 3262.60818 | EX69: 1 | EY69: 2785 | EZ69: 1 | FA69: 3027 | FB69: 1 | FC69: 3184 | FD69: 1 | FE69: 3696 | FF69: Parliament|Administration | FG69: 002 | FH69: 002 | FI69: 002002 | FL69: 1 | FM69: =T_InfraS[[#This Row],[Programme/Project name]]&"|"&T_InfraS[[#This Row],[Type of infrastructure]] -> New corporation building|Power upgrade | FN69: =COUNTIF(T_InfraS[Programme/Project name],T_InfraS[[#This Row],[Programme/Project name]]) -> 2 | FO69: 5 | FP69: Home Affairs | FQ69: Departmental infrastructure | FR69: Small projects | FS69: New corporation building | FT69: Power upgrade | FU69: Handed over | FV69: Upgrading and additions | FW69: Upgrades and renovations of office buildings (such as painting and new flooring) | FX69: 0 | FY69: 0 | FZ69: 916 | GA69: 0 | GB69: 0 | GC69: 0 | GD69: =+T_InfraS[[#This Row],[2019/20 Revised Baseline]] -> 0 | GE69: 5 | GF69: 1 | GG69: 3 | GH69: 513 | GI69: 005 | GJ69: =IF(T_InfraS[[#This Row],[Department]]<>FP68,1,GJ68+1) -> 33 | GK69: 033 | GL69: 005033 | GV69: 34 | GX69: My_Grants_Area3 | GY69: $I$190:$I$204 | HC69: 34 | HD69: Comment | HJ69: 24 | HK69: Agriculture, Forestry and Fisheries | HL69: 3 | HM69: Food Security and Agrarian Reform | HN69: 3 | HO69: Sector Capacity Development | HP69: Comprehensive agricultural support programme grant: Upgrading of provincial agricultural colleges | HQ69: Current | HR69: Transfers and subsidies | HS69: Provinces and municipalities | HT69: Provinces | HU69: PCG | HV69: 55388 | HW69: 57701 | HX69: 69473 | HY69: 70826 | HZ69: 70826 | IA69: 70826 | IB69: 56831 | IC69: 74461 | ID69: 79673 | IF69: 79673 | IG69: 1 | IH69: 24331 | II69: 02432 | IJ69: 2 | IU69: =INDEX(Table7[Vote No.],MATCH(IV69,Table7[Department],0)) -> 39 | IV69: Rural Development and Land Reform | JB69: 007034 | JC69: 34 | JD69: =IFERROR(INDEX(T_InfraS[Programme/Project name],MATCH(JB69,T_InfraS[Combo_Lookup],0)),"") ->  | JM69: 0 | JN69: =IF(JN68="ID",1,IF(T_KeyDeliverablesValues[[#This Row],[Department]]<>JQ68,1,JN68+1)) -> 4 | JO69: =INDEX((Table7[Vote No.]),MATCH(T_KeyDeliverablesValues[[#This Row],[Department]],Table7[Department],0)) -> 18 | JP69: =REPT("0",3-LEN(T_KeyDeliverablesValues[[#This Row],[VoteNo]]))&T_KeyDeliverablesValues[[#This Row],[VoteNo]]&REPT("0",3-LEN(T_KeyDeliverablesValues[[#This Row],[ID]]))&T_KeyDeliverablesValues[[#This Row],[ID]] -> 018004 | JQ69: Correctional Services | JR69: Property payments | JS69: 845871 | JT69: 920975 | JU69: 937252 | JV69: 865874 | JW69: 912702 | JX69: 965598 | JY69: 1017777 | JZ69: =IF(T_KeyDeliverablesValues[[#This Row],[CoEIndi]]=1,T_KeyDeliverablesValues[[#This Row],[2019/20]]*(1+$BQ$62),T_KeyDeliverablesValues[[#This Row],[2019/20]]*(1+$BQ$61)) -> 1073754.735
G70: 3 | H70: Other fixed structures | I70: =INDEX(('Econ ENE'!$M$5:$M$71),MATCH(Tables!H70,OFFSET('Econ ENE'!$Q$5:$Q$71,0,Tables!G70),0)) -> 55 | W70: 11 | X70: Public Works | Y70: 5 | Z70: Prestige Policy | AB70: 4 | AC70: Cooperative Governance And Traditional Affairs | AD70: 1 | AE70: Administration | AF70: 5 | AG70: Internal Audit and Risk Management | AH70: 004 | AI70: 001 | AJ70: 005 | AK70: 004001 | AL70: 004001005 | AS70: 007 | AT70: 1 | AU70: 11 | AV70: 001 | AW70: 011 | AX70: 007001 | AY70: 007001011 | AZ70: =IFERROR(INDEX((T_Sprog[Programme]),MATCH(AX70,T_Sprog[ComboID_DP],0)),"") -> Administration | BA70: =IFERROR(INDEX((T_Sprog[Subprogramme]),MATCH(AY70,T_Sprog[ComboID_DPSP],0)),"") ->  | BV70: 4 | BW70: Cooperative Governance And Traditional Affairs | BX70: 3 | BY70: Institutional Development | BZ70: 3 | CA70: Municipal Finance | CB70: 5853.55402 | CC70: =REPT("0",3-LEN(Table27[[#This Row],[Vote No'#]]))&Table27[[#This Row],[Vote No'#]] -> 004 | CD70: =REPT("0",3-LEN(Table27[[#This Row],[Programme No'#]]))&Table27[[#This Row],[Programme No'#]] -> 003 | CE70: =+Table27[[#This Row],[DeptCode]]&Table27[[#This Row],[ProgCode]] -> 004003 | CG70: =T_ENE_2016[[#This Row],[Vote No.]]&T_ENE_2016[[#This Row],[Programme No.]]&T_ENE_2016[[#This Row],[Subprogramme No.]] -> 111 | CH70: =INDEX((T_Econ3[Econ3_No]),MATCH(T_ENE_2016[[#This Row],[Econ4]],T_Econ3[Econ3],0)) -> 63 | CI70: 1 | CJ70: The Presidency | CK70: 1 | CL70: Administration | CM70: 1 | CN70: Management | CO70: Payments for financial assets | CP70: Payments for financial assets | CQ70: Payments for financial assets | CR70: 4577 | CS70: 1069 | CT70: 0 | CU70: 0 | CV70: 0 | CW70: 0 | CX70: 0 | CY70: 0 | DC70: =T_ENE_2016[[#This Row],[2018_19]] -> 0 | DD70: =T_ENE_2016[[#This Row],[2019_20]] -> 0 | DE70: =IF(T_ENE_2016[[#This Row],[Econ3]]="Compensation of employees",T_ENE_2016[[#This Row],[2019_20 IB]]*(1+MyCola3),(T_ENE_2016[[#This Row],[2019_20 IB]]+T_ENE_2016[[#This Row],[2019_20 NR]])*(1+MyCPI3)) -> 0 | DF70: The Presidency|Administration | DG70: 001 | DH70: 001 | DI70: 001 | DJ70: 063 | DK70: 001001 | DL70: 001063 | DM70: 63 | DN70: 001001001063 | DP70: 001001063 | DS70: =T_Transfers_NAT[[#This Row],[SPId]]&DT70 -> 005281 | DT70: =IF(T_Transfers_NAT[[#This Row],[Vote No.]]<>DU69,1,IF(T_Transfers_NAT[[#This Row],[Programme No.]]<>DW69,1,IF(T_Transfers_NAT[[#This Row],[Subprogramme No.]]<>DY69,1,DT69+1))) -> 1 | DU70: 5 | DV70: Home Affairs | DW70: 2 | DX70: Citizen Affairs | DY70: 8 | DZ70: Electoral Commission | EA70: 1299912 | EB70: 1814867 | EC70: 1251220 | ED70: =REPT("0",3-LEN(T_Transfers_NAT[[#This Row],[Vote No.]]))&T_Transfers_NAT[[#This Row],[Vote No.]]&T_Transfers_NAT[[#This Row],[Programme No.]]&T_Transfers_NAT[[#This Row],[Subprogramme No.]] -> 00528 | EE70: Electoral Commission | EH70: Transfers and subsidies | EI70: Departmental agencies and accounts | EJ70: Departmental agencies (non-business entities) | EK70: Current | EL70: 00523 | EM70: 3 | EP70: Parliament | EQ70: Associated Services | ER70: 8 | ET70: 0 | EU70: 0 | EV70: 1 | EW70: 275.8001552 | EX70: 1 | EY70: 289 | EZ70: 1 | FA70: 304 | FB70: 1 | FC70: 323 | FD70: 1 | FE70: 323 | FF70: Parliament|Associated Services | FG70: 002 | FH70: 005 | FI70: 002005 | FL70: 1 | FM70: =T_InfraS[[#This Row],[Programme/Project name]]&"|"&T_InfraS[[#This Row],[Type of infrastructure]] -> Look and feel|Upgrading of offices | FN70: =COUNTIF(T_InfraS[Programme/Project name],T_InfraS[[#This Row],[Programme/Project name]]) -> 1 | FO70: 5 | FP70: Home Affairs | FQ70: Departmental infrastructure | FR70: Small projects | FS70: Look and feel | FT70: Upgrading of offices | FU70: Construction | FV70: Maintenance and repair | FW70: Upgrades and renovations of office buildings (such as painting and new flooring) | FX70: 0 | FY70: 18612 | FZ70: 10205 | GA70: 0 | GB70: 0 | GC70: 0 | GD70: =+T_InfraS[[#This Row],[2019/20 Revised Baseline]] -> 0 | GE70: 5 | GF70: 1 | GG70: 3 | GH70: 513 | GI70: 005 | GJ70: =IF(T_InfraS[[#This Row],[Department]]<>FP69,1,GJ69+1) -> 34 | GK70: 034 | GL70: 005034 | GV70: 35 | GX70: My_Grants_Area4 | GY70: $J$190:$J$204 | HJ70: 24 | HK70: Agriculture, Forestry and Fisheries | HL70: 3 | HM70: Food Security and Agrarian Reform | HN70: 4 | HO70: National Extension Support Services | HP70: Comprehensive agricultural support programme grant: Extension recovery planning service | HQ70: Current | HR70: Transfers and subsidies | HS70: Provinces and municipalities | HT70: Provinces | HU70: PCG | HV70: 339927 | HW70: 352708 | HX70: 343873 | HY70: 346149 | HZ70: 346149 | IA70: 346149 | IB70: 337906 | IC70: 355649 | ID70: 380544 | IF70: 380544 | IG70: 1 | IH70: 24341 | II70: 02433 | IJ70: 3 | IU70: =INDEX(Table7[Vote No.],MATCH(IV70,Table7[Department],0)) -> 30 | IV70: Science and Technology | JB70: 007035 | JC70: 35 | JD70: =IFERROR(INDEX(T_InfraS[Programme/Project name],MATCH(JB70,T_InfraS[Combo_Lookup],0)),"") ->  | JM70: 0 | JN70: =IF(JN69="ID",1,IF(T_KeyDeliverablesValues[[#This Row],[Department]]<>JQ69,1,JN69+1)) -> 5 | JO70: =INDEX((Table7[Vote No.]),MATCH(T_KeyDeliverablesValues[[#This Row],[Department]],Table7[Department],0)) -> 18 | JP70: =REPT("0",3-LEN(T_KeyDeliverablesValues[[#This Row],[VoteNo]]))&T_KeyDeliverablesValues[[#This Row],[VoteNo]]&REPT("0",3-LEN(T_KeyDeliverablesValues[[#This Row],[ID]]))&T_KeyDeliverablesValues[[#This Row],[ID]] -> 018005 | JQ70: Correctional Services | JR70: Agency and support/outsourced services | JS70: 625071 | JT70: 677439 | JU70: 760811 | JV70: 646635 | JW70: 1519372 | JX70: 1603757 | JY70: 1705220 | JZ70: =IF(T_KeyDeliverablesValues[[#This Row],[CoEIndi]]=1,T_KeyDeliverablesValues[[#This Row],[2019/20]]*(1+$BQ$62),T_KeyDeliverablesValues[[#This Row],[2019/20]]*(1+$BQ$61)) -> 1799007.1
G71: 2 | H71: Machinery and equipment | I71: =INDEX(('Econ ENE'!$M$5:$M$71),MATCH(Tables!H71,OFFSET('Econ ENE'!$Q$5:$Q$71,0,Tables!G71),0)) -> 56 | W71: 12 | X71: Statistics South Africa | Y71: 1 | Z71: Administration | AB71: 4 | AC71: Cooperative Governance And Traditional Affairs | AD71: 1 | AE71: Administration | AF71: 6 | AG71: Office Accommodation | AH71: 004 | AI71: 001 | AJ71: 006 | AK71: 004001 | AL71: 004001006 | AS71: 007 | AT71: 1 | AU71: 12 | AV71: 001 | AW71: 012 | AX71: 007001 | AY71: 007001012 | AZ71: =IFERROR(INDEX((T_Sprog[Programme]),MATCH(AX71,T_Sprog[ComboID_DP],0)),"") -> Administration | BA71: =IFERROR(INDEX((T_Sprog[Subprogramme]),MATCH(AY71,T_Sprog[ComboID_DPSP],0)),"") ->  | BV71: 4 | BW71: Cooperative Governance And Traditional Affairs | BX71: 3 | BY71: Institutional Development | BZ71: 4 | CA71: Citizen Engagement | CB71: 6548.66108 | CC71: =REPT("0",3-LEN(Table27[[#This Row],[Vote No'#]]))&Table27[[#This Row],[Vote No'#]] -> 004 | CD71: =REPT("0",3-LEN(Table27[[#This Row],[Programme No'#]]))&Table27[[#This Row],[Programme No'#]] -> 003 | CE71: =+Table27[[#This Row],[DeptCode]]&Table27[[#This Row],[ProgCode]] -> 004003 | CG71: =T_ENE_2016[[#This Row],[Vote No.]]&T_ENE_2016[[#This Row],[Programme No.]]&T_ENE_2016[[#This Row],[Subprogramme No.]] -> 112 | CH71: =INDEX((T_Econ3[Econ3_No]),MATCH(T_ENE_2016[[#This Row],[Econ4]],T_Econ3[Econ3],0)) -> 1 | CI71: 1 | CJ71: The Presidency | CK71: 1 | CL71: Administration | CM71: 2 | CN71: Support Service to President | CO71: Current payments | CP71: Compensation of employees | CQ71: Compensation of employees | CR71: 36193 | CS71: 39163 | CT71: 39236 | CU71: 37388 | CV71: 37388 | CW71: 33800 | CX71: 35645 | CY71: 38353 | DC71: =T_ENE_2016[[#This Row],[2018_19]] -> 35645 | DD71: =T_ENE_2016[[#This Row],[2019_20]] -> 38353 | DE71: =IF(T_ENE_2016[[#This Row],[Econ3]]="Compensation of employees",T_ENE_2016[[#This Row],[2019_20 IB]]*(1+MyCola3),(T_ENE_2016[[#This Row],[2019_20 IB]]+T_ENE_2016[[#This Row],[2019_20 NR]])*(1+MyCPI3)) -> 41229.475 | DF71: The Presidency|Administration | DG71: 001 | DH71: 001 | DI71: 002 | DJ71: 001 | DK71: 001001 | DL71: 001001 | DM71: 1 | DN71: 001001002001 | DP71: 001001001 | DS71: =T_Transfers_NAT[[#This Row],[SPId]]&DT71 -> 005291 | DT71: =IF(T_Transfers_NAT[[#This Row],[Vote No.]]<>DU70,1,IF(T_Transfers_NAT[[#This Row],[Programme No.]]<>DW70,1,IF(T_Transfers_NAT[[#This Row],[Subprogramme No.]]<>DY70,1,DT70+1))) -> 1 | DU71: 5 | DV71: Home Affairs | DW71: 2 | DX71: Citizen Affairs | DY71: 9 | DZ71: Represented Political Parties’ Fund | EA71: 141204 | EB71: 149394 | EC71: 157760 | ED71: =REPT("0",3-LEN(T_Transfers_NAT[[#This Row],[Vote No.]]))&T_Transfers_NAT[[#This Row],[Vote No.]]&T_Transfers_NAT[[#This Row],[Programme No.]]&T_Transfers_NAT[[#This Row],[Subprogramme No.]] -> 00529 | EE71: Represented Political Parties’ Fund | EH71: Transfers and subsidies | EI71: Departmental agencies and accounts | EJ71: Departmental agencies (non-business entities) | EK71: Current | EL71: 00524 | EM71: 4 | EP71: Parliament | EQ71: Associated Services | ER71: 9 | ET71: 0 | EU71: 0 | EV71: 6 | EW71: 2018.896819 | EX71: 6 | EY71: 2112 | EZ71: 6 | FA71: 2229 | FB71: 6 | FC71: 2367 | FD71: 6 | FE71: 2367 | FF71: Parliament|Associated Services | FG71: 002 | FH71: 005 | FI71: 002005 | FL71: 1 | FM71: =T_InfraS[[#This Row],[Programme/Project name]]&"|"&T_InfraS[[#This Row],[Type of infrastructure]] -> Itsoseng|Upgrading of offices | FN71: =COUNTIF(T_InfraS[Programme/Project name],T_InfraS[[#This Row],[Programme/Project name]]) -> 1 | FO71: 5 | FP71: Home Affairs | FQ71: Departmental infrastructure | FR71: Small projects | FS71: Itsoseng | FT71: Upgrading of offices | FU71: Construction | FV71: Upgrading and additions | FW71: Upgrades and renovations of office buildings (such as painting and new flooring) | FX71: 0 | FY71: 300 | FZ71: 914 | GA71: 2397 | GB71: 3500 | GC71: 0 | GD71: =+T_InfraS[[#This Row],[2019/20 Revised Baseline]] -> 0 | GE71: 5 | GF71: 1 | GG71: 3 | GH71: 513 | GI71: 005 | GJ71: =IF(T_InfraS[[#This Row],[Department]]<>FP70,1,GJ70+1) -> 35 | GK71: 035 | GL71: 005035 | GV71: 36 | GX71: My_Grants_Area5 | GY71: $K$190:$K$204 | HJ71: 24 | HK71: Agriculture, Forestry and Fisheries | HL71: 5 | HM71: Forestry and Natural Resources Management | HN71: 4 | HO71: Natural Resources Management | HP71: Land care programme grant: Poverty relief and infrastructure development | HQ71: Current | HR71: Transfers and subsidies | HS71: Provinces and municipalities | HT71: Provinces | HU71: PCG | HV71: 105823 | HW71: 67837 | HX71: 65011 | HY71: 69265 | HZ71: 69265 | IA71: 69265 | IB71: 73604 | IC71: 77873 | ID71: 82234 | IF71: 82234 | IG71: 1 | IH71: 24541 | II71: 02451 | IJ71: 1 | IU71: =INDEX(Table7[Vote No.],MATCH(IV71,Table7[Department],0)) -> 17 | IV71: Social Development | JB71: 007036 | JC71: 36 | JD71: =IFERROR(INDEX(T_InfraS[Programme/Project name],MATCH(JB71,T_InfraS[Combo_Lookup],0)),"") ->  | JM71: 0 | JN71: =IF(JN70="ID",1,IF(T_KeyDeliverablesValues[[#This Row],[Department]]<>JQ70,1,JN70+1)) -> 6 | JO71: =INDEX((Table7[Vote No.]),MATCH(T_KeyDeliverablesValues[[#This Row],[Department]],Table7[Department],0)) -> 18 | JP71: =REPT("0",3-LEN(T_KeyDeliverablesValues[[#This Row],[VoteNo]]))&T_KeyDeliverablesValues[[#This Row],[VoteNo]]&REPT("0",3-LEN(T_KeyDeliverablesValues[[#This Row],[ID]]))&T_KeyDeliverablesValues[[#This Row],[ID]] -> 018006 | JQ71: Correctional Services | JR71: Inventory: Food and food supplies | JS71: 349371 | JT71: 362983 | JU71: 377233 | JV71: 297829 | JW71: 405883 | JX71: 422878 | JY71: 442780 | JZ71: =IF(T_KeyDeliverablesValues[[#This Row],[CoEIndi]]=1,T_KeyDeliverablesValues[[#This Row],[2019/20]]*(1+$BQ$62),T_KeyDeliverablesValues[[#This Row],[2019/20]]*(1+$BQ$61)) -> 467132.9
